Workbook

Sheet Information
A1: =ROW() -> 1 | B1: =Main!B1 -> ERA, GGT Tariff Model, July 2019 [Draft Decision]
A2: =ROW() -> 2 | B2: Information
A3: =ROW() -> 3 | B3: Prior to using this model
A4: =ROW() -> 4 | B4: Solver must be both installed using Excel Add-ins and enabled in the VBA window > Tools > References > Check Solver
A5: =ROW() -> 5
A6: =ROW() -> 6 | B6: General
A7: =ROW() -> 7 | B7: All values in model must be displayed in non-negative values with the exception of adjustments, imputation credits and tax losses.
A8: =ROW() -> 8
A9: =ROW() -> 9 | B9: Assets
A10: =ROW() -> 10 | B10: Current Cost Accounting deems straight-line depreciation on all capex accounts prior to 1/01/2015 to be in 31/12/2014 dollars thereafter. No deflation or inflation is applied within the Asset Base.
A11: =ROW() -> 11
A12: =ROW() -> 12 | B12: Capex
A13: =ROW() -> 13 | B13: ="Under Current Cost Accounting all capex occuring after 31/12/2014 is inflated to "&TEXT(Inputs!$D$19,"dd/mm/yyyy")&" dollars." -> Under Current Cost Accounting all capex occuring after 31/12/2014 is inflated to 31/12/2018 dollars.
A14: =ROW() -> 14 | B14: Capex accounts exist only to calculate capex depreciation - the year level capex opening asset values are not used for anything other than capex depreciation calculation while total capex opening asset values exist for a cross checking results of capex depreciation calculations against other financial models.
A15: =ROW() -> 15
A16: =ROW() -> 16 | B16: Color codes
A17: =ROW() -> 17 | B17: blue text | C17: Input cell, hard coded input
A18: =ROW() -> 18 | C18: Extraordinary cell (solver target, solver input etc)
A19: =ROW() -> 19 | B19: blue text | C19: Hard coded input
A20: =ROW() -> 20 | B20: green text | C20: Formula linking to another worksheet
A21: =ROW() -> 21 | B21: pink text | C21: Extraordinary calculation
A22: =ROW() -> 22
A23: =ROW() -> 23 | B23: Worksheets
A24: =ROW() -> 24
A25: =ROW() -> 25 | B25: Worksheet | C25: Description
A26: =ROW() -> 26 | B26: Main | C26: Summary of outputs, target outputs and settings for Solver to compute the X-Factor and tariffs.
A27: =ROW() -> 27 | B27: WACC | C27: Contains the relevant parameters related to computing the WACC
A28: =ROW() -> 28 | B28: Inputs | C28: Contains general inputs of assumptions, capital expenditures, operating expenditures, UAFG expense, approved depreciations
A29: =ROW() -> 29 | B29: Adjustments | C29: This sheet is used when making adjustments to the initial capital base, capital expenditures and operating expenditure
A30: =ROW() -> 30 | B30: Load | C30: Contains inputs of gas volumes, distances, reserved capacity and other relevant information required to compute the reference tariffs
A31: =ROW() -> 31 | B31: CoS | C31: Computations of total revenue building block (cost of service), inflationary gain and Credit Foncier Check
A32: =ROW() -> 32 | B32: Revenue | C32: Contains relevant load parameters, tariffs and revenue
A33: =ROW() -> 33 | B33: Tax_CoRE | C33: Contains calculation of tax and imputation credits
A34: =ROW() -> 34 | B34: Assets | C34: ="Contains regulatory asset base. Computations prior to 31/12/2014 are nominal and thereafter are in Real at "&TEXT(Inputs!$D$19,"dd/mm/yyyy")&" $m." -> Contains regulatory asset base. Computations prior to 31/12/2014 are nominal and thereafter are in Real at 31/12/2018 $m.
A35: =ROW() -> 35 | B35: Tax Assets | C35: Contains tax asset base modelled from inception in 1994 based on assumed tax asset lives. The tax depreciation for capex before 2020 are nominal straight line while the capex from 2020 onwards are diminishing value
A36: =ROW() -> 36 | B36: SolverSheet | C36: This sheet is used with Excel addin Solver to cumpute the X-Factors and cost of raising equity
A37: =ROW() -> 37 | B37: Tariff Variation Mechanism | C37: This sheet is to check the proposed reference tariff of each year during the access arrangement period.

Sheet Main
B1: ERA, GGT Tariff Model, July 2019 [Draft Decision]
B2: Main Summary
A3: Ref | B3: =COLUMN() -> 2 | C3: =COLUMN() -> 3 | D3: =COLUMN() -> 4 | E3: =COLUMN() -> 5 | F3: =COLUMN() -> 6 | G3: =COLUMN() -> 7 | H3: =COLUMN() -> 8
A4: =ROW() -> 4 | B4: WACC
A5: =ROW() -> 5 | D5: Real | E5: Nominal
A6: =ROW() -> 6 | C6: Post-tax WACC | D6: =WACC!J35 -> 0.03692733017 | E6: =WACC!J34 -> 0.0502
A7: =ROW() -> 7
A8: =ROW() -> 8 | B8: Closing Regulated Asset Base
A9: =ROW() -> 9
A10: =ROW() -> 10 | D10: December 2019 | E10: December 2024
A11: =ROW() -> 11 | D11: ="[m$ " & TEXT(Inputs!$D$19,"dd/mm/yyyy") & "]" -> [m$ 31/12/2018] | E11: ="[m$ " & TEXT(Inputs!$D$19,"dd/mm/yyyy") & "]" -> [m$ 31/12/2018]
A12: =ROW() -> 12 | C12: Closing Value of Regulated Asset Base | D12: ='Assets '!BA24 -> 362.9290583 | E12: ='Assets '!BF24 -> 313.9486617
A13: =ROW() -> 13
A14: =ROW() -> 14 | B14: Revenue Building Block
A15: =ROW() -> 15
A16: =ROW() -> 16 | D16: Real | E16: Nominal | F16: Real [%] | G16: Nominal [%]
A17: =ROW() -> 17 | B17: ="PV of Total Revenue (CoS) [m$ " & TEXT(Inputs!$D$19,"dd/mm/yyyy") & "]" -> PV of Total Revenue (CoS) [m$ 31/12/2018]
A18: =ROW() -> 18 | C18: Opex | D18: =CoS!D53 -> 72.89494023 | E18: =CoS!D43 -> 72.89494023 | F18: =D18/D$24 -> 0.3919904637 | G18: =E18/E$24 -> 0.3919904637
A19: =ROW() -> 19 | C19: Depreciation | D19: =CoS!D52 -> 47.66942843 | E19: =CoS!D41 -> 47.66942843 | F19: =D19/$D$24 -> 0.2563409929 | G19: =E19/E$24 -> 0.2563409929
A20: =ROW() -> 20 | C20: Inflationary Gains on RAB | E20: =CoS!D42 -> -18.89029913 | F20: =D20/$D$24 -> 0 | G20: =E20/E$24 -> -0.1015820452
A21: =ROW() -> 21 | C21: Return on Asset | D21: =CoS!D51 -> 55.19509276 | E21: =CoS!D40 -> 74.08539189 | F21: =D21/$D$24 -> 0.2968100383 | G21: =E21/E$24 -> 0.3983920836
A22: =ROW() -> 22 | C22: Tax | D22: =Tax_CoRE!C38 -> 20.40308537 | E22: =Tax_CoRE!C38 -> 20.40308537 | F22: =D22/$D$24 -> 0.1097170101 | G22: =E22/E$24 -> 0.1097170101
A23: =ROW() -> 23 | C23: Imputation Credits | D23: =Tax_CoRE!C39 -> -10.20154268 | E23: =Tax_CoRE!C39 -> -10.20154268 | F23: =D23/$D$24 -> -0.05485850505 | G23: =E23/E$24 -> -0.05485850505
A24: =ROW() -> 24 | C24: Total Revenue (Cost of Service) | D24: =SUM(D18:D23) -> 185.9610041 | E24: =SUM(E18:E23) -> 185.9610041 | F24: =SUM(F18:F23) -> 1 | G24: =SUM(G18:G23) -> 1
A25: =ROW() -> 25 | C25: Tariff Revenue | D25: =CoS!D72 -> 185.9610043 | E25: =CoS!D72 -> 185.9610043
A26: =ROW() -> 26 | C26: Check: | D26: =IF(ROUND(D24-D25,6)=0,"OK","Error") -> OK | E26: =IF(ROUND(E24-E25,6)=0,"OK","Error") -> OK
A27: =ROW() -> 27
A28: =ROW() -> 28 | B28: X-Factor
A29: =ROW() -> 29
A30: =ROW() -> 30 | D30: =YEAR(CoS!G$8) -> 2020 | E30: =YEAR(CoS!H$8) -> 2021 | F30: =YEAR(CoS!I$8) -> 2022 | G30: =YEAR(CoS!J$8) -> 2023 | H30: =YEAR(CoS!K$8) -> 2024
A31: =ROW() -> 31 | C31: 1. Toll charge | D31: =IF(CoS!G60="","",CoS!G60) -> 0.1043603019 | E31: =IF(CoS!H60="","",CoS!H60) ->  | F31: =IF(CoS!I60="","",CoS!I60) ->  | G31: =IF(CoS!J60="","",CoS!J60) ->  | H31: =IF(CoS!K60="","",CoS!K60) -> 
A32: =ROW() -> 32 | C32: 2. Reservation charge | D32: =IF(CoS!G61="","",CoS!G61) -> 0.2586966927 | E32: =IF(CoS!H61="","",CoS!H61) ->  | F32: =IF(CoS!I61="","",CoS!I61) ->  | G32: =IF(CoS!J61="","",CoS!J61) ->  | H32: =IF(CoS!K61="","",CoS!K61) -> 
A33: =ROW() -> 33 | C33: 3. Throughput charge | D33: =IF(CoS!G62="","",CoS!G62) -> -0.06415012946 | E33: =IF(CoS!H62="","",CoS!H62) ->  | F33: =IF(CoS!I62="","",CoS!I62) ->  | G33: =IF(CoS!J62="","",CoS!J62) ->  | H33: =IF(CoS!K62="","",CoS!K62) -> 
A34: =ROW() -> 34
A35: =ROW() -> 35 | C35: Delta | D35: =NPVTarget -> 2.33557671e-07
A36: =ROW() -> 36
A37: =ROW() -> 37 | B37: Tariff
A38: =ROW() -> 38
A39: =ROW() -> 39 | C39: Calculated Tariff [Nominal $] | D39: =YEAR(CoS!G$8) -> 2020 | E39: =YEAR(CoS!H$8) -> 2021 | F39: =YEAR(CoS!I$8) -> 2022 | G39: =YEAR(CoS!J$8) -> 2023 | H39: =YEAR(CoS!K$8) -> 2024
A40: =ROW() -> 40 | C40: Toll charge | D40: =CoS!G65 -> 0.126564108 | E40: =CoS!H65 -> 0.126564108 | F40: =CoS!I65 -> 0.126564108 | G40: =CoS!J65 -> 0.126564108 | H40: =CoS!K65 -> 0.126564108
A41: =ROW() -> 41 | C41: Reservation charge | D41: =CoS!G66 -> 0.0007665462858 | E41: =CoS!H66 -> 0.0007665462858 | F41: =CoS!I66 -> 0.0007665462858 | G41: =CoS!J66 -> 0.0007665462858 | H41: =CoS!K66 -> 0.0007665462858
A42: =ROW() -> 42 | C42: Throughput charge | D42: =CoS!G67 -> 0.000209630371 | E42: =CoS!H67 -> 0.000209630371 | F42: =CoS!I67 -> 0.000209630371 | G42: =CoS!J67 -> 0.000209630371 | H42: =CoS!K67 -> 0.000209630371

Sheet WACC
B1: =Main!B1 -> ERA, GGT Tariff Model, July 2019 [Draft Decision]
B2: WACC
A3: Ref | B3: =COLUMN() -> 2 | C3: =COLUMN() -> 3 | D3: =COLUMN() -> 4 | E3: =COLUMN() -> 5 | F3: =COLUMN() -> 6 | G3: =COLUMN() -> 7 | H3: =COLUMN() -> 8 | I3: =COLUMN() -> 9 | J3: =COLUMN() -> 10 | K3: =COLUMN() -> 11 | L3: =COLUMN() -> 12 | M3: =COLUMN() -> 13 | N3: =COLUMN() -> 14
A4: =ROW() -> 4 | C4: ERA | D4: ERA | E4: ERA | F4: ERA | G4: ERA | H4: ERA | I4: ERA | J4: ERA | K4: ERA | L4: ERA | M4: ERA | N4: ERA
A5: =ROW() -> 5 | C5: AA1 | D5: AA2 | E5: AA3 2015 | F5: AA3 2016 | G5: AA3 2017 | H5: AA3 2018 | I5: AA3 2019 | J5: AA4 2020 | K5: AA4 2021 | L5: AA4 2022 | M5: AA4 2023 | N5: AA4 2024
A6: =ROW() -> 6 | B6: Return on Debt
A7: =ROW() -> 7 | B7: Debt: Nominal Risk Free Rate (DRfn) | C7: 0.0545 | D7: 0.0579 | E7: 0.0182 | F7: =$E$7 -> 0.0182 | G7: =$E$7 -> 0.0182 | H7: =$E$7 -> 0.0182 | I7: =$E$7 -> 0.0182
A8: =ROW() -> 8 | B8: Debt: Real Risk Free Rate (DRfr) | C8: =((1+C7)/(C25+1))-1 -> 0.02690000847 | D8: =((1+D7)/(D25+1))-1 -> 0.03209756098 | E8: =((1+E7)/(E25+1))-1 -> 0.003548196334 | F8: =$E$8 -> 0.003548196334 | G8: =$E$8 -> 0.003548196334 | H8: =$E$8 -> 0.003548196334 | I8: =$E$8 -> 0.003548196334
A9: =ROW() -> 9 | B9: Cost of Debt; 5 year Interest Rate Swap Spread | E9: 0.00296 | F9: =E9 -> 0.00296 | G9: =F9 -> 0.00296 | H9: =G9 -> 0.00296 | I9: =H9 -> 0.00296 | J9: 0.0186 | K9: =J9 -> 0.0186 | L9: =K9 -> 0.0186 | M9: =L9 -> 0.0186 | N9: =M9 -> 0.0186
A10: =ROW() -> 10 | B10: Cost of Debt; Debt Risk Premium (Drp) | D10: 0.0283 | E10: 0.025259 | F10: =IF(ISNUMBER(F53),AVERAGE(F53:F62),E10) -> 0.027128 | G10: =IF(ISNUMBER(G52),AVERAGE(G52:G61),F10) -> 0.028551 | H10: =IF(ISNUMBER(H51),AVERAGE(H51:H60),G10) -> 0.026657 | I10: =IF(ISNUMBER(I50),AVERAGE(I50:I59),H10) -> 0.023652 | J10: =J39 -> 0.02316 | K10: =K39 -> 0.02316 | L10: 0.02316 | M10: 0.02316 | N10: 0.02316
A11: =ROW() -> 11 | B11: Cost of Debt; Debt Issuing Cost (Disc) + Hedging Cost | D11: 0.00125 | E11: =0.125%+0.114% -> 0.00239 | F11: =$E11 -> 0.00239 | G11: 0.00239 | H11: 0.00239 | I11: 0.00239 | J11: =0.1%+0.114% -> 0.00214 | K11: =J11 -> 0.00214 | L11: 0.00214 | M11: 0.00214 | N11: 0.00214
A12: =ROW() -> 12 | B12: Cost of Debt; Risk Margin (Rm) -- Nominal Return on Debt (DPn) | D12: =SUM(D9:D11) -> 0.02955 | E12: 0.030609 | F12: 0.032478 | G12: 0.033901 | H12: 0.032007 | I12: 0.029002 | J12: 0.0439 | K12: 0.0439 | L12: 0.0439 | M12: 0.0439 | N12: 0.0439
A13: =ROW() -> 13 | B13: Nominal Cost of Debt (DPn) | C13: =C7+C12 -> 0.0545 | D13: 0.08745 | E13: 0.048809 | F13: 0.050678 | G13: 0.052101 | H13: 0.050207 | I13: 0.047202 | J13: =J12 -> 0.0439 | K13: =K12 -> 0.0439 | L13: 0.0439 | M13: 0.0439 | N13: 0.0439
A14: =ROW() -> 14
A15: =ROW() -> 15 | B15: Return on Equity
A16: =ROW() -> 16 | B16: Equity: Nominal Risk Free Rate (ERfn) | C16: 0.0545 | D16: 0.0579 | E16: 0.0182 | F16: =$E$7 -> 0.0182 | G16: =$E$7 -> 0.0182 | H16: =$E$7 -> 0.0182 | I16: =$E$7 -> 0.0182 | J16: 0.0159 | K16: =J16 -> 0.0159 | L16: =K16 -> 0.0159 | M16: 0.0159 | N16: 0.0159
A17: =ROW() -> 17 | B17: Australian Market Risk Premium (Rp) | D17: 0.06 | E17: 0.074 | F17: =$E17 -> 0.074 | G17: 0.074 | H17: 0.074 | I17: 0.074 | J17: 0.06 | K17: =J17 -> 0.06 | L17: 0.06 | M17: 0.06 | N17: 0.06
A18: =ROW() -> 18 | B18: Equity Beta (Be) | E18: 0.7 | F18: 0.7 | G18: 0.7 | H18: 0.7 | I18: 0.7 | J18: 0.7 | K18: =J18 -> 0.7 | L18: 0.7 | M18: 0.7 | N18: 0.7
A19: =ROW() -> 19 | B19: Nominal Pre Tax Cost of Equity (EPn) | C19: =(C7+C17*C18)/(1-C26*(1-C27)) -> 0.07864357864 | D19: 0.1307620693 | E19: =(E7+E17*E18)/(1-E26*(1-E27)) -> 0.08536585366 | F19: =(F7+F17*F18)/(1-F26*(1-F27)) -> 0.08536585366 | G19: =(G7+G17*G18)/(1-G26*(1-G27)) -> 0.08536585366 | H19: =(H7+H17*H18)/(1-H26*(1-H27)) -> 0.08536585366 | I19: =(I7+I17*I18)/(1-I26*(1-I27)) -> 0.08536585366 | J19: =J20/(1-J26*(1-J27)) -> 0.06811764706 | K19: =K20/(1-K26*(1-K27)) -> 0.06811764706 | L19: =L20/(1-L26*(1-L27)) -> 0.06811764706 | M19: =M20/(1-M26*(1-M27)) -> 0.06811764706 | N19: =N20/(1-N26*(1-N27)) -> 0.06811764706
A20: =ROW() -> 20 | B20: Nominal After Tax Cost of Equity (EAn) -- Nominal return on Equity | C20: =C16+C17*C18 -> 0.0545 | D20: 0.1129 | E20: =E16+E17*E18 -> 0.07 | F20: 0.07 | G20: 0.07 | H20: 0.07 | I20: 0.07 | J20: 0.0579 | K20: 0.0579 | L20: 0.0579 | M20: 0.0579 | N20: 0.0579
A21: =ROW() -> 21
A22: =ROW() -> 22 | B22: Other Parameter
A23: =ROW() -> 23 | B23: Debt Proportion (D) | C23: 0.6 | D23: 0.6 | E23: 0.6 | F23: =$E$23 -> 0.6 | G23: =$E$23 -> 0.6 | H23: 0.6 | I23: 0.6 | J23: 0.55 | K23: =J23 -> 0.55 | L23: =K23 -> 0.55 | M23: 0.55 | N23: 0.55
A24: =ROW() -> 24 | B24: Equity Proportion (E) | C24: =1-C23 -> 0.4 | D24: =1-D23 -> 0.4 | E24: =1-E23 -> 0.4 | F24: =$E$24 -> 0.4 | G24: =$E$24 -> 0.4 | H24: 0.4 | I24: 0.4 | J24: =1-J23 -> 0.45 | K24: =1-K23 -> 0.45 | L24: 0.45 | M24: 0.45 | N24: 0.45
A25: =ROW() -> 25 | B25: Inflation Rate for WACC (I) | C25: 0.026877 | D25: 0.025 | E25: 0.0146 | F25: =$E$25 -> 0.0146 | G25: =$E$25 -> 0.0146 | H25: =$E$25 -> 0.0146 | I25: =$E$25 -> 0.0146 | J25: 0.0128 | K25: =J25 -> 0.0128 | L25: 0.0128 | M25: 0.0128 | N25: 0.0128
A26: =ROW() -> 26 | B26: Corporate Tax Rate (T) | C26: 0.307 | D26: 0.3 | E26: 0.3 | F26: =$E26 -> 0.3 | G26: 0.3 | H26: 0.3 | I26: 0.3 | J26: 0.3 | K26: =J26 -> 0.3 | L26: 0.3 | M26: 0.3 | N26: 0.3
A27: =ROW() -> 27 | B27: Franking Credit (g) | E27: 0.4 | F27: 0.4 | G27: 0.4 | H27: 0.4 | I27: 0.4 | J27: 0.5 | K27: =J27 -> 0.5 | L27: 0.5 | M27: 0.5 | N27: 0.5
A28: =ROW() -> 28 | B28: Imputation Adj (G) | J28: =(1-J26)/(1-J26*(1-J27)) -> 0.8235294118 | K28: 0.8235294118 | L28: 0.8235294118 | M28: 0.8235294118 | N28: 0.8235294118
A29: =ROW() -> 29
A30: =ROW() -> 30 | B30: WACC; Pre-tax Officer (Market Practise or Forward Transformation)
A31: =ROW() -> 31 | B31: Nominal Pre Tax WACC (WPn) | C31: 0.106 | D31: 0.1047748277 | E31: =E19*E24+E13*E23 -> 0.06343174146 | F31: 0.06455314146 | G31: 0.06540694146 | H31: 0.06427054146 | I31: 0.06246754146 | J31: 0.05479794118 | K31: 0.05479794118 | L31: 0.05479794118 | M31: 0.05479794118 | N31: 0.05479794118
A32: =ROW() -> 32 | B32: Real Pre Tax WACC (WPr) | C32: =((1+C31)/(1+C25))-1 -> 0.07705207147 | D32: 0.0778 | E32: =(1+E31)/(1+E25)-1 -> 0.04812905723 | F32: 0.04923432039 | G32: 0.05007583428 | H32: 0.04895578697 | I32: 0.04717873198 | J32: =(1+J31)/(1+J25)-1 -> 0.04146716151 | K32: 0.04146716151 | L32: 0.04146716151 | M32: 0.04146716151 | N32: 0.04146716151
A33: =ROW() -> 33 | B33: WACC: Vanilla
A34: =ROW() -> 34 | B34: Nominal After Tax WACC | E34: =E13*E23+E20*E24 -> 0.0572854 | F34: 0.0584068 | G34: 0.0592606 | H34: 0.0581242 | I34: 0.0563212 | J34: 0.0502 | K34: 0.0502 | L34: 0.0502 | M34: 0.0502 | N34: 0.0502
A35: =ROW() -> 35 | B35: Real After Tax WACC | E35: =(1+E34)/(1+E25)-1 -> 0.04207116105 | F35: 0.04317642421 | G35: 0.0440179381 | H35: 0.04289789079 | I35: 0.0411208358 | J35: 0.03692733017 | K35: 0.03692733017 | L35: 0.03692733017 | M35: 0.03692733017 | N35: 0.03692733017
A36: =ROW() -> 36
A37: =ROW() -> 37 | B37: Cost of Debt; Debt Risk Premium (Drp)
A38: =ROW() -> 38 | B38: Trailing Average DRP | J38: =IF(Inputs!BE$24="","",Inputs!BE$24) -> 0.02316 | K38: =IF(Inputs!BF$24="","",Inputs!BF$24) ->  | L38: =IF(Inputs!BG$24="","",Inputs!BG$24) ->  | M38: =IF(Inputs!BH$24="","",Inputs!BH$24) ->  | N38: =IF(Inputs!BI$24="","",Inputs!BI$24) -> 
A39: =ROW() -> 39 | B39: Modelled DRP | J39: =IF(J38="",I39,J38) -> 0.02316 | K39: =IF(K38="",J39,K38) -> 0.02316 | L39: =IF(L38="",K39,L38) -> 0.02316 | M39: =IF(M38="",L39,M38) -> 0.02316 | N39: =IF(N38="",M39,N38) -> 0.02316
A40: =ROW() -> 40
A41: =ROW() -> 41 | B41: Annual Update of Debt Risk Premium | E41: 2015 | F41: =E41+1 -> 2016 | G41: =F41+1 -> 2017 | H41: 2018 | I41: 2019 | J41: 2020 | K41: 2021 | L41: 2022 | M41: 2023 | N41: 2024
A42: =ROW() -> 42 | B42: Trailing Average DRP | E42: =ROUND(AVERAGE(E50:E63),5) -> 0.02526 | F42: =IF(F53="","",ROUND(AVERAGE(F50:F63),5)) -> 0.02713 | G42: =IF(G52="","",ROUND(AVERAGE(G50:G63),5)) -> 0.02855 | H42: =IF(H51="","",ROUND(AVERAGE(H50:H63),5)) -> 0.02666 | I42: =IF(I50="","",ROUND(AVERAGE(I50:I63),5)) -> 0.02365 | J42: =IF(J49="","",ROUND(AVERAGE(J45:J63),5)) -> 0.02316 | K42: =IF(K48="","",ROUND(AVERAGE(K45:K63),5)) ->  | L42: =IF(L47="","",ROUND(AVERAGE(L45:L63),5)) ->  | M42: =IF(M46="","",ROUND(AVERAGE(M45:M63),5)) ->  | N42: =IF(N45="","",ROUND(AVERAGE(N45:N63),5)) -> 
A43: =ROW() -> 43
A44: =ROW() -> 44 | B44: Annual Debt Risk Premium, Year | E44: =E41 -> 2015 | F44: 2016 | G44: 2017 | H44: 2018 | I44: 2019 | J44: 2020 | K44: 2021 | L44: 2022 | M44: 2023 | N44: 2024
A45: =ROW() -> 45 | B45: =B46+1 -> 2024 | N45: =IF(Inputs!BI$23="","",Inputs!BI$23) -> 
A46: =ROW() -> 46 | B46: 2023 | M46: =IF(Inputs!BH$23="","",Inputs!BH$23) ->  | N46: =M46 -> 
A47: =ROW() -> 47 | B47: 2022 | L47: =IF(Inputs!BG$23="","",Inputs!BG$23) ->  | N47: =M47 -> 
A48: =ROW() -> 48 | B48: 2021 | K48: =IF(Inputs!BF$23="","",Inputs!BF$23) ->  | N48: =M48 -> 
A49: =ROW() -> 49 | B49: 2020 | J49: 0.01634 | K49: 0.01634 | L49: 0.01634 | M49: 0.01634 | N49: 0.01634
A50: =ROW() -> 50 | B50: 2019 | I50: 0.01619 | J50: =I50 -> 0.01619 | K50: 0.01619 | L50: 0.01619 | M50: 0.01619 | N50: =M50 -> 0.01619
A51: =ROW() -> 51 | B51: 2018 | H51: 0.01862 | I51: 0.01862 | J51: 0.01862 | K51: 0.01862 | L51: 0.01862 | M51: 0.01862 | N51: =M51 -> 0.01862
A52: =ROW() -> 52 | B52: 2017 | G52: 0.02553 | H52: 0.02553 | I52: 0.02553 | J52: 0.02553 | K52: 0.02553 | L52: 0.02553 | M52: 0.02553 | N52: =M52 -> 0.02553
A53: =ROW() -> 53 | B53: 2016 | F53: 0.02582 | G53: 0.02582 | H53: 0.02582 | I53: 0.02582 | J53: 0.02582 | K53: 0.02582 | L53: 0.02582 | M53: 0.02582 | N53: =M53 -> 0.02582
A54: =ROW() -> 54 | B54: 2015 | E54: 0.0207 | F54: =E54 -> 0.0207 | G54: 0.0207 | H54: 0.0207 | I54: 0.0207 | J54: 0.0207 | K54: 0.0207 | L54: 0.0207 | M54: 0.0207 | N54: =M54 -> 0.0207
A55: =ROW() -> 55 | B55: 2014 | E55: 0.02251 | F55: =E55 -> 0.02251 | G55: 0.02251 | H55: 0.02251 | I55: 0.02251 | J55: 0.02251 | K55: 0.02251 | L55: 0.02251 | M55: 0.02251
A56: =ROW() -> 56 | B56: 2013 | E56: 0.03043 | F56: 0.03043 | G56: 0.03043 | H56: 0.03043 | I56: 0.03043 | J56: 0.03043 | K56: 0.03043 | L56: 0.03043
A57: =ROW() -> 57 | B57: 2012 | E57: 0.03168 | F57: 0.03168 | G57: 0.03168 | H57: 0.03168 | I57: 0.03168 | J57: 0.03168 | K57: 0.03168
A58: =ROW() -> 58 | B58: 2011 | E58: 0.02379 | F58: 0.02379 | G58: 0.02379 | H58: 0.02379 | I58: 0.02379 | J58: 0.02379
A59: =ROW() -> 59 | B59: 2010 | E59: 0.02125 | F59: 0.02125 | G59: 0.02125 | H59: 0.02125 | I59: 0.02125
A60: =ROW() -> 60 | B60: 2009 | E60: 0.04624 | F60: =E60 -> 0.04624 | G60: =F60 -> 0.04624 | H60: 0.04624
A61: =ROW() -> 61 | B61: 2008 | E61: 0.03756 | F61: =E61 -> 0.03756 | G61: =F61 -> 0.03756
A62: =ROW() -> 62 | B62: =B63+1 -> 2007 | E62: 0.0113 | F62: =E62 -> 0.0113
A63: =ROW() -> 63 | B63: 2006 | E63: 0.00713
C64: Outcome based on regulatory judgement

Sheet Inputs
B1: =Main!B1 -> ERA, GGT Tariff Model, July 2019 [Draft Decision]
B2: Inputs
A3: Ref | B3: =COLUMN() -> 2 | C3: =COLUMN() -> 3 | D3: =COLUMN() -> 4 | E3: =COLUMN() -> 5 | F3: =COLUMN() -> 6 | G3: =COLUMN() -> 7 | H3: =COLUMN() -> 8 | I3: =COLUMN() -> 9 | J3: =COLUMN() -> 10 | K3: =COLUMN() -> 11 | L3: =COLUMN() -> 12 | M3: =COLUMN() -> 13 | N3: =COLUMN() -> 14 | O3: =COLUMN() -> 15 | P3: =COLUMN() -> 16 | Q3: =COLUMN() -> 17 | R3: =COLUMN() -> 18 | S3: =COLUMN() -> 19 | T3: =COLUMN() -> 20 | U3: =COLUMN() -> 21 | V3: =COLUMN() -> 22 | W3: =COLUMN() -> 23 | X3: =COLUMN() -> 24 | Y3: =COLUMN() -> 25 | Z3: =COLUMN() -> 26 | AA3: =COLUMN() -> 27 | AB3: =COLUMN() -> 28 | AC3: =COLUMN() -> 29 | AD3: =COLUMN() -> 30 | AE3: =COLUMN() -> 31 | AF3: =COLUMN() -> 32 | AG3: =COLUMN() -> 33 | AH3: =COLUMN() -> 34 | AI3: =COLUMN() -> 35 | AJ3: =COLUMN() -> 36 | AK3: =COLUMN() -> 37 | AL3: =COLUMN() -> 38 | AM3: =COLUMN() -> 39 | AN3: =COLUMN() -> 40 | AO3: =COLUMN() -> 41 | AP3: =COLUMN() -> 42 | AQ3: =COLUMN() -> 43 | AR3: =COLUMN() -> 44 | AS3: =COLUMN() -> 45 | AT3: =COLUMN() -> 46 | AU3: =COLUMN() -> 47 | AV3: =COLUMN() -> 48 | AW3: =COLUMN() -> 49 | AX3: =COLUMN() -> 50 | AY3: =COLUMN() -> 51 | AZ3: =COLUMN() -> 52 | BA3: =COLUMN() -> 53 | BB3: =COLUMN() -> 54 | BC3: =COLUMN() -> 55 | BD3: =COLUMN() -> 56 | BE3: =COLUMN() -> 57 | BF3: =COLUMN() -> 58 | BG3: =COLUMN() -> 59 | BH3: =COLUMN() -> 60 | BI3: =COLUMN() -> 61
A4: =ROW() -> 4 | B4: Actual or Forecast | F4: Actual | G4: Actual | H4: Actual | I4: Actual | J4: Actual | K4: Actual | L4: Actual | M4: Actual | N4: Actual | O4: Actual | P4: Actual | Q4: Actual | R4: Actual | S4: Actual | T4: Actual | U4: Actual | V4: Actual | W4: Actual | X4: Actual | Y4: Actual | Z4: Actual | AA4: Actual | AB4: Actual | AC4: Actual | AD4: Actual | AE4: Actual | AF4: Actual | AG4: Actual | AH4: Actual | AI4: Actual | AJ4: Actual | AK4: Actual | AL4: Actual | AM4: Actual | AN4: Actual | AO4: Actual | AP4: Actual | AQ4: Actual | AR4: Actual | AS4: Actual | AT4: Actual | AU4: Actual | AV4: Actual | AW4: Actual | AX4: Actual | AY4: Forecast | AZ4: Forecast | BA4: Forecast | BB4: Forecast | BC4: Forecast | BD4: Forecast | BE4: Forecast | BF4: Forecast | BG4: Forecast | BH4: Forecast | BI4: Forecast
A5: =ROW() -> 5 | B5: Year Type | F5: Calendar | G5: Calendar | H5: Calendar | I5: Calendar | J5: Calendar | K5: Calendar | L5: Calendar | M5: Calendar | N5: Calendar | O5: Calendar | P5: Calendar | Q5: Calendar | R5: Calendar | S5: Calendar | T5: Calendar | U5: Calendar | V5: Calendar | W5: Calendar | X5: Calendar | Y5: Calendar | Z5: Calendar | AA5: Calendar | AB5: Calendar | AC5: Calendar | AD5: Calendar | AE5: Calendar | AF5: Calendar | AG5: Calendar | AH5: Calendar | AI5: Calendar | AJ5: Calendar | AK5: Calendar | AL5: Calendar | AM5: Calendar | AN5: Calendar | AO5: Calendar | AP5: Calendar | AQ5: Calendar | AR5: Calendar | AS5: Calendar | AT5: Calendar | AU5: Calendar | AV5: Calendar | AW5: Calendar | AX5: Calendar | AY5: Calendar | AZ5: Calendar | BA5: Calendar | BB5: Calendar | BC5: Calendar | BD5: Calendar | BE5: Calendar | BF5: Calendar | BG5: Calendar | BH5: Calendar | BI5: Calendar
A6: =ROW() -> 6 | B6: Regulatory Period | G6: 1 | H6: 1 | I6: 1 | J6: 1 | K6: 1 | L6: 1 | M6: 1 | N6: 1 | O6: 1 | P6: 1 | Q6: 1 | R6: 1 | S6: 1 | T6: 1 | U6: 1 | V6: 1 | W6: 1 | X6: 1 | Y6: 1 | Z6: 1 | AA6: 1 | AB6: 1 | AC6: 1 | AD6: 1 | AE6: 1 | AF6: 1 | AG6: 1 | AH6: 1 | AI6: 1 | AJ6: 1 | AK6: 1 | AL6: 1 | AM6: 1 | AN6: 1 | AO6: 1 | AP6: 1 | AQ6: 1 | AR6: 1 | AS6: 1 | AT6: 1 | AU6: 2 | AV6: 2 | AW6: 2 | AX6: 2 | AY6: 2 | AZ6: 3 | BA6: 3 | BB6: 3 | BC6: 3 | BD6: 3 | BE6: 4 | BF6: 4 | BG6: 4 | BH6: 4 | BI6: 4
A7: =ROW() -> 7 | B7: Start Date | F7: 1999-10-01 | G7: =F8+1 -> 2000-01-01 | H7: 2000-04-01 | I7: 2000-07-01 | J7: 2000-10-01 | K7: 2001-01-01 | L7: 2001-04-01 | M7: 2001-07-01 | N7: 2001-10-01 | O7: 2002-01-01 | P7: 2002-04-01 | Q7: 2002-07-01 | R7: 2002-10-01 | S7: 2003-01-01 | T7: 2003-04-01 | U7: 2003-07-01 | V7: 2003-10-01 | W7: 2004-01-01 | X7: 2004-04-01 | Y7: 2004-07-01 | Z7: 2004-10-01 | AA7: 2005-01-01 | AB7: 2005-04-01 | AC7: 2005-07-01 | AD7: 2005-10-01 | AE7: 2006-01-01 | AF7: 2006-04-01 | AG7: 2006-07-01 | AH7: 2006-10-01 | AI7: 2007-01-01 | AJ7: 2007-04-01 | AK7: 2007-07-01 | AL7: 2007-10-01 | AM7: 2008-01-01 | AN7: 2008-04-01 | AO7: 2008-07-01 | AP7: 2008-10-01 | AQ7: 2009-01-01 | AR7: 2009-04-01 | AS7: 2009-07-01 | AT7: 2009-10-01 | AU7: 2010-01-01 | AV7: 2011-01-01 | AW7: 2012-01-01 | AX7: 2013-01-01 | AY7: 2014-01-01 | AZ7: 2015-01-01 | BA7: 2016-01-01 | BB7: 2017-01-01 | BC7: 2018-01-01 | BD7: 2019-01-01 | BE7: =BD8+1 -> 2020-01-01 | BF7: =BE8+1 -> 2021-01-01 | BG7: =BF8+1 -> 2022-01-01 | BH7: =BG8+1 -> 2023-01-01 | BI7: =BH8+1 -> 2024-01-01
A8: =ROW() -> 8 | B8: End Date | F8: =F7+F11-1 -> 1999-12-31 | G8: 2000-03-31 | H8: 2000-06-30 | I8: 2000-09-30 | J8: 2000-12-31 | K8: 2001-03-31 | L8: 2001-06-30 | M8: 2001-09-30 | N8: 2001-12-31 | O8: 2002-03-31 | P8: 2002-06-30 | Q8: 2002-09-30 | R8: 2002-12-31 | S8: 2003-03-31 | T8: 2003-06-30 | U8: 2003-09-30 | V8: 2003-12-31 | W8: 2004-03-31 | X8: 2004-06-30 | Y8: 2004-09-30 | Z8: 2004-12-31 | AA8: 2005-03-31 | AB8: 2005-06-30 | AC8: 2005-09-30 | AD8: 2005-12-31 | AE8: 2006-03-31 | AF8: 2006-06-30 | AG8: 2006-09-30 | AH8: 2006-12-31 | AI8: 2007-03-31 | AJ8: 2007-06-30 | AK8: 2007-09-30 | AL8: 2007-12-31 | AM8: 2008-03-31 | AN8: 2008-06-30 | AO8: 2008-09-30 | AP8: 2008-12-31 | AQ8: 2009-03-31 | AR8: 2009-06-30 | AS8: 2009-09-30 | AT8: 2009-12-31 | AU8: 2010-12-31 | AV8: 2011-12-31 | AW8: 2012-12-31 | AX8: 2013-12-31 | AY8: 2014-12-31 | AZ8: 2015-12-31 | BA8: 2016-12-31 | BB8: 2017-12-31 | BC8: 2018-12-31 | BD8: 2019-12-31 | BE8: =BE7+BE11-1 -> 2020-12-31 | BF8: 2021-12-31 | BG8: 2022-12-31 | BH8: 2023-12-31 | BI8: 2024-12-31
A9: =ROW() -> 9 | B9: Year | F9: =YEAR(F8) -> 1999 | G9: 2000 | H9: 2000 | I9: 2000 | J9: 2000 | K9: 2001 | L9: 2001 | M9: 2001 | N9: 2001 | O9: 2002 | P9: 2002 | Q9: 2002 | R9: 2002 | S9: 2003 | T9: 2003 | U9: 2003 | V9: 2003 | W9: 2004 | X9: 2004 | Y9: 2004 | Z9: 2004 | AA9: 2005 | AB9: 2005 | AC9: 2005 | AD9: 2005 | AE9: 2006 | AF9: 2006 | AG9: 2006 | AH9: 2006 | AI9: 2007 | AJ9: 2007 | AK9: 2007 | AL9: 2007 | AM9: 2008 | AN9: 2008 | AO9: 2008 | AP9: 2008 | AQ9: 2009 | AR9: 2009 | AS9: 2009 | AT9: 2009 | AU9: 2010 | AV9: 2011 | AW9: 2012 | AX9: 2013 | AY9: 2014 | AZ9: 2015 | BA9: 2016 | BB9: 2017 | BC9: 2018 | BD9: 2019 | BE9: 2020 | BF9: 2021 | BG9: 2022 | BH9: 2023 | BI9: =YEAR(BI8) -> 2024
A10: =ROW() -> 10 | B10: Quarter | G10: Q1 | H10: Q2 | I10: Q3 | J10: Q4 | K10: Q1 | L10: Q2 | M10: Q3 | N10: Q4 | O10: Q1 | P10: Q2 | Q10: Q3 | R10: Q4 | S10: Q1 | T10: Q2 | U10: Q3 | V10: Q4 | W10: Q1 | X10: Q2 | Y10: Q3 | Z10: Q4 | AA10: Q1 | AB10: Q2 | AC10: Q3 | AD10: Q4 | AE10: Q1 | AF10: Q2 | AG10: Q3 | AH10: Q4 | AI10: Q1 | AJ10: Q2 | AK10: Q3 | AL10: Q4 | AM10: Q1 | AN10: Q2 | AO10: Q3 | AP10: Q4 | AQ10: - | AR10: - | AS10: - | AT10: - | AU10: - | AV10: - | AW10: - | AX10: - | AY10: - | AZ10: - | BA10: - | BB10: - | BC10: - | BD10: - | BE10: - | BF10: - | BG10: - | BH10: - | BI10: -
A11: =ROW() -> 11 | B11: Days | F11: 92 | G11: 91 | H11: 91 | I11: 92 | J11: 92 | K11: 90 | L11: 91 | M11: 92 | N11: 92 | O11: 90 | P11: 91 | Q11: 92 | R11: 92 | S11: 90 | T11: 91 | U11: 92 | V11: 92 | W11: 91 | X11: 91 | Y11: 92 | Z11: 92 | AA11: 90 | AB11: 91 | AC11: 92 | AD11: 92 | AE11: 90 | AF11: 91 | AG11: 92 | AH11: 92 | AI11: 90 | AJ11: 91 | AK11: 92 | AL11: 92 | AM11: 91 | AN11: 91 | AO11: 92 | AP11: 92 | AQ11: 90 | AR11: 91 | AS11: 92 | AT11: 92 | AU11: 365 | AV11: 365 | AW11: 366 | AX11: 365 | AY11: 365 | AZ11: 365 | BA11: 366 | BB11: 365 | BC11: 365 | BD11: 365 | BE11: 366 | BF11: 365 | BG11: 365 | BH11: 365 | BI11: 366
A12: =ROW() -> 12 | B12: Years (nearest half) | F12: =ROUND(YEARFRAC(F7,F8),2) -> 0.25 | G12: 0.25 | H12: 0.25 | I12: 0.25 | J12: 0.25 | K12: 0.25 | L12: 0.25 | M12: 0.25 | N12: 0.25 | O12: 0.25 | P12: 0.25 | Q12: 0.25 | R12: 0.25 | S12: 0.25 | T12: 0.25 | U12: 0.25 | V12: 0.25 | W12: 0.25 | X12: 0.25 | Y12: 0.25 | Z12: 0.25 | AA12: 0.25 | AB12: 0.25 | AC12: 0.25 | AD12: 0.25 | AE12: 0.25 | AF12: 0.25 | AG12: 0.25 | AH12: 0.25 | AI12: 0.25 | AJ12: 0.25 | AK12: 0.25 | AL12: 0.25 | AM12: 0.25 | AN12: 0.25 | AO12: 0.25 | AP12: 0.25 | AQ12: 0.25 | AR12: 0.25 | AS12: 0.25 | AT12: 0.25 | AU12: 1 | AV12: 1 | AW12: 1 | AX12: 1 | AY12: 1 | AZ12: 1 | BA12: 1 | BB12: 1 | BC12: 1 | BD12: 1 | BE12: =ROUND(YEARFRAC(BE7,BE8),2) -> 1 | BF12: 1 | BG12: 1 | BH12: 1 | BI12: 1
A13: =ROW() -> 13
A14: =ROW() -> 14 | B14: CPI and Inflation
A15: =ROW() -> 15 | C15: Base period: | D15: 2018-12-31 | G15: 2000-03-01 | H15: 2000-06-01 | I15: 2000-09-01 | J15: 2000-12-01 | K15: 2001-03-01 | L15: 2001-06-01 | M15: 2001-09-01 | N15: 2001-12-01 | O15: 2002-03-01 | P15: 2002-06-01 | Q15: 2002-09-01 | R15: 2002-12-01 | S15: 2003-03-01 | T15: 2003-06-01 | U15: 2003-09-01 | V15: 2003-12-01 | W15: 2004-03-01 | X15: 2004-06-01 | Y15: 2004-09-01 | Z15: 2004-12-01 | AA15: 2005-03-01 | AB15: 2005-06-01 | AC15: 2005-09-01 | AD15: 2005-12-01 | AE15: 2006-03-01 | AF15: 2006-06-01 | AG15: 2006-09-01 | AH15: 2006-12-01 | AI15: 2007-03-01 | AJ15: 2007-06-01 | AK15: 2007-09-01 | AL15: 2007-12-01 | AM15: 2008-03-01 | AN15: 2008-06-01 | AO15: 2008-09-01 | AP15: 2008-12-01 | AQ15: 2009-03-01 | AR15: 2009-06-30 | AS15: 2009-09-30 | AT15: 2009-12-31 | AU15: 2010-12-31 | AV15: 2011-12-31 | AW15: 2012-12-31 | AX15: 2013-12-31 | AY15: 2014-12-31 | AZ15: 2015-12-31 | BA15: 2016-12-31 | BB15: 2017-12-31 | BC15: 2018-12-31 | BD15: 2019-12-31 | BE15: 2020-12-31 | BF15: 2021-12-31 | BG15: 2022-12-31 | BH15: 2023-12-31 | BI15: 2024-12-03
A16: =ROW() -> 16 | B16: Period End CPI | G16: 69.7 | H16: 70.2 | I16: 72.9 | J16: 73.1 | K16: 73.9 | L16: 74.5 | M16: 74.7 | N16: 75.4 | O16: 76.1 | P16: 76.6 | Q16: 77.1 | R16: 77.6 | S16: 78.6 | T16: 78.6 | U16: 79.1 | V16: 79.5 | W16: 80.2 | X16: 80.6 | Y16: 80.9 | Z16: 81.5 | AA16: 82.1 | AB16: 82.6 | AC16: 83.4 | AD16: 83.8 | AE16: 84.5 | AF16: 85.9 | AG16: 86.7 | AH16: 86.6 | AI16: 86.6 | AJ16: 87.7 | AK16: 88.3 | AL16: 89.1 | AM16: 90.3 | AN16: 91.6 | AO16: 92.7 | AP16: 92.4 | AQ16: 92.5 | AR16: 92.9 | AS16: 93.8 | AT16: 94.3 | AU16: 96.9 | AV16: 99.8 | AW16: 102 | AX16: 104.8 | AY16: 106.6 | AZ16: 108.15636 | BA16: 109.7354429 | BB16: 111.3375803 | BC16: 112.963109 | BD16: =BC16*(1+BD17) -> 114.4090368 | BE16: =BD16*(1+BE17) -> 115.8734725 | BF16: =BE16*(1+BF17) -> 117.3566529 | BG16: 118.8588181 | BH16: 120.3802109 | BI16: 121.9210776
A17: =ROW() -> 17 | B17: Period End Inflation | H17: 0.007173601148 | I17: 0.03846153846 | J17: 0.002743484225 | K17: 0.01094391245 | L17: 0.008119079838 | M17: 0.002684563758 | N17: 0.0093708166 | O17: 0.009283819629 | P17: 0.006570302234 | Q17: 0.006527415144 | R17: 0.006485084306 | S17: 0.01288659794 | T17: 0 | U17: 0.006361323155 | V17: 0.005056890013 | W17: 0.008805031447 | X17: 0.004987531172 | Y17: 0.003722084367 | Z17: 0.007416563659 | AA17: 0.00736196319 | AB17: 0.006090133983 | AC17: 0.009685230024 | AD17: 0.00479616307 | AE17: 0.008353221957 | AF17: 0.01656804734 | AG17: 0.009313154831 | AH17: -0.001153402537 | AI17: 0 | AJ17: 0.01270207852 | AK17: 0.006841505131 | AL17: 0.00906002265 | AM17: 0.01346801347 | AN17: 0.01439645626 | AO17: 0.01200873362 | AP17: -0.003236245955 | AQ17: 0.001082251082 | AR17: 0.004324324324 | AS17: 0.009687836383 | AT17: 0.005330490405 | AU17: 0.02757158006 | AV17: 0.02992776058 | AW17: 0.02204408818 | AX17: 0.02745098039 | AY17: 0.01717557252 | AZ17: 0.0146 | BA17: 0.0146 | BB17: 0.0146 | BC17: 0.0146 | BD17: =BE17 -> 0.0128 | BE17: =WACC!J25 -> 0.0128 | BF17: =WACC!K25 -> 0.0128 | BG17: =WACC!L25 -> 0.0128 | BH17: =WACC!M25 -> 0.0128 | BI17: =WACC!N25 -> 0.0128
A18: =ROW() -> 18
A19: =ROW() -> 19 | B19: ="Inflation Factor (convert nominal to real $ "&D19&")" -> Inflation Factor (convert nominal to real $ 31/12/2018) | C19: Real $ at | D19: =TEXT(D15,"dd/mm/yyyy") -> 31/12/2018 | AS19: =HLOOKUP($D$15,$AS$15:$BI$16,2,FALSE)/AS$16 -> 1.204297537 | AT19: =HLOOKUP($D$15,$AS$15:$BI$16,2,FALSE)/AT$16 -> 1.197912078 | AU19: 1.165769959 | AV19: 1.13189488 | AW19: 1.107481461 | AX19: 1.077892261 | AY19: 1.059691454 | AZ19: 1.044442592 | BA19: 1.02941316 | BB19: 1.0146 | BC19: 1 | BD19: 0.9873617694 | BE19: 0.9748832636 | BF19: 0.962562464 | BG19: 0.9503973776 | BH19: 0.9383860363 | BI19: 0.9265264972
A20: =ROW() -> 20
A21: =ROW() -> 21 | B21: General Inputs
A22: =ROW() -> 22 | B22: Tariff Recalculation | C22: =IF(ISNUMBER($BI$23),$BI$9,IF(ISNUMBER($BH$23),$BH$9,IF(ISNUMBER($BG$23),$BG$9,IF(ISNUMBER($BF$23),$BF$9,$BE$9)))) -> 2020 | D22: =BI9 -> 2024
A23: =ROW() -> 23 | B23: Annual Debt Risk Premium (Annual Update) | BE23: =WACC!J49 -> 0.01634
A24: =ROW() -> 24 | B24: Trailing Average DRP (10 year ave, modelled) | AZ24: =WACC!E42 -> 0.02526 | BA24: =WACC!F42 -> 0.02713 | BB24: =WACC!G42 -> 0.02855 | BC24: =WACC!H42 -> 0.02666 | BD24: =WACC!I42 -> 0.02365 | BE24: =IF(WACC!J42="","",WACC!J42) -> 0.02316 | BF24: =IF(WACC!K42="","",WACC!K42) ->  | BG24: =IF(WACC!L42="","",WACC!L42) ->  | BH24: =IF(WACC!M42="","",WACC!M42) ->  | BI24: =IF(WACC!N42="","",WACC!N42) -> 
A25: =ROW() -> 25 | B25: X-Factor
A26: =ROW() -> 26 | B26: Toll Charge | BE26: =ChangeTol2020 -> 0.1043603019 | BF26: =ChangeTol2021 ->  | BG26: =ChangeTol2022 ->  | BH26: =ChangeTol2023 ->  | BI26: =ChangeTol2024 -> 
A27: =ROW() -> 27 | B27: Reservation Charge | BE27: =ChangeRes2020 -> 0.2586966927 | BF27: =ChangeRes2021 ->  | BG27: =ChangeRes2022 ->  | BH27: =ChangeRes2023 ->  | BI27: =ChangeRes2024 -> 
A28: =ROW() -> 28 | B28: Throughput Charge | BE28: =ChangeThr2020 -> -0.06415012946 | BF28: =ChangeThr2021 ->  | BG28: =ChangeThr2022 ->  | BH28: =ChangeThr2023 ->  | BI28: =ChangeThr2024 -> 
A29: =ROW() -> 29
A30: =ROW() -> 30 | B30: Asset Sheet Inputs
A31: =ROW() -> 31 | C31: ICB Asset Life (years) | D31: Asset Life (years) | E31: Tax Asset Life (years)
A32: =ROW() -> 32 | B32: Date of Opening Life | C32: 1999-12-31
A33: =ROW() -> 33 | B33: Pipeline and laterals | C33: 64.5 | D33: 70 | E33: 20
A34: =ROW() -> 34 | B34: Main line valve and scraper stations | C34: 44.5 | D34: 50 | E34: 20
A35: =ROW() -> 35 | B35: Compressor stations | C35: 24.5 | D35: 30 | E35: 20
A36: =ROW() -> 36 | B36: Receipt and delivery point facilities | C36: 24.5 | D36: 30 | E36: 20
A37: =ROW() -> 37 | B37: SCADA and communications | C37: 9.5 | D37: 10 | E37: 10
A38: =ROW() -> 38 | B38: Cathodic protection | C38: 9.5 | D38: 15 | E38: 10
A39: =ROW() -> 39 | B39: Maintenance bases and depots | C39: 44.5 | D39: 50 | E39: 20
A40: =ROW() -> 40 | B40: Other assets | C40: 4.5 | D40: 10 | E40: 10
A41: =ROW() -> 41 | B41: Equity Raising Cost | D41: =SUMPRODUCT($D$33:$D$40,'Assets '!$BB$161:$BB$168)/SUM('Assets '!$BB$161:$BB$168) -> 32.98255163
A42: =ROW() -> 42 | B42: Non-depreciable assets
A43: =ROW() -> 43 | C43: ICB | D43: Tax Asset ICB
A44: =ROW() -> 44 | B44: Date of Dollar Value | C44: 1999-12-31 | D44: 1999-12-31
A45: =ROW() -> 45 | B45: Pipeline and laterals | C45: 438.6555358 | D45: 438.6555358
A46: =ROW() -> 46 | B46: Main line valve and scraper stations | C46: 9.177771758 | D46: 9.177771758
A47: =ROW() -> 47 | B47: Compressor stations | C47: 41.57599489 | D47: 41.57599489
A48: =ROW() -> 48 | B48: Receipt and delivery point facilities | C48: 1.534343975 | D48: 1.534343975
A49: =ROW() -> 49 | B49: SCADA and communications | C49: 10.12958811 | D49: 10.12958811
A50: =ROW() -> 50 | B50: Cathodic protection | C50: 1.828833019 | D50: 1.828833019
A51: =ROW() -> 51 | B51: Maintenance bases and depots | C51: 7.727642558 | D51: 7.727642558
A52: =ROW() -> 52 | B52: Other assets | C52: 0.4393552199 | D52: 0.4393552199
A53: =ROW() -> 53 | B53: Equity Raising Cost
A54: =ROW() -> 54 | B54: Non-depreciable assets | C54: =$F$1370 -> 2.581675929 | D54: 0
A55: =ROW() -> 55 | B55: Total | C55: 511.0690653
A56: =ROW() -> 56 | B56: ICB Depreciation ($m) HCA
A57: =ROW() -> 57 | B57: Date of Dollar Value | G57: 2000-03-31 | H57: 2000-06-30 | I57: 2000-09-30 | J57: 2000-12-31 | K57: 2001-03-31 | L57: 2001-06-30 | M57: 2001-09-30 | N57: 2001-12-31 | O57: 2002-03-31 | P57: 2002-06-30 | Q57: 2002-09-30 | R57: 2002-12-31 | S57: 2003-03-31 | T57: 2003-06-30 | U57: 2003-09-30 | V57: 2003-12-31 | W57: 2004-03-31 | X57: 2004-06-30 | Y57: 2004-09-30 | Z57: 2004-12-31 | AA57: 2005-03-31 | AB57: 2005-06-30 | AC57: 2005-09-30 | AD57: 2005-12-31 | AE57: 2006-03-31 | AF57: 2006-06-30 | AG57: 2006-09-30 | AH57: 2006-12-31 | AI57: 2007-03-31 | AJ57: 2007-06-30 | AK57: 2007-09-30 | AL57: 2007-12-31 | AM57: 2008-03-31 | AN57: 2008-06-30 | AO57: 2008-09-30 | AP57: 2008-12-31 | AQ57: 2009-03-31 | AR57: 2009-06-30 | AS57: 2009-09-30 | AT57: 2009-12-31 | AU57: 2010-12-31 | AV57: 2011-12-31 | AW57: 2012-12-31 | AX57: 2013-12-31 | AY57: 2014-12-31 | AZ57: 2014-12-31 | BA57: 2014-12-31 | BB57: 2014-12-31 | BC57: 2014-12-31 | BD57: 2014-12-31
A58: =ROW() -> 58 | B58: Pipeline and laterals | G58: 6.80086102 | H58: 6.80086102 | I58: 6.80086102 | J58: 6.80086102 | K58: 6.80086102 | L58: 6.80086102 | M58: 6.80086102 | N58: 6.80086102 | O58: 6.80086102 | P58: 6.80086102 | Q58: 6.80086102 | R58: 6.80086102 | S58: 6.80086102 | T58: 6.80086102 | U58: 6.80086102 | V58: 6.80086102 | W58: 6.80086102 | X58: 6.80086102 | Y58: 6.80086102 | Z58: 6.80086102 | AA58: 6.80086102 | AB58: 6.80086102 | AC58: 6.80086102 | AD58: 6.80086102 | AE58: 6.80086102 | AF58: 6.80086102 | AG58: 6.80086102 | AH58: 6.80086102 | AI58: 6.80086102 | AJ58: 6.80086102 | AK58: 6.80086102 | AL58: 6.80086102 | AM58: 6.80086102 | AN58: 6.80086102 | AO58: 6.80086102 | AP58: 6.80086102 | AQ58: 6.80086102 | AR58: 6.80086102 | AS58: 6.80086102 | AT58: 6.80086102 | AU58: 6.80086102 | AV58: 6.80086102 | AW58: 6.80086102 | AX58: 6.80086102 | AY58: 6.80086102 | AZ58: 6.80086102 | BA58: 6.80086102 | BB58: 6.80086102 | BC58: 6.80086102 | BD58: 6.80086102
A59: =ROW() -> 59 | B59: Main line valve and scraper stations | G59: 0.206242062 | H59: 0.206242062 | I59: 0.206242062 | J59: 0.206242062 | K59: 0.206242062 | L59: 0.206242062 | M59: 0.206242062 | N59: 0.206242062 | O59: 0.206242062 | P59: 0.206242062 | Q59: 0.206242062 | R59: 0.206242062 | S59: 0.206242062 | T59: 0.206242062 | U59: 0.206242062 | V59: 0.206242062 | W59: 0.206242062 | X59: 0.206242062 | Y59: 0.206242062 | Z59: 0.206242062 | AA59: 0.206242062 | AB59: 0.206242062 | AC59: 0.206242062 | AD59: 0.206242062 | AE59: 0.206242062 | AF59: 0.206242062 | AG59: 0.206242062 | AH59: 0.206242062 | AI59: 0.206242062 | AJ59: 0.206242062 | AK59: 0.206242062 | AL59: 0.206242062 | AM59: 0.206242062 | AN59: 0.206242062 | AO59: 0.206242062 | AP59: 0.206242062 | AQ59: 0.206242062 | AR59: 0.206242062 | AS59: 0.206242062 | AT59: 0.206242062 | AU59: 0.206242062 | AV59: 0.206242062 | AW59: 0.206242062 | AX59: 0.206242062 | AY59: 0.206242062 | AZ59: 0.206242062 | BA59: 0.206242062 | BB59: 0.206242062 | BC59: 0.206242062 | BD59: 0.206242062
A60: =ROW() -> 60 | B60: Compressor stations | G60: 1.696979383 | H60: 1.696979383 | I60: 1.696979383 | J60: 1.696979383 | K60: 1.696979383 | L60: 1.696979383 | M60: 1.696979383 | N60: 1.696979383 | O60: 1.696979383 | P60: 1.696979383 | Q60: 1.696979383 | R60: 1.696979383 | S60: 1.696979383 | T60: 1.696979383 | U60: 1.696979383 | V60: 1.696979383 | W60: 1.696979383 | X60: 1.696979383 | Y60: 1.696979383 | Z60: 1.696979383 | AA60: 1.696979383 | AB60: 1.696979383 | AC60: 1.696979383 | AD60: 1.696979383 | AE60: 1.696979383 | AF60: 1.696979383 | AG60: 1.696979383 | AH60: 1.696979383 | AI60: 1.696979383 | AJ60: 1.696979383 | AK60: 1.696979383 | AL60: 1.696979383 | AM60: 1.696979383 | AN60: 1.696979383 | AO60: 1.696979383 | AP60: 1.696979383 | AQ60: 1.696979383 | AR60: 1.696979383 | AS60: 1.696979383 | AT60: 1.696979383 | AU60: 1.696979383 | AV60: 1.696979383 | AW60: 1.696979383 | AX60: 1.696979383 | AY60: 1.696979383 | AZ60: 1.696979383 | BA60: 1.696979383 | BB60: 1.696979383 | BC60: 1.696979383 | BD60: 1.696979383
A61: =ROW() -> 61 | B61: Receipt and delivery point facilities | G61: 0.0626262847 | H61: 0.0626262847 | I61: 0.0626262847 | J61: 0.0626262847 | K61: 0.0626262847 | L61: 0.0626262847 | M61: 0.0626262847 | N61: 0.0626262847 | O61: 0.0626262847 | P61: 0.0626262847 | Q61: 0.0626262847 | R61: 0.0626262847 | S61: 0.0626262847 | T61: 0.0626262847 | U61: 0.0626262847 | V61: 0.0626262847 | W61: 0.0626262847 | X61: 0.0626262847 | Y61: 0.0626262847 | Z61: 0.0626262847 | AA61: 0.0626262847 | AB61: 0.0626262847 | AC61: 0.0626262847 | AD61: 0.0626262847 | AE61: 0.0626262847 | AF61: 0.0626262847 | AG61: 0.0626262847 | AH61: 0.0626262847 | AI61: 0.0626262847 | AJ61: 0.0626262847 | AK61: 0.0626262847 | AL61: 0.0626262847 | AM61: 0.0626262847 | AN61: 0.0626262847 | AO61: 0.0626262847 | AP61: 0.0626262847 | AQ61: 0.0626262847 | AR61: 0.0626262847 | AS61: 0.0626262847 | AT61: 0.0626262847 | AU61: 0.0626262847 | AV61: 0.0626262847 | AW61: 0.0626262847 | AX61: 0.0626262847 | AY61: 0.0626262847 | AZ61: 0.0626262847 | BA61: 0.0626262847 | BB61: 0.0626262847 | BC61: 0.0626262847 | BD61: 0.0626262847
A62: =ROW() -> 62 | B62: SCADA and communications | G62: 1.066272432 | H62: 1.066272432 | I62: 1.066272432 | J62: 1.066272432 | K62: 1.066272432 | L62: 1.066272432 | M62: 1.066272432 | N62: 1.066272432 | O62: 1.066272432 | P62: 1.066272432 | Q62: 1.066272432 | R62: 1.066272432 | S62: 1.066272432 | T62: 1.066272432 | U62: 1.066272432 | V62: 1.066272432 | W62: 1.066272432 | X62: 1.066272432 | Y62: 1.066272432 | Z62: 1.066272432 | AA62: 1.066272432 | AB62: 1.066272432 | AC62: 1.066272432 | AD62: 1.066272432 | AE62: 1.066272432 | AF62: 1.066272432 | AG62: 1.066272432 | AH62: 1.066272432 | AI62: 1.066272432 | AJ62: 1.066272432 | AK62: 1.066272432 | AL62: 1.066272432 | AM62: 1.066272432 | AN62: 1.066272432 | AO62: 1.066272432 | AP62: 1.066272432 | AQ62: 1.066272432 | AR62: 1.066272432 | AS62: 0 | AT62: 0 | AU62: 0 | AV62: 0 | AW62: 0 | AX62: 0 | AY62: 0 | AZ62: 1.33226763e-15 | BA62: 0 | BB62: 0 | BC62: 0 | BD62: 0
A63: =ROW() -> 63 | B63: Cathodic protection | G63: 0.1925087388 | H63: 0.1925087388 | I63: 0.1925087388 | J63: 0.1925087388 | K63: 0.1925087388 | L63: 0.1925087388 | M63: 0.1925087388 | N63: 0.1925087388 | O63: 0.1925087388 | P63: 0.1925087388 | Q63: 0.1925087388 | R63: 0.1925087388 | S63: 0.1925087388 | T63: 0.1925087388 | U63: 0.1925087388 | V63: 0.1925087388 | W63: 0.1925087388 | X63: 0.1925087388 | Y63: 0.1925087388 | Z63: 0.1925087388 | AA63: 0.1925087388 | AB63: 0.1925087388 | AC63: 0.1925087388 | AD63: 0.1925087388 | AE63: 0.1925087388 | AF63: 0.1925087388 | AG63: 0.1925087388 | AH63: 0.1925087388 | AI63: 0.1925087388 | AJ63: 0.1925087388 | AK63: 0.1925087388 | AL63: 0.1925087388 | AM63: 0.1925087388 | AN63: 0.1925087388 | AO63: 0.1925087388 | AP63: 0.1925087388 | AQ63: 0.1925087388 | AR63: 0.1925087388 | AS63: 0 | AT63: 0 | AU63: 0 | AV63: 0 | AW63: 0 | AX63: 0 | AY63: 0 | AZ63: 0 | BA63: 0 | BB63: 0 | BC63: 0 | BD63: 0
A64: =ROW() -> 64 | B64: Maintenance bases and depots | G64: 0.1736548889 | H64: 0.1736548889 | I64: 0.1736548889 | J64: 0.1736548889 | K64: 0.1736548889 | L64: 0.1736548889 | M64: 0.1736548889 | N64: 0.1736548889 | O64: 0.1736548889 | P64: 0.1736548889 | Q64: 0.1736548889 | R64: 0.1736548889 | S64: 0.1736548889 | T64: 0.1736548889 | U64: 0.1736548889 | V64: 0.1736548889 | W64: 0.1736548889 | X64: 0.1736548889 | Y64: 0.1736548889 | Z64: 0.1736548889 | AA64: 0.1736548889 | AB64: 0.1736548889 | AC64: 0.1736548889 | AD64: 0.1736548889 | AE64: 0.1736548889 | AF64: 0.1736548889 | AG64: 0.1736548889 | AH64: 0.1736548889 | AI64: 0.1736548889 | AJ64: 0.1736548889 | AK64: 0.1736548889 | AL64: 0.1736548889 | AM64: 0.1736548889 | AN64: 0.1736548889 | AO64: 0.1736548889 | AP64: 0.1736548889 | AQ64: 0.1736548889 | AR64: 0.1736548889 | AS64: 0.1736548889 | AT64: 0.1736548889 | AU64: 0.1736548889 | AV64: 0.1736548889 | AW64: 0.1736548889 | AX64: 0.1736548889 | AY64: 0.1736548889 | AZ64: 0.1736548889 | BA64: 0.1736548889 | BB64: 0.1736548889 | BC64: 0.1736548889 | BD64: 0.1736548889
A65: =ROW() -> 65 | B65: Other assets | G65: 0.09763449332 | H65: 0.09763449332 | I65: 0.09763449332 | J65: 0.09763449332 | K65: 0.09763449332 | L65: 0.09763449332 | M65: 0.09763449332 | N65: 0.09763449332 | O65: 0.09763449332 | P65: 0.09763449332 | Q65: 0.09763449332 | R65: 0.09763449332 | S65: 0.09763449332 | T65: 0.09763449332 | U65: 0.09763449332 | V65: 0.09763449332 | W65: 0.09763449332 | X65: 0.09763449332 | Y65: 0 | Z65: 0 | AA65: 0 | AB65: 0 | AC65: 0 | AD65: 0 | AE65: 0 | AF65: 0 | AG65: 0 | AH65: 0 | AI65: 0 | AJ65: 0 | AK65: 0 | AL65: 0 | AM65: 0 | AN65: 0 | AO65: 0 | AP65: 0 | AQ65: 0 | AR65: 0 | AS65: 0 | AT65: 0 | AU65: 0 | AV65: 0 | AW65: 0 | AX65: 0 | AY65: 0 | AZ65: 0 | BA65: 0 | BB65: 0 | BC65: 0 | BD65: 0
A66: =ROW() -> 66 | B66: Equity Raising Cost
A67: =ROW() -> 67 | B67: Non-depreciable assets
A68: =ROW() -> 68 | B68: Total | G68: =SUM(G58:G65) -> 10.2967793 | H68: =SUM(H58:H65) -> 10.2967793 | I68: 10.2967793 | J68: 10.2967793 | K68: 10.2967793 | L68: 10.2967793 | M68: 10.2967793 | N68: 10.2967793 | O68: 10.2967793 | P68: 10.2967793 | Q68: 10.2967793 | R68: 10.2967793 | S68: 10.2967793 | T68: 10.2967793 | U68: 10.2967793 | V68: 10.2967793 | W68: 10.2967793 | X68: 10.2967793 | Y68: 10.19914481 | Z68: 10.19914481 | AA68: 10.19914481 | AB68: 10.19914481 | AC68: 10.19914481 | AD68: 10.19914481 | AE68: 10.19914481 | AF68: 10.19914481 | AG68: 10.19914481 | AH68: 10.19914481 | AI68: 10.19914481 | AJ68: 10.19914481 | AK68: 10.19914481 | AL68: 10.19914481 | AM68: 10.19914481 | AN68: 10.19914481 | AO68: 10.19914481 | AP68: 10.19914481 | AQ68: 10.19914481 | AR68: 10.19914481 | AS68: 8.940363639 | AT68: 8.940363639 | AU68: 8.940363639 | AV68: 8.940363639 | AW68: 8.940363639 | AX68: 8.940363639 | AY68: 8.940363639 | AZ68: 8.940363639 | BA68: 8.940363639 | BB68: 8.940363639 | BC68: 8.940363639 | BD68: 8.940363639
A69: =ROW() -> 69 | B69: ="ICB Depreciation (Real $ "&D19&" $m)" -> ICB Depreciation (Real $ 31/12/2018 $m)
A70: =ROW() -> 70 | B70: Date of Dollar Value | AZ70: =$D$15 -> 2018-12-31 | BA70: =$D$15 -> 2018-12-31 | BB70: 2018-12-31 | BC70: 2018-12-31 | BD70: 2018-12-31
A71: =ROW() -> 71 | B71: Pipeline and laterals | AZ71: =AZ58/$AY$16*HLOOKUP(AZ$70,$G$15:$BI$16,2,FALSE) -> 7.206814303 | BA71: =BA58/$AY$16*HLOOKUP(BA$70,$G$15:$BI$16,2,FALSE) -> 7.206814303 | BB71: 7.206814303 | BC71: 7.206814303 | BD71: 7.206814303
A72: =ROW() -> 72 | B72: Main line valve and scraper stations | AZ72: =AZ59/$AY$16*HLOOKUP(AZ$70,$G$15:$BI$16,2,FALSE) -> 0.2185529505 | BA72: 0.2185529505 | BB72: 0.2185529505 | BC72: 0.2185529505 | BD72: 0.2185529505
A73: =ROW() -> 73 | B73: Compressor stations | AZ73: =AZ60/$AY$16*HLOOKUP(AZ$70,$G$15:$BI$16,2,FALSE) -> 1.79827455 | BA73: 1.79827455 | BB73: 1.79827455 | BC73: 1.79827455 | BD73: 1.79827455
A74: =ROW() -> 74 | B74: Receipt and delivery point facilities | AZ74: =AZ61/$AY$16*HLOOKUP(AZ$70,$G$15:$BI$16,2,FALSE) -> 0.06636453869 | BA74: 0.06636453869 | BB74: 0.06636453869 | BC74: 0.06636453869 | BD74: 0.06636453869
A75: =ROW() -> 75 | B75: SCADA and communications | AZ75: =AZ62/$AY$16*HLOOKUP(AZ$70,$G$15:$BI$16,2,FALSE) -> 1.411792621e-15 | BA75: 0 | BB75: 0 | BC75: 0 | BD75: 0
A76: =ROW() -> 76 | B76: Cathodic protection | AZ76: =AZ63/$AY$16*HLOOKUP(AZ$70,$G$15:$BI$16,2,FALSE) -> 0 | BA76: 0 | BB76: 0 | BC76: 0 | BD76: 0
A77: =ROW() -> 77 | B77: Maintenance bases and depots | AZ77: =AZ64/$AY$16*HLOOKUP(AZ$70,$G$15:$BI$16,2,FALSE) -> 0.1840206017 | BA77: 0.1840206017 | BB77: 0.1840206017 | BC77: 0.1840206017 | BD77: 0.1840206017
A78: =ROW() -> 78 | B78: Other assets | AZ78: =AZ65/$AY$16*HLOOKUP(AZ$70,$G$15:$BI$16,2,FALSE) -> 0 | BA78: 0 | BB78: 0 | BC78: 0 | BD78: 0
A79: =ROW() -> 79 | B79: Equity Raising Cost | AZ79: 0 | BA79: 0 | BB79: 0 | BC79: 0 | BD79: 0
A80: =ROW() -> 80 | B80: Non-depreciable assets | AZ80: =AZ67/$AY$16*HLOOKUP(AZ$70,$G$15:$BI$16,2,FALSE) -> 0 | BA80: 0 | BB80: 0 | BC80: 0 | BD80: 0
A81: =ROW() -> 81 | B81: Total | AZ81: =SUM(AZ71:AZ78) -> 9.474026943 | BA81: 9.474026943 | BB81: 9.474026943 | BC81: 9.474026943 | BD81: 9.474026943
A82: =ROW() -> 82 | B82: Capex (Input as annual actuals and forecasts)
A83: =ROW() -> 83 | B83: Date of Dollar Value | G83: 2000-03-31 | H83: 2000-06-30 | I83: 2000-09-30 | J83: 2000-12-31 | K83: 2001-03-31 | L83: 2001-06-30 | M83: 2001-09-30 | N83: 2001-12-31 | O83: 2002-03-31 | P83: 2002-06-30 | Q83: 2002-09-30 | R83: 2002-12-31 | S83: 2003-03-31 | T83: 2003-06-30 | U83: 2003-09-30 | V83: 2003-12-31 | W83: 2004-03-31 | X83: 2004-06-30 | Y83: 2004-09-30 | Z83: 2004-12-31 | AA83: 2005-03-31 | AB83: 2005-06-30 | AC83: 2005-09-30 | AD83: 2005-12-31 | AE83: 2006-03-31 | AF83: 2006-06-30 | AG83: 2006-09-30 | AH83: 2006-12-31 | AI83: 2007-03-31 | AJ83: 2007-06-30 | AK83: 2007-09-30 | AL83: 2007-12-31 | AM83: 2008-03-31 | AN83: 2008-06-30 | AO83: 2008-09-30 | AP83: 2008-12-31 | AQ83: 2009-03-31 | AR83: 2009-06-30 | AS83: 2009-09-30 | AT83: 2009-12-31 | AU83: 2013-12-31 | AV83: 2013-12-31 | AW83: 2013-12-31 | AX83: 2013-12-31 | AY83: 2013-12-31 | AZ83: =VALUE($D$19) -> 2018-12-31 | BA83: =VALUE($D$19) -> 2018-12-31 | BB83: 2018-12-31 | BC83: 2018-12-31 | BD83: 2018-12-31 | BE83: 2018-12-31 | BF83: 2018-12-31 | BG83: 2018-12-31 | BH83: 2018-12-31 | BI83: 2018-12-31
A84: =ROW() -> 84 | B84: Pipeline and laterals | G84: 0 | H84: 0 | I84: 0 | J84: 0 | K84: 0 | L84: 0 | M84: 0 | N84: 0 | O84: 0 | P84: 0 | Q84: 0 | R84: 0 | S84: 0 | T84: 0 | U84: 0 | V84: 0 | W84: 0 | X84: 0 | Y84: 0 | Z84: 0 | AA84: 0.30112484 | AB84: 0.00025486 | AC84: 0.00045632 | AD84: -0.00033 | AE84: 0 | AF84: 0 | AG84: 0 | AH84: 0 | AI84: 0 | AJ84: 0.28621376 | AK84: 0 | AL84: 0 | AM84: 0 | AN84: 0.00355109 | AO84: 0.01002201 | AP84: 0.06076867 | AQ84: 0.00144492 | AR84: 0.0014231 | AS84: 0.00856286 | AT84: 0.00071536 | AU84: -0.08969863364 | AV84: 0 | AW84: 0 | AX84: 0.025633 | AY84: 0 | AZ84: 1.844572365 | BA84: 0.5064045725 | BB84: 0.280069926 | BC84: 0.06515683739 | BD84: 0 | BE84: 0.2128441109 | BF84: 0 | BG84: 0 | BH84: 0 | BI84: 0
A85: =ROW() -> 85 | B85: Main line valve and scraper stations | G85: 0 | H85: 0 | I85: 0 | J85: 0 | K85: 0 | L85: 0 | M85: 0 | N85: 0 | O85: 0 | P85: 0 | Q85: 0 | R85: 0 | S85: 0 | T85: 0 | U85: 0 | V85: 0 | W85: 0 | X85: 0 | Y85: 0 | Z85: 0 | AA85: 0 | AB85: 0 | AC85: 0 | AD85: 0 | AE85: 0 | AF85: 0 | AG85: 0 | AH85: 0 | AI85: 0 | AJ85: 0 | AK85: 0 | AL85: 0 | AM85: 0 | AN85: 0 | AO85: 0 | AP85: 0 | AQ85: 0.02711449 | AR85: 0.00114492 | AS85: 0 | AT85: 0 | AU85: 0 | AV85: 0 | AW85: 0 | AX85: 0 | AY85: 0 | AZ85: 0.1144357307 | BA85: 0.001544021653 | BB85: 0 | BC85: 0 | BD85: 0 | BE85: 0 | BF85: 0 | BG85: 0 | BH85: 0 | BI85: 0
A86: =ROW() -> 86 | B86: Compressor stations | G86: 0.7266078075 | H86: 0.7266078075 | I86: 0.7266078075 | J86: 0.7266078075 | K86: 2.016678142 | L86: 2.016678142 | M86: 2.016678142 | N86: 2.016678142 | O86: 0.1623632675 | P86: 0.1623632675 | Q86: 0.1623632675 | R86: 0.1623632675 | S86: 2.450314792 | T86: 2.450314792 | U86: 2.450314792 | V86: 2.450314792 | W86: 1.018218935 | X86: 1.018218935 | Y86: 1.018218935 | Z86: 1.018218935 | AA86: 0.23668579 | AB86: 0.36644481 | AC86: 0.06653221 | AD86: 0.03745882 | AE86: 0.03906246 | AF86: 0.33773978 | AG86: 0.3358245 | AH86: 0.20489235 | AI86: 0.09346673 | AJ86: 0.18295022 | AK86: 0.05837254 | AL86: 0.02024216 | AM86: 0 | AN86: 0.23202959 | AO86: 0.04096777 | AP86: 0.12877112 | AQ86: 0.28400227 | AR86: 0.0078502 | AS86: 0.00194744 | AT86: 0 | AU86: 0.3971751498 | AV86: 0.04966973948 | AW86: 0.1546897254 | AX86: 0.4783121846 | AY86: 0.6912304957 | AZ86: -0.01635179322 | BA86: 0 | BB86: 0.9796105044 | BC86: 0.3271676387 | BD86: 0.9077192336 | BE86: 0.5488056295 | BF86: 0.1633703271 | BG86: 0.4323078454 | BH86: 0.04958912557 | BI86: 0.5154382622
A87: =ROW() -> 87 | B87: Receipt and delivery point facilities | G87: 0.04005906 | H87: 0.04005906 | I87: 0.04005906 | J87: 0.04005906 | K87: 0.0242860925 | L87: 0.0242860925 | M87: 0.0242860925 | N87: 0.0242860925 | O87: 0.0147807275 | P87: 0.0147807275 | Q87: 0.0147807275 | R87: 0.0147807275 | S87: 0.0173773425 | T87: 0.0173773425 | U87: 0.0173773425 | V87: 0.0173773425 | W87: 0.00844475 | X87: 0.00844475 | Y87: 0.00844475 | Z87: 0.00844475 | AA87: 0 | AB87: 0 | AC87: 0 | AD87: 0.01755367 | AE87: 0.01368143 | AF87: 0.12254546 | AG87: 0.11840168 | AH87: 0.12576146 | AI87: 0.3960732 | AJ87: 0.08453083 | AK87: 0.00012867 | AL87: 0 | AM87: 0 | AN87: 0 | AO87: 0 | AP87: 0.00321914 | AQ87: 0 | AR87: 0 | AS87: 0 | AT87: 0 | AU87: 0 | AV87: 0 | AW87: 0 | AX87: 0.1356 | AY87: 0.1845652601 | AZ87: 0.4299531486 | BA87: -0.4069259927 | BB87: 0.001303761 | BC87: 0.1877024615 | BD87: 0.1241990997 | BE87: 0.1484205253 | BF87: 0.6086032698 | BG87: 0.08165455389 | BH87: 0 | BI87: 0
A88: =ROW() -> 88 | B88: SCADA and communications | G88: 0.006985115 | H88: 0.006985115 | I88: 0.006985115 | J88: 0.006985115 | K88: 0.0012955875 | L88: 0.0012955875 | M88: 0.0012955875 | N88: 0.0012955875 | O88: 0.0139746075 | P88: 0.0139746075 | Q88: 0.0139746075 | R88: 0.0139746075 | S88: 0.0173468175 | T88: 0.0173468175 | U88: 0.0173468175 | V88: 0.0173468175 | W88: 0.109894455 | X88: 0.109894455 | Y88: 0.109894455 | Z88: 0.109894455 | AA88: 0.02500167 | AB88: 0.00555411 | AC88: 0.00094376 | AD88: 0 | AE88: 0.05128961 | AF88: 0.20082489 | AG88: 0.17556474 | AH88: 0.02213489 | AI88: 0.04928407 | AJ88: 0.07052838 | AK88: 0.01797736 | AL88: 0.05761879 | AM88: 0.00726825 | AN88: 0.05729485 | AO88: 0.30337709 | AP88: 0.33711321 | AQ88: 0.24756857 | AR88: 0.46381265 | AS88: 0.00427515 | AT88: 0 | AU88: 0.06491441783 | AV88: 0.2563657924 | AW88: 0.5006965282 | AX88: 0.36361653 | AY88: 1.146921286 | AZ88: 0.9312051707 | BA88: 1.018699028 | BB88: 0.0659804526 | BC88: 0.11 | BD88: 0 | BE88: 0.2163325992 | BF88: 0.09147814943 | BG88: 0.1653073044 | BH88: 0.4251893354 | BI88: 0.3165915305
A89: =ROW() -> 89 | B89: Cathodic protection | G89: 0 | H89: 0 | I89: 0 | J89: 0 | K89: 0 | L89: 0 | M89: 0 | N89: 0 | O89: 0 | P89: 0 | Q89: 0 | R89: 0 | S89: 0.00394725 | T89: 0.00394725 | U89: 0.00394725 | V89: 0.00394725 | W89: 0 | X89: 0 | Y89: 0 | Z89: 0 | AA89: 0.000297 | AB89: 0 | AC89: 0 | AD89: 0 | AE89: 0 | AF89: 0 | AG89: 0.00825 | AH89: 0 | AI89: 0 | AJ89: 0 | AK89: 0 | AL89: 0 | AM89: 0 | AN89: 0.06568597 | AO89: 0.0018755 | AP89: 0.04616319 | AQ89: 0.10849443 | AR89: 0.73988261 | AS89: 0.16139918 | AT89: 0.58868282 | AU89: 0 | AV89: 0 | AW89: 0 | AX89: 0 | AY89: 0 | AZ89: 0 | BA89: 0 | BB89: 0 | BC89: 0 | BD89: 0.07421677513 | BE89: 0 | BF89: 0 | BG89: 0 | BH89: 0 | BI89: 0
A90: =ROW() -> 90 | B90: Maintenance bases and depots | G90: 0.00182295 | H90: 0.00182295 | I90: 0.00182295 | J90: 0.00182295 | K90: 0.001067045 | L90: 0.001067045 | M90: 0.001067045 | N90: 0.001067045 | O90: 0.00055 | P90: 0.00055 | Q90: 0.00055 | R90: 0.00055 | S90: 0 | T90: 0 | U90: 0 | V90: 0 | W90: 0 | X90: 0 | Y90: 0 | Z90: 0 | AA90: 0 | AB90: 0 | AC90: 0 | AD90: 0.002619 | AE90: 0 | AF90: 0.0348373 | AG90: 0 | AH90: 0 | AI90: 0 | AJ90: 0 | AK90: 0.01046586 | AL90: 0.001661 | AM90: 0 | AN90: 0.06127894 | AO90: 0.01224307 | AP90: 0.07122134 | AQ90: 0 | AR90: 0 | AS90: 0 | AT90: 0.01881 | AU90: 0.07383937618 | AV90: 0 | AW90: 0 | AX90: 1.056 | AY90: 0.01751230304 | AZ90: 0.0261110648 | BA90: 0 | BB90: 0 | BC90: 0.019 | BD90: 0.3090442338 | BE90: 2.142156688 | BF90: 0.1749667925 | BG90: 0 | BH90: 0 | BI90: 0
A91: =ROW() -> 91 | B91: Other assets | G91: 0.1355580325 | H91: 0.1355580325 | I91: 0.1355580325 | J91: 0.1355580325 | K91: 0.0545215825 | L91: 0.0545215825 | M91: 0.0545215825 | N91: 0.0545215825 | O91: 0.0881759075 | P91: 0.0881759075 | Q91: 0.0881759075 | R91: 0.0881759075 | S91: 0.045699415 | T91: 0.045699415 | U91: 0.045699415 | V91: 0.045699415 | W91: 0.39829845 | X91: 0.39829845 | Y91: 0.39829845 | Z91: 0.39829845 | AA91: 0.08118179 | AB91: 0.1946215 | AC91: 0.07621263 | AD91: 0.08803465 | AE91: 0.15023145 | AF91: 0.0845521 | AG91: 0.05615649 | AH91: 0.05214001 | AI91: 0.08470009 | AJ91: 0.17527503 | AK91: 0.2000654 | AL91: 0.00599739 | AM91: 0.03913356 | AN91: 0.13693153 | AO91: 0.05626088 | AP91: 0.01692312 | AQ91: 0.25993214 | AR91: 0.1239055 | AS91: 0.09556458 | AT91: 0.12330345 | AU91: 0.04834102786 | AV91: 0.02437492585 | AW91: 0.02648871373 | AX91: 0.5341323141 | AY91: 0.0599116683 | AZ91: 0.06984042532 | BA91: 0.330598199 | BB91: 0.1260204327 | BC91: 0.1220738401 | BD91: 0.221070895 | BE91: 0 | BF91: 0 | BG91: 0 | BH91: 0 | BI91: 0
A92: =ROW() -> 92 | B92: Equity Raising Cost | BE92: =Tax_CoRE!F81 -> 0 | BF92: =Tax_CoRE!G81 -> 0 | BG92: =Tax_CoRE!H81 -> 0 | BH92: =Tax_CoRE!I81 -> 0 | BI92: =Tax_CoRE!J81 -> 0
A93: =ROW() -> 93 | B93: Non-depreciable assets | G93: =G$1370 -> 0.366693219 | H93: =H$1370 -> 0 | I93: -0.01981922987 | J93: 0 | K93: 0.7752762321 | L93: -0.0283387489 | M93: -0.02772268914 | N93: 0 | O93: -0.6273935395 | P93: -0.02082825464 | Q93: -0.0203754665 | R93: 0 | S93: 1.459328769 | T93: -0.03641204637 | U93: -0.03562048015 | V93: 0 | W93: -0.7080215592 | X93: 0 | Y93: -0.0275374145 | Z93: 0 | AA93: -0.06990471975 | AB93: -0.02676923077 | AC93: -0.02618729097 | AD93: 0 | AE93: 0.3860815217 | AF93: -0.03042994505 | AG93: -0.02976842451 | AH93: 0 | AI93: 0.06457336957 | AJ93: -0.03047802198 | AK93: -0.02981545628 | AL93: 0 | AM93: -0.1822037745 | AN93: 0 | AO93: -0.02751089943 | AP93: 0 | AQ93: 0.2547581522 | AR93: -0.03031043956 | AS93: -0.02965151696 | AT93: 0 | AU93: 0 | AV93: 0 | AW93: 0 | AX93: 0 | AY93: 0 | AZ93: 0 | BA93: -0.05746184819 | BB93: -0.05663497751 | BC93: -0.05582000543 | BD93: -0.04831959613 | BE93: -0.04770892193 | BF93: -0.04710596557 | BG93: -0.04651062951 | BH93: -0.04592281745 | BI93: -0.04534243429
A94: =ROW() -> 94 | B94: Total | G94: =SUM(G84:G93) -> 1.277726184 | H94: =SUM(H84:H93) -> 0.911032965 | I94: 0.8912137351 | J94: 0.911032965 | K94: 2.873124682 | L94: 2.069509701 | M94: 2.070125761 | N94: 2.09784845 | O94: -0.3475490295 | P94: 0.2590162554 | Q94: 0.2594690435 | R94: 0.27984451 | S94: 3.994014386 | T94: 2.498273571 | U94: 2.499065137 | V94: 2.534685618 | W94: 0.8268350308 | X94: 1.53485659 | Y94: 1.507319175 | Z94: 1.53485659 | AA94: 0.5743863703 | AB94: 0.5401060492 | AC94: 0.117957629 | AD94: 0.14533614 | AE94: 0.6403464717 | AF94: 0.7500695849 | AG94: 0.6644289855 | AH94: 0.40492871 | AI94: 0.6880974596 | AJ94: 0.769020198 | AK94: 0.2571943737 | AL94: 0.08551934 | AM94: -0.1358019645 | AN94: 0.55677197 | AO94: 0.3972354206 | AP94: 0.66417979 | AQ94: 1.183314972 | AR94: 1.30770854 | AS94: 0.242097693 | AT94: 0.73151163 | AU94: 0.494571338 | AV94: 0.3304104577 | AW94: 0.6818749673 | AX94: 2.593294029 | AY94: 2.100141013 | AZ94: 3.399766112 | BA94: 1.39285798 | BB94: 1.396350099 | BC94: 0.7752807723 | BD94: 1.587930641 | BE94: 3.220850631 | BF94: 0.9913125734 | BG94: 0.6327590743 | BH94: 0.4288556435 | BI94: 0.7866873584
A95: =ROW() -> 95 | B95: Capex (Model)
A96: =ROW() -> 96 | B96: Date of Dollar Value | G96: 2000-03-31 | H96: 2000-06-30 | I96: 2000-09-30 | J96: 2000-12-31 | K96: 2001-03-31 | L96: 2001-06-30 | M96: 2001-09-30 | N96: 2001-12-31 | O96: 2002-03-31 | P96: 2002-06-30 | Q96: 2002-09-30 | R96: 2002-12-31 | S96: 2003-03-31 | T96: 2003-06-30 | U96: 2003-09-30 | V96: 2003-12-31 | W96: 2004-03-31 | X96: 2004-06-30 | Y96: 2004-09-30 | Z96: 2004-12-31 | AA96: 2005-03-31 | AB96: 2005-06-30 | AC96: 2005-09-30 | AD96: 2005-12-31 | AE96: 2006-03-31 | AF96: 2006-06-30 | AG96: 2006-09-30 | AH96: 2006-12-31 | AI96: 2007-03-31 | AJ96: 2007-06-30 | AK96: 2007-09-30 | AL96: 2007-12-31 | AM96: 2008-03-31 | AN96: 2008-06-30 | AO96: 2008-09-30 | AP96: 2008-12-31 | AQ96: 2009-03-31 | AR96: 2009-06-30 | AS96: 2009-09-30 | AT96: 2009-12-31 | AU96: 2010-12-31 | AV96: 2011-12-31 | AW96: 2012-12-31 | AX96: 2013-12-31 | AY96: 2013-12-31 | AZ96: =VALUE($D$19) -> 2018-12-31 | BA96: =VALUE($D$19) -> 2018-12-31 | BB96: 2018-12-31 | BC96: 2018-12-31 | BD96: 2018-12-31 | BE96: 2018-12-31 | BF96: 2018-12-31 | BG96: 2018-12-31 | BH96: 2018-12-31 | BI96: 2018-12-31
A97: =ROW() -> 97 | B97: Pipeline and laterals | G97: =G84*HLOOKUP(G$96,InputCPI,9,FALSE)/HLOOKUP(G$83,InputCPI,9,FALSE) -> 0 | H97: 0 | I97: 0 | J97: 0 | K97: 0 | L97: 0 | M97: 0 | N97: 0 | O97: 0 | P97: 0 | Q97: 0 | R97: 0 | S97: 0 | T97: 0 | U97: 0 | V97: 0 | W97: 0 | X97: 0 | Y97: 0 | Z97: 0 | AA97: 0.30112484 | AB97: 0.00025486 | AC97: 0.00045632 | AD97: -0.00033 | AE97: 0 | AF97: 0 | AG97: 0 | AH97: 0 | AI97: 0 | AJ97: 0.28621376 | AK97: 0 | AL97: 0 | AM97: =AM84*HLOOKUP(AM$96,InputCPI,9,FALSE)/HLOOKUP(AM$83,InputCPI,9,FALSE) -> 0 | AN97: 0.00355109 | AO97: 0.01002201 | AP97: 0.06076867 | AQ97: 0.00144492 | AR97: 0.0014231 | AS97: 0.00856286 | AT97: 0.00071536 | AU97: -0.082937 | AV97: 0 | AW97: 0 | AX97: 0.025633 | AY97: 0 | AZ97: 1.844572365 | BA97: 0.5064045725 | BB97: 0.280069926 | BC97: 0.06515683739 | BD97: 0 | BE97: 0.2128441109 | BF97: 0 | BG97: 0 | BH97: 0 | BI97: 0
A98: =ROW() -> 98 | B98: Main line valve and scraper stations | G98: =G85*HLOOKUP(G$96,InputCPI,9,FALSE)/HLOOKUP(G$83,InputCPI,9,FALSE) -> 0 | H98: 0 | I98: 0 | J98: 0 | K98: 0 | L98: 0 | M98: 0 | N98: 0 | O98: 0 | P98: 0 | Q98: 0 | R98: 0 | S98: 0 | T98: 0 | U98: 0 | V98: 0 | W98: 0 | X98: 0 | Y98: 0 | Z98: 0 | AA98: 0 | AB98: 0 | AC98: 0 | AD98: 0 | AE98: 0 | AF98: 0 | AG98: 0 | AH98: 0 | AI98: 0 | AJ98: 0 | AK98: 0 | AL98: 0 | AM98: =AM85*HLOOKUP(AM$96,InputCPI,9,FALSE)/HLOOKUP(AM$83,InputCPI,9,FALSE) -> 0 | AN98: 0 | AO98: 0 | AP98: 0 | AQ98: 0.02711449 | AR98: 0.00114492 | AS98: 0 | AT98: 0 | AU98: 0 | AV98: 0 | AW98: 0 | AX98: 0 | AY98: 0 | AZ98: 0.1144357307 | BA98: 0.001544021653 | BB98: 0 | BC98: 0 | BD98: 0 | BE98: 0 | BF98: 0 | BG98: 0 | BH98: 0 | BI98: 0
A99: =ROW() -> 99 | B99: Compressor stations | G99: =G86*HLOOKUP(G$96,InputCPI,9,FALSE)/HLOOKUP(G$83,InputCPI,9,FALSE) -> 0.7266078075 | H99: 0.7266078075 | I99: 0.7266078075 | J99: 0.7266078075 | K99: 2.016678142 | L99: 2.016678142 | M99: 2.016678142 | N99: 2.016678142 | O99: 0.1623632675 | P99: 0.1623632675 | Q99: 0.1623632675 | R99: 0.1623632675 | S99: 2.450314792 | T99: 2.450314792 | U99: 2.450314792 | V99: 2.450314792 | W99: 1.018218935 | X99: 1.018218935 | Y99: 1.018218935 | Z99: 1.018218935 | AA99: 0.23668579 | AB99: 0.36644481 | AC99: 0.06653221 | AD99: 0.03745882 | AE99: 0.03906246 | AF99: 0.33773978 | AG99: 0.3358245 | AH99: 0.20489235 | AI99: 0.09346673 | AJ99: 0.18295022 | AK99: 0.05837254 | AL99: 0.02024216 | AM99: =AM86*HLOOKUP(AM$96,InputCPI,9,FALSE)/HLOOKUP(AM$83,InputCPI,9,FALSE) -> 0 | AN99: 0.23202959 | AO99: 0.04096777 | AP99: 0.12877112 | AQ99: 0.28400227 | AR99: 0.0078502 | AS99: 0.00194744 | AT99: 0 | AU99: 0.36723542 | AV99: 0.0473 | AW99: 0.1505567938 | AX99: 0.4783121846 | AY99: 0.6912304957 | AZ99: -0.01635179322 | BA99: 0 | BB99: 0.9796105044 | BC99: 0.3271676387 | BD99: 0.9077192336 | BE99: 0.5488056295 | BF99: 0.1633703271 | BG99: 0.4323078454 | BH99: 0.04958912557 | BI99: 0.5154382622
A100: =ROW() -> 100 | B100: Receipt and delivery point facilities | G100: =G87*HLOOKUP(G$96,InputCPI,9,FALSE)/HLOOKUP(G$83,InputCPI,9,FALSE) -> 0.04005906 | H100: 0.04005906 | I100: 0.04005906 | J100: 0.04005906 | K100: 0.0242860925 | L100: 0.0242860925 | M100: 0.0242860925 | N100: 0.0242860925 | O100: 0.0147807275 | P100: 0.0147807275 | Q100: 0.0147807275 | R100: 0.0147807275 | S100: 0.0173773425 | T100: 0.0173773425 | U100: 0.0173773425 | V100: 0.0173773425 | W100: 0.00844475 | X100: 0.00844475 | Y100: 0.00844475 | Z100: 0.00844475 | AA100: 0 | AB100: 0 | AC100: 0 | AD100: 0.01755367 | AE100: 0.01368143 | AF100: 0.12254546 | AG100: 0.11840168 | AH100: 0.12576146 | AI100: 0.3960732 | AJ100: 0.08453083 | AK100: 0.00012867 | AL100: 0 | AM100: =AM87*HLOOKUP(AM$96,InputCPI,9,FALSE)/HLOOKUP(AM$83,InputCPI,9,FALSE) -> 0 | AN100: 0 | AO100: 0 | AP100: 0.00321914 | AQ100: 0 | AR100: 0 | AS100: 0 | AT100: 0 | AU100: 0 | AV100: 0 | AW100: 0 | AX100: 0.1356 | AY100: 0.1845652601 | AZ100: 0.4299531486 | BA100: -0.4069259927 | BB100: 0.001303761 | BC100: 0.1877024615 | BD100: 0.1241990997 | BE100: 0.1484205253 | BF100: 0.6086032698 | BG100: 0.08165455389 | BH100: 0 | BI100: 0
A101: =ROW() -> 101 | B101: SCADA and communications | G101: =G88*HLOOKUP(G$96,InputCPI,9,FALSE)/HLOOKUP(G$83,InputCPI,9,FALSE) -> 0.006985115 | H101: 0.006985115 | I101: 0.006985115 | J101: 0.006985115 | K101: 0.0012955875 | L101: 0.0012955875 | M101: 0.0012955875 | N101: 0.0012955875 | O101: 0.0139746075 | P101: 0.0139746075 | Q101: 0.0139746075 | R101: 0.0139746075 | S101: 0.0173468175 | T101: 0.0173468175 | U101: 0.0173468175 | V101: 0.0173468175 | W101: 0.109894455 | X101: 0.109894455 | Y101: 0.109894455 | Z101: 0.109894455 | AA101: 0.02500167 | AB101: 0.00555411 | AC101: 0.00094376 | AD101: 0 | AE101: 0.05128961 | AF101: 0.20082489 | AG101: 0.17556474 | AH101: 0.02213489 | AI101: 0.04928407 | AJ101: 0.07052838 | AK101: 0.01797736 | AL101: 0.05761879 | AM101: =AM88*HLOOKUP(AM$96,InputCPI,9,FALSE)/HLOOKUP(AM$83,InputCPI,9,FALSE) -> 0.00726825 | AN101: 0.05729485 | AO101: 0.30337709 | AP101: 0.33711321 | AQ101: 0.24756857 | AR101: 0.46381265 | AS101: 0.00427515 | AT101: 0 | AU101: 0.06002106 | AV101: 0.2441346 | AW101: 0.48731914 | AX101: 0.36361653 | AY101: 1.146921286 | AZ101: 0.9312051707 | BA101: 1.018699028 | BB101: 0.0659804526 | BC101: 0.11 | BD101: 0 | BE101: 0.2163325992 | BF101: 0.09147814943 | BG101: 0.1653073044 | BH101: 0.4251893354 | BI101: 0.3165915305
A102: =ROW() -> 102 | B102: Cathodic protection | G102: =G89*HLOOKUP(G$96,InputCPI,9,FALSE)/HLOOKUP(G$83,InputCPI,9,FALSE) -> 0 | H102: 0 | I102: 0 | J102: 0 | K102: 0 | L102: 0 | M102: 0 | N102: 0 | O102: 0 | P102: 0 | Q102: 0 | R102: 0 | S102: 0.00394725 | T102: 0.00394725 | U102: 0.00394725 | V102: 0.00394725 | W102: 0 | X102: 0 | Y102: 0 | Z102: 0 | AA102: 0.000297 | AB102: 0 | AC102: 0 | AD102: 0 | AE102: 0 | AF102: 0 | AG102: 0.00825 | AH102: 0 | AI102: 0 | AJ102: 0 | AK102: 0 | AL102: 0 | AM102: =AM89*HLOOKUP(AM$96,InputCPI,9,FALSE)/HLOOKUP(AM$83,InputCPI,9,FALSE) -> 0 | AN102: 0.06568597 | AO102: 0.0018755 | AP102: 0.04616319 | AQ102: 0.10849443 | AR102: 0.73988261 | AS102: 0.16139918 | AT102: 0.58868282 | AU102: 0 | AV102: 0 | AW102: 0 | AX102: 0 | AY102: 0 | AZ102: 0 | BA102: 0 | BB102: 0 | BC102: 0 | BD102: 0.07421677513 | BE102: 0 | BF102: 0 | BG102: 0 | BH102: 0 | BI102: 0
A103: =ROW() -> 103 | B103: Maintenance bases and depots | G103: =G90*HLOOKUP(G$96,InputCPI,9,FALSE)/HLOOKUP(G$83,InputCPI,9,FALSE) -> 0.00182295 | H103: 0.00182295 | I103: 0.00182295 | J103: 0.00182295 | K103: 0.001067045 | L103: 0.001067045 | M103: 0.001067045 | N103: 0.001067045 | O103: 0.00055 | P103: 0.00055 | Q103: 0.00055 | R103: 0.00055 | S103: 0 | T103: 0 | U103: 0 | V103: 0 | W103: 0 | X103: 0 | Y103: 0 | Z103: 0 | AA103: 0 | AB103: 0 | AC103: 0 | AD103: 0.002619 | AE103: 0 | AF103: 0.0348373 | AG103: 0 | AH103: 0 | AI103: 0 | AJ103: 0 | AK103: 0.01046586 | AL103: 0.001661 | AM103: =AM90*HLOOKUP(AM$96,InputCPI,9,FALSE)/HLOOKUP(AM$83,InputCPI,9,FALSE) -> 0 | AN103: 0.06127894 | AO103: 0.01224307 | AP103: 0.07122134 | AQ103: 0 | AR103: 0 | AS103: 0 | AT103: 0.01881 | AU103: 0.06827324 | AV103: 0 | AW103: 0 | AX103: 1.056 | AY103: 0.01751230304 | AZ103: 0.0261110648 | BA103: 0 | BB103: 0 | BC103: 0.019 | BD103: 0.3090442338 | BE103: 2.142156688 | BF103: 0.1749667925 | BG103: 0 | BH103: 0 | BI103: 0
A104: =ROW() -> 104 | B104: Other assets | G104: =G91*HLOOKUP(G$96,InputCPI,9,FALSE)/HLOOKUP(G$83,InputCPI,9,FALSE) -> 0.1355580325 | H104: 0.1355580325 | I104: 0.1355580325 | J104: 0.1355580325 | K104: 0.0545215825 | L104: 0.0545215825 | M104: 0.0545215825 | N104: 0.0545215825 | O104: 0.0881759075 | P104: 0.0881759075 | Q104: 0.0881759075 | R104: 0.0881759075 | S104: 0.045699415 | T104: 0.045699415 | U104: 0.045699415 | V104: 0.045699415 | W104: 0.39829845 | X104: 0.39829845 | Y104: 0.39829845 | Z104: 0.39829845 | AA104: 0.08118179 | AB104: 0.1946215 | AC104: 0.07621263 | AD104: 0.08803465 | AE104: 0.15023145 | AF104: 0.0845521 | AG104: 0.05615649 | AH104: 0.05214001 | AI104: 0.08470009 | AJ104: 0.17527503 | AK104: 0.2000654 | AL104: 0.00599739 | AM104: =AM91*HLOOKUP(AM$96,InputCPI,9,FALSE)/HLOOKUP(AM$83,InputCPI,9,FALSE) -> 0.03913356 | AN104: 0.13693153 | AO104: 0.05626088 | AP104: 0.01692312 | AQ104: 0.25993214 | AR104: 0.1239055 | AS104: 0.09556458 | AT104: 0.12330345 | AU104: 0.044697 | AV104: 0.023212 | AW104: 0.025781 | AX104: 0.5341323141 | AY104: 0.0599116683 | AZ104: 0.06984042532 | BA104: 0.330598199 | BB104: 0.1260204327 | BC104: 0.1220738401 | BD104: 0.221070895 | BE104: 0 | BF104: 0 | BG104: 0 | BH104: 0 | BI104: 0
A105: =ROW() -> 105 | B105: Equity Raising Cost | BE105: 0 | BF105: 0 | BG105: 0 | BH105: 0 | BI105: 0
A106: =ROW() -> 106 | B106: Non-depreciable assets | G106: =G93*HLOOKUP(G$96,InputCPI,9,FALSE)/HLOOKUP(G$83,InputCPI,9,FALSE) -> 0.366693219 | H106: 0 | I106: -0.01981922987 | J106: 0 | K106: 0.7752762321 | L106: -0.0283387489 | M106: -0.02772268914 | N106: 0 | O106: -0.6273935395 | P106: -0.02082825464 | Q106: -0.0203754665 | R106: 0 | S106: 1.459328769 | T106: -0.03641204637 | U106: -0.03562048015 | V106: 0 | W106: -0.7080215592 | X106: 0 | Y106: -0.0275374145 | Z106: 0 | AA106: -0.06990471975 | AB106: -0.02676923077 | AC106: -0.02618729097 | AD106: 0 | AE106: 0.3860815217 | AF106: -0.03042994505 | AG106: -0.02976842451 | AH106: 0 | AI106: 0.06457336957 | AJ106: -0.03047802198 | AK106: -0.02981545628 | AL106: 0 | AM106: =AM93*HLOOKUP(AM$96,InputCPI,9,FALSE)/HLOOKUP(AM$83,InputCPI,9,FALSE) -> -0.1822037745 | AN106: 0 | AO106: -0.02751089943 | AP106: 0 | AQ106: 0.2547581522 | AR106: -0.03031043956 | AS106: -0.02965151696 | AT106: 0 | AU106: 0 | AV106: 0 | AW106: 0 | AX106: 0 | AY106: 0 | AZ106: 0 | BA106: -0.05746184819 | BB106: -0.05663497751 | BC106: -0.05582000543 | BD106: -0.04831959613 | BE106: -0.04770892193 | BF106: -0.04710596557 | BG106: -0.04651062951 | BH106: -0.04592281745 | BI106: -0.04534243429
A107: =ROW() -> 107 | B107: Total | G107: =SUM(G97:G106) -> 1.277726184 | H107: =SUM(H97:H106) -> 0.911032965 | I107: =SUM(I97:I106) -> 0.8912137351 | J107: =SUM(J97:J106) -> 0.911032965 | K107: =SUM(K97:K106) -> 2.873124682 | L107: =SUM(L97:L106) -> 2.069509701 | M107: =SUM(M97:M106) -> 2.070125761 | N107: =SUM(N97:N106) -> 2.09784845 | O107: =SUM(O97:O106) -> -0.3475490295 | P107: =SUM(P97:P106) -> 0.2590162554 | Q107: =SUM(Q97:Q106) -> 0.2594690435 | R107: =SUM(R97:R106) -> 0.27984451 | S107: =SUM(S97:S106) -> 3.994014386 | T107: =SUM(T97:T106) -> 2.498273571 | U107: =SUM(U97:U106) -> 2.499065137 | V107: =SUM(V97:V106) -> 2.534685618 | W107: =SUM(W97:W106) -> 0.8268350308 | X107: =SUM(X97:X106) -> 1.53485659 | Y107: =SUM(Y97:Y106) -> 1.507319175 | Z107: =SUM(Z97:Z106) -> 1.53485659 | AA107: =SUM(AA97:AA106) -> 0.5743863703 | AB107: =SUM(AB97:AB106) -> 0.5401060492 | AC107: =SUM(AC97:AC106) -> 0.117957629 | AD107: =SUM(AD97:AD106) -> 0.14533614 | AE107: =SUM(AE97:AE106) -> 0.6403464717 | AF107: =SUM(AF97:AF106) -> 0.7500695849 | AG107: =SUM(AG97:AG106) -> 0.6644289855 | AH107: =SUM(AH97:AH106) -> 0.40492871 | AI107: =SUM(AI97:AI106) -> 0.6880974596 | AJ107: =SUM(AJ97:AJ106) -> 0.769020198 | AK107: =SUM(AK97:AK106) -> 0.2571943737 | AL107: =SUM(AL97:AL106) -> 0.08551934 | AM107: =SUM(AM97:AM106) -> -0.1358019645 | AN107: =SUM(AN97:AN106) -> 0.55677197 | AO107: =SUM(AO97:AO106) -> 0.3972354206 | AP107: =SUM(AP97:AP106) -> 0.66417979 | AQ107: =SUM(AQ97:AQ106) -> 1.183314972 | AR107: =SUM(AR97:AR106) -> 1.30770854 | AS107: =SUM(AS97:AS106) -> 0.242097693 | AT107: =SUM(AT97:AT106) -> 0.73151163 | AU107: =SUM(AU97:AU106) -> 0.45728972 | AV107: =SUM(AV97:AV106) -> 0.3146466 | AW107: =SUM(AW97:AW106) -> 0.6636569338 | AX107: =SUM(AX97:AX106) -> 2.593294029 | AY107: =SUM(AY97:AY106) -> 2.100141013 | AZ107: =SUM(AZ97:AZ106) -> 3.399766112 | BA107: =SUM(BA97:BA106) -> 1.39285798 | BB107: =SUM(BB97:BB106) -> 1.396350099 | BC107: =SUM(BC97:BC106) -> 0.7752807723 | BD107: =SUM(BD97:BD106) -> 1.587930641 | BE107: =SUM(BE97:BE106) -> 3.220850631 | BF107: =SUM(BF97:BF106) -> 0.9913125734 | BG107: =SUM(BG97:BG106) -> 0.6327590743 | BH107: =SUM(BH97:BH106) -> 0.4288556435 | BI107: =SUM(BI97:BI106) -> 0.7866873584
A108: =ROW() -> 108 | B108: Capex (Model) [m$ nominal]
A109: =ROW() -> 109 | B109: Date of Dollar Value | G109: 2000-03-31 | H109: 2000-06-30 | I109: 2000-09-30 | J109: 2000-12-31 | K109: 2001-03-31 | L109: 2001-06-30 | M109: 2001-09-30 | N109: 2001-12-31 | O109: 2002-03-31 | P109: 2002-06-30 | Q109: 2002-09-30 | R109: 2002-12-31 | S109: 2003-03-31 | T109: 2003-06-30 | U109: 2003-09-30 | V109: 2003-12-31 | W109: 2004-03-31 | X109: 2004-06-30 | Y109: 2004-09-30 | Z109: 2004-12-31 | AA109: 2005-03-31 | AB109: 2005-06-30 | AC109: 2005-09-30 | AD109: 2005-12-31 | AE109: 2006-03-31 | AF109: 2006-06-30 | AG109: 2006-09-30 | AH109: 2006-12-31 | AI109: 2007-03-31 | AJ109: 2007-06-30 | AK109: 2007-09-30 | AL109: 2007-12-31 | AM109: 2008-03-31 | AN109: 2008-06-30 | AO109: 2008-09-30 | AP109: 2008-12-31 | AQ109: 2009-03-31 | AR109: 2009-06-30 | AS109: 2009-09-30 | AT109: 2009-12-31 | AU109: 2010-12-31 | AV109: 2011-12-31 | AW109: 2012-12-31 | AX109: 2013-12-31 | AY109: 2014-12-31 | AZ109: 2015-12-31 | BA109: 2016-12-31 | BB109: 2017-12-31 | BC109: 2018-12-31 | BD109: =BD8 -> 2019-12-31 | BE109: =BE8 -> 2020-12-31 | BF109: 2021-12-31 | BG109: 2022-12-31 | BH109: 2023-12-31 | BI109: 2024-12-31
A110: =ROW() -> 110 | B110: Pipeline and laterals | G110: =G84*HLOOKUP(G$109,InputCPI,9,FALSE)/HLOOKUP(G$83,InputCPI,9,FALSE) -> 0 | H110: 0 | I110: 0 | J110: 0 | K110: 0 | L110: 0 | M110: 0 | N110: 0 | O110: 0 | P110: 0 | Q110: 0 | R110: 0 | S110: 0 | T110: 0 | U110: 0 | V110: 0 | W110: 0 | X110: 0 | Y110: 0 | Z110: 0 | AA110: 0.30112484 | AB110: 0.00025486 | AC110: 0.00045632 | AD110: -0.00033 | AE110: 0 | AF110: 0 | AG110: 0 | AH110: 0 | AI110: 0 | AJ110: 0.28621376 | AK110: 0 | AL110: 0 | AM110: =AM84*HLOOKUP(AM$109,InputCPI,9,FALSE)/HLOOKUP(AM$83,InputCPI,9,FALSE) -> 0 | AN110: 0.00355109 | AO110: 0.01002201 | AP110: 0.06076867 | AQ110: 0.00144492 | AR110: 0.0014231 | AS110: 0.00856286 | AT110: 0.00071536 | AU110: -0.082937 | AV110: 0 | AW110: 0 | AX110: 0.025633 | AY110: 0 | AZ110: 1.766083056 | BA110: 0.4919352037 | BB110: 0.2760397457 | BC110: 0.06515683739 | BD110: =BD97/BD$19 -> 0 | BE110: =BE97/BE$19 -> 0.2183277925 | BF110: 0 | BG110: 0 | BH110: 0 | BI110: 0
A111: =ROW() -> 111 | B111: Main line valve and scraper stations | G111: =G85*HLOOKUP(G$109,InputCPI,9,FALSE)/HLOOKUP(G$83,InputCPI,9,FALSE) -> 0 | H111: 0 | I111: 0 | J111: 0 | K111: 0 | L111: 0 | M111: 0 | N111: 0 | O111: 0 | P111: 0 | Q111: 0 | R111: 0 | S111: 0 | T111: 0 | U111: 0 | V111: 0 | W111: 0 | X111: 0 | Y111: 0 | Z111: 0 | AA111: 0 | AB111: 0 | AC111: 0 | AD111: 0 | AE111: 0 | AF111: 0 | AG111: 0 | AH111: 0 | AI111: 0 | AJ111: 0 | AK111: 0 | AL111: 0 | AM111: =AM85*HLOOKUP(AM$109,InputCPI,9,FALSE)/HLOOKUP(AM$83,InputCPI,9,FALSE) -> 0 | AN111: 0 | AO111: 0 | AP111: 0 | AQ111: 0.02711449 | AR111: 0.00114492 | AS111: 0 | AT111: 0 | AU111: 0 | AV111: 0 | AW111: 0 | AX111: 0 | AY111: 0 | AZ111: 0.1095663195 | BA111: 0.001499904716 | BB111: 0 | BC111: 0 | BD111: =BD98/BD$19 -> 0 | BE111: 0 | BF111: 0 | BG111: 0 | BH111: 0 | BI111: 0
A112: =ROW() -> 112 | B112: Compressor stations | G112: =G86*HLOOKUP(G$109,InputCPI,9,FALSE)/HLOOKUP(G$83,InputCPI,9,FALSE) -> 0.7266078075 | H112: 0.7266078075 | I112: 0.7266078075 | J112: 0.7266078075 | K112: 2.016678142 | L112: 2.016678142 | M112: 2.016678142 | N112: 2.016678142 | O112: 0.1623632675 | P112: 0.1623632675 | Q112: 0.1623632675 | R112: 0.1623632675 | S112: 2.450314792 | T112: 2.450314792 | U112: 2.450314792 | V112: 2.450314792 | W112: 1.018218935 | X112: 1.018218935 | Y112: 1.018218935 | Z112: 1.018218935 | AA112: 0.23668579 | AB112: 0.36644481 | AC112: 0.06653221 | AD112: 0.03745882 | AE112: 0.03906246 | AF112: 0.33773978 | AG112: 0.3358245 | AH112: 0.20489235 | AI112: 0.09346673 | AJ112: 0.18295022 | AK112: 0.05837254 | AL112: 0.02024216 | AM112: =AM86*HLOOKUP(AM$109,InputCPI,9,FALSE)/HLOOKUP(AM$83,InputCPI,9,FALSE) -> 0 | AN112: 0.23202959 | AO112: 0.04096777 | AP112: 0.12877112 | AQ112: 0.28400227 | AR112: 0.0078502 | AS112: 0.00194744 | AT112: 0 | AU112: 0.36723542 | AV112: 0.0473 | AW112: 0.1505567938 | AX112: 0.4783121846 | AY112: 0.7031027752 | AZ112: -0.015656 | BA112: 0 | BB112: 0.965514 | BC112: 0.3271676387 | BD112: =BD99/BD$19 -> 0.9193380398 | BE112: 0.5629449699 | BF112: 0.1697243901 | BG112: 0.4548706211 | BH112: 0.05284512307 | BI112: 0.5563124894
A113: =ROW() -> 113 | B113: Receipt and delivery point facilities | G113: =G87*HLOOKUP(G$109,InputCPI,9,FALSE)/HLOOKUP(G$83,InputCPI,9,FALSE) -> 0.04005906 | H113: 0.04005906 | I113: 0.04005906 | J113: 0.04005906 | K113: 0.0242860925 | L113: 0.0242860925 | M113: 0.0242860925 | N113: 0.0242860925 | O113: 0.0147807275 | P113: 0.0147807275 | Q113: 0.0147807275 | R113: 0.0147807275 | S113: 0.0173773425 | T113: 0.0173773425 | U113: 0.0173773425 | V113: 0.0173773425 | W113: 0.00844475 | X113: 0.00844475 | Y113: 0.00844475 | Z113: 0.00844475 | AA113: 0 | AB113: 0 | AC113: 0 | AD113: 0.01755367 | AE113: 0.01368143 | AF113: 0.12254546 | AG113: 0.11840168 | AH113: 0.12576146 | AI113: 0.3960732 | AJ113: 0.08453083 | AK113: 0.00012867 | AL113: 0 | AM113: =AM87*HLOOKUP(AM$109,InputCPI,9,FALSE)/HLOOKUP(AM$83,InputCPI,9,FALSE) -> 0 | AN113: 0 | AO113: 0 | AP113: 0.00321914 | AQ113: 0 | AR113: 0 | AS113: 0 | AT113: 0 | AU113: 0 | AV113: 0 | AW113: 0 | AX113: 0.1356 | AY113: 0.1877352741 | AZ113: 0.411658 | BA113: -0.395299 | BB113: 0.001285 | BC113: 0.1877024615 | BD113: =BD100/BD$19 -> 0.1257888482 | BE113: 0.152244408 | BF113: 0.6322740524 | BG113: 0.0859162239 | BH113: 0 | BI113: 0
A114: =ROW() -> 114 | B114: SCADA and communications | G114: =G88*HLOOKUP(G$109,InputCPI,9,FALSE)/HLOOKUP(G$83,InputCPI,9,FALSE) -> 0.006985115 | H114: 0.006985115 | I114: 0.006985115 | J114: 0.006985115 | K114: 0.0012955875 | L114: 0.0012955875 | M114: 0.0012955875 | N114: 0.0012955875 | O114: 0.0139746075 | P114: 0.0139746075 | Q114: 0.0139746075 | R114: 0.0139746075 | S114: 0.0173468175 | T114: 0.0173468175 | U114: 0.0173468175 | V114: 0.0173468175 | W114: 0.109894455 | X114: 0.109894455 | Y114: 0.109894455 | Z114: 0.109894455 | AA114: 0.02500167 | AB114: 0.00555411 | AC114: 0.00094376 | AD114: 0 | AE114: 0.05128961 | AF114: 0.20082489 | AG114: 0.17556474 | AH114: 0.02213489 | AI114: 0.04928407 | AJ114: 0.07052838 | AK114: 0.01797736 | AL114: 0.05761879 | AM114: =AM88*HLOOKUP(AM$109,InputCPI,9,FALSE)/HLOOKUP(AM$83,InputCPI,9,FALSE) -> 0.00726825 | AN114: 0.05729485 | AO114: 0.30337709 | AP114: 0.33711321 | AQ114: 0.24756857 | AR114: 0.46381265 | AS114: 0.00427515 | AT114: 0 | AU114: 0.06002106 | AV114: 0.2441346 | AW114: 0.48731914 | AX114: 0.36361653 | AY114: 1.166620315 | AZ114: 0.891581 | BA114: 0.989592 | BB114: 0.065031 | BC114: 0.11 | BD114: =BD101/BD$19 -> 0 | BE114: 0.2219061576 | BF114: 0.09503606556 | BG114: 0.1739349333 | BH114: 0.4531070572 | BI114: 0.3416972223
A115: =ROW() -> 115 | B115: Cathodic protection | G115: =G89*HLOOKUP(G$109,InputCPI,9,FALSE)/HLOOKUP(G$83,InputCPI,9,FALSE) -> 0 | H115: 0 | I115: 0 | J115: 0 | K115: 0 | L115: 0 | M115: 0 | N115: 0 | O115: 0 | P115: 0 | Q115: 0 | R115: 0 | S115: 0.00394725 | T115: 0.00394725 | U115: 0.00394725 | V115: 0.00394725 | W115: 0 | X115: 0 | Y115: 0 | Z115: 0 | AA115: 0.000297 | AB115: 0 | AC115: 0 | AD115: 0 | AE115: 0 | AF115: 0 | AG115: 0.00825 | AH115: 0 | AI115: 0 | AJ115: 0 | AK115: 0 | AL115: 0 | AM115: =AM89*HLOOKUP(AM$109,InputCPI,9,FALSE)/HLOOKUP(AM$83,InputCPI,9,FALSE) -> 0 | AN115: 0.06568597 | AO115: 0.0018755 | AP115: 0.04616319 | AQ115: 0.10849443 | AR115: 0.73988261 | AS115: 0.16139918 | AT115: 0.58868282 | AU115: 0 | AV115: 0 | AW115: 0 | AX115: 0 | AY115: 0 | AZ115: 0 | BA115: 0 | BB115: 0 | BC115: 0 | BD115: =BD102/BD$19 -> 0.07516674985 | BE115: 0 | BF115: 0 | BG115: 0 | BH115: 0 | BI115: 0
A116: =ROW() -> 116 | B116: Maintenance bases and depots | G116: =G90*HLOOKUP(G$109,InputCPI,9,FALSE)/HLOOKUP(G$83,InputCPI,9,FALSE) -> 0.00182295 | H116: 0.00182295 | I116: 0.00182295 | J116: 0.00182295 | K116: 0.001067045 | L116: 0.001067045 | M116: 0.001067045 | N116: 0.001067045 | O116: 0.00055 | P116: 0.00055 | Q116: 0.00055 | R116: 0.00055 | S116: 0 | T116: 0 | U116: 0 | V116: 0 | W116: 0 | X116: 0 | Y116: 0 | Z116: 0 | AA116: 0 | AB116: 0 | AC116: 0 | AD116: 0.002619 | AE116: 0 | AF116: 0.0348373 | AG116: 0 | AH116: 0 | AI116: 0 | AJ116: 0 | AK116: 0.01046586 | AL116: 0.001661 | AM116: =AM90*HLOOKUP(AM$109,InputCPI,9,FALSE)/HLOOKUP(AM$83,InputCPI,9,FALSE) -> 0 | AN116: 0.06127894 | AO116: 0.01224307 | AP116: 0.07122134 | AQ116: 0 | AR116: 0 | AS116: 0 | AT116: 0.01881 | AU116: 0.06827324 | AV116: 0 | AW116: 0 | AX116: 1.056 | AY116: 0.01781308687 | AZ116: 0.025 | BA116: 0 | BB116: 0 | BC116: 0.019 | BD116: =BD103/BD$19 -> 0.313 | BE116: 2.19734687 | BF116: 0.181771884 | BG116: 0 | BH116: 0 | BI116: 0
A117: =ROW() -> 117 | B117: Other assets | G117: =G91*HLOOKUP(G$109,InputCPI,9,FALSE)/HLOOKUP(G$83,InputCPI,9,FALSE) -> 0.1355580325 | H117: 0.1355580325 | I117: 0.1355580325 | J117: 0.1355580325 | K117: 0.0545215825 | L117: 0.0545215825 | M117: 0.0545215825 | N117: 0.0545215825 | O117: 0.0881759075 | P117: 0.0881759075 | Q117: 0.0881759075 | R117: 0.0881759075 | S117: 0.045699415 | T117: 0.045699415 | U117: 0.045699415 | V117: 0.045699415 | W117: 0.39829845 | X117: 0.39829845 | Y117: 0.39829845 | Z117: 0.39829845 | AA117: 0.08118179 | AB117: 0.1946215 | AC117: 0.07621263 | AD117: 0.08803465 | AE117: 0.15023145 | AF117: 0.0845521 | AG117: 0.05615649 | AH117: 0.05214001 | AI117: 0.08470009 | AJ117: 0.17527503 | AK117: 0.2000654 | AL117: 0.00599739 | AM117: =AM91*HLOOKUP(AM$109,InputCPI,9,FALSE)/HLOOKUP(AM$83,InputCPI,9,FALSE) -> 0.03913356 | AN117: 0.13693153 | AO117: 0.05626088 | AP117: 0.01692312 | AQ117: 0.25993214 | AR117: 0.1239055 | AS117: 0.09556458 | AT117: 0.12330345 | AU117: 0.044697 | AV117: 0.023212 | AW117: 0.025781 | AX117: 0.5341323141 | AY117: 0.06094068551 | AZ117: 0.06686861092 | BA117: 0.3211521008 | BB117: 0.1242070104 | BC117: 0.1220738401 | BD117: =BD104/BD$19 -> 0.2239006025 | BE117: 0 | BF117: 0 | BG117: 0 | BH117: 0 | BI117: 0
A118: =ROW() -> 118 | B118: Equity Raising Cost | BE118: 0 | BF118: 0 | BG118: 0 | BH118: 0 | BI118: 0
A119: =ROW() -> 119 | B119: Non-depreciable assets | G119: =G93*HLOOKUP(G$109,InputCPI,9,FALSE)/HLOOKUP(G$83,InputCPI,9,FALSE) -> 0.366693219 | H119: 0 | I119: -0.01981922987 | J119: 0 | K119: 0.7752762321 | L119: -0.0283387489 | M119: -0.02772268914 | N119: 0 | O119: -0.6273935395 | P119: -0.02082825464 | Q119: -0.0203754665 | R119: 0 | S119: 1.459328769 | T119: -0.03641204637 | U119: -0.03562048015 | V119: 0 | W119: -0.7080215592 | X119: 0 | Y119: -0.0275374145 | Z119: 0 | AA119: -0.06990471975 | AB119: -0.02676923077 | AC119: -0.02618729097 | AD119: 0 | AE119: 0.3860815217 | AF119: -0.03042994505 | AG119: -0.02976842451 | AH119: 0 | AI119: 0.06457336957 | AJ119: -0.03047802198 | AK119: -0.02981545628 | AL119: 0 | AM119: =AM93*HLOOKUP(AM$109,InputCPI,9,FALSE)/HLOOKUP(AM$83,InputCPI,9,FALSE) -> -0.1822037745 | AN119: 0 | AO119: -0.02751089943 | AP119: 0 | AQ119: 0.2547581522 | AR119: -0.03031043956 | AS119: -0.02965151696 | AT119: 0 | AU119: 0 | AV119: 0 | AW119: 0 | AX119: 0 | AY119: 0 | AZ119: 0 | BA119: -0.05582000543 | BB119: -0.05582000543 | BC119: -0.05582000543 | BD119: =BD106/BD$19 -> -0.04893808696 | BE119: -0.04893808696 | BF119: -0.04893808696 | BG119: -0.04893808696 | BH119: -0.04893808696 | BI119: -0.04893808696
A120: =ROW() -> 120 | B120: Total | G120: =SUM(G110:G119) -> 1.277726184 | H120: =SUM(H110:H119) -> 0.911032965 | I120: =SUM(I110:I119) -> 0.8912137351 | J120: =SUM(J110:J119) -> 0.911032965 | K120: =SUM(K110:K119) -> 2.873124682 | L120: =SUM(L110:L119) -> 2.069509701 | M120: =SUM(M110:M119) -> 2.070125761 | N120: =SUM(N110:N119) -> 2.09784845 | O120: =SUM(O110:O119) -> -0.3475490295 | P120: =SUM(P110:P119) -> 0.2590162554 | Q120: =SUM(Q110:Q119) -> 0.2594690435 | R120: =SUM(R110:R119) -> 0.27984451 | S120: =SUM(S110:S119) -> 3.994014386 | T120: =SUM(T110:T119) -> 2.498273571 | U120: =SUM(U110:U119) -> 2.499065137 | V120: =SUM(V110:V119) -> 2.534685618 | W120: =SUM(W110:W119) -> 0.8268350308 | X120: =SUM(X110:X119) -> 1.53485659 | Y120: =SUM(Y110:Y119) -> 1.507319175 | Z120: =SUM(Z110:Z119) -> 1.53485659 | AA120: =SUM(AA110:AA119) -> 0.5743863703 | AB120: =SUM(AB110:AB119) -> 0.5401060492 | AC120: =SUM(AC110:AC119) -> 0.117957629 | AD120: =SUM(AD110:AD119) -> 0.14533614 | AE120: =SUM(AE110:AE119) -> 0.6403464717 | AF120: =SUM(AF110:AF119) -> 0.7500695849 | AG120: =SUM(AG110:AG119) -> 0.6644289855 | AH120: =SUM(AH110:AH119) -> 0.40492871 | AI120: =SUM(AI110:AI119) -> 0.6880974596 | AJ120: =SUM(AJ110:AJ119) -> 0.769020198 | AK120: =SUM(AK110:AK119) -> 0.2571943737 | AL120: =SUM(AL110:AL119) -> 0.08551934 | AM120: =SUM(AM110:AM119) -> -0.1358019645 | AN120: =SUM(AN110:AN119) -> 0.55677197 | AO120: =SUM(AO110:AO119) -> 0.3972354206 | AP120: =SUM(AP110:AP119) -> 0.66417979 | AQ120: =SUM(AQ110:AQ119) -> 1.183314972 | AR120: =SUM(AR110:AR119) -> 1.30770854 | AS120: =SUM(AS110:AS119) -> 0.242097693 | AT120: =SUM(AT110:AT119) -> 0.73151163 | AU120: =SUM(AU110:AU119) -> 0.45728972 | AV120: =SUM(AV110:AV119) -> 0.3146466 | AW120: =SUM(AW110:AW119) -> 0.6636569338 | AX120: =SUM(AX110:AX119) -> 2.593294029 | AY120: =SUM(AY110:AY119) -> 2.136212137 | AZ120: =SUM(AZ110:AZ119) -> 3.255100986 | BA120: =SUM(BA110:BA119) -> 1.353060204 | BB120: =SUM(BB110:BB119) -> 1.376256751 | BC120: =SUM(BC110:BC119) -> 0.7752807723 | BD120: =SUM(BD110:BD119) -> 1.608256153 | BE120: =SUM(BE110:BE119) -> 3.303832111 | BF120: =SUM(BF110:BF119) -> 1.029868305 | BG120: =SUM(BG110:BG119) -> 0.6657836913 | BH120: =SUM(BH110:BH119) -> 0.4570140933 | BI120: =SUM(BI110:BI119) -> 0.8490716248
A121: =ROW() -> 121 | B121: Capex Depreciation
A122: =ROW() -> 122 | B122: As per previous AA model $
A123: =ROW() -> 123 | B123: Date of Dollar Value | G123: 2000-03-31 | H123: 2000-06-30 | I123: 2000-09-30 | J123: 2000-12-31 | K123: 2001-03-31 | L123: 2001-06-30 | M123: 2001-09-30 | N123: 2001-12-31 | O123: 2002-03-31 | P123: 2002-06-30 | Q123: 2002-09-30 | R123: 2002-12-31 | S123: 2003-03-31 | T123: 2003-06-30 | U123: 2003-09-30 | V123: 2003-12-31 | W123: 2004-03-31 | X123: 2004-06-30 | Y123: 2004-09-30 | Z123: 2004-12-31 | AA123: 2005-03-31 | AB123: 2005-06-30 | AC123: 2005-09-30 | AD123: 2005-12-31 | AE123: 2006-03-31 | AF123: 2006-06-30 | AG123: 2006-09-30 | AH123: 2006-12-31 | AI123: 2007-03-31 | AJ123: 2007-06-30 | AK123: 2007-09-30 | AL123: 2007-12-31 | AM123: 2008-03-31 | AN123: 2008-06-30 | AO123: 2008-09-30 | AP123: 2008-12-31 | AQ123: 2009-03-31 | AR123: 2009-06-30 | AS123: 2009-09-30 | AT123: 2009-12-31 | AU123: 2010-12-31 | AV123: 2011-12-31 | AW123: 2012-12-31 | AX123: 2013-12-31 | AY123: 2014-12-31 | AZ123: 2014-12-31 | BA123: 2014-12-31 | BB123: 2014-12-31 | BC123: 2014-12-31 | BD123: 2014-12-31
A124: =ROW() -> 124 | B124: 2000-03-31 | C124: Capex
A125: =ROW() -> 125 | B125: Pipeline and laterals | H125: 0 | I125: 0 | J125: 0 | K125: 0 | L125: 0 | M125: 0 | N125: 0 | O125: 0 | P125: 0 | Q125: 0 | R125: 0 | S125: 0 | T125: 0 | U125: 0 | V125: 0 | W125: 0 | X125: 0 | Y125: 0 | Z125: 0 | AA125: 0 | AB125: 0 | AC125: 0 | AD125: 0 | AE125: 0 | AF125: 0 | AG125: 0 | AH125: 0 | AI125: 0 | AJ125: 0 | AK125: 0 | AL125: 0 | AM125: 0 | AN125: 0 | AO125: 0 | AP125: 0 | AQ125: 0 | AR125: 0 | AS125: 0 | AT125: 0 | AU125: 0 | AV125: 0 | AW125: 0 | AX125: 0 | AY125: 0 | AZ125: 0 | BA125: 0 | BB125: 0 | BC125: 0 | BD125: 0
A126: =ROW() -> 126 | B126: Main line valve and scraper stations | H126: 0 | I126: 0 | J126: 0 | K126: 0 | L126: 0 | M126: 0 | N126: 0 | O126: 0 | P126: 0 | Q126: 0 | R126: 0 | S126: 0 | T126: 0 | U126: 0 | V126: 0 | W126: 0 | X126: 0 | Y126: 0 | Z126: 0 | AA126: 0 | AB126: 0 | AC126: 0 | AD126: 0 | AE126: 0 | AF126: 0 | AG126: 0 | AH126: 0 | AI126: 0 | AJ126: 0 | AK126: 0 | AL126: 0 | AM126: 0 | AN126: 0 | AO126: 0 | AP126: 0 | AQ126: 0 | AR126: 0 | AS126: 0 | AT126: 0 | AU126: 0 | AV126: 0 | AW126: 0 | AX126: 0 | AY126: 0 | AZ126: 0 | BA126: 0 | BB126: 0 | BC126: 0 | BD126: 0
A127: =ROW() -> 127 | B127: Compressor stations | H127: 0.02422026025 | I127: 0.02422026025 | J127: 0.02422026025 | K127: 0.02422026025 | L127: 0.02422026025 | M127: 0.02422026025 | N127: 0.02422026025 | O127: 0.02422026025 | P127: 0.02422026025 | Q127: 0.02422026025 | R127: 0.02422026025 | S127: 0.02422026025 | T127: 0.02422026025 | U127: 0.02422026025 | V127: 0.02422026025 | W127: 0.02422026025 | X127: 0.02422026025 | Y127: 0.02422026025 | Z127: 0.02422026025 | AA127: 0.02422026025 | AB127: 0.02422026025 | AC127: 0.02422026025 | AD127: 0.02422026025 | AE127: 0.02422026025 | AF127: 0.02422026025 | AG127: 0.02422026025 | AH127: 0.02422026025 | AI127: 0.02422026025 | AJ127: 0.02422026025 | AK127: 0.02422026025 | AL127: 0.02422026025 | AM127: 0.02422026025 | AN127: 0.02422026025 | AO127: 0.02422026025 | AP127: 0.02422026025 | AQ127: 0.02422026025 | AR127: 0.02422026025 | AS127: 0.02422026025 | AT127: 0.02422026025 | AU127: 0.02422026025 | AV127: 0.02422026025 | AW127: 0.02422026025 | AX127: 0.02422026025 | AY127: 0.02422026025 | AZ127: 0.02422026025 | BA127: 0.02422026025 | BB127: 0.02422026025 | BC127: 0.02422026025 | BD127: 0.02422026025
A128: =ROW() -> 128 | B128: Receipt and delivery point facilities | H128: 0.001335302 | I128: 0.001335302 | J128: 0.001335302 | K128: 0.001335302 | L128: 0.001335302 | M128: 0.001335302 | N128: 0.001335302 | O128: 0.001335302 | P128: 0.001335302 | Q128: 0.001335302 | R128: 0.001335302 | S128: 0.001335302 | T128: 0.001335302 | U128: 0.001335302 | V128: 0.001335302 | W128: 0.001335302 | X128: 0.001335302 | Y128: 0.001335302 | Z128: 0.001335302 | AA128: 0.001335302 | AB128: 0.001335302 | AC128: 0.001335302 | AD128: 0.001335302 | AE128: 0.001335302 | AF128: 0.001335302 | AG128: 0.001335302 | AH128: 0.001335302 | AI128: 0.001335302 | AJ128: 0.001335302 | AK128: 0.001335302 | AL128: 0.001335302 | AM128: 0.001335302 | AN128: 0.001335302 | AO128: 0.001335302 | AP128: 0.001335302 | AQ128: 0.001335302 | AR128: 0.001335302 | AS128: 0.001335302 | AT128: 0.001335302 | AU128: 0.001335302 | AV128: 0.001335302 | AW128: 0.001335302 | AX128: 0.001335302 | AY128: 0.001335302 | AZ128: 0.001335302 | BA128: 0.001335302 | BB128: 0.001335302 | BC128: 0.001335302 | BD128: 0.001335302
A129: =ROW() -> 129 | B129: SCADA and communications | H129: 0.0004656743333 | I129: 0.0004656743333 | J129: 0.0004656743333 | K129: 0.0004656743333 | L129: 0.0004656743333 | M129: 0.0004656743333 | N129: 0.0004656743333 | O129: 0.0004656743333 | P129: 0.0004656743333 | Q129: 0.0004656743333 | R129: 0.0004656743333 | S129: 0.0004656743333 | T129: 0.0004656743333 | U129: 0.0004656743333 | V129: 0.0004656743333 | W129: 0.0004656743333 | X129: 0.0004656743333 | Y129: 0.0004656743333 | Z129: 0.0004656743333 | AA129: 0.0004656743333 | AB129: 0.0004656743333 | AC129: 0.0004656743333 | AD129: 0.0004656743333 | AE129: 0.0004656743333 | AF129: 0.0004656743333 | AG129: 0.0004656743333 | AH129: 0.0004656743333 | AI129: 0.0004656743333 | AJ129: 0.0004656743333 | AK129: 0.0004656743333 | AL129: 0.0004656743333 | AM129: 0.0004656743333 | AN129: 0.0004656743333 | AO129: 0.0004656743333 | AP129: 0.0004656743333 | AQ129: 0.0004656743333 | AR129: 0.0004656743333 | AS129: 0.0004656743333 | AT129: 0.0004656743333 | AU129: 0.00244479025 | AV129: 0 | AW129: 0 | AX129: 0 | AY129: 0 | AZ129: 8.67361738e-19 | BA129: 0 | BB129: 0 | BC129: 0 | BD129: 0
A130: =ROW() -> 130 | B130: Cathodic protection | H130: 0 | I130: 0 | J130: 0 | K130: 0 | L130: 0 | M130: 0 | N130: 0 | O130: 0 | P130: 0 | Q130: 0 | R130: 0 | S130: 0 | T130: 0 | U130: 0 | V130: 0 | W130: 0 | X130: 0 | Y130: 0 | Z130: 0 | AA130: 0 | AB130: 0 | AC130: 0 | AD130: 0 | AE130: 0 | AF130: 0 | AG130: 0 | AH130: 0 | AI130: 0 | AJ130: 0 | AK130: 0 | AL130: 0 | AM130: 0 | AN130: 0 | AO130: 0 | AP130: 0 | AQ130: 0 | AR130: 0 | AS130: 0 | AT130: 0 | AU130: 0 | AV130: 0 | AW130: 0 | AX130: 0 | AY130: 0 | AZ130: 0 | BA130: 0 | BB130: 0 | BC130: 0 | BD130: 0
A131: =ROW() -> 131 | B131: Maintenance bases and depots | H131: 3.6459e-05 | I131: 3.6459e-05 | J131: 3.6459e-05 | K131: 3.6459e-05 | L131: 3.6459e-05 | M131: 3.6459e-05 | N131: 3.6459e-05 | O131: 3.6459e-05 | P131: 3.6459e-05 | Q131: 3.6459e-05 | R131: 3.6459e-05 | S131: 3.6459e-05 | T131: 3.6459e-05 | U131: 3.6459e-05 | V131: 3.6459e-05 | W131: 3.6459e-05 | X131: 3.6459e-05 | Y131: 3.6459e-05 | Z131: 3.6459e-05 | AA131: 3.6459e-05 | AB131: 3.6459e-05 | AC131: 3.6459e-05 | AD131: 3.6459e-05 | AE131: 3.6459e-05 | AF131: 3.6459e-05 | AG131: 3.6459e-05 | AH131: 3.6459e-05 | AI131: 3.6459e-05 | AJ131: 3.6459e-05 | AK131: 3.6459e-05 | AL131: 3.6459e-05 | AM131: 3.6459e-05 | AN131: 3.6459e-05 | AO131: 3.6459e-05 | AP131: 3.6459e-05 | AQ131: 3.6459e-05 | AR131: 3.6459e-05 | AS131: 3.6459e-05 | AT131: 3.6459e-05 | AU131: 3.6459e-05 | AV131: 3.6459e-05 | AW131: 3.6459e-05 | AX131: 3.6459e-05 | AY131: 3.6459e-05 | AZ131: 3.6459e-05 | BA131: 3.6459e-05 | BB131: 3.6459e-05 | BC131: 3.6459e-05 | BD131: 3.6459e-05
A132: =ROW() -> 132 | B132: Other assets | H132: 0.01355580325 | I132: 0.01355580325 | J132: 0.01355580325 | K132: 0.01355580325 | L132: 0.01355580325 | M132: 0.01355580325 | N132: 0.01355580325 | O132: 0.01355580325 | P132: 0.01355580325 | Q132: 0.01355580325 | R132: 0.01355580325 | S132: 0.01355580325 | T132: 0.01355580325 | U132: 0.01355580325 | V132: 0.01355580325 | W132: 0.01355580325 | X132: 0.01355580325 | Y132: 0.01355580325 | Z132: 0.01355580325 | AA132: 0.01355580325 | AB132: 0.01355580325 | AC132: 0.01355580325 | AD132: 0.01355580325 | AE132: 0.01355580325 | AF132: 0.01355580325 | AG132: 0.01355580325 | AH132: 0.01355580325 | AI132: 0.01355580325 | AJ132: 0.01355580325 | AK132: 0.01355580325 | AL132: 0.01355580325 | AM132: 0.01355580325 | AN132: 0.01355580325 | AO132: 0.01355580325 | AP132: 0.01355580325 | AQ132: 0.01355580325 | AR132: 0.01355580325 | AS132: 0.01355580325 | AT132: 0.01355580325 | AU132: 0.003388950812 | AV132: 0 | AW132: 0 | AX132: 0 | AY132: 0 | AZ132: 2.775557562e-17 | BA132: 0 | BB132: 0 | BC132: 0 | BD132: 0
A133: =ROW() -> 133 | B133: Equity Raising Cost
A134: =ROW() -> 134 | B134: Non-depreciable assets
A135: =ROW() -> 135 | B135: Total | G135: 0 | H135: 0.03961349883 | I135: 0.03961349883 | J135: 0.03961349883 | K135: 0.03961349883 | L135: 0.03961349883 | M135: 0.03961349883 | N135: 0.03961349883 | O135: 0.03961349883 | P135: 0.03961349883 | Q135: 0.03961349883 | R135: 0.03961349883 | S135: 0.03961349883 | T135: 0.03961349883 | U135: 0.03961349883 | V135: 0.03961349883 | W135: 0.03961349883 | X135: 0.03961349883 | Y135: 0.03961349883 | Z135: 0.03961349883 | AA135: 0.03961349883 | AB135: 0.03961349883 | AC135: 0.03961349883 | AD135: 0.03961349883 | AE135: 0.03961349883 | AF135: 0.03961349883 | AG135: 0.03961349883 | AH135: 0.03961349883 | AI135: 0.03961349883 | AJ135: 0.03961349883 | AK135: 0.03961349883 | AL135: 0.03961349883 | AM135: 0.03961349883 | AN135: 0.03961349883 | AO135: 0.03961349883 | AP135: 0.03961349883 | AQ135: 0.03961349883 | AR135: 0.03961349883 | AS135: 0.03961349883 | AT135: 0.03961349883 | AU135: 0.03142576231 | AV135: 0.02559202125 | AW135: 0.02559202125 | AX135: 0.02559202125 | AY135: 0.02559202125 | AZ135: 0.02559202125 | BA135: 0.02559202125 | BB135: 0.02559202125 | BC135: 0.02559202125 | BD135: 0.02559202125
A136: =ROW() -> 136 | B136: 2000-06-30 | C136: Capex
A137: =ROW() -> 137 | B137: Pipeline and laterals | I137: 0 | J137: 0 | K137: 0 | L137: 0 | M137: 0 | N137: 0 | O137: 0 | P137: 0 | Q137: 0 | R137: 0 | S137: 0 | T137: 0 | U137: 0 | V137: 0 | W137: 0 | X137: 0 | Y137: 0 | Z137: 0 | AA137: 0 | AB137: 0 | AC137: 0 | AD137: 0 | AE137: 0 | AF137: 0 | AG137: 0 | AH137: 0 | AI137: 0 | AJ137: 0 | AK137: 0 | AL137: 0 | AM137: 0 | AN137: 0 | AO137: 0 | AP137: 0 | AQ137: 0 | AR137: 0 | AS137: 0 | AT137: 0 | AU137: 0 | AV137: 0 | AW137: 0 | AX137: 0 | AY137: 0 | AZ137: 0 | BA137: 0 | BB137: 0 | BC137: 0 | BD137: 0
A138: =ROW() -> 138 | B138: Main line valve and scraper stations | I138: 0 | J138: 0 | K138: 0 | L138: 0 | M138: 0 | N138: 0 | O138: 0 | P138: 0 | Q138: 0 | R138: 0 | S138: 0 | T138: 0 | U138: 0 | V138: 0 | W138: 0 | X138: 0 | Y138: 0 | Z138: 0 | AA138: 0 | AB138: 0 | AC138: 0 | AD138: 0 | AE138: 0 | AF138: 0 | AG138: 0 | AH138: 0 | AI138: 0 | AJ138: 0 | AK138: 0 | AL138: 0 | AM138: 0 | AN138: 0 | AO138: 0 | AP138: 0 | AQ138: 0 | AR138: 0 | AS138: 0 | AT138: 0 | AU138: 0 | AV138: 0 | AW138: 0 | AX138: 0 | AY138: 0 | AZ138: 0 | BA138: 0 | BB138: 0 | BC138: 0 | BD138: 0
A139: =ROW() -> 139 | B139: Compressor stations | I139: 0.02422026025 | J139: 0.02422026025 | K139: 0.02422026025 | L139: 0.02422026025 | M139: 0.02422026025 | N139: 0.02422026025 | O139: 0.02422026025 | P139: 0.02422026025 | Q139: 0.02422026025 | R139: 0.02422026025 | S139: 0.02422026025 | T139: 0.02422026025 | U139: 0.02422026025 | V139: 0.02422026025 | W139: 0.02422026025 | X139: 0.02422026025 | Y139: 0.02422026025 | Z139: 0.02422026025 | AA139: 0.02422026025 | AB139: 0.02422026025 | AC139: 0.02422026025 | AD139: 0.02422026025 | AE139: 0.02422026025 | AF139: 0.02422026025 | AG139: 0.02422026025 | AH139: 0.02422026025 | AI139: 0.02422026025 | AJ139: 0.02422026025 | AK139: 0.02422026025 | AL139: 0.02422026025 | AM139: 0.02422026025 | AN139: 0.02422026025 | AO139: 0.02422026025 | AP139: 0.02422026025 | AQ139: 0.02422026025 | AR139: 0.02422026025 | AS139: 0.02422026025 | AT139: 0.02422026025 | AU139: 0.02422026025 | AV139: 0.02422026025 | AW139: 0.02422026025 | AX139: 0.02422026025 | AY139: 0.02422026025 | AZ139: 0.02422026025 | BA139: 0.02422026025 | BB139: 0.02422026025 | BC139: 0.02422026025 | BD139: 0.02422026025
A140: =ROW() -> 140 | B140: Receipt and delivery point facilities | I140: 0.001335302 | J140: 0.001335302 | K140: 0.001335302 | L140: 0.001335302 | M140: 0.001335302 | N140: 0.001335302 | O140: 0.001335302 | P140: 0.001335302 | Q140: 0.001335302 | R140: 0.001335302 | S140: 0.001335302 | T140: 0.001335302 | U140: 0.001335302 | V140: 0.001335302 | W140: 0.001335302 | X140: 0.001335302 | Y140: 0.001335302 | Z140: 0.001335302 | AA140: 0.001335302 | AB140: 0.001335302 | AC140: 0.001335302 | AD140: 0.001335302 | AE140: 0.001335302 | AF140: 0.001335302 | AG140: 0.001335302 | AH140: 0.001335302 | AI140: 0.001335302 | AJ140: 0.001335302 | AK140: 0.001335302 | AL140: 0.001335302 | AM140: 0.001335302 | AN140: 0.001335302 | AO140: 0.001335302 | AP140: 0.001335302 | AQ140: 0.001335302 | AR140: 0.001335302 | AS140: 0.001335302 | AT140: 0.001335302 | AU140: 0.001335302 | AV140: 0.001335302 | AW140: 0.001335302 | AX140: 0.001335302 | AY140: 0.001335302 | AZ140: 0.001335302 | BA140: 0.001335302 | BB140: 0.001335302 | BC140: 0.001335302 | BD140: 0.001335302
A141: =ROW() -> 141 | B141: SCADA and communications | I141: 0.0004656743333 | J141: 0.0004656743333 | K141: 0.0004656743333 | L141: 0.0004656743333 | M141: 0.0004656743333 | N141: 0.0004656743333 | O141: 0.0004656743333 | P141: 0.0004656743333 | Q141: 0.0004656743333 | R141: 0.0004656743333 | S141: 0.0004656743333 | T141: 0.0004656743333 | U141: 0.0004656743333 | V141: 0.0004656743333 | W141: 0.0004656743333 | X141: 0.0004656743333 | Y141: 0.0004656743333 | Z141: 0.0004656743333 | AA141: 0.0004656743333 | AB141: 0.0004656743333 | AC141: 0.0004656743333 | AD141: 0.0004656743333 | AE141: 0.0004656743333 | AF141: 0.0004656743333 | AG141: 0.0004656743333 | AH141: 0.0004656743333 | AI141: 0.0004656743333 | AJ141: 0.0004656743333 | AK141: 0.0004656743333 | AL141: 0.0004656743333 | AM141: 0.0004656743333 | AN141: 0.0004656743333 | AO141: 0.0004656743333 | AP141: 0.0004656743333 | AQ141: 0.0004656743333 | AR141: 0.0004656743333 | AS141: 0.0004656743333 | AT141: 0.0004656743333 | AU141: 0.002561208833 | AV141: 0 | AW141: 0 | AX141: 0 | AY141: 0 | AZ141: 1.734723476e-18 | BA141: 0 | BB141: 0 | BC141: 0 | BD141: 0
A142: =ROW() -> 142 | B142: Cathodic protection | I142: 0 | J142: 0 | K142: 0 | L142: 0 | M142: 0 | N142: 0 | O142: 0 | P142: 0 | Q142: 0 | R142: 0 | S142: 0 | T142: 0 | U142: 0 | V142: 0 | W142: 0 | X142: 0 | Y142: 0 | Z142: 0 | AA142: 0 | AB142: 0 | AC142: 0 | AD142: 0 | AE142: 0 | AF142: 0 | AG142: 0 | AH142: 0 | AI142: 0 | AJ142: 0 | AK142: 0 | AL142: 0 | AM142: 0 | AN142: 0 | AO142: 0 | AP142: 0 | AQ142: 0 | AR142: 0 | AS142: 0 | AT142: 0 | AU142: 0 | AV142: 0 | AW142: 0 | AX142: 0 | AY142: 0 | AZ142: 0 | BA142: 0 | BB142: 0 | BC142: 0 | BD142: 0
A143: =ROW() -> 143 | B143: Maintenance bases and depots | I143: 3.6459e-05 | J143: 3.6459e-05 | K143: 3.6459e-05 | L143: 3.6459e-05 | M143: 3.6459e-05 | N143: 3.6459e-05 | O143: 3.6459e-05 | P143: 3.6459e-05 | Q143: 3.6459e-05 | R143: 3.6459e-05 | S143: 3.6459e-05 | T143: 3.6459e-05 | U143: 3.6459e-05 | V143: 3.6459e-05 | W143: 3.6459e-05 | X143: 3.6459e-05 | Y143: 3.6459e-05 | Z143: 3.6459e-05 | AA143: 3.6459e-05 | AB143: 3.6459e-05 | AC143: 3.6459e-05 | AD143: 3.6459e-05 | AE143: 3.6459e-05 | AF143: 3.6459e-05 | AG143: 3.6459e-05 | AH143: 3.6459e-05 | AI143: 3.6459e-05 | AJ143: 3.6459e-05 | AK143: 3.6459e-05 | AL143: 3.6459e-05 | AM143: 3.6459e-05 | AN143: 3.6459e-05 | AO143: 3.6459e-05 | AP143: 3.6459e-05 | AQ143: 3.6459e-05 | AR143: 3.6459e-05 | AS143: 3.6459e-05 | AT143: 3.6459e-05 | AU143: 3.6459e-05 | AV143: 3.6459e-05 | AW143: 3.6459e-05 | AX143: 3.6459e-05 | AY143: 3.6459e-05 | AZ143: 3.6459e-05 | BA143: 3.6459e-05 | BB143: 3.6459e-05 | BC143: 3.6459e-05 | BD143: 3.6459e-05
A144: =ROW() -> 144 | B144: Other assets | I144: 0.01355580325 | J144: 0.01355580325 | K144: 0.01355580325 | L144: 0.01355580325 | M144: 0.01355580325 | N144: 0.01355580325 | O144: 0.01355580325 | P144: 0.01355580325 | Q144: 0.01355580325 | R144: 0.01355580325 | S144: 0.01355580325 | T144: 0.01355580325 | U144: 0.01355580325 | V144: 0.01355580325 | W144: 0.01355580325 | X144: 0.01355580325 | Y144: 0.01355580325 | Z144: 0.01355580325 | AA144: 0.01355580325 | AB144: 0.01355580325 | AC144: 0.01355580325 | AD144: 0.01355580325 | AE144: 0.01355580325 | AF144: 0.01355580325 | AG144: 0.01355580325 | AH144: 0.01355580325 | AI144: 0.01355580325 | AJ144: 0.01355580325 | AK144: 0.01355580325 | AL144: 0.01355580325 | AM144: 0.01355580325 | AN144: 0.01355580325 | AO144: 0.01355580325 | AP144: 0.01355580325 | AQ144: 0.01355580325 | AR144: 0.01355580325 | AS144: 0.01355580325 | AT144: 0.01355580325 | AU144: 0.006777901625 | AV144: 0 | AW144: 0 | AX144: 0 | AY144: 0 | AZ144: 1.387778781e-17 | BA144: 0 | BB144: 0 | BC144: 0 | BD144: 0
A145: =ROW() -> 145 | B145: Equity Raising Cost
A146: =ROW() -> 146 | B146: Non-depreciable assets
A147: =ROW() -> 147 | B147: Total | G147: 0 | H147: 0 | I147: 0.03961349883 | J147: 0.03961349883 | K147: 0.03961349883 | L147: 0.03961349883 | M147: 0.03961349883 | N147: 0.03961349883 | O147: 0.03961349883 | P147: 0.03961349883 | Q147: 0.03961349883 | R147: 0.03961349883 | S147: 0.03961349883 | T147: 0.03961349883 | U147: 0.03961349883 | V147: 0.03961349883 | W147: 0.03961349883 | X147: 0.03961349883 | Y147: 0.03961349883 | Z147: 0.03961349883 | AA147: 0.03961349883 | AB147: 0.03961349883 | AC147: 0.03961349883 | AD147: 0.03961349883 | AE147: 0.03961349883 | AF147: 0.03961349883 | AG147: 0.03961349883 | AH147: 0.03961349883 | AI147: 0.03961349883 | AJ147: 0.03961349883 | AK147: 0.03961349883 | AL147: 0.03961349883 | AM147: 0.03961349883 | AN147: 0.03961349883 | AO147: 0.03961349883 | AP147: 0.03961349883 | AQ147: 0.03961349883 | AR147: 0.03961349883 | AS147: 0.03961349883 | AT147: 0.03961349883 | AU147: 0.03493113171 | AV147: 0.02559202125 | AW147: 0.02559202125 | AX147: 0.02559202125 | AY147: 0.02559202125 | AZ147: 0.02559202125 | BA147: 0.02559202125 | BB147: 0.02559202125 | BC147: 0.02559202125 | BD147: 0.02559202125
A148: =ROW() -> 148 | B148: 2000-09-30 | C148: Capex
A149: =ROW() -> 149 | B149: Pipeline and laterals | J149: 0 | K149: 0 | L149: 0 | M149: 0 | N149: 0 | O149: 0 | P149: 0 | Q149: 0 | R149: 0 | S149: 0 | T149: 0 | U149: 0 | V149: 0 | W149: 0 | X149: 0 | Y149: 0 | Z149: 0 | AA149: 0 | AB149: 0 | AC149: 0 | AD149: 0 | AE149: 0 | AF149: 0 | AG149: 0 | AH149: 0 | AI149: 0 | AJ149: 0 | AK149: 0 | AL149: 0 | AM149: 0 | AN149: 0 | AO149: 0 | AP149: 0 | AQ149: 0 | AR149: 0 | AS149: 0 | AT149: 0 | AU149: 0 | AV149: 0 | AW149: 0 | AX149: 0 | AY149: 0 | AZ149: 0 | BA149: 0 | BB149: 0 | BC149: 0 | BD149: 0
A150: =ROW() -> 150 | B150: Main line valve and scraper stations | J150: 0 | K150: 0 | L150: 0 | M150: 0 | N150: 0 | O150: 0 | P150: 0 | Q150: 0 | R150: 0 | S150: 0 | T150: 0 | U150: 0 | V150: 0 | W150: 0 | X150: 0 | Y150: 0 | Z150: 0 | AA150: 0 | AB150: 0 | AC150: 0 | AD150: 0 | AE150: 0 | AF150: 0 | AG150: 0 | AH150: 0 | AI150: 0 | AJ150: 0 | AK150: 0 | AL150: 0 | AM150: 0 | AN150: 0 | AO150: 0 | AP150: 0 | AQ150: 0 | AR150: 0 | AS150: 0 | AT150: 0 | AU150: 0 | AV150: 0 | AW150: 0 | AX150: 0 | AY150: 0 | AZ150: 0 | BA150: 0 | BB150: 0 | BC150: 0 | BD150: 0
A151: =ROW() -> 151 | B151: Compressor stations | J151: 0.02422026025 | K151: 0.02422026025 | L151: 0.02422026025 | M151: 0.02422026025 | N151: 0.02422026025 | O151: 0.02422026025 | P151: 0.02422026025 | Q151: 0.02422026025 | R151: 0.02422026025 | S151: 0.02422026025 | T151: 0.02422026025 | U151: 0.02422026025 | V151: 0.02422026025 | W151: 0.02422026025 | X151: 0.02422026025 | Y151: 0.02422026025 | Z151: 0.02422026025 | AA151: 0.02422026025 | AB151: 0.02422026025 | AC151: 0.02422026025 | AD151: 0.02422026025 | AE151: 0.02422026025 | AF151: 0.02422026025 | AG151: 0.02422026025 | AH151: 0.02422026025 | AI151: 0.02422026025 | AJ151: 0.02422026025 | AK151: 0.02422026025 | AL151: 0.02422026025 | AM151: 0.02422026025 | AN151: 0.02422026025 | AO151: 0.02422026025 | AP151: 0.02422026025 | AQ151: 0.02422026025 | AR151: 0.02422026025 | AS151: 0.02422026025 | AT151: 0.02422026025 | AU151: 0.02422026025 | AV151: 0.02422026025 | AW151: 0.02422026025 | AX151: 0.02422026025 | AY151: 0.02422026025 | AZ151: 0.02422026025 | BA151: 0.02422026025 | BB151: 0.02422026025 | BC151: 0.02422026025 | BD151: 0.02422026025
A152: =ROW() -> 152 | B152: Receipt and delivery point facilities | J152: 0.001335302 | K152: 0.001335302 | L152: 0.001335302 | M152: 0.001335302 | N152: 0.001335302 | O152: 0.001335302 | P152: 0.001335302 | Q152: 0.001335302 | R152: 0.001335302 | S152: 0.001335302 | T152: 0.001335302 | U152: 0.001335302 | V152: 0.001335302 | W152: 0.001335302 | X152: 0.001335302 | Y152: 0.001335302 | Z152: 0.001335302 | AA152: 0.001335302 | AB152: 0.001335302 | AC152: 0.001335302 | AD152: 0.001335302 | AE152: 0.001335302 | AF152: 0.001335302 | AG152: 0.001335302 | AH152: 0.001335302 | AI152: 0.001335302 | AJ152: 0.001335302 | AK152: 0.001335302 | AL152: 0.001335302 | AM152: 0.001335302 | AN152: 0.001335302 | AO152: 0.001335302 | AP152: 0.001335302 | AQ152: 0.001335302 | AR152: 0.001335302 | AS152: 0.001335302 | AT152: 0.001335302 | AU152: 0.001335302 | AV152: 0.001335302 | AW152: 0.001335302 | AX152: 0.001335302 | AY152: 0.001335302 | AZ152: 0.001335302 | BA152: 0.001335302 | BB152: 0.001335302 | BC152: 0.001335302 | BD152: 0.001335302
A153: =ROW() -> 153 | B153: SCADA and communications | J153: 0.0004656743333 | K153: 0.0004656743333 | L153: 0.0004656743333 | M153: 0.0004656743333 | N153: 0.0004656743333 | O153: 0.0004656743333 | P153: 0.0004656743333 | Q153: 0.0004656743333 | R153: 0.0004656743333 | S153: 0.0004656743333 | T153: 0.0004656743333 | U153: 0.0004656743333 | V153: 0.0004656743333 | W153: 0.0004656743333 | X153: 0.0004656743333 | Y153: 0.0004656743333 | Z153: 0.0004656743333 | AA153: 0.0004656743333 | AB153: 0.0004656743333 | AC153: 0.0004656743333 | AD153: 0.0004656743333 | AE153: 0.0004656743333 | AF153: 0.0004656743333 | AG153: 0.0004656743333 | AH153: 0.0004656743333 | AI153: 0.0004656743333 | AJ153: 0.0004656743333 | AK153: 0.0004656743333 | AL153: 0.0004656743333 | AM153: 0.0004656743333 | AN153: 0.0004656743333 | AO153: 0.0004656743333 | AP153: 0.0004656743333 | AQ153: 0.0004656743333 | AR153: 0.0004656743333 | AS153: 0.0004656743333 | AT153: 0.0004656743333 | AU153: 0.002677627417 | AV153: 0 | AW153: 0 | AX153: 0 | AY153: 0 | AZ153: 1.734723476e-18 | BA153: 0 | BB153: 0 | BC153: 0 | BD153: 0
A154: =ROW() -> 154 | B154: Cathodic protection | J154: 0 | K154: 0 | L154: 0 | M154: 0 | N154: 0 | O154: 0 | P154: 0 | Q154: 0 | R154: 0 | S154: 0 | T154: 0 | U154: 0 | V154: 0 | W154: 0 | X154: 0 | Y154: 0 | Z154: 0 | AA154: 0 | AB154: 0 | AC154: 0 | AD154: 0 | AE154: 0 | AF154: 0 | AG154: 0 | AH154: 0 | AI154: 0 | AJ154: 0 | AK154: 0 | AL154: 0 | AM154: 0 | AN154: 0 | AO154: 0 | AP154: 0 | AQ154: 0 | AR154: 0 | AS154: 0 | AT154: 0 | AU154: 0 | AV154: 0 | AW154: 0 | AX154: 0 | AY154: 0 | AZ154: 0 | BA154: 0 | BB154: 0 | BC154: 0 | BD154: 0
A155: =ROW() -> 155 | B155: Maintenance bases and depots | J155: 3.6459e-05 | K155: 3.6459e-05 | L155: 3.6459e-05 | M155: 3.6459e-05 | N155: 3.6459e-05 | O155: 3.6459e-05 | P155: 3.6459e-05 | Q155: 3.6459e-05 | R155: 3.6459e-05 | S155: 3.6459e-05 | T155: 3.6459e-05 | U155: 3.6459e-05 | V155: 3.6459e-05 | W155: 3.6459e-05 | X155: 3.6459e-05 | Y155: 3.6459e-05 | Z155: 3.6459e-05 | AA155: 3.6459e-05 | AB155: 3.6459e-05 | AC155: 3.6459e-05 | AD155: 3.6459e-05 | AE155: 3.6459e-05 | AF155: 3.6459e-05 | AG155: 3.6459e-05 | AH155: 3.6459e-05 | AI155: 3.6459e-05 | AJ155: 3.6459e-05 | AK155: 3.6459e-05 | AL155: 3.6459e-05 | AM155: 3.6459e-05 | AN155: 3.6459e-05 | AO155: 3.6459e-05 | AP155: 3.6459e-05 | AQ155: 3.6459e-05 | AR155: 3.6459e-05 | AS155: 3.6459e-05 | AT155: 3.6459e-05 | AU155: 3.6459e-05 | AV155: 3.6459e-05 | AW155: 3.6459e-05 | AX155: 3.6459e-05 | AY155: 3.6459e-05 | AZ155: 3.6459e-05 | BA155: 3.6459e-05 | BB155: 3.6459e-05 | BC155: 3.6459e-05 | BD155: 3.6459e-05
A156: =ROW() -> 156 | B156: Other assets | J156: 0.01355580325 | K156: 0.01355580325 | L156: 0.01355580325 | M156: 0.01355580325 | N156: 0.01355580325 | O156: 0.01355580325 | P156: 0.01355580325 | Q156: 0.01355580325 | R156: 0.01355580325 | S156: 0.01355580325 | T156: 0.01355580325 | U156: 0.01355580325 | V156: 0.01355580325 | W156: 0.01355580325 | X156: 0.01355580325 | Y156: 0.01355580325 | Z156: 0.01355580325 | AA156: 0.01355580325 | AB156: 0.01355580325 | AC156: 0.01355580325 | AD156: 0.01355580325 | AE156: 0.01355580325 | AF156: 0.01355580325 | AG156: 0.01355580325 | AH156: 0.01355580325 | AI156: 0.01355580325 | AJ156: 0.01355580325 | AK156: 0.01355580325 | AL156: 0.01355580325 | AM156: 0.01355580325 | AN156: 0.01355580325 | AO156: 0.01355580325 | AP156: 0.01355580325 | AQ156: 0.01355580325 | AR156: 0.01355580325 | AS156: 0.01355580325 | AT156: 0.01355580325 | AU156: 0.01016685244 | AV156: 0 | AW156: 0 | AX156: 0 | AY156: 0 | AZ156: 2.775557562e-17 | BA156: 0 | BB156: 0 | BC156: 0 | BD156: 0
A157: =ROW() -> 157 | B157: Equity Raising Cost
A158: =ROW() -> 158 | B158: Non-depreciable assets
A159: =ROW() -> 159 | B159: Total | G159: 0 | H159: 0 | I159: 0 | J159: 0.03961349883 | K159: 0.03961349883 | L159: 0.03961349883 | M159: 0.03961349883 | N159: 0.03961349883 | O159: 0.03961349883 | P159: 0.03961349883 | Q159: 0.03961349883 | R159: 0.03961349883 | S159: 0.03961349883 | T159: 0.03961349883 | U159: 0.03961349883 | V159: 0.03961349883 | W159: 0.03961349883 | X159: 0.03961349883 | Y159: 0.03961349883 | Z159: 0.03961349883 | AA159: 0.03961349883 | AB159: 0.03961349883 | AC159: 0.03961349883 | AD159: 0.03961349883 | AE159: 0.03961349883 | AF159: 0.03961349883 | AG159: 0.03961349883 | AH159: 0.03961349883 | AI159: 0.03961349883 | AJ159: 0.03961349883 | AK159: 0.03961349883 | AL159: 0.03961349883 | AM159: 0.03961349883 | AN159: 0.03961349883 | AO159: 0.03961349883 | AP159: 0.03961349883 | AQ159: 0.03961349883 | AR159: 0.03961349883 | AS159: 0.03961349883 | AT159: 0.03961349883 | AU159: 0.0384365011 | AV159: 0.02559202125 | AW159: 0.02559202125 | AX159: 0.02559202125 | AY159: 0.02559202125 | AZ159: 0.02559202125 | BA159: 0.02559202125 | BB159: 0.02559202125 | BC159: 0.02559202125 | BD159: 0.02559202125
A160: =ROW() -> 160 | B160: 2000-12-31 | C160: Capex
A161: =ROW() -> 161 | B161: Pipeline and laterals | K161: 0 | L161: 0 | M161: 0 | N161: 0 | O161: 0 | P161: 0 | Q161: 0 | R161: 0 | S161: 0 | T161: 0 | U161: 0 | V161: 0 | W161: 0 | X161: 0 | Y161: 0 | Z161: 0 | AA161: 0 | AB161: 0 | AC161: 0 | AD161: 0 | AE161: 0 | AF161: 0 | AG161: 0 | AH161: 0 | AI161: 0 | AJ161: 0 | AK161: 0 | AL161: 0 | AM161: 0 | AN161: 0 | AO161: 0 | AP161: 0 | AQ161: 0 | AR161: 0 | AS161: 0 | AT161: 0 | AU161: 0 | AV161: 0 | AW161: 0 | AX161: 0 | AY161: 0 | AZ161: 0 | BA161: 0 | BB161: 0 | BC161: 0 | BD161: 0
A162: =ROW() -> 162 | B162: Main line valve and scraper stations | K162: 0 | L162: 0 | M162: 0 | N162: 0 | O162: 0 | P162: 0 | Q162: 0 | R162: 0 | S162: 0 | T162: 0 | U162: 0 | V162: 0 | W162: 0 | X162: 0 | Y162: 0 | Z162: 0 | AA162: 0 | AB162: 0 | AC162: 0 | AD162: 0 | AE162: 0 | AF162: 0 | AG162: 0 | AH162: 0 | AI162: 0 | AJ162: 0 | AK162: 0 | AL162: 0 | AM162: 0 | AN162: 0 | AO162: 0 | AP162: 0 | AQ162: 0 | AR162: 0 | AS162: 0 | AT162: 0 | AU162: 0 | AV162: 0 | AW162: 0 | AX162: 0 | AY162: 0 | AZ162: 0 | BA162: 0 | BB162: 0 | BC162: 0 | BD162: 0
A163: =ROW() -> 163 | B163: Compressor stations | K163: 0.02422026025 | L163: 0.02422026025 | M163: 0.02422026025 | N163: 0.02422026025 | O163: 0.02422026025 | P163: 0.02422026025 | Q163: 0.02422026025 | R163: 0.02422026025 | S163: 0.02422026025 | T163: 0.02422026025 | U163: 0.02422026025 | V163: 0.02422026025 | W163: 0.02422026025 | X163: 0.02422026025 | Y163: 0.02422026025 | Z163: 0.02422026025 | AA163: 0.02422026025 | AB163: 0.02422026025 | AC163: 0.02422026025 | AD163: 0.02422026025 | AE163: 0.02422026025 | AF163: 0.02422026025 | AG163: 0.02422026025 | AH163: 0.02422026025 | AI163: 0.02422026025 | AJ163: 0.02422026025 | AK163: 0.02422026025 | AL163: 0.02422026025 | AM163: 0.02422026025 | AN163: 0.02422026025 | AO163: 0.02422026025 | AP163: 0.02422026025 | AQ163: 0.02422026025 | AR163: 0.02422026025 | AS163: 0.02422026025 | AT163: 0.02422026025 | AU163: 0.02422026025 | AV163: 0.02422026025 | AW163: 0.02422026025 | AX163: 0.02422026025 | AY163: 0.02422026025 | AZ163: 0.06722260475 | BA163: 0.06722260475 | BB163: 0.06722260475 | BC163: 0.06722260475 | BD163: 0.06722260475
A164: =ROW() -> 164 | B164: Receipt and delivery point facilities | K164: 0.001335302 | L164: 0.001335302 | M164: 0.001335302 | N164: 0.001335302 | O164: 0.001335302 | P164: 0.001335302 | Q164: 0.001335302 | R164: 0.001335302 | S164: 0.001335302 | T164: 0.001335302 | U164: 0.001335302 | V164: 0.001335302 | W164: 0.001335302 | X164: 0.001335302 | Y164: 0.001335302 | Z164: 0.001335302 | AA164: 0.001335302 | AB164: 0.001335302 | AC164: 0.001335302 | AD164: 0.001335302 | AE164: 0.001335302 | AF164: 0.001335302 | AG164: 0.001335302 | AH164: 0.001335302 | AI164: 0.001335302 | AJ164: 0.001335302 | AK164: 0.001335302 | AL164: 0.001335302 | AM164: 0.001335302 | AN164: 0.001335302 | AO164: 0.001335302 | AP164: 0.001335302 | AQ164: 0.001335302 | AR164: 0.001335302 | AS164: 0.001335302 | AT164: 0.001335302 | AU164: 0.001335302 | AV164: 0.001335302 | AW164: 0.001335302 | AX164: 0.001335302 | AY164: 0.001335302 | AZ164: 0.0008095364167 | BA164: 0.0008095364167 | BB164: 0.0008095364167 | BC164: 0.0008095364167 | BD164: 0.0008095364167
A165: =ROW() -> 165 | B165: SCADA and communications | K165: 0.0004656743333 | L165: 0.0004656743333 | M165: 0.0004656743333 | N165: 0.0004656743333 | O165: 0.0004656743333 | P165: 0.0004656743333 | Q165: 0.0004656743333 | R165: 0.0004656743333 | S165: 0.0004656743333 | T165: 0.0004656743333 | U165: 0.0004656743333 | V165: 0.0004656743333 | W165: 0.0004656743333 | X165: 0.0004656743333 | Y165: 0.0004656743333 | Z165: 0.0004656743333 | AA165: 0.0004656743333 | AB165: 0.0004656743333 | AC165: 0.0004656743333 | AD165: 0.0004656743333 | AE165: 0.0004656743333 | AF165: 0.0004656743333 | AG165: 0.0004656743333 | AH165: 0.0004656743333 | AI165: 0.0004656743333 | AJ165: 0.0004656743333 | AK165: 0.0004656743333 | AL165: 0.0004656743333 | AM165: 0.0004656743333 | AN165: 0.0004656743333 | AO165: 0.0004656743333 | AP165: 0.0004656743333 | AQ165: 0.0004656743333 | AR165: 0.0004656743333 | AS165: 0.0004656743333 | AT165: 0.0004656743333 | AU165: 0.002794046 | AV165: 0 | AW165: 0 | AX165: 0 | AY165: 0 | AZ165: 0 | BA165: 0 | BB165: 0 | BC165: 0 | BD165: 0
A166: =ROW() -> 166 | B166: Cathodic protection | K166: 0 | L166: 0 | M166: 0 | N166: 0 | O166: 0 | P166: 0 | Q166: 0 | R166: 0 | S166: 0 | T166: 0 | U166: 0 | V166: 0 | W166: 0 | X166: 0 | Y166: 0 | Z166: 0 | AA166: 0 | AB166: 0 | AC166: 0 | AD166: 0 | AE166: 0 | AF166: 0 | AG166: 0 | AH166: 0 | AI166: 0 | AJ166: 0 | AK166: 0 | AL166: 0 | AM166: 0 | AN166: 0 | AO166: 0 | AP166: 0 | AQ166: 0 | AR166: 0 | AS166: 0 | AT166: 0 | AU166: 0 | AV166: 0 | AW166: 0 | AX166: 0 | AY166: 0 | AZ166: 0 | BA166: 0 | BB166: 0 | BC166: 0 | BD166: 0
A167: =ROW() -> 167 | B167: Maintenance bases and depots | K167: 3.6459e-05 | L167: 3.6459e-05 | M167: 3.6459e-05 | N167: 3.6459e-05 | O167: 3.6459e-05 | P167: 3.6459e-05 | Q167: 3.6459e-05 | R167: 3.6459e-05 | S167: 3.6459e-05 | T167: 3.6459e-05 | U167: 3.6459e-05 | V167: 3.6459e-05 | W167: 3.6459e-05 | X167: 3.6459e-05 | Y167: 3.6459e-05 | Z167: 3.6459e-05 | AA167: 3.6459e-05 | AB167: 3.6459e-05 | AC167: 3.6459e-05 | AD167: 3.6459e-05 | AE167: 3.6459e-05 | AF167: 3.6459e-05 | AG167: 3.6459e-05 | AH167: 3.6459e-05 | AI167: 3.6459e-05 | AJ167: 3.6459e-05 | AK167: 3.6459e-05 | AL167: 3.6459e-05 | AM167: 3.6459e-05 | AN167: 3.6459e-05 | AO167: 3.6459e-05 | AP167: 3.6459e-05 | AQ167: 3.6459e-05 | AR167: 3.6459e-05 | AS167: 3.6459e-05 | AT167: 3.6459e-05 | AU167: 3.6459e-05 | AV167: 3.6459e-05 | AW167: 3.6459e-05 | AX167: 3.6459e-05 | AY167: 3.6459e-05 | AZ167: 2.13409e-05 | BA167: 2.13409e-05 | BB167: 2.13409e-05 | BC167: 2.13409e-05 | BD167: 2.13409e-05
A168: =ROW() -> 168 | B168: Other assets | K168: 0.01355580325 | L168: 0.01355580325 | M168: 0.01355580325 | N168: 0.01355580325 | O168: 0.01355580325 | P168: 0.01355580325 | Q168: 0.01355580325 | R168: 0.01355580325 | S168: 0.01355580325 | T168: 0.01355580325 | U168: 0.01355580325 | V168: 0.01355580325 | W168: 0.01355580325 | X168: 0.01355580325 | Y168: 0.01355580325 | Z168: 0.01355580325 | AA168: 0.01355580325 | AB168: 0.01355580325 | AC168: 0.01355580325 | AD168: 0.01355580325 | AE168: 0.01355580325 | AF168: 0.01355580325 | AG168: 0.01355580325 | AH168: 0.01355580325 | AI168: 0.01355580325 | AJ168: 0.01355580325 | AK168: 0.01355580325 | AL168: 0.01355580325 | AM168: 0.01355580325 | AN168: 0.01355580325 | AO168: 0.01355580325 | AP168: 0.01355580325 | AQ168: 0.01355580325 | AR168: 0.01355580325 | AS168: 0.01355580325 | AT168: 0.01355580325 | AU168: 0.01355580325 | AV168: 0 | AW168: 0 | AX168: 0 | AY168: 0 | AZ168: 0 | BA168: 0 | BB168: 0 | BC168: 0 | BD168: 0
A169: =ROW() -> 169 | B169: Equity Raising Cost
A170: =ROW() -> 170 | B170: Non-depreciable assets
A171: =ROW() -> 171 | B171: Total | G171: 0 | H171: 0 | I171: 0 | J171: 0 | K171: 0.03961349883 | L171: 0.03961349883 | M171: 0.03961349883 | N171: 0.03961349883 | O171: 0.03961349883 | P171: 0.03961349883 | Q171: 0.03961349883 | R171: 0.03961349883 | S171: 0.03961349883 | T171: 0.03961349883 | U171: 0.03961349883 | V171: 0.03961349883 | W171: 0.03961349883 | X171: 0.03961349883 | Y171: 0.03961349883 | Z171: 0.03961349883 | AA171: 0.03961349883 | AB171: 0.03961349883 | AC171: 0.03961349883 | AD171: 0.03961349883 | AE171: 0.03961349883 | AF171: 0.03961349883 | AG171: 0.03961349883 | AH171: 0.03961349883 | AI171: 0.03961349883 | AJ171: 0.03961349883 | AK171: 0.03961349883 | AL171: 0.03961349883 | AM171: 0.03961349883 | AN171: 0.03961349883 | AO171: 0.03961349883 | AP171: 0.03961349883 | AQ171: 0.03961349883 | AR171: 0.03961349883 | AS171: 0.03961349883 | AT171: 0.03961349883 | AU171: 0.0419418705 | AV171: 0.02559202125 | AW171: 0.02559202125 | AX171: 0.02559202125 | AY171: 0.02559202125 | AZ171: 0.06805348207 | BA171: 0.06805348207 | BB171: 0.06805348207 | BC171: 0.06805348207 | BD171: 0.06805348207
A172: =ROW() -> 172 | B172: 2001-03-31 | C172: Capex
A173: =ROW() -> 173 | B173: Pipeline and laterals | L173: 0 | M173: 0 | N173: 0 | O173: 0 | P173: 0 | Q173: 0 | R173: 0 | S173: 0 | T173: 0 | U173: 0 | V173: 0 | W173: 0 | X173: 0 | Y173: 0 | Z173: 0 | AA173: 0 | AB173: 0 | AC173: 0 | AD173: 0 | AE173: 0 | AF173: 0 | AG173: 0 | AH173: 0 | AI173: 0 | AJ173: 0 | AK173: 0 | AL173: 0 | AM173: 0 | AN173: 0 | AO173: 0 | AP173: 0 | AQ173: 0 | AR173: 0 | AS173: 0 | AT173: 0 | AU173: 0 | AV173: 0 | AW173: 0 | AX173: 0 | AY173: 0 | AZ173: 0 | BA173: 0 | BB173: 0 | BC173: 0 | BD173: 0
A174: =ROW() -> 174 | B174: Main line valve and scraper stations | L174: 0 | M174: 0 | N174: 0 | O174: 0 | P174: 0 | Q174: 0 | R174: 0 | S174: 0 | T174: 0 | U174: 0 | V174: 0 | W174: 0 | X174: 0 | Y174: 0 | Z174: 0 | AA174: 0 | AB174: 0 | AC174: 0 | AD174: 0 | AE174: 0 | AF174: 0 | AG174: 0 | AH174: 0 | AI174: 0 | AJ174: 0 | AK174: 0 | AL174: 0 | AM174: 0 | AN174: 0 | AO174: 0 | AP174: 0 | AQ174: 0 | AR174: 0 | AS174: 0 | AT174: 0 | AU174: 0 | AV174: 0 | AW174: 0 | AX174: 0 | AY174: 0 | AZ174: 0 | BA174: 0 | BB174: 0 | BC174: 0 | BD174: 0
A175: =ROW() -> 175 | B175: Compressor stations | L175: 0.06722260475 | M175: 0.06722260475 | N175: 0.06722260475 | O175: 0.06722260475 | P175: 0.06722260475 | Q175: 0.06722260475 | R175: 0.06722260475 | S175: 0.06722260475 | T175: 0.06722260475 | U175: 0.06722260475 | V175: 0.06722260475 | W175: 0.06722260475 | X175: 0.06722260475 | Y175: 0.06722260475 | Z175: 0.06722260475 | AA175: 0.06722260475 | AB175: 0.06722260475 | AC175: 0.06722260475 | AD175: 0.06722260475 | AE175: 0.06722260475 | AF175: 0.06722260475 | AG175: 0.06722260475 | AH175: 0.06722260475 | AI175: 0.06722260475 | AJ175: 0.06722260475 | AK175: 0.06722260475 | AL175: 0.06722260475 | AM175: 0.06722260475 | AN175: 0.06722260475 | AO175: 0.06722260475 | AP175: 0.06722260475 | AQ175: 0.06722260475 | AR175: 0.06722260475 | AS175: 0.06722260475 | AT175: 0.06722260475 | AU175: 0.06722260475 | AV175: 0.06722260475 | AW175: 0.06722260475 | AX175: 0.06722260475 | AY175: 0.06722260475 | AZ175: 0.06722260475 | BA175: 0.06722260475 | BB175: 0.06722260475 | BC175: 0.06722260475 | BD175: 0.06722260475
A176: =ROW() -> 176 | B176: Receipt and delivery point facilities | L176: 0.0008095364167 | M176: 0.0008095364167 | N176: 0.0008095364167 | O176: 0.0008095364167 | P176: 0.0008095364167 | Q176: 0.0008095364167 | R176: 0.0008095364167 | S176: 0.0008095364167 | T176: 0.0008095364167 | U176: 0.0008095364167 | V176: 0.0008095364167 | W176: 0.0008095364167 | X176: 0.0008095364167 | Y176: 0.0008095364167 | Z176: 0.0008095364167 | AA176: 0.0008095364167 | AB176: 0.0008095364167 | AC176: 0.0008095364167 | AD176: 0.0008095364167 | AE176: 0.0008095364167 | AF176: 0.0008095364167 | AG176: 0.0008095364167 | AH176: 0.0008095364167 | AI176: 0.0008095364167 | AJ176: 0.0008095364167 | AK176: 0.0008095364167 | AL176: 0.0008095364167 | AM176: 0.0008095364167 | AN176: 0.0008095364167 | AO176: 0.0008095364167 | AP176: 0.0008095364167 | AQ176: 0.0008095364167 | AR176: 0.0008095364167 | AS176: 0.0008095364167 | AT176: 0.0008095364167 | AU176: 0.0008095364167 | AV176: 0.0008095364167 | AW176: 0.0008095364167 | AX176: 0.0008095364167 | AY176: 0.0008095364167 | AZ176: 0.0008095364167 | BA176: 0.0008095364167 | BB176: 0.0008095364167 | BC176: 0.0008095364167 | BD176: 0.0008095364167
A177: =ROW() -> 177 | B177: SCADA and communications | L177: 8.63725e-05 | M177: 8.63725e-05 | N177: 8.63725e-05 | O177: 8.63725e-05 | P177: 8.63725e-05 | Q177: 8.63725e-05 | R177: 8.63725e-05 | S177: 8.63725e-05 | T177: 8.63725e-05 | U177: 8.63725e-05 | V177: 8.63725e-05 | W177: 8.63725e-05 | X177: 8.63725e-05 | Y177: 8.63725e-05 | Z177: 8.63725e-05 | AA177: 8.63725e-05 | AB177: 8.63725e-05 | AC177: 8.63725e-05 | AD177: 8.63725e-05 | AE177: 8.63725e-05 | AF177: 8.63725e-05 | AG177: 8.63725e-05 | AH177: 8.63725e-05 | AI177: 8.63725e-05 | AJ177: 8.63725e-05 | AK177: 8.63725e-05 | AL177: 8.63725e-05 | AM177: 8.63725e-05 | AN177: 8.63725e-05 | AO177: 8.63725e-05 | AP177: 8.63725e-05 | AQ177: 8.63725e-05 | AR177: 8.63725e-05 | AS177: 8.63725e-05 | AT177: 8.63725e-05 | AU177: 0.0004318625 | AV177: 0.000107965625 | AW177: 0 | AX177: 0 | AY177: 0 | AZ177: 0 | BA177: 0 | BB177: 0 | BC177: 0 | BD177: 0
A178: =ROW() -> 178 | B178: Cathodic protection | L178: 0 | M178: 0 | N178: 0 | O178: 0 | P178: 0 | Q178: 0 | R178: 0 | S178: 0 | T178: 0 | U178: 0 | V178: 0 | W178: 0 | X178: 0 | Y178: 0 | Z178: 0 | AA178: 0 | AB178: 0 | AC178: 0 | AD178: 0 | AE178: 0 | AF178: 0 | AG178: 0 | AH178: 0 | AI178: 0 | AJ178: 0 | AK178: 0 | AL178: 0 | AM178: 0 | AN178: 0 | AO178: 0 | AP178: 0 | AQ178: 0 | AR178: 0 | AS178: 0 | AT178: 0 | AU178: 0 | AV178: 0 | AW178: 0 | AX178: 0 | AY178: 0 | AZ178: 0 | BA178: 0 | BB178: 0 | BC178: 0 | BD178: 0
A179: =ROW() -> 179 | B179: Maintenance bases and depots | L179: 2.13409e-05 | M179: 2.13409e-05 | N179: 2.13409e-05 | O179: 2.13409e-05 | P179: 2.13409e-05 | Q179: 2.13409e-05 | R179: 2.13409e-05 | S179: 2.13409e-05 | T179: 2.13409e-05 | U179: 2.13409e-05 | V179: 2.13409e-05 | W179: 2.13409e-05 | X179: 2.13409e-05 | Y179: 2.13409e-05 | Z179: 2.13409e-05 | AA179: 2.13409e-05 | AB179: 2.13409e-05 | AC179: 2.13409e-05 | AD179: 2.13409e-05 | AE179: 2.13409e-05 | AF179: 2.13409e-05 | AG179: 2.13409e-05 | AH179: 2.13409e-05 | AI179: 2.13409e-05 | AJ179: 2.13409e-05 | AK179: 2.13409e-05 | AL179: 2.13409e-05 | AM179: 2.13409e-05 | AN179: 2.13409e-05 | AO179: 2.13409e-05 | AP179: 2.13409e-05 | AQ179: 2.13409e-05 | AR179: 2.13409e-05 | AS179: 2.13409e-05 | AT179: 2.13409e-05 | AU179: 2.13409e-05 | AV179: 2.13409e-05 | AW179: 2.13409e-05 | AX179: 2.13409e-05 | AY179: 2.13409e-05 | AZ179: 2.13409e-05 | BA179: 2.13409e-05 | BB179: 2.13409e-05 | BC179: 2.13409e-05 | BD179: 2.13409e-05
A180: =ROW() -> 180 | B180: Other assets | L180: 0.00545215825 | M180: 0.00545215825 | N180: 0.00545215825 | O180: 0.00545215825 | P180: 0.00545215825 | Q180: 0.00545215825 | R180: 0.00545215825 | S180: 0.00545215825 | T180: 0.00545215825 | U180: 0.00545215825 | V180: 0.00545215825 | W180: 0.00545215825 | X180: 0.00545215825 | Y180: 0.00545215825 | Z180: 0.00545215825 | AA180: 0.00545215825 | AB180: 0.00545215825 | AC180: 0.00545215825 | AD180: 0.00545215825 | AE180: 0.00545215825 | AF180: 0.00545215825 | AG180: 0.00545215825 | AH180: 0.00545215825 | AI180: 0.00545215825 | AJ180: 0.00545215825 | AK180: 0.00545215825 | AL180: 0.00545215825 | AM180: 0.00545215825 | AN180: 0.00545215825 | AO180: 0.00545215825 | AP180: 0.00545215825 | AQ180: 0.00545215825 | AR180: 0.00545215825 | AS180: 0.00545215825 | AT180: 0.00545215825 | AU180: 0.00545215825 | AV180: 0.001363039562 | AW180: 0 | AX180: 0 | AY180: 0 | AZ180: 0 | BA180: 0 | BB180: 0 | BC180: 0 | BD180: 0
A181: =ROW() -> 181 | B181: Equity Raising Cost
A182: =ROW() -> 182 | B182: Non-depreciable assets
A183: =ROW() -> 183 | B183: Total | G183: 0 | H183: 0 | I183: 0 | J183: 0 | K183: 0 | L183: 0.07359201282 | M183: 0.07359201282 | N183: 0.07359201282 | O183: 0.07359201282 | P183: 0.07359201282 | Q183: 0.07359201282 | R183: 0.07359201282 | S183: 0.07359201282 | T183: 0.07359201282 | U183: 0.07359201282 | V183: 0.07359201282 | W183: 0.07359201282 | X183: 0.07359201282 | Y183: 0.07359201282 | Z183: 0.07359201282 | AA183: 0.07359201282 | AB183: 0.07359201282 | AC183: 0.07359201282 | AD183: 0.07359201282 | AE183: 0.07359201282 | AF183: 0.07359201282 | AG183: 0.07359201282 | AH183: 0.07359201282 | AI183: 0.07359201282 | AJ183: 0.07359201282 | AK183: 0.07359201282 | AL183: 0.07359201282 | AM183: 0.07359201282 | AN183: 0.07359201282 | AO183: 0.07359201282 | AP183: 0.07359201282 | AQ183: 0.07359201282 | AR183: 0.07359201282 | AS183: 0.07359201282 | AT183: 0.07359201282 | AU183: 0.07393750282 | AV183: 0.06952448725 | AW183: 0.06805348207 | AX183: 0.06805348207 | AY183: 0.06805348207 | AZ183: 0.06805348207 | BA183: 0.06805348207 | BB183: 0.06805348207 | BC183: 0.06805348207 | BD183: 0.06805348207
A184: =ROW() -> 184 | B184: 2001-06-30 | C184: Capex
A185: =ROW() -> 185 | B185: Pipeline and laterals | M185: 0 | N185: 0 | O185: 0 | P185: 0 | Q185: 0 | R185: 0 | S185: 0 | T185: 0 | U185: 0 | V185: 0 | W185: 0 | X185: 0 | Y185: 0 | Z185: 0 | AA185: 0 | AB185: 0 | AC185: 0 | AD185: 0 | AE185: 0 | AF185: 0 | AG185: 0 | AH185: 0 | AI185: 0 | AJ185: 0 | AK185: 0 | AL185: 0 | AM185: 0 | AN185: 0 | AO185: 0 | AP185: 0 | AQ185: 0 | AR185: 0 | AS185: 0 | AT185: 0 | AU185: 0 | AV185: 0 | AW185: 0 | AX185: 0 | AY185: 0 | AZ185: 0 | BA185: 0 | BB185: 0 | BC185: 0 | BD185: 0
A186: =ROW() -> 186 | B186: Main line valve and scraper stations | M186: 0 | N186: 0 | O186: 0 | P186: 0 | Q186: 0 | R186: 0 | S186: 0 | T186: 0 | U186: 0 | V186: 0 | W186: 0 | X186: 0 | Y186: 0 | Z186: 0 | AA186: 0 | AB186: 0 | AC186: 0 | AD186: 0 | AE186: 0 | AF186: 0 | AG186: 0 | AH186: 0 | AI186: 0 | AJ186: 0 | AK186: 0 | AL186: 0 | AM186: 0 | AN186: 0 | AO186: 0 | AP186: 0 | AQ186: 0 | AR186: 0 | AS186: 0 | AT186: 0 | AU186: 0 | AV186: 0 | AW186: 0 | AX186: 0 | AY186: 0 | AZ186: 0 | BA186: 0 | BB186: 0 | BC186: 0 | BD186: 0
A187: =ROW() -> 187 | B187: Compressor stations | M187: 0.06722260475 | N187: 0.06722260475 | O187: 0.06722260475 | P187: 0.06722260475 | Q187: 0.06722260475 | R187: 0.06722260475 | S187: 0.06722260475 | T187: 0.06722260475 | U187: 0.06722260475 | V187: 0.06722260475 | W187: 0.06722260475 | X187: 0.06722260475 | Y187: 0.06722260475 | Z187: 0.06722260475 | AA187: 0.06722260475 | AB187: 0.06722260475 | AC187: 0.06722260475 | AD187: 0.06722260475 | AE187: 0.06722260475 | AF187: 0.06722260475 | AG187: 0.06722260475 | AH187: 0.06722260475 | AI187: 0.06722260475 | AJ187: 0.06722260475 | AK187: 0.06722260475 | AL187: 0.06722260475 | AM187: 0.06722260475 | AN187: 0.06722260475 | AO187: 0.06722260475 | AP187: 0.06722260475 | AQ187: 0.06722260475 | AR187: 0.06722260475 | AS187: 0.06722260475 | AT187: 0.06722260475 | AU187: 0.06722260475 | AV187: 0.06722260475 | AW187: 0.06722260475 | AX187: 0.06722260475 | AY187: 0.06722260475 | AZ187: 0.06722260475 | BA187: 0.06722260475 | BB187: 0.06722260475 | BC187: 0.06722260475 | BD187: 0.06722260475
A188: =ROW() -> 188 | B188: Receipt and delivery point facilities | M188: 0.0008095364167 | N188: 0.0008095364167 | O188: 0.0008095364167 | P188: 0.0008095364167 | Q188: 0.0008095364167 | R188: 0.0008095364167 | S188: 0.0008095364167 | T188: 0.0008095364167 | U188: 0.0008095364167 | V188: 0.0008095364167 | W188: 0.0008095364167 | X188: 0.0008095364167 | Y188: 0.0008095364167 | Z188: 0.0008095364167 | AA188: 0.0008095364167 | AB188: 0.0008095364167 | AC188: 0.0008095364167 | AD188: 0.0008095364167 | AE188: 0.0008095364167 | AF188: 0.0008095364167 | AG188: 0.0008095364167 | AH188: 0.0008095364167 | AI188: 0.0008095364167 | AJ188: 0.0008095364167 | AK188: 0.0008095364167 | AL188: 0.0008095364167 | AM188: 0.0008095364167 | AN188: 0.0008095364167 | AO188: 0.0008095364167 | AP188: 0.0008095364167 | AQ188: 0.0008095364167 | AR188: 0.0008095364167 | AS188: 0.0008095364167 | AT188: 0.0008095364167 | AU188: 0.0008095364167 | AV188: 0.0008095364167 | AW188: 0.0008095364167 | AX188: 0.0008095364167 | AY188: 0.0008095364167 | AZ188: 0.0008095364167 | BA188: 0.0008095364167 | BB188: 0.0008095364167 | BC188: 0.0008095364167 | BD188: 0.0008095364167
A189: =ROW() -> 189 | B189: SCADA and communications | M189: 8.63725e-05 | N189: 8.63725e-05 | O189: 8.63725e-05 | P189: 8.63725e-05 | Q189: 8.63725e-05 | R189: 8.63725e-05 | S189: 8.63725e-05 | T189: 8.63725e-05 | U189: 8.63725e-05 | V189: 8.63725e-05 | W189: 8.63725e-05 | X189: 8.63725e-05 | Y189: 8.63725e-05 | Z189: 8.63725e-05 | AA189: 8.63725e-05 | AB189: 8.63725e-05 | AC189: 8.63725e-05 | AD189: 8.63725e-05 | AE189: 8.63725e-05 | AF189: 8.63725e-05 | AG189: 8.63725e-05 | AH189: 8.63725e-05 | AI189: 8.63725e-05 | AJ189: 8.63725e-05 | AK189: 8.63725e-05 | AL189: 8.63725e-05 | AM189: 8.63725e-05 | AN189: 8.63725e-05 | AO189: 8.63725e-05 | AP189: 8.63725e-05 | AQ189: 8.63725e-05 | AR189: 8.63725e-05 | AS189: 8.63725e-05 | AT189: 8.63725e-05 | AU189: 0.0003742808333 | AV189: 0.0001871404167 | AW189: 0 | AX189: 0 | AY189: 0 | AZ189: 0 | BA189: 0 | BB189: 0 | BC189: 0 | BD189: 0
A190: =ROW() -> 190 | B190: Cathodic protection | M190: 0 | N190: 0 | O190: 0 | P190: 0 | Q190: 0 | R190: 0 | S190: 0 | T190: 0 | U190: 0 | V190: 0 | W190: 0 | X190: 0 | Y190: 0 | Z190: 0 | AA190: 0 | AB190: 0 | AC190: 0 | AD190: 0 | AE190: 0 | AF190: 0 | AG190: 0 | AH190: 0 | AI190: 0 | AJ190: 0 | AK190: 0 | AL190: 0 | AM190: 0 | AN190: 0 | AO190: 0 | AP190: 0 | AQ190: 0 | AR190: 0 | AS190: 0 | AT190: 0 | AU190: 0 | AV190: 0 | AW190: 0 | AX190: 0 | AY190: 0 | AZ190: 0 | BA190: 0 | BB190: 0 | BC190: 0 | BD190: 0
A191: =ROW() -> 191 | B191: Maintenance bases and depots | M191: 2.13409e-05 | N191: 2.13409e-05 | O191: 2.13409e-05 | P191: 2.13409e-05 | Q191: 2.13409e-05 | R191: 2.13409e-05 | S191: 2.13409e-05 | T191: 2.13409e-05 | U191: 2.13409e-05 | V191: 2.13409e-05 | W191: 2.13409e-05 | X191: 2.13409e-05 | Y191: 2.13409e-05 | Z191: 2.13409e-05 | AA191: 2.13409e-05 | AB191: 2.13409e-05 | AC191: 2.13409e-05 | AD191: 2.13409e-05 | AE191: 2.13409e-05 | AF191: 2.13409e-05 | AG191: 2.13409e-05 | AH191: 2.13409e-05 | AI191: 2.13409e-05 | AJ191: 2.13409e-05 | AK191: 2.13409e-05 | AL191: 2.13409e-05 | AM191: 2.13409e-05 | AN191: 2.13409e-05 | AO191: 2.13409e-05 | AP191: 2.13409e-05 | AQ191: 2.13409e-05 | AR191: 2.13409e-05 | AS191: 2.13409e-05 | AT191: 2.13409e-05 | AU191: 2.13409e-05 | AV191: 2.13409e-05 | AW191: 2.13409e-05 | AX191: 2.13409e-05 | AY191: 2.13409e-05 | AZ191: 2.13409e-05 | BA191: 2.13409e-05 | BB191: 2.13409e-05 | BC191: 2.13409e-05 | BD191: 2.13409e-05
A192: =ROW() -> 192 | B192: Other assets | M192: 0.00545215825 | N192: 0.00545215825 | O192: 0.00545215825 | P192: 0.00545215825 | Q192: 0.00545215825 | R192: 0.00545215825 | S192: 0.00545215825 | T192: 0.00545215825 | U192: 0.00545215825 | V192: 0.00545215825 | W192: 0.00545215825 | X192: 0.00545215825 | Y192: 0.00545215825 | Z192: 0.00545215825 | AA192: 0.00545215825 | AB192: 0.00545215825 | AC192: 0.00545215825 | AD192: 0.00545215825 | AE192: 0.00545215825 | AF192: 0.00545215825 | AG192: 0.00545215825 | AH192: 0.00545215825 | AI192: 0.00545215825 | AJ192: 0.00545215825 | AK192: 0.00545215825 | AL192: 0.00545215825 | AM192: 0.00545215825 | AN192: 0.00545215825 | AO192: 0.00545215825 | AP192: 0.00545215825 | AQ192: 0.00545215825 | AR192: 0.00545215825 | AS192: 0.00545215825 | AT192: 0.00545215825 | AU192: 0.00545215825 | AV192: 0.002726079125 | AW192: 0 | AX192: 0 | AY192: 0 | AZ192: 0 | BA192: 0 | BB192: 0 | BC192: 0 | BD192: 0
A193: =ROW() -> 193 | B193: Equity Raising Cost
A194: =ROW() -> 194 | B194: Non-depreciable assets
A195: =ROW() -> 195 | B195: Total | G195: 0 | H195: 0 | I195: 0 | J195: 0 | K195: 0 | L195: 0 | M195: 0.07359201282 | N195: 0.07359201282 | O195: 0.07359201282 | P195: 0.07359201282 | Q195: 0.07359201282 | R195: 0.07359201282 | S195: 0.07359201282 | T195: 0.07359201282 | U195: 0.07359201282 | V195: 0.07359201282 | W195: 0.07359201282 | X195: 0.07359201282 | Y195: 0.07359201282 | Z195: 0.07359201282 | AA195: 0.07359201282 | AB195: 0.07359201282 | AC195: 0.07359201282 | AD195: 0.07359201282 | AE195: 0.07359201282 | AF195: 0.07359201282 | AG195: 0.07359201282 | AH195: 0.07359201282 | AI195: 0.07359201282 | AJ195: 0.07359201282 | AK195: 0.07359201282 | AL195: 0.07359201282 | AM195: 0.07359201282 | AN195: 0.07359201282 | AO195: 0.07359201282 | AP195: 0.07359201282 | AQ195: 0.07359201282 | AR195: 0.07359201282 | AS195: 0.07359201282 | AT195: 0.07359201282 | AU195: 0.07387992115 | AV195: 0.07096670161 | AW195: 0.06805348207 | AX195: 0.06805348207 | AY195: 0.06805348207 | AZ195: 0.06805348207 | BA195: 0.06805348207 | BB195: 0.06805348207 | BC195: 0.06805348207 | BD195: 0.06805348207
A196: =ROW() -> 196 | B196: 2001-09-30 | C196: Capex
A197: =ROW() -> 197 | B197: Pipeline and laterals | N197: 0 | O197: 0 | P197: 0 | Q197: 0 | R197: 0 | S197: 0 | T197: 0 | U197: 0 | V197: 0 | W197: 0 | X197: 0 | Y197: 0 | Z197: 0 | AA197: 0 | AB197: 0 | AC197: 0 | AD197: 0 | AE197: 0 | AF197: 0 | AG197: 0 | AH197: 0 | AI197: 0 | AJ197: 0 | AK197: 0 | AL197: 0 | AM197: 0 | AN197: 0 | AO197: 0 | AP197: 0 | AQ197: 0 | AR197: 0 | AS197: 0 | AT197: 0 | AU197: 0 | AV197: 0 | AW197: 0 | AX197: 0 | AY197: 0 | AZ197: 0 | BA197: 0 | BB197: 0 | BC197: 0 | BD197: 0
A198: =ROW() -> 198 | B198: Main line valve and scraper stations | N198: 0 | O198: 0 | P198: 0 | Q198: 0 | R198: 0 | S198: 0 | T198: 0 | U198: 0 | V198: 0 | W198: 0 | X198: 0 | Y198: 0 | Z198: 0 | AA198: 0 | AB198: 0 | AC198: 0 | AD198: 0 | AE198: 0 | AF198: 0 | AG198: 0 | AH198: 0 | AI198: 0 | AJ198: 0 | AK198: 0 | AL198: 0 | AM198: 0 | AN198: 0 | AO198: 0 | AP198: 0 | AQ198: 0 | AR198: 0 | AS198: 0 | AT198: 0 | AU198: 0 | AV198: 0 | AW198: 0 | AX198: 0 | AY198: 0 | AZ198: 0 | BA198: 0 | BB198: 0 | BC198: 0 | BD198: 0
A199: =ROW() -> 199 | B199: Compressor stations | N199: 0.06722260475 | O199: 0.06722260475 | P199: 0.06722260475 | Q199: 0.06722260475 | R199: 0.06722260475 | S199: 0.06722260475 | T199: 0.06722260475 | U199: 0.06722260475 | V199: 0.06722260475 | W199: 0.06722260475 | X199: 0.06722260475 | Y199: 0.06722260475 | Z199: 0.06722260475 | AA199: 0.06722260475 | AB199: 0.06722260475 | AC199: 0.06722260475 | AD199: 0.06722260475 | AE199: 0.06722260475 | AF199: 0.06722260475 | AG199: 0.06722260475 | AH199: 0.06722260475 | AI199: 0.06722260475 | AJ199: 0.06722260475 | AK199: 0.06722260475 | AL199: 0.06722260475 | AM199: 0.06722260475 | AN199: 0.06722260475 | AO199: 0.06722260475 | AP199: 0.06722260475 | AQ199: 0.06722260475 | AR199: 0.06722260475 | AS199: 0.06722260475 | AT199: 0.06722260475 | AU199: 0.06722260475 | AV199: 0.06722260475 | AW199: 0.06722260475 | AX199: 0.06722260475 | AY199: 0.06722260475 | AZ199: 0.06722260475 | BA199: 0.06722260475 | BB199: 0.06722260475 | BC199: 0.06722260475 | BD199: 0.06722260475
A200: =ROW() -> 200 | B200: Receipt and delivery point facilities | N200: 0.0008095364167 | O200: 0.0008095364167 | P200: 0.0008095364167 | Q200: 0.0008095364167 | R200: 0.0008095364167 | S200: 0.0008095364167 | T200: 0.0008095364167 | U200: 0.0008095364167 | V200: 0.0008095364167 | W200: 0.0008095364167 | X200: 0.0008095364167 | Y200: 0.0008095364167 | Z200: 0.0008095364167 | AA200: 0.0008095364167 | AB200: 0.0008095364167 | AC200: 0.0008095364167 | AD200: 0.0008095364167 | AE200: 0.0008095364167 | AF200: 0.0008095364167 | AG200: 0.0008095364167 | AH200: 0.0008095364167 | AI200: 0.0008095364167 | AJ200: 0.0008095364167 | AK200: 0.0008095364167 | AL200: 0.0008095364167 | AM200: 0.0008095364167 | AN200: 0.0008095364167 | AO200: 0.0008095364167 | AP200: 0.0008095364167 | AQ200: 0.0008095364167 | AR200: 0.0008095364167 | AS200: 0.0008095364167 | AT200: 0.0008095364167 | AU200: 0.0008095364167 | AV200: 0.0008095364167 | AW200: 0.0008095364167 | AX200: 0.0008095364167 | AY200: 0.0008095364167 | AZ200: 0.0008095364167 | BA200: 0.0008095364167 | BB200: 0.0008095364167 | BC200: 0.0008095364167 | BD200: 0.0008095364167
... 1170 more rows

Sheet Adjustments
B1: =Main!B1 -> ERA, GGT Tariff Model, July 2019 [Draft Decision]
B2: Adjustments
A3: Ref | B3: =COLUMN() -> 2 | C3: =COLUMN() -> 3 | D3: =COLUMN() -> 4 | E3: =COLUMN() -> 5 | F3: =COLUMN() -> 6 | G3: =COLUMN() -> 7 | H3: =COLUMN() -> 8 | I3: =COLUMN() -> 9 | J3: =COLUMN() -> 10 | K3: =COLUMN() -> 11 | L3: =COLUMN() -> 12 | M3: =COLUMN() -> 13 | N3: =COLUMN() -> 14 | O3: =COLUMN() -> 15 | P3: =COLUMN() -> 16 | Q3: =COLUMN() -> 17 | R3: =COLUMN() -> 18 | S3: =COLUMN() -> 19 | T3: =COLUMN() -> 20 | U3: =COLUMN() -> 21 | V3: =COLUMN() -> 22 | W3: =COLUMN() -> 23 | X3: =COLUMN() -> 24 | Y3: =COLUMN() -> 25 | Z3: =COLUMN() -> 26 | AA3: =COLUMN() -> 27 | AB3: =COLUMN() -> 28 | AC3: =COLUMN() -> 29 | AD3: =COLUMN() -> 30 | AE3: =COLUMN() -> 31 | AF3: =COLUMN() -> 32 | AG3: =COLUMN() -> 33 | AH3: =COLUMN() -> 34 | AI3: =COLUMN() -> 35 | AJ3: =COLUMN() -> 36 | AK3: =COLUMN() -> 37 | AL3: =COLUMN() -> 38 | AM3: =COLUMN() -> 39 | AN3: =COLUMN() -> 40 | AO3: =COLUMN() -> 41 | AP3: =COLUMN() -> 42 | AQ3: =COLUMN() -> 43 | AR3: =COLUMN() -> 44 | AS3: =COLUMN() -> 45 | AT3: =COLUMN() -> 46 | AU3: =COLUMN() -> 47 | AV3: =COLUMN() -> 48 | AW3: =COLUMN() -> 49 | AX3: =COLUMN() -> 50 | AY3: =COLUMN() -> 51 | AZ3: =COLUMN() -> 52 | BA3: =COLUMN() -> 53 | BB3: =COLUMN() -> 54 | BC3: =COLUMN() -> 55 | BD3: =COLUMN() -> 56 | BE3: =COLUMN() -> 57 | BF3: =COLUMN() -> 58
A4: =ROW() -> 4 | B4: Actual or Forecast | C4: Actual | D4: Actual | E4: Actual | F4: Actual | G4: Actual | H4: Actual | I4: Actual | J4: Actual | K4: Actual | L4: Actual | M4: Actual | N4: Actual | O4: Actual | P4: Actual | Q4: Actual | R4: Actual | S4: Actual | T4: Actual | U4: Actual | V4: Actual | W4: Actual | X4: Actual | Y4: Actual | Z4: Actual | AA4: Actual | AB4: Actual | AC4: Actual | AD4: Actual | AE4: Actual | AF4: Actual | AG4: Actual | AH4: Actual | AI4: Actual | AJ4: Actual | AK4: Actual | AL4: Actual | AM4: Actual | AN4: Actual | AO4: Actual | AP4: Actual | AQ4: Actual | AR4: Forecast | AS4: Forecast | AT4: Forecast | AU4: Forecast | AV4: Forecast | AW4: Forecast | AX4: Forecast | AY4: Forecast | AZ4: Forecast | BA4: Forecast | BB4: Forecast | BC4: Forecast | BD4: Forecast | BE4: Forecast | BF4: Forecast
A5: =ROW() -> 5 | B5: Year Type | C5: Calendar | D5: Calendar | E5: Calendar | F5: Calendar | G5: Calendar | H5: Calendar | I5: Calendar | J5: Calendar | K5: Calendar | L5: Calendar | M5: Calendar | N5: Calendar | O5: Calendar | P5: Calendar | Q5: Calendar | R5: Calendar | S5: Calendar | T5: Calendar | U5: Calendar | V5: Calendar | W5: Calendar | X5: Calendar | Y5: Calendar | Z5: Calendar | AA5: Calendar | AB5: Calendar | AC5: Calendar | AD5: Calendar | AE5: Calendar | AF5: Calendar | AG5: Calendar | AH5: Calendar | AI5: Calendar | AJ5: Calendar | AK5: Calendar | AL5: Calendar | AM5: Calendar | AN5: Calendar | AO5: Calendar | AP5: Calendar | AQ5: Calendar | AR5: Calendar | AS5: Calendar | AT5: Calendar | AU5: Calendar | AV5: Calendar | AW5: Calendar | AX5: Calendar | AY5: Calendar | AZ5: Calendar | BA5: Calendar | BB5: Calendar | BC5: Calendar | BD5: Calendar | BE5: Calendar | BF5: Calendar
A6: =ROW() -> 6 | B6: Regulatory Period
A7: =ROW() -> 7 | B7: Start Date | C7: 1999-01-01 | D7: =C8+1 -> 2000-01-01 | E7: 2000-04-01 | F7: 2000-07-01 | G7: 2000-10-01 | H7: 2001-01-01 | I7: 2001-04-01 | J7: 2001-07-01 | K7: 2001-10-01 | L7: 2002-01-01 | M7: 2002-04-01 | N7: 2002-07-01 | O7: 2002-10-01 | P7: 2003-01-01 | Q7: 2003-04-01 | R7: 2003-07-01 | S7: 2003-10-01 | T7: 2004-01-01 | U7: 2004-04-01 | V7: 2004-07-01 | W7: 2004-10-01 | X7: 2005-01-01 | Y7: 2005-04-01 | Z7: 2005-07-01 | AA7: 2005-10-01 | AB7: 2006-01-01 | AC7: 2006-04-01 | AD7: 2006-07-01 | AE7: 2006-10-01 | AF7: 2007-01-01 | AG7: 2007-04-01 | AH7: 2007-07-01 | AI7: 2007-10-01 | AJ7: 2008-01-01 | AK7: 2008-04-01 | AL7: 2008-07-01 | AM7: 2008-10-01 | AN7: 2009-01-01 | AO7: 2009-04-01 | AP7: 2009-07-01 | AQ7: 2009-10-01 | AR7: 2010-01-01 | AS7: 2011-01-01 | AT7: 2012-01-01 | AU7: 2013-01-01 | AV7: 2014-01-01 | AW7: 2015-01-01 | AX7: 2016-01-01 | AY7: 2017-01-01 | AZ7: 2018-01-01 | BA7: 2019-01-01 | BB7: =BA8+1 -> 2020-01-01 | BC7: =BB8+1 -> 2021-01-01 | BD7: =BC8+1 -> 2022-01-01 | BE7: =BD8+1 -> 2023-01-01 | BF7: =BE8+1 -> 2024-01-01
A8: =ROW() -> 8 | B8: End Date | C8: =C7+C9-1 -> 1999-12-31 | D8: =D7+D9-1 -> 2000-03-31 | E8: 2000-06-30 | F8: 2000-09-30 | G8: 2000-12-31 | H8: 2001-03-31 | I8: 2001-06-30 | J8: 2001-09-30 | K8: 2001-12-31 | L8: 2002-03-31 | M8: 2002-06-30 | N8: =N7+N9-1 -> 2002-09-30 | O8: 2002-12-31 | P8: 2003-03-31 | Q8: 2003-06-30 | R8: 2003-09-30 | S8: 2003-12-31 | T8: 2004-03-31 | U8: 2004-06-30 | V8: 2004-09-30 | W8: 2004-12-31 | X8: 2005-03-31 | Y8: 2005-06-30 | Z8: 2005-09-30 | AA8: 2005-12-31 | AB8: 2006-03-31 | AC8: 2006-06-30 | AD8: 2006-09-30 | AE8: 2006-12-31 | AF8: 2007-03-31 | AG8: 2007-06-30 | AH8: 2007-09-30 | AI8: 2007-12-31 | AJ8: 2008-03-31 | AK8: 2008-06-30 | AL8: 2008-09-30 | AM8: 2008-12-31 | AN8: 2009-03-31 | AO8: 2009-06-30 | AP8: 2009-09-30 | AQ8: 2009-12-31 | AR8: 2010-12-31 | AS8: 2011-12-31 | AT8: 2012-12-31 | AU8: 2013-12-31 | AV8: 2014-12-31 | AW8: 2015-12-31 | AX8: 2016-12-31 | AY8: 2017-12-31 | AZ8: 2018-12-31 | BA8: 2019-12-31 | BB8: =BB7+BB9-1 -> 2020-12-31 | BC8: 2021-12-31 | BD8: 2022-12-31 | BE8: 2023-12-31 | BF8: 2024-12-31
A9: =ROW() -> 9 | B9: Days | C9: 365 | D9: 91 | E9: 91 | F9: 92 | G9: 92 | H9: 90 | I9: 91 | J9: 92 | K9: 92 | L9: 90 | M9: 91 | N9: 92 | O9: 92 | P9: 90 | Q9: 91 | R9: 92 | S9: 92 | T9: 91 | U9: 91 | V9: 92 | W9: 92 | X9: 90 | Y9: 91 | Z9: 92 | AA9: 92 | AB9: 90 | AC9: 91 | AD9: 92 | AE9: 92 | AF9: 90 | AG9: 91 | AH9: 92 | AI9: 92 | AJ9: 91 | AK9: 91 | AL9: 92 | AM9: 92 | AN9: 90 | AO9: 91 | AP9: 92 | AQ9: 92 | AR9: 365 | AS9: 365 | AT9: 366 | AU9: 365 | AV9: 365 | AW9: 365 | AX9: 366 | AY9: 365 | AZ9: 365 | BA9: 365 | BB9: 366 | BC9: 365 | BD9: 365 | BE9: 365 | BF9: 366
A10: =ROW() -> 10 | B10: Years (nearest half) | C10: =ROUND(YEARFRAC(C7,C8),2) -> 1 | D10: =ROUND(YEARFRAC(D7,D8),2) -> 0.25 | E10: =ROUND(YEARFRAC(E7,E8),2) -> 0.25 | F10: =ROUND(YEARFRAC(F7,F8),2) -> 0.25 | G10: 0.25 | H10: 0.25 | I10: 0.25 | J10: 0.25 | K10: 0.25 | L10: 0.25 | M10: 0.25 | N10: 0.25 | O10: 0.25 | P10: 0.25 | Q10: 0.25 | R10: 0.25 | S10: 0.25 | T10: 0.25 | U10: 0.25 | V10: 0.25 | W10: 0.25 | X10: 0.25 | Y10: 0.25 | Z10: 0.25 | AA10: 0.25 | AB10: 0.25 | AC10: 0.25 | AD10: 0.25 | AE10: 0.25 | AF10: 0.25 | AG10: 0.25 | AH10: 0.25 | AI10: 0.25 | AJ10: 0.25 | AK10: 0.25 | AL10: 0.25 | AM10: 0.25 | AN10: 0.25 | AO10: 0.25 | AP10: 0.25 | AQ10: 0.25 | AR10: 1 | AS10: 1 | AT10: 1 | AU10: 1 | AV10: 1 | AW10: 1 | AX10: 1 | AY10: 1 | AZ10: 1 | BA10: 1 | BB10: =ROUND(YEARFRAC(BB7,BB8),2) -> 1 | BC10: 1 | BD10: 1 | BE10: 1 | BF10: 1
A11: =ROW() -> 11 | B11: Period End CPI | D11: =Inputs!G16 -> 69.7 | E11: =Inputs!H16 -> 70.2 | F11: =Inputs!I16 -> 72.9 | G11: =Inputs!J16 -> 73.1 | H11: =Inputs!K16 -> 73.9 | I11: =Inputs!L16 -> 74.5 | J11: =Inputs!M16 -> 74.7 | K11: =Inputs!N16 -> 75.4 | L11: =Inputs!O16 -> 76.1 | M11: =Inputs!P16 -> 76.6 | N11: =Inputs!Q16 -> 77.1 | O11: =Inputs!R16 -> 77.6 | P11: =Inputs!S16 -> 78.6 | Q11: =Inputs!T16 -> 78.6 | R11: =Inputs!U16 -> 79.1 | S11: =Inputs!V16 -> 79.5 | T11: =Inputs!W16 -> 80.2 | U11: =Inputs!X16 -> 80.6 | V11: =Inputs!Y16 -> 80.9 | W11: =Inputs!Z16 -> 81.5 | X11: =Inputs!AA16 -> 82.1 | Y11: =Inputs!AB16 -> 82.6 | Z11: =Inputs!AC16 -> 83.4 | AA11: =Inputs!AD16 -> 83.8 | AB11: =Inputs!AE16 -> 84.5 | AC11: =Inputs!AF16 -> 85.9 | AD11: =Inputs!AG16 -> 86.7 | AE11: =Inputs!AH16 -> 86.6 | AF11: =Inputs!AI16 -> 86.6 | AG11: =Inputs!AJ16 -> 87.7 | AH11: =Inputs!AK16 -> 88.3 | AI11: =Inputs!AL16 -> 89.1 | AJ11: =Inputs!AM16 -> 90.3 | AK11: =Inputs!AN16 -> 91.6 | AL11: =Inputs!AO16 -> 92.7 | AM11: =Inputs!AP16 -> 92.4 | AN11: =Inputs!AQ16 -> 92.5 | AO11: =Inputs!AR16 -> 92.9 | AP11: =Inputs!AS16 -> 93.8 | AQ11: =Inputs!AT16 -> 94.3 | AR11: =Inputs!AU16 -> 96.9 | AS11: =Inputs!AV16 -> 99.8 | AT11: =Inputs!AW16 -> 102 | AU11: =Inputs!AX16 -> 104.8 | AV11: =Inputs!AY16 -> 106.6 | AW11: =Inputs!AZ16 -> 108.15636 | AX11: =Inputs!BA16 -> 109.7354429 | AY11: =Inputs!BB16 -> 111.3375803 | AZ11: =Inputs!BC16 -> 112.963109 | BA11: =Inputs!BD16 -> 114.4090368 | BB11: =Inputs!BE16 -> 115.8734725 | BC11: =Inputs!BF16 -> 117.3566529 | BD11: =Inputs!BG16 -> 118.8588181 | BE11: =Inputs!BH16 -> 120.3802109 | BF11: =Inputs!BI16 -> 121.9210776
A12: =ROW() -> 12 | B12: Period End Inflation | D12: =Inputs!G17 -> 0 | E12: =Inputs!H17 -> 0.007173601148 | F12: =Inputs!I17 -> 0.03846153846 | G12: =Inputs!J17 -> 0.002743484225 | H12: =Inputs!K17 -> 0.01094391245 | I12: =Inputs!L17 -> 0.008119079838 | J12: =Inputs!M17 -> 0.002684563758 | K12: =Inputs!N17 -> 0.0093708166 | L12: =Inputs!O17 -> 0.009283819629 | M12: =Inputs!P17 -> 0.006570302234 | N12: =Inputs!Q17 -> 0.006527415144 | O12: =Inputs!R17 -> 0.006485084306 | P12: =Inputs!S17 -> 0.01288659794 | Q12: =Inputs!T17 -> 0 | R12: =Inputs!U17 -> 0.006361323155 | S12: =Inputs!V17 -> 0.005056890013 | T12: =Inputs!W17 -> 0.008805031447 | U12: =Inputs!X17 -> 0.004987531172 | V12: =Inputs!Y17 -> 0.003722084367 | W12: =Inputs!Z17 -> 0.007416563659 | X12: =Inputs!AA17 -> 0.00736196319 | Y12: =Inputs!AB17 -> 0.006090133983 | Z12: =Inputs!AC17 -> 0.009685230024 | AA12: =Inputs!AD17 -> 0.00479616307 | AB12: =Inputs!AE17 -> 0.008353221957 | AC12: =Inputs!AF17 -> 0.01656804734 | AD12: =Inputs!AG17 -> 0.009313154831 | AE12: =Inputs!AH17 -> -0.001153402537 | AF12: =Inputs!AI17 -> 0 | AG12: =Inputs!AJ17 -> 0.01270207852 | AH12: =Inputs!AK17 -> 0.006841505131 | AI12: =Inputs!AL17 -> 0.00906002265 | AJ12: =Inputs!AM17 -> 0.01346801347 | AK12: =Inputs!AN17 -> 0.01439645626 | AL12: =Inputs!AO17 -> 0.01200873362 | AM12: =Inputs!AP17 -> -0.003236245955 | AN12: =Inputs!AQ17 -> 0.001082251082 | AO12: =Inputs!AR17 -> 0.004324324324 | AP12: =Inputs!AS17 -> 0.009687836383 | AQ12: =Inputs!AT17 -> 0.005330490405 | AR12: =Inputs!AU17 -> 0.02757158006 | AS12: =Inputs!AV17 -> 0.02992776058 | AT12: =Inputs!AW17 -> 0.02204408818 | AU12: =Inputs!AX17 -> 0.02745098039 | AV12: =Inputs!AY17 -> 0.01717557252 | AW12: =Inputs!AZ17 -> 0.0146 | AX12: =Inputs!BA17 -> 0.0146 | AY12: =Inputs!BB17 -> 0.0146 | AZ12: =Inputs!BC17 -> 0.0146 | BA12: =Inputs!BD17 -> 0.0128 | BB12: =Inputs!BE17 -> 0.0128 | BC12: =Inputs!BF17 -> 0.0128 | BD12: =Inputs!BG17 -> 0.0128 | BE12: =Inputs!BH17 -> 0.0128 | BF12: =Inputs!BI17 -> 0.0128
A13: =ROW() -> 13
A14: =ROW() -> 14 | B14: ="Inflation Factor (convert to real $ "&C14&")" -> Inflation Factor (convert to real $ 31/12/2018) | C14: =Inputs!$D$19 -> 31/12/2018 | AW14: =Inputs!AZ19 -> 1.044442592 | AX14: =Inputs!BA19 -> 1.02941316 | AY14: =Inputs!BB19 -> 1.0146 | AZ14: =Inputs!BC19 -> 1 | BA14: =Inputs!BD19 -> 0.9873617694 | BB14: =Inputs!BE19 -> 0.9748832636 | BC14: =Inputs!BF19 -> 0.962562464 | BD14: =Inputs!BG19 -> 0.9503973776 | BE14: =Inputs!BH19 -> 0.9383860363 | BF14: =Inputs!BI19 -> 0.9265264972
A15: =ROW() -> 15
A16: =ROW() -> 16 | B16: ="Opex Cost Pass Through ($m)" -> Opex Cost Pass Through ($m) | D16: $OD | E16: $OD | F16: $OD | G16: $OD | H16: $OD | I16: $OD | J16: $OD | K16: $OD | L16: $OD | M16: $OD | N16: $OD | O16: $OD | P16: $OD | Q16: $OD | R16: $OD | S16: $OD | T16: $OD | U16: $OD | V16: $OD | W16: $OD | X16: $OD | Y16: $OD | Z16: $OD | AA16: $OD | AB16: $OD | AC16: $OD | AD16: $OD | AE16: $OD | AF16: $OD | AG16: $OD | AH16: $OD | AI16: $OD | AJ16: $OD | AK16: $OD | AL16: $OD | AM16: $OD | AN16: $OD | AO16: $OD | AP16: $OD | AQ16: $OD | AR16: $OD | AS16: $OD | AT16: $OD | AU16: $OD | AV16: $OD | AW16: $OD | AX16: $OD | AY16: $OD | AZ16: $OD | BA16: $OD | BB16: $OD | BC16: $OD | BD16: $OD | BE16: $OD | BF16: $OD
A17: =ROW() -> 17 | B17: Cost Pass Through
A18: =ROW() -> 18 | B18: Totals | D18: =D17 -> 0 | E18: 0 | F18: 0 | G18: 0 | H18: 0 | I18: 0 | J18: 0 | K18: 0 | L18: 0 | M18: 0 | N18: 0 | O18: 0 | P18: 0 | Q18: 0 | R18: 0 | S18: 0 | T18: 0 | U18: 0 | V18: 0 | W18: 0 | X18: 0 | Y18: 0 | Z18: 0 | AA18: 0 | AB18: 0 | AC18: 0 | AD18: 0 | AE18: 0 | AF18: 0 | AG18: 0 | AH18: 0 | AI18: 0 | AJ18: 0 | AK18: 0 | AL18: 0 | AM18: 0 | AN18: 0 | AO18: 0 | AP18: 0 | AQ18: 0 | AR18: 0 | AS18: 0 | AT18: 0 | AU18: 0 | AV18: 0 | AW18: 0 | AX18: 0 | AY18: 0 | AZ18: 0 | BA18: =BA17 -> 0 | BB18: =BB17 -> 0 | BC18: 0 | BD18: 0 | BE18: 0 | BF18: 0
A19: =ROW() -> 19 | B19: ="ICB Adjustment ($m)" -> ICB Adjustment ($m) | D19: $OD | E19: $OD | F19: $OD | G19: $OD | H19: $OD | I19: $OD | J19: $OD | K19: $OD | L19: $OD | M19: $OD | N19: $OD | O19: $OD | P19: $OD | Q19: $OD | R19: $OD | S19: $OD | T19: $OD | U19: $OD | V19: $OD | W19: $OD | X19: $OD | Y19: $OD | Z19: $OD | AA19: $OD | AB19: $OD | AC19: $OD | AD19: $OD | AE19: $OD | AF19: $OD | AG19: $OD | AH19: $OD | AI19: $OD | AJ19: $OD | AK19: $OD | AL19: $OD | AM19: $OD | AN19: $OD | AO19: $OD | AP19: $OD | AQ19: $OD | AR19: $OD | AS19: $OD | AT19: $OD | AU19: $OD | AV19: $OD | AW19: ="$ "&$C$14 -> $ 31/12/2018 | AX19: $ 31/12/2018 | AY19: $ 31/12/2018 | AZ19: $ 31/12/2018 | BA19: $ 31/12/2018 | BB19: $ 31/12/2018 | BC19: $ 31/12/2018 | BD19: $ 31/12/2018 | BE19: $ 31/12/2018 | BF19: ="$ "&$C$14 -> $ 31/12/2018
A20: =ROW() -> 20 | B20: Pipeline and laterals | D20: =(-D45-D57)*D$10 -> 0 | E20: 0 | F20: 0 | G20: 0 | H20: 0 | I20: 0 | J20: 0 | K20: 0 | L20: 0 | M20: 0 | N20: 0 | O20: 0 | P20: 0 | Q20: 0 | R20: 0 | S20: 0 | T20: 0 | U20: 0 | V20: 0 | W20: 0 | X20: 0 | Y20: 0 | Z20: 0 | AA20: 0 | AB20: 0 | AC20: 0 | AD20: 0 | AE20: 0 | AF20: 0 | AG20: 0 | AH20: 0 | AI20: 0 | AJ20: 0 | AK20: 0 | AL20: 0 | AM20: 0 | AN20: 0 | AO20: 0 | AP20: 0 | AQ20: 0 | AR20: 0 | AS20: 0 | AT20: 0 | AU20: 0 | AV20: 0 | AW20: =(-AW45-AW57)*AW$10*AW$14 -> 0 | AX20: =(-AX45-AX57)*AX$10*AX$14 -> 0 | AY20: 0 | AZ20: 0 | BA20: 0 | BB20: 0 | BC20: 0 | BD20: 0 | BE20: 0 | BF20: 0
A21: =ROW() -> 21 | B21: Main line valve and scraper stations | D21: =(-D46-D58)*D$10 -> 0 | E21: 0 | F21: 0 | G21: 0 | H21: 0 | I21: 0 | J21: 0 | K21: 0 | L21: 0 | M21: 0 | N21: 0 | O21: 0 | P21: 0 | Q21: 0 | R21: 0 | S21: 0 | T21: 0 | U21: 0 | V21: 0 | W21: 0 | X21: 0 | Y21: 0 | Z21: 0 | AA21: 0 | AB21: 0 | AC21: 0 | AD21: 0 | AE21: 0 | AF21: 0 | AG21: 0 | AH21: 0 | AI21: 0 | AJ21: 0 | AK21: 0 | AL21: 0 | AM21: 0 | AN21: 0 | AO21: 0 | AP21: 0 | AQ21: 0 | AR21: 0 | AS21: 0 | AT21: 0 | AU21: 0 | AV21: 0 | AW21: =(-AW46-AW58)*AW$10*AW$14 -> 0 | AX21: 0 | AY21: 0 | AZ21: 0 | BA21: 0 | BB21: 0 | BC21: 0 | BD21: 0 | BE21: 0 | BF21: 0
A22: =ROW() -> 22 | B22: Compressor stations | D22: =(-D47-D59)*D$10 -> 0 | E22: 0 | F22: 0 | G22: 0 | H22: 0 | I22: 0 | J22: 0 | K22: 0 | L22: 0 | M22: 0 | N22: 0 | O22: 0 | P22: 0 | Q22: 0 | R22: 0 | S22: 0 | T22: 0 | U22: 0 | V22: 0 | W22: 0 | X22: 0 | Y22: 0 | Z22: 0 | AA22: 0 | AB22: 0 | AC22: 0 | AD22: 0 | AE22: 0 | AF22: 0 | AG22: 0 | AH22: 0 | AI22: 0 | AJ22: 0 | AK22: 0 | AL22: 0 | AM22: 0 | AN22: 0 | AO22: 0 | AP22: 0 | AQ22: 0 | AR22: 0 | AS22: 0 | AT22: 0 | AU22: 0 | AV22: 0 | AW22: =(-AW47-AW59)*AW$10*AW$14 -> 0 | AX22: 0 | AY22: 0 | AZ22: 0 | BA22: 0 | BB22: 0 | BC22: 0 | BD22: 0 | BE22: 0 | BF22: 0
A23: =ROW() -> 23 | B23: Receipt and delivery point facilities | D23: =(-D48-D60)*D$10 -> 0 | E23: 0 | F23: 0 | G23: 0 | H23: 0 | I23: 0 | J23: 0 | K23: 0 | L23: 0 | M23: 0 | N23: 0 | O23: 0 | P23: 0 | Q23: 0 | R23: 0 | S23: 0 | T23: 0 | U23: 0 | V23: 0 | W23: 0 | X23: 0 | Y23: 0 | Z23: 0 | AA23: 0 | AB23: 0 | AC23: 0 | AD23: 0 | AE23: 0 | AF23: 0 | AG23: 0 | AH23: 0 | AI23: 0 | AJ23: 0 | AK23: 0 | AL23: 0 | AM23: 0 | AN23: 0 | AO23: 0 | AP23: 0 | AQ23: 0 | AR23: 0 | AS23: 0 | AT23: 0 | AU23: 0 | AV23: 0 | AW23: =(-AW48-AW60)*AW$10*AW$14 -> 0 | AX23: 0 | AY23: 0 | AZ23: 0 | BA23: 0 | BB23: 0 | BC23: 0 | BD23: 0 | BE23: 0 | BF23: 0
A24: =ROW() -> 24 | B24: SCADA and communications | D24: =(-D49-D61)*D$10 -> 0 | E24: 0 | F24: 0 | G24: 0 | H24: 0 | I24: 0 | J24: 0 | K24: 0 | L24: 0 | M24: 0 | N24: 0 | O24: 0 | P24: 0 | Q24: 0 | R24: 0 | S24: 0 | T24: 0 | U24: 0 | V24: 0 | W24: 0 | X24: 0 | Y24: 0 | Z24: 0 | AA24: 0 | AB24: 0 | AC24: 0 | AD24: 0 | AE24: 0 | AF24: 0 | AG24: 0 | AH24: 0 | AI24: 0 | AJ24: 0 | AK24: 0 | AL24: 0 | AM24: 0 | AN24: 0 | AO24: 0 | AP24: 0 | AQ24: 0 | AR24: 0 | AS24: 0 | AT24: 0 | AU24: 0 | AV24: 0 | AW24: =(-AW49-AW61)*AW$10*AW$14 -> 0 | AX24: 0 | AY24: 0 | AZ24: 0 | BA24: 0 | BB24: 0 | BC24: 0 | BD24: 0 | BE24: 0 | BF24: 0
A25: =ROW() -> 25 | B25: Cathodic protection | D25: =(-D50-D62)*D$10 -> 0 | E25: 0 | F25: 0 | G25: 0 | H25: 0 | I25: 0 | J25: 0 | K25: 0 | L25: 0 | M25: 0 | N25: 0 | O25: 0 | P25: 0 | Q25: 0 | R25: 0 | S25: 0 | T25: 0 | U25: 0 | V25: 0 | W25: 0 | X25: 0 | Y25: 0 | Z25: 0 | AA25: 0 | AB25: 0 | AC25: 0 | AD25: 0 | AE25: 0 | AF25: 0 | AG25: 0 | AH25: 0 | AI25: 0 | AJ25: 0 | AK25: 0 | AL25: 0 | AM25: 0 | AN25: 0 | AO25: 0 | AP25: 0 | AQ25: 0 | AR25: 0 | AS25: 0 | AT25: 0 | AU25: 0 | AV25: 0 | AW25: =(-AW50-AW62)*AW$10*AW$14 -> 0 | AX25: 0 | AY25: 0 | AZ25: 0 | BA25: 0 | BB25: 0 | BC25: 0 | BD25: 0 | BE25: 0 | BF25: 0
A26: =ROW() -> 26 | B26: Maintenance bases and depots | D26: =(-D51-D63)*D$10 -> 0 | E26: 0 | F26: 0 | G26: 0 | H26: 0 | I26: 0 | J26: 0 | K26: 0 | L26: 0 | M26: 0 | N26: 0 | O26: 0 | P26: 0 | Q26: 0 | R26: 0 | S26: 0 | T26: 0 | U26: 0 | V26: 0 | W26: 0 | X26: 0 | Y26: 0 | Z26: 0 | AA26: 0 | AB26: 0 | AC26: 0 | AD26: 0 | AE26: 0 | AF26: 0 | AG26: 0 | AH26: 0 | AI26: 0 | AJ26: 0 | AK26: 0 | AL26: 0 | AM26: 0 | AN26: 0 | AO26: 0 | AP26: 0 | AQ26: 0 | AR26: 0 | AS26: 0 | AT26: 0 | AU26: 0 | AV26: 0 | AW26: =(-AW51-AW63)*AW$10*AW$14 -> 0 | AX26: 0 | AY26: 0 | AZ26: 0 | BA26: 0 | BB26: 0 | BC26: 0 | BD26: 0 | BE26: 0 | BF26: 0
A27: =ROW() -> 27 | B27: Other assets | D27: =(-D52-D64)*D$10 -> 0 | E27: 0 | F27: 0 | G27: 0 | H27: 0 | I27: 0 | J27: 0 | K27: 0 | L27: 0 | M27: 0 | N27: 0 | O27: 0 | P27: 0 | Q27: 0 | R27: 0 | S27: 0 | T27: 0 | U27: 0 | V27: 0 | W27: 0 | X27: 0 | Y27: 0 | Z27: 0 | AA27: 0 | AB27: 0 | AC27: 0 | AD27: 0 | AE27: 0 | AF27: 0 | AG27: 0 | AH27: 0 | AI27: 0 | AJ27: 0 | AK27: 0 | AL27: 0 | AM27: 0 | AN27: 0 | AO27: 0 | AP27: 0 | AQ27: 0 | AR27: 0 | AS27: 0 | AT27: 0 | AU27: 0 | AV27: 0 | AW27: =(-AW52-AW64)*AW$10*AW$14 -> 0 | AX27: 0 | AY27: 0 | AZ27: 0 | BA27: 0 | BB27: 0 | BC27: 0 | BD27: 0 | BE27: 0 | BF27: 0
A28: =ROW() -> 28 | B28: Equity Raising Cost | D28: 0 | E28: 0 | F28: 0 | G28: 0 | H28: 0 | I28: 0 | J28: 0 | K28: 0 | L28: 0 | M28: 0 | N28: 0 | O28: 0 | P28: 0 | Q28: 0 | R28: 0 | S28: 0 | T28: 0 | U28: 0 | V28: 0 | W28: 0 | X28: 0 | Y28: 0 | Z28: 0 | AA28: 0 | AB28: 0 | AC28: 0 | AD28: 0 | AE28: 0 | AF28: 0 | AG28: 0 | AH28: 0 | AI28: 0 | AJ28: 0 | AK28: 0 | AL28: 0 | AM28: 0 | AN28: 0 | AO28: 0 | AP28: 0 | AQ28: 0 | AR28: 0 | AS28: 0 | AT28: 0 | AU28: 0 | AV28: 0 | AW28: 0 | AX28: 0 | AY28: 0 | AZ28: 0 | BA28: 0 | BB28: 0 | BC28: 0 | BD28: 0 | BE28: 0 | BF28: 0
A29: =ROW() -> 29 | B29: Non-depreciable assets | D29: =(-D54-D66)*D$10 -> 0 | E29: 0 | F29: 0 | G29: 0 | H29: 0 | I29: 0 | J29: 0 | K29: 0 | L29: 0 | M29: 0 | N29: 0 | O29: 0 | P29: 0 | Q29: 0 | R29: 0 | S29: 0 | T29: 0 | U29: 0 | V29: 0 | W29: 0 | X29: 0 | Y29: 0 | Z29: 0 | AA29: 0 | AB29: 0 | AC29: 0 | AD29: 0 | AE29: 0 | AF29: 0 | AG29: 0 | AH29: 0 | AI29: 0 | AJ29: 0 | AK29: 0 | AL29: 0 | AM29: 0 | AN29: 0 | AO29: 0 | AP29: 0 | AQ29: 0 | AR29: 0 | AS29: 0 | AT29: 0 | AU29: 0 | AV29: 0 | AW29: =(-AW54-AW66)*AW$10*AW$14 -> 0 | AX29: 0 | AY29: 0 | AZ29: 0 | BA29: 0 | BB29: 0 | BC29: 0 | BD29: 0 | BE29: 0 | BF29: 0
A30: =ROW() -> 30 | B30: Totals | D30: =SUM(D20:D29) -> 0 | E30: =SUM(E20:E29) -> 0 | F30: =SUM(F20:F29) -> 0 | G30: =SUM(G20:G29) -> 0 | H30: =SUM(H20:H29) -> 0 | I30: =SUM(I20:I29) -> 0 | J30: =SUM(J20:J29) -> 0 | K30: =SUM(K20:K29) -> 0 | L30: =SUM(L20:L29) -> 0 | M30: =SUM(M20:M29) -> 0 | N30: =SUM(N20:N29) -> 0 | O30: =SUM(O20:O29) -> 0 | P30: =SUM(P20:P29) -> 0 | Q30: =SUM(Q20:Q29) -> 0 | R30: =SUM(R20:R29) -> 0 | S30: =SUM(S20:S29) -> 0 | T30: =SUM(T20:T29) -> 0 | U30: =SUM(U20:U29) -> 0 | V30: =SUM(V20:V29) -> 0 | W30: =SUM(W20:W29) -> 0 | X30: =SUM(X20:X29) -> 0 | Y30: =SUM(Y20:Y29) -> 0 | Z30: =SUM(Z20:Z29) -> 0 | AA30: =SUM(AA20:AA29) -> 0 | AB30: =SUM(AB20:AB29) -> 0 | AC30: =SUM(AC20:AC29) -> 0 | AD30: =SUM(AD20:AD29) -> 0 | AE30: =SUM(AE20:AE29) -> 0 | AF30: =SUM(AF20:AF29) -> 0 | AG30: =SUM(AG20:AG29) -> 0 | AH30: =SUM(AH20:AH29) -> 0 | AI30: =SUM(AI20:AI29) -> 0 | AJ30: =SUM(AJ20:AJ29) -> 0 | AK30: =SUM(AK20:AK29) -> 0 | AL30: =SUM(AL20:AL29) -> 0 | AM30: =SUM(AM20:AM29) -> 0 | AN30: =SUM(AN20:AN29) -> 0 | AO30: =SUM(AO20:AO29) -> 0 | AP30: =SUM(AP20:AP29) -> 0 | AQ30: =SUM(AQ20:AQ29) -> 0 | AR30: =SUM(AR20:AR29) -> 0 | AS30: =SUM(AS20:AS29) -> 0 | AT30: =SUM(AT20:AT29) -> 0 | AU30: =SUM(AU20:AU29) -> 0 | AV30: =SUM(AV20:AV29) -> 0 | AW30: =SUM(AW20:AW29) -> 0 | AX30: =SUM(AX20:AX29) -> 0 | AY30: =SUM(AY20:AY29) -> 0 | AZ30: =SUM(AZ20:AZ29) -> 0 | BA30: =SUM(BA20:BA29) -> 0 | BB30: =SUM(BB20:BB29) -> 0 | BC30: =SUM(BC20:BC29) -> 0 | BD30: =SUM(BD20:BD29) -> 0 | BE30: =SUM(BE20:BE29) -> 0 | BF30: =SUM(BF20:BF29) -> 0
A31: =ROW() -> 31 | B31: ="Capex Asset Adjustment ($m) " -> Capex Asset Adjustment ($m) | D31: $OD | E31: $OD | F31: $OD | G31: $OD | H31: $OD | I31: $OD | J31: $OD | K31: $OD | L31: $OD | M31: $OD | N31: $OD | O31: $OD | P31: $OD | Q31: $OD | R31: $OD | S31: $OD | T31: $OD | U31: $OD | V31: $OD | W31: $OD | X31: $OD | Y31: $OD | Z31: $OD | AA31: $OD | AB31: $OD | AC31: $OD | AD31: $OD | AE31: $OD | AF31: $OD | AG31: $OD | AH31: $OD | AI31: $OD | AJ31: $OD | AK31: $OD | AL31: $OD | AM31: $OD | AN31: $OD | AO31: $OD | AP31: $OD | AQ31: $OD | AR31: $OD | AS31: $OD | AT31: $OD | AU31: $OD | AV31: $OD | AW31: ="$ "&$C$14 -> $ 31/12/2018 | AX31: $ 31/12/2018 | AY31: $ 31/12/2018 | AZ31: $ 31/12/2018 | BA31: $ 31/12/2018 | BB31: $ 31/12/2018 | BC31: $ 31/12/2018 | BD31: $ 31/12/2018 | BE31: $ 31/12/2018 | BF31: ="$ "&$C$14 -> $ 31/12/2018
A32: =ROW() -> 32 | B32: Pipeline and laterals | D32: =(-D70-D82+D94+D106)*D$10 -> 0 | E32: 0 | F32: 0 | G32: 0 | H32: 0 | I32: 0 | J32: 0 | K32: 0 | L32: 0 | M32: 0 | N32: 0 | O32: 0 | P32: 0 | Q32: 0 | R32: 0 | S32: 0 | T32: 0 | U32: 0 | V32: 0 | W32: 0 | X32: 0 | Y32: 0 | Z32: 0 | AA32: 0 | AB32: 0 | AC32: 0 | AD32: 0 | AE32: 0 | AF32: 0 | AG32: 0 | AH32: 0 | AI32: 0 | AJ32: 0 | AK32: 0 | AL32: 0 | AM32: 0 | AN32: 0 | AO32: 0 | AP32: 0 | AQ32: 0 | AR32: 0 | AS32: 0 | AT32: 0 | AU32: 0 | AV32: 0 | AW32: =(-AW70-AW82+AW94+AW106)*AW$10*AW$14 -> 0 | AX32: =(-AX70-AX82+AX94+AX106)*AX$10*AX$14 -> 0 | AY32: 0 | AZ32: 0 | BA32: 0 | BB32: 0 | BC32: 0 | BD32: 0 | BE32: 0 | BF32: 0
A33: =ROW() -> 33 | B33: Main line valve and scraper stations | D33: =(-D71-D83+D95+D107)*D$10 -> 0 | E33: 0 | F33: 0 | G33: 0 | H33: 0 | I33: 0 | J33: 0 | K33: 0 | L33: 0 | M33: 0 | N33: 0 | O33: 0 | P33: 0 | Q33: 0 | R33: 0 | S33: 0 | T33: 0 | U33: 0 | V33: 0 | W33: 0 | X33: 0 | Y33: 0 | Z33: 0 | AA33: 0 | AB33: 0 | AC33: 0 | AD33: 0 | AE33: 0 | AF33: 0 | AG33: 0 | AH33: 0 | AI33: 0 | AJ33: 0 | AK33: 0 | AL33: 0 | AM33: 0 | AN33: 0 | AO33: 0 | AP33: 0 | AQ33: 0 | AR33: 0 | AS33: 0 | AT33: 0 | AU33: 0 | AV33: 0 | AW33: =(-AW71-AW83+AW95+AW107)*AW$10*AW$14 -> 0 | AX33: 0 | AY33: 0 | AZ33: 0 | BA33: 0 | BB33: 0 | BC33: 0 | BD33: 0 | BE33: 0 | BF33: 0
A34: =ROW() -> 34 | B34: Compressor stations | D34: =(-D72-D84+D96+D108)*D$10 -> 0 | E34: 0 | F34: 0 | G34: 0 | H34: 0 | I34: 0 | J34: 0 | K34: 0 | L34: 0 | M34: 0 | N34: 0 | O34: 0 | P34: 0 | Q34: 0 | R34: 0 | S34: 0 | T34: 0 | U34: 0 | V34: 0 | W34: 0 | X34: 0 | Y34: 0 | Z34: 0 | AA34: 0 | AB34: 0 | AC34: 0 | AD34: 0 | AE34: 0 | AF34: 0 | AG34: 0 | AH34: 0 | AI34: 0 | AJ34: 0 | AK34: 0 | AL34: 0 | AM34: 0 | AN34: 0 | AO34: 0 | AP34: 0 | AQ34: 0 | AR34: 0 | AS34: 0 | AT34: 0 | AU34: 0 | AV34: 0 | AW34: =(-AW72-AW84+AW96+AW108)*AW$10*AW$14 -> 0 | AX34: 0 | AY34: 0 | AZ34: 0 | BA34: 0 | BB34: 0 | BC34: 0 | BD34: 0 | BE34: 0 | BF34: 0
A35: =ROW() -> 35 | B35: Receipt and delivery point facilities | D35: =(-D73-D85+D97+D109)*D$10 -> 0 | E35: 0 | F35: 0 | G35: 0 | H35: 0 | I35: 0 | J35: 0 | K35: 0 | L35: 0 | M35: 0 | N35: 0 | O35: 0 | P35: 0 | Q35: 0 | R35: 0 | S35: 0 | T35: 0 | U35: 0 | V35: 0 | W35: 0 | X35: 0 | Y35: 0 | Z35: 0 | AA35: 0 | AB35: 0 | AC35: 0 | AD35: 0 | AE35: 0 | AF35: 0 | AG35: 0 | AH35: 0 | AI35: 0 | AJ35: 0 | AK35: 0 | AL35: 0 | AM35: 0 | AN35: 0 | AO35: 0 | AP35: 0 | AQ35: 0 | AR35: 0 | AS35: 0 | AT35: 0 | AU35: 0 | AV35: 0 | AW35: =(-AW73-AW85+AW97+AW109)*AW$10*AW$14 -> 0 | AX35: 0 | AY35: 0 | AZ35: 0 | BA35: 0 | BB35: 0 | BC35: 0 | BD35: 0 | BE35: 0 | BF35: 0
A36: =ROW() -> 36 | B36: SCADA and communications | D36: =(-D74-D86+D98+D110)*D$10 -> 0 | E36: 0 | F36: 0 | G36: 0 | H36: 0 | I36: 0 | J36: 0 | K36: 0 | L36: 0 | M36: 0 | N36: 0 | O36: 0 | P36: 0 | Q36: 0 | R36: 0 | S36: 0 | T36: 0 | U36: 0 | V36: 0 | W36: 0 | X36: 0 | Y36: 0 | Z36: 0 | AA36: 0 | AB36: 0 | AC36: 0 | AD36: 0 | AE36: 0 | AF36: 0 | AG36: 0 | AH36: 0 | AI36: 0 | AJ36: 0 | AK36: 0 | AL36: 0 | AM36: 0 | AN36: 0 | AO36: 0 | AP36: 0 | AQ36: 0 | AR36: 0 | AS36: 0 | AT36: 0 | AU36: 0 | AV36: 0 | AW36: =(-AW74-AW86+AW98+AW110)*AW$10*AW$14 -> 0 | AX36: 0 | AY36: 0 | AZ36: 0 | BA36: 0 | BB36: 0 | BC36: 0 | BD36: 0 | BE36: 0 | BF36: 0
A37: =ROW() -> 37 | B37: Cathodic protection | D37: =(-D75-D87+D99+D111)*D$10 -> 0 | E37: 0 | F37: 0 | G37: 0 | H37: 0 | I37: 0 | J37: 0 | K37: 0 | L37: 0 | M37: 0 | N37: 0 | O37: 0 | P37: 0 | Q37: 0 | R37: 0 | S37: 0 | T37: 0 | U37: 0 | V37: 0 | W37: 0 | X37: 0 | Y37: 0 | Z37: 0 | AA37: 0 | AB37: 0 | AC37: 0 | AD37: 0 | AE37: 0 | AF37: 0 | AG37: 0 | AH37: 0 | AI37: 0 | AJ37: 0 | AK37: 0 | AL37: 0 | AM37: 0 | AN37: 0 | AO37: 0 | AP37: 0 | AQ37: 0 | AR37: 0 | AS37: 0 | AT37: 0 | AU37: 0 | AV37: 0 | AW37: =(-AW75-AW87+AW99+AW111)*AW$10*AW$14 -> 0 | AX37: 0 | AY37: 0 | AZ37: 0 | BA37: 0 | BB37: 0 | BC37: 0 | BD37: 0 | BE37: 0 | BF37: 0
A38: =ROW() -> 38 | B38: Maintenance bases and depots | D38: =(-D76-D88+D100+D112)*D$10 -> 0 | E38: 0 | F38: 0 | G38: 0 | H38: 0 | I38: 0 | J38: 0 | K38: 0 | L38: 0 | M38: 0 | N38: 0 | O38: 0 | P38: 0 | Q38: 0 | R38: 0 | S38: 0 | T38: 0 | U38: 0 | V38: 0 | W38: 0 | X38: 0 | Y38: 0 | Z38: 0 | AA38: 0 | AB38: 0 | AC38: 0 | AD38: 0 | AE38: 0 | AF38: 0 | AG38: 0 | AH38: 0 | AI38: 0 | AJ38: 0 | AK38: 0 | AL38: 0 | AM38: 0 | AN38: 0 | AO38: 0 | AP38: 0 | AQ38: 0 | AR38: 0 | AS38: 0 | AT38: 0 | AU38: 0 | AV38: 0 | AW38: =(-AW76-AW88+AW100+AW112)*AW$10*AW$14 -> 0 | AX38: 0 | AY38: 0 | AZ38: 0 | BA38: 0 | BB38: 0 | BC38: 0 | BD38: 0 | BE38: 0 | BF38: 0
A39: =ROW() -> 39 | B39: Other assets | D39: =(-D77-D89+D101+D113)*D$10 -> 0 | E39: 0 | F39: 0 | G39: 0 | H39: 0 | I39: 0 | J39: 0 | K39: 0 | L39: 0 | M39: 0 | N39: 0 | O39: 0 | P39: 0 | Q39: 0 | R39: 0 | S39: 0 | T39: 0 | U39: 0 | V39: 0 | W39: 0 | X39: 0 | Y39: 0 | Z39: 0 | AA39: 0 | AB39: 0 | AC39: 0 | AD39: 0 | AE39: 0 | AF39: 0 | AG39: 0 | AH39: 0 | AI39: 0 | AJ39: 0 | AK39: 0 | AL39: 0 | AM39: 0 | AN39: 0 | AO39: 0 | AP39: 0 | AQ39: 0 | AR39: 0 | AS39: 0 | AT39: 0 | AU39: 0 | AV39: 0 | AW39: =(-AW77-AW89+AW101+AW113)*AW$10*AW$14 -> 0 | AX39: 0 | AY39: 0 | AZ39: 0 | BA39: 0 | BB39: 0 | BC39: 0 | BD39: 0 | BE39: 0 | BF39: 0
A40: =ROW() -> 40 | B40: Equity Raising Cost | D40: 0 | E40: 0 | F40: 0 | G40: 0 | H40: 0 | I40: 0 | J40: 0 | K40: 0 | L40: 0 | M40: 0 | N40: 0 | O40: 0 | P40: 0 | Q40: 0 | R40: 0 | S40: 0 | T40: 0 | U40: 0 | V40: 0 | W40: 0 | X40: 0 | Y40: 0 | Z40: 0 | AA40: 0 | AB40: 0 | AC40: 0 | AD40: 0 | AE40: 0 | AF40: 0 | AG40: 0 | AH40: 0 | AI40: 0 | AJ40: 0 | AK40: 0 | AL40: 0 | AM40: 0 | AN40: 0 | AO40: 0 | AP40: 0 | AQ40: 0 | AR40: 0 | AS40: 0 | AT40: 0 | AU40: 0 | AV40: 0 | AW40: 0 | AX40: 0 | AY40: 0 | AZ40: 0 | BA40: 0 | BB40: 0 | BC40: 0 | BD40: 0 | BE40: 0 | BF40: 0
A41: =ROW() -> 41 | B41: Non-depreciable assets | D41: =(-D79-D91+D103+D115)*D$10 -> 0 | E41: 0 | F41: 0 | G41: 0 | H41: 0 | I41: 0 | J41: 0 | K41: 0 | L41: 0 | M41: 0 | N41: 0 | O41: 0 | P41: 0 | Q41: 0 | R41: 0 | S41: 0 | T41: 0 | U41: 0 | V41: 0 | W41: 0 | X41: 0 | Y41: 0 | Z41: 0 | AA41: 0 | AB41: 0 | AC41: 0 | AD41: 0 | AE41: 0 | AF41: 0 | AG41: 0 | AH41: 0 | AI41: 0 | AJ41: 0 | AK41: 0 | AL41: 0 | AM41: 0 | AN41: 0 | AO41: 0 | AP41: 0 | AQ41: 0 | AR41: 0 | AS41: 0 | AT41: 0 | AU41: 0 | AV41: 0 | AW41: =(-AW79-AW91+AW103+AW115)*AW$10*AW$14 -> 0 | AX41: 0 | AY41: 0 | AZ41: 0 | BA41: 0 | BB41: 0 | BC41: 0 | BD41: 0 | BE41: 0 | BF41: 0
A42: =ROW() -> 42 | B42: Totals | D42: =SUM(D32:D41) -> 0 | E42: =SUM(E32:E41) -> 0 | F42: 0 | G42: 0 | H42: 0 | I42: 0 | J42: 0 | K42: 0 | L42: 0 | M42: 0 | N42: 0 | O42: 0 | P42: 0 | Q42: 0 | R42: 0 | S42: 0 | T42: 0 | U42: 0 | V42: 0 | W42: 0 | X42: 0 | Y42: 0 | Z42: 0 | AA42: 0 | AB42: 0 | AC42: 0 | AD42: 0 | AE42: 0 | AF42: 0 | AG42: 0 | AH42: 0 | AI42: 0 | AJ42: 0 | AK42: 0 | AL42: 0 | AM42: 0 | AN42: 0 | AO42: 0 | AP42: 0 | AQ42: 0 | AR42: 0 | AS42: 0 | AT42: 0 | AU42: 0 | AV42: 0 | AW42: 0 | AX42: 0 | AY42: 0 | AZ42: 0 | BA42: 0 | BB42: 0 | BC42: 0 | BD42: 0 | BE42: 0 | BF42: 0
A43: =ROW() -> 43 | B43: ICB Adjustment (for AA1 enter aggregated annual amount into each quarter)
A44: =ROW() -> 44 | B44: Asset Disposal | D44: $OD | E44: $OD | F44: $OD | G44: $OD | H44: $OD | I44: $OD | J44: $OD | K44: $OD | L44: $OD | M44: $OD | N44: $OD | O44: $OD | P44: $OD | Q44: $OD | R44: $OD | S44: $OD | T44: $OD | U44: $OD | V44: $OD | W44: $OD | X44: $OD | Y44: $OD | Z44: $OD | AA44: $OD | AB44: $OD | AC44: $OD | AD44: $OD | AE44: $OD | AF44: $OD | AG44: $OD | AH44: $OD | AI44: $OD | AJ44: $OD | AK44: $OD | AL44: $OD | AM44: $OD | AN44: $OD | AO44: $OD | AP44: $OD | AQ44: $OD | AR44: $OD | AS44: $OD | AT44: $OD | AU44: $OD | AV44: $OD | AW44: $OD | AX44: $OD | AY44: $OD | AZ44: $OD | BA44: $OD | BB44: $OD | BC44: $OD | BD44: $OD | BE44: $OD | BF44: $OD
A45: =ROW() -> 45 | B45: Pipeline and laterals
A46: =ROW() -> 46 | B46: Main line valve and scraper stations
A47: =ROW() -> 47 | B47: Compressor stations
A48: =ROW() -> 48 | B48: Receipt and delivery point facilities
A49: =ROW() -> 49 | B49: SCADA and communications
A50: =ROW() -> 50 | B50: Cathodic protection
A51: =ROW() -> 51 | B51: Maintenance bases and depots
A52: =ROW() -> 52 | B52: Other assets
A53: =ROW() -> 53 | B53: Equity Raising Cost
A54: =ROW() -> 54 | B54: Non-depreciable assets
A55: =ROW() -> 55 | B55: Totals | D55: =SUM(D45:D54) -> 0 | E55: =SUM(E45:E54) -> 0 | F55: =SUM(F45:F54) -> 0 | G55: =SUM(G45:G54) -> 0 | H55: =SUM(H45:H54) -> 0 | I55: =SUM(I45:I54) -> 0 | J55: =SUM(J45:J54) -> 0 | K55: =SUM(K45:K54) -> 0 | L55: =SUM(L45:L54) -> 0 | M55: =SUM(M45:M54) -> 0 | N55: =SUM(N45:N54) -> 0 | O55: =SUM(O45:O54) -> 0 | P55: =SUM(P45:P54) -> 0 | Q55: =SUM(Q45:Q54) -> 0 | R55: =SUM(R45:R54) -> 0 | S55: =SUM(S45:S54) -> 0 | T55: =SUM(T45:T54) -> 0 | U55: =SUM(U45:U54) -> 0 | V55: =SUM(V45:V54) -> 0 | W55: =SUM(W45:W54) -> 0 | X55: =SUM(X45:X54) -> 0 | Y55: =SUM(Y45:Y54) -> 0 | Z55: =SUM(Z45:Z54) -> 0 | AA55: =SUM(AA45:AA54) -> 0 | AB55: =SUM(AB45:AB54) -> 0 | AC55: =SUM(AC45:AC54) -> 0 | AD55: =SUM(AD45:AD54) -> 0 | AE55: =SUM(AE45:AE54) -> 0 | AF55: =SUM(AF45:AF54) -> 0 | AG55: =SUM(AG45:AG54) -> 0 | AH55: =SUM(AH45:AH54) -> 0 | AI55: =SUM(AI45:AI54) -> 0 | AJ55: =SUM(AJ45:AJ54) -> 0 | AK55: =SUM(AK45:AK54) -> 0 | AL55: =SUM(AL45:AL54) -> 0 | AM55: =SUM(AM45:AM54) -> 0 | AN55: =SUM(AN45:AN54) -> 0 | AO55: =SUM(AO45:AO54) -> 0 | AP55: =SUM(AP45:AP54) -> 0 | AQ55: =SUM(AQ45:AQ54) -> 0 | AR55: =SUM(AR45:AR54) -> 0 | AS55: =SUM(AS45:AS54) -> 0 | AT55: =SUM(AT45:AT54) -> 0 | AU55: =SUM(AU45:AU54) -> 0 | AV55: =SUM(AV45:AV54) -> 0 | AW55: =SUM(AW45:AW54) -> 0 | AX55: =SUM(AX45:AX54) -> 0 | AY55: =SUM(AY45:AY54) -> 0 | AZ55: =SUM(AZ45:AZ54) -> 0 | BA55: =SUM(BA45:BA54) -> 0 | BB55: =SUM(BB45:BB54) -> 0 | BC55: =SUM(BC45:BC54) -> 0 | BD55: =SUM(BD45:BD54) -> 0 | BE55: =SUM(BE45:BE54) -> 0 | BF55: =SUM(BF45:BF54) -> 0
A56: =ROW() -> 56 | B56: Redundant Assets | D56: $OD | E56: $OD | F56: $OD | G56: $OD | H56: $OD | I56: $OD | J56: $OD | K56: $OD | L56: $OD | M56: $OD | N56: $OD | O56: $OD | P56: $OD | Q56: $OD | R56: $OD | S56: $OD | T56: $OD | U56: $OD | V56: $OD | W56: $OD | X56: $OD | Y56: $OD | Z56: $OD | AA56: $OD | AB56: $OD | AC56: $OD | AD56: $OD | AE56: $OD | AF56: $OD | AG56: $OD | AH56: $OD | AI56: $OD | AJ56: $OD | AK56: $OD | AL56: $OD | AM56: $OD | AN56: $OD | AO56: $OD | AP56: $OD | AQ56: $OD | AR56: $OD | AS56: $OD | AT56: $OD | AU56: $OD | AV56: $OD | AW56: $OD | AX56: $OD | AY56: $OD | AZ56: $OD | BA56: $OD | BB56: $OD | BC56: $OD | BD56: $OD | BE56: $OD | BF56: $OD
A57: =ROW() -> 57 | B57: Pipeline and laterals
A58: =ROW() -> 58 | B58: Main line valve and scraper stations
A59: =ROW() -> 59 | B59: Compressor stations
A60: =ROW() -> 60 | B60: Receipt and delivery point facilities
A61: =ROW() -> 61 | B61: SCADA and communications
A62: =ROW() -> 62 | B62: Cathodic protection
A63: =ROW() -> 63 | B63: Maintenance bases and depots
A64: =ROW() -> 64 | B64: Other assets
A65: =ROW() -> 65 | B65: Equity Raising Cost
A66: =ROW() -> 66 | B66: Non-depreciable assets
A67: =ROW() -> 67 | B67: Totals | D67: =SUM(D57:D66) -> 0 | E67: =SUM(E57:E66) -> 0 | F67: =SUM(F57:F66) -> 0 | G67: =SUM(G57:G66) -> 0 | H67: =SUM(H57:H66) -> 0 | I67: =SUM(I57:I66) -> 0 | J67: =SUM(J57:J66) -> 0 | K67: =SUM(K57:K66) -> 0 | L67: =SUM(L57:L66) -> 0 | M67: =SUM(M57:M66) -> 0 | N67: =SUM(N57:N66) -> 0 | O67: =SUM(O57:O66) -> 0 | P67: =SUM(P57:P66) -> 0 | Q67: =SUM(Q57:Q66) -> 0 | R67: =SUM(R57:R66) -> 0 | S67: =SUM(S57:S66) -> 0 | T67: =SUM(T57:T66) -> 0 | U67: =SUM(U57:U66) -> 0 | V67: =SUM(V57:V66) -> 0 | W67: =SUM(W57:W66) -> 0 | X67: =SUM(X57:X66) -> 0 | Y67: =SUM(Y57:Y66) -> 0 | Z67: =SUM(Z57:Z66) -> 0 | AA67: =SUM(AA57:AA66) -> 0 | AB67: =SUM(AB57:AB66) -> 0 | AC67: =SUM(AC57:AC66) -> 0 | AD67: =SUM(AD57:AD66) -> 0 | AE67: =SUM(AE57:AE66) -> 0 | AF67: =SUM(AF57:AF66) -> 0 | AG67: =SUM(AG57:AG66) -> 0 | AH67: =SUM(AH57:AH66) -> 0 | AI67: =SUM(AI57:AI66) -> 0 | AJ67: =SUM(AJ57:AJ66) -> 0 | AK67: =SUM(AK57:AK66) -> 0 | AL67: =SUM(AL57:AL66) -> 0 | AM67: =SUM(AM57:AM66) -> 0 | AN67: =SUM(AN57:AN66) -> 0 | AO67: =SUM(AO57:AO66) -> 0 | AP67: =SUM(AP57:AP66) -> 0 | AQ67: =SUM(AQ57:AQ66) -> 0 | AR67: =SUM(AR57:AR66) -> 0 | AS67: =SUM(AS57:AS66) -> 0 | AT67: =SUM(AT57:AT66) -> 0 | AU67: =SUM(AU57:AU66) -> 0 | AV67: =SUM(AV57:AV66) -> 0 | AW67: =SUM(AW57:AW66) -> 0 | AX67: =SUM(AX57:AX66) -> 0 | AY67: =SUM(AY57:AY66) -> 0 | AZ67: =SUM(AZ57:AZ66) -> 0 | BA67: =SUM(BA57:BA66) -> 0 | BB67: =SUM(BB57:BB66) -> 0 | BC67: =SUM(BC57:BC66) -> 0 | BD67: =SUM(BD57:BD66) -> 0 | BE67: =SUM(BE57:BE66) -> 0 | BF67: =SUM(BF57:BF66) -> 0
A68: =ROW() -> 68 | B68: Capex Adjustment (for AA1 enter aggregated annual amount into each quarter)
A69: =ROW() -> 69 | B69: Asset Disposal (New Facility Investment) | D69: $OD | E69: $OD | F69: $OD | G69: $OD | H69: $OD | I69: $OD | J69: $OD | K69: $OD | L69: $OD | M69: $OD | N69: $OD | O69: $OD | P69: $OD | Q69: $OD | R69: $OD | S69: $OD | T69: $OD | U69: $OD | V69: $OD | W69: $OD | X69: $OD | Y69: $OD | Z69: $OD | AA69: $OD | AB69: $OD | AC69: $OD | AD69: $OD | AE69: $OD | AF69: $OD | AG69: $OD | AH69: $OD | AI69: $OD | AJ69: $OD | AK69: $OD | AL69: $OD | AM69: $OD | AN69: $OD | AO69: $OD | AP69: $OD | AQ69: $OD | AR69: $OD | AS69: $OD | AT69: $OD | AU69: $OD | AV69: $OD | AW69: $OD | AX69: $OD | AY69: $OD | AZ69: $OD | BA69: $OD | BB69: $OD | BC69: $OD | BD69: $OD | BE69: $OD | BF69: $OD
A70: =ROW() -> 70 | B70: Pipeline and laterals
A71: =ROW() -> 71 | B71: Main line valve and scraper stations
A72: =ROW() -> 72 | B72: Compressor stations
A73: =ROW() -> 73 | B73: Receipt and delivery point facilities
A74: =ROW() -> 74 | B74: SCADA and communications
A75: =ROW() -> 75 | B75: Cathodic protection
A76: =ROW() -> 76 | B76: Maintenance bases and depots
A77: =ROW() -> 77 | B77: Other assets
A78: =ROW() -> 78 | B78: Equity Raising Cost
A79: =ROW() -> 79 | B79: Non-depreciable assets
A80: =ROW() -> 80 | B80: Totals | D80: =SUM(D70:D79) -> 0 | E80: =SUM(E70:E79) -> 0 | F80: =SUM(F70:F79) -> 0 | G80: =SUM(G70:G79) -> 0 | H80: =SUM(H70:H79) -> 0 | I80: =SUM(I70:I79) -> 0 | J80: =SUM(J70:J79) -> 0 | K80: =SUM(K70:K79) -> 0 | L80: =SUM(L70:L79) -> 0 | M80: =SUM(M70:M79) -> 0 | N80: =SUM(N70:N79) -> 0 | O80: =SUM(O70:O79) -> 0 | P80: =SUM(P70:P79) -> 0 | Q80: =SUM(Q70:Q79) -> 0 | R80: =SUM(R70:R79) -> 0 | S80: =SUM(S70:S79) -> 0 | T80: =SUM(T70:T79) -> 0 | U80: =SUM(U70:U79) -> 0 | V80: =SUM(V70:V79) -> 0 | W80: =SUM(W70:W79) -> 0 | X80: =SUM(X70:X79) -> 0 | Y80: =SUM(Y70:Y79) -> 0 | Z80: =SUM(Z70:Z79) -> 0 | AA80: =SUM(AA70:AA79) -> 0 | AB80: =SUM(AB70:AB79) -> 0 | AC80: =SUM(AC70:AC79) -> 0 | AD80: =SUM(AD70:AD79) -> 0 | AE80: =SUM(AE70:AE79) -> 0 | AF80: =SUM(AF70:AF79) -> 0 | AG80: =SUM(AG70:AG79) -> 0 | AH80: =SUM(AH70:AH79) -> 0 | AI80: =SUM(AI70:AI79) -> 0 | AJ80: =SUM(AJ70:AJ79) -> 0 | AK80: =SUM(AK70:AK79) -> 0 | AL80: =SUM(AL70:AL79) -> 0 | AM80: =SUM(AM70:AM79) -> 0 | AN80: =SUM(AN70:AN79) -> 0 | AO80: =SUM(AO70:AO79) -> 0 | AP80: =SUM(AP70:AP79) -> 0 | AQ80: =SUM(AQ70:AQ79) -> 0 | AR80: =SUM(AR70:AR79) -> 0 | AS80: =SUM(AS70:AS79) -> 0 | AT80: =SUM(AT70:AT79) -> 0 | AU80: =SUM(AU70:AU79) -> 0 | AV80: =SUM(AV70:AV79) -> 0 | AW80: =SUM(AW70:AW79) -> 0 | AX80: =SUM(AX70:AX79) -> 0 | AY80: =SUM(AY70:AY79) -> 0 | AZ80: =SUM(AZ70:AZ79) -> 0 | BA80: =SUM(BA70:BA79) -> 0 | BB80: =SUM(BB70:BB79) -> 0 | BC80: =SUM(BC70:BC79) -> 0 | BD80: =SUM(BD70:BD79) -> 0 | BE80: =SUM(BE70:BE79) -> 0 | BF80: =SUM(BF70:BF79) -> 0
A81: =ROW() -> 81 | B81: Redundant Assets (New Facility Investment) | D81: $OD | E81: $OD | F81: $OD | G81: $OD | H81: $OD | I81: $OD | J81: $OD | K81: $OD | L81: $OD | M81: $OD | N81: $OD | O81: $OD | P81: $OD | Q81: $OD | R81: $OD | S81: $OD | T81: $OD | U81: $OD | V81: $OD | W81: $OD | X81: $OD | Y81: $OD | Z81: $OD | AA81: $OD | AB81: $OD | AC81: $OD | AD81: $OD | AE81: $OD | AF81: $OD | AG81: $OD | AH81: $OD | AI81: $OD | AJ81: $OD | AK81: $OD | AL81: $OD | AM81: $OD | AN81: $OD | AO81: $OD | AP81: $OD | AQ81: $OD | AR81: $OD | AS81: $OD | AT81: $OD | AU81: $OD | AV81: $OD | AW81: $OD | AX81: $OD | AY81: $OD | AZ81: $OD | BA81: $OD | BB81: $OD | BC81: $OD | BD81: $OD | BE81: $OD | BF81: $OD
A82: =ROW() -> 82 | B82: Pipeline and laterals
A83: =ROW() -> 83 | B83: Main line valve and scraper stations
A84: =ROW() -> 84 | B84: Compressor stations
A85: =ROW() -> 85 | B85: Receipt and delivery point facilities
A86: =ROW() -> 86 | B86: SCADA and communications
A87: =ROW() -> 87 | B87: Cathodic protection
A88: =ROW() -> 88 | B88: Maintenance bases and depots
A89: =ROW() -> 89 | B89: Other assets
A90: =ROW() -> 90 | B90: Equity Raising Cost
A91: =ROW() -> 91 | B91: Non-depreciable assets
A92: =ROW() -> 92 | B92: Totals | D92: =SUM(D82:D91) -> 0 | E92: =SUM(E82:E91) -> 0 | F92: =SUM(F82:F91) -> 0 | G92: =SUM(G82:G91) -> 0 | H92: =SUM(H82:H91) -> 0 | I92: =SUM(I82:I91) -> 0 | J92: =SUM(J82:J91) -> 0 | K92: =SUM(K82:K91) -> 0 | L92: =SUM(L82:L91) -> 0 | M92: =SUM(M82:M91) -> 0 | N92: =SUM(N82:N91) -> 0 | O92: =SUM(O82:O91) -> 0 | P92: =SUM(P82:P91) -> 0 | Q92: =SUM(Q82:Q91) -> 0 | R92: =SUM(R82:R91) -> 0 | S92: =SUM(S82:S91) -> 0 | T92: =SUM(T82:T91) -> 0 | U92: =SUM(U82:U91) -> 0 | V92: =SUM(V82:V91) -> 0 | W92: =SUM(W82:W91) -> 0 | X92: =SUM(X82:X91) -> 0 | Y92: =SUM(Y82:Y91) -> 0 | Z92: =SUM(Z82:Z91) -> 0 | AA92: =SUM(AA82:AA91) -> 0 | AB92: =SUM(AB82:AB91) -> 0 | AC92: =SUM(AC82:AC91) -> 0 | AD92: =SUM(AD82:AD91) -> 0 | AE92: =SUM(AE82:AE91) -> 0 | AF92: =SUM(AF82:AF91) -> 0 | AG92: =SUM(AG82:AG91) -> 0 | AH92: =SUM(AH82:AH91) -> 0 | AI92: =SUM(AI82:AI91) -> 0 | AJ92: =SUM(AJ82:AJ91) -> 0 | AK92: =SUM(AK82:AK91) -> 0 | AL92: =SUM(AL82:AL91) -> 0 | AM92: =SUM(AM82:AM91) -> 0 | AN92: =SUM(AN82:AN91) -> 0 | AO92: =SUM(AO82:AO91) -> 0 | AP92: =SUM(AP82:AP91) -> 0 | AQ92: =SUM(AQ82:AQ91) -> 0 | AR92: =SUM(AR82:AR91) -> 0 | AS92: =SUM(AS82:AS91) -> 0 | AT92: =SUM(AT82:AT91) -> 0 | AU92: =SUM(AU82:AU91) -> 0 | AV92: =SUM(AV82:AV91) -> 0 | AW92: =SUM(AW82:AW91) -> 0 | AX92: =SUM(AX82:AX91) -> 0 | AY92: =SUM(AY82:AY91) -> 0 | AZ92: =SUM(AZ82:AZ91) -> 0 | BA92: =SUM(BA82:BA91) -> 0 | BB92: =SUM(BB82:BB91) -> 0 | BC92: =SUM(BC82:BC91) -> 0 | BD92: =SUM(BD82:BD91) -> 0 | BE92: =SUM(BE82:BE91) -> 0 | BF92: =SUM(BF82:BF91) -> 0
A93: =ROW() -> 93 | B93: Addition to Capital Base (NGR 82, 84 & 86) | D93: $OD | E93: $OD | F93: $OD | G93: $OD | H93: $OD | I93: $OD | J93: $OD | K93: $OD | L93: $OD | M93: $OD | N93: $OD | O93: $OD | P93: $OD | Q93: $OD | R93: $OD | S93: $OD | T93: $OD | U93: $OD | V93: $OD | W93: $OD | X93: $OD | Y93: $OD | Z93: $OD | AA93: $OD | AB93: $OD | AC93: $OD | AD93: $OD | AE93: $OD | AF93: $OD | AG93: $OD | AH93: $OD | AI93: $OD | AJ93: $OD | AK93: $OD | AL93: $OD | AM93: $OD | AN93: $OD | AO93: $OD | AP93: $OD | AQ93: $OD | AR93: $OD | AS93: $OD | AT93: $OD | AU93: $OD | AV93: $OD | AW93: $OD | AX93: $OD | AY93: $OD | AZ93: $OD | BA93: $OD | BB93: $OD | BC93: $OD | BD93: $OD | BE93: $OD | BF93: $OD
A94: =ROW() -> 94 | B94: Pipeline and laterals
A95: =ROW() -> 95 | B95: Main line valve and scraper stations
A96: =ROW() -> 96 | B96: Compressor stations
A97: =ROW() -> 97 | B97: Receipt and delivery point facilities
A98: =ROW() -> 98 | B98: SCADA and communications
A99: =ROW() -> 99 | B99: Cathodic protection
A100: =ROW() -> 100 | B100: Maintenance bases and depots
A101: =ROW() -> 101 | B101: Other assets
A102: =ROW() -> 102 | B102: Equity Raising Cost
A103: =ROW() -> 103 | B103: Non-depreciable assets
A104: =ROW() -> 104 | B104: Totals | D104: =SUM(D94:D103) -> 0 | E104: =SUM(E94:E103) -> 0 | F104: =SUM(F94:F103) -> 0 | G104: =SUM(G94:G103) -> 0 | H104: =SUM(H94:H103) -> 0 | I104: =SUM(I94:I103) -> 0 | J104: =SUM(J94:J103) -> 0 | K104: =SUM(K94:K103) -> 0 | L104: =SUM(L94:L103) -> 0 | M104: =SUM(M94:M103) -> 0 | N104: =SUM(N94:N103) -> 0 | O104: =SUM(O94:O103) -> 0 | P104: =SUM(P94:P103) -> 0 | Q104: =SUM(Q94:Q103) -> 0 | R104: =SUM(R94:R103) -> 0 | S104: =SUM(S94:S103) -> 0 | T104: =SUM(T94:T103) -> 0 | U104: =SUM(U94:U103) -> 0 | V104: =SUM(V94:V103) -> 0 | W104: =SUM(W94:W103) -> 0 | X104: =SUM(X94:X103) -> 0 | Y104: =SUM(Y94:Y103) -> 0 | Z104: =SUM(Z94:Z103) -> 0 | AA104: =SUM(AA94:AA103) -> 0 | AB104: =SUM(AB94:AB103) -> 0 | AC104: =SUM(AC94:AC103) -> 0 | AD104: =SUM(AD94:AD103) -> 0 | AE104: =SUM(AE94:AE103) -> 0 | AF104: =SUM(AF94:AF103) -> 0 | AG104: =SUM(AG94:AG103) -> 0 | AH104: =SUM(AH94:AH103) -> 0 | AI104: =SUM(AI94:AI103) -> 0 | AJ104: =SUM(AJ94:AJ103) -> 0 | AK104: =SUM(AK94:AK103) -> 0 | AL104: =SUM(AL94:AL103) -> 0 | AM104: =SUM(AM94:AM103) -> 0 | AN104: =SUM(AN94:AN103) -> 0 | AO104: =SUM(AO94:AO103) -> 0 | AP104: =SUM(AP94:AP103) -> 0 | AQ104: =SUM(AQ94:AQ103) -> 0 | AR104: =SUM(AR94:AR103) -> 0 | AS104: =SUM(AS94:AS103) -> 0 | AT104: =SUM(AT94:AT103) -> 0 | AU104: =SUM(AU94:AU103) -> 0 | AV104: =SUM(AV94:AV103) -> 0 | AW104: =SUM(AW94:AW103) -> 0 | AX104: =SUM(AX94:AX103) -> 0 | AY104: =SUM(AY94:AY103) -> 0 | AZ104: =SUM(AZ94:AZ103) -> 0 | BA104: =SUM(BA94:BA103) -> 0 | BB104: =SUM(BB94:BB103) -> 0 | BC104: =SUM(BC94:BC103) -> 0 | BD104: =SUM(BD94:BD103) -> 0 | BE104: =SUM(BE94:BE103) -> 0 | BF104: =SUM(BF94:BF103) -> 0
A105: =ROW() -> 105 | B105: Capex Cost Pass Through (NGR 97) | D105: $OD | E105: $OD | F105: $OD | G105: $OD | H105: $OD | I105: $OD | J105: $OD | K105: $OD | L105: $OD | M105: $OD | N105: $OD | O105: $OD | P105: $OD | Q105: $OD | R105: $OD | S105: $OD | T105: $OD | U105: $OD | V105: $OD | W105: $OD | X105: $OD | Y105: $OD | Z105: $OD | AA105: $OD | AB105: $OD | AC105: $OD | AD105: $OD | AE105: $OD | AF105: $OD | AG105: $OD | AH105: $OD | AI105: $OD | AJ105: $OD | AK105: $OD | AL105: $OD | AM105: $OD | AN105: $OD | AO105: $OD | AP105: $OD | AQ105: $OD | AR105: $OD | AS105: $OD | AT105: $OD | AU105: $OD | AV105: $OD | AW105: $OD | AX105: $OD | AY105: $OD | AZ105: $OD | BA105: $OD | BB105: $OD | BC105: $OD | BD105: $OD | BE105: $OD | BF105: $OD
A106: =ROW() -> 106 | B106: Pipeline and laterals
A107: =ROW() -> 107 | B107: Main line valve and scraper stations
A108: =ROW() -> 108 | B108: Compressor stations
A109: =ROW() -> 109 | B109: Receipt and delivery point facilities
A110: =ROW() -> 110 | B110: SCADA and communications
A111: =ROW() -> 111 | B111: Cathodic protection
A112: =ROW() -> 112 | B112: Maintenance bases and depots
A113: =ROW() -> 113 | B113: Other assets
A114: =ROW() -> 114 | B114: Equity Raising Cost
A115: =ROW() -> 115 | B115: Non-depreciable assets
A116: =ROW() -> 116 | B116: Totals | D116: =SUM(D106:D115) -> 0 | E116: =SUM(E106:E115) -> 0 | F116: =SUM(F106:F115) -> 0 | G116: =SUM(G106:G115) -> 0 | H116: =SUM(H106:H115) -> 0 | I116: =SUM(I106:I115) -> 0 | J116: =SUM(J106:J115) -> 0 | K116: =SUM(K106:K115) -> 0 | L116: =SUM(L106:L115) -> 0 | M116: =SUM(M106:M115) -> 0 | N116: =SUM(N106:N115) -> 0 | O116: =SUM(O106:O115) -> 0 | P116: =SUM(P106:P115) -> 0 | Q116: =SUM(Q106:Q115) -> 0 | R116: =SUM(R106:R115) -> 0 | S116: =SUM(S106:S115) -> 0 | T116: =SUM(T106:T115) -> 0 | U116: =SUM(U106:U115) -> 0 | V116: =SUM(V106:V115) -> 0 | W116: =SUM(W106:W115) -> 0 | X116: =SUM(X106:X115) -> 0 | Y116: =SUM(Y106:Y115) -> 0 | Z116: =SUM(Z106:Z115) -> 0 | AA116: =SUM(AA106:AA115) -> 0 | AB116: =SUM(AB106:AB115) -> 0 | AC116: =SUM(AC106:AC115) -> 0 | AD116: =SUM(AD106:AD115) -> 0 | AE116: =SUM(AE106:AE115) -> 0 | AF116: =SUM(AF106:AF115) -> 0 | AG116: =SUM(AG106:AG115) -> 0 | AH116: =SUM(AH106:AH115) -> 0 | AI116: =SUM(AI106:AI115) -> 0 | AJ116: =SUM(AJ106:AJ115) -> 0 | AK116: =SUM(AK106:AK115) -> 0 | AL116: =SUM(AL106:AL115) -> 0 | AM116: =SUM(AM106:AM115) -> 0 | AN116: =SUM(AN106:AN115) -> 0 | AO116: =SUM(AO106:AO115) -> 0 | AP116: =SUM(AP106:AP115) -> 0 | AQ116: =SUM(AQ106:AQ115) -> 0 | AR116: =SUM(AR106:AR115) -> 0 | AS116: =SUM(AS106:AS115) -> 0 | AT116: =SUM(AT106:AT115) -> 0 | AU116: =SUM(AU106:AU115) -> 0 | AV116: =SUM(AV106:AV115) -> 0 | AW116: =SUM(AW106:AW115) -> 0 | AX116: =SUM(AX106:AX115) -> 0 | AY116: =SUM(AY106:AY115) -> 0 | AZ116: =SUM(AZ106:AZ115) -> 0 | BA116: =SUM(BA106:BA115) -> 0 | BB116: =SUM(BB106:BB115) -> 0 | BC116: =SUM(BC106:BC115) -> 0 | BD116: =SUM(BD106:BD115) -> 0 | BE116: =SUM(BE106:BE115) -> 0 | BF116: =SUM(BF106:BF115) -> 0

Sheet Load
B1: =Main!B1 -> ERA, GGT Tariff Model, July 2019 [Draft Decision]
B2: Load
A3: Ref | B3: =COLUMN() -> 2 | C3: =COLUMN() -> 3 | D3: =COLUMN() -> 4 | E3: =COLUMN() -> 5 | F3: =COLUMN() -> 6 | G3: =COLUMN() -> 7 | H3: =COLUMN() -> 8 | I3: =COLUMN() -> 9 | J3: =COLUMN() -> 10 | K3: =COLUMN() -> 11 | L3: =COLUMN() -> 12 | M3: =COLUMN() -> 13 | N3: =COLUMN() -> 14 | O3: =COLUMN() -> 15 | P3: =COLUMN() -> 16 | Q3: =COLUMN() -> 17 | R3: =COLUMN() -> 18 | S3: =COLUMN() -> 19 | T3: =COLUMN() -> 20 | U3: =COLUMN() -> 21 | V3: =COLUMN() -> 22 | W3: =COLUMN() -> 23 | X3: =COLUMN() -> 24 | Y3: =COLUMN() -> 25 | Z3: =COLUMN() -> 26 | AA3: =COLUMN() -> 27 | AB3: =COLUMN() -> 28 | AC3: =COLUMN() -> 29 | AD3: =COLUMN() -> 30 | AE3: =COLUMN() -> 31 | AF3: =COLUMN() -> 32 | AG3: =COLUMN() -> 33 | AH3: =COLUMN() -> 34 | AI3: =COLUMN() -> 35 | AJ3: =COLUMN() -> 36 | AK3: =COLUMN() -> 37 | AL3: =COLUMN() -> 38 | AM3: =COLUMN() -> 39 | AN3: =COLUMN() -> 40 | AO3: =COLUMN() -> 41 | AP3: =COLUMN() -> 42 | AQ3: =COLUMN() -> 43 | AR3: =COLUMN() -> 44 | AS3: =COLUMN() -> 45 | AT3: =COLUMN() -> 46 | AU3: =COLUMN() -> 47 | AV3: =COLUMN() -> 48 | AW3: =COLUMN() -> 49 | AX3: =COLUMN() -> 50 | AY3: =COLUMN() -> 51 | AZ3: =COLUMN() -> 52 | BA3: =COLUMN() -> 53 | BB3: =COLUMN() -> 54 | BC3: =COLUMN() -> 55 | BD3: =COLUMN() -> 56 | BE3: =COLUMN() -> 57 | BF3: =COLUMN() -> 58 | BG3: =COLUMN() -> 59 | BH3: =COLUMN() -> 60 | BI3: =COLUMN() -> 61 | BJ3: =COLUMN() -> 62 | BK3: =COLUMN() -> 63 | BL3: =COLUMN() -> 64 | BM3: =COLUMN() -> 65 | BN3: =COLUMN() -> 66 | BO3: =COLUMN() -> 67 | BP3: =COLUMN() -> 68 | BQ3: =COLUMN() -> 69 | BR3: =COLUMN() -> 70 | BS3: =COLUMN() -> 71 | BT3: =COLUMN() -> 72 | BU3: =COLUMN() -> 73 | BV3: =COLUMN() -> 74 | BW3: =COLUMN() -> 75 | BX3: =COLUMN() -> 76 | BY3: =COLUMN() -> 77 | BZ3: =COLUMN() -> 78 | CA3: =COLUMN() -> 79 | CB3: =COLUMN() -> 80 | CC3: =COLUMN() -> 81 | CD3: =COLUMN() -> 82 | CE3: =COLUMN() -> 83 | CF3: =COLUMN() -> 84 | CG3: =COLUMN() -> 85 | CH3: =COLUMN() -> 86 | CI3: =COLUMN() -> 87 | CJ3: =COLUMN() -> 88
A4: =ROW() -> 4 | B4: Actual or Forecast | C4: Actual | D4: Actual | E4: Actual | F4: Actual | G4: Actual | H4: Actual | I4: Actual | J4: Actual | K4: Actual | L4: Actual | M4: Actual | N4: Actual | O4: Actual | P4: Actual | Q4: Actual | R4: Actual | S4: Actual | T4: Actual | U4: Actual | V4: Actual | W4: Actual | X4: Actual | Y4: Actual | Z4: Actual | AA4: Actual | AB4: Actual | AC4: Actual | AD4: Actual | AE4: Actual | AF4: Actual | AG4: Actual | AH4: Actual | AI4: Actual | AJ4: Actual | AK4: Actual | AL4: Actual | AM4: Actual | AN4: Actual | AO4: Actual | AP4: Actual | AQ4: Actual | AR4: Forecast | AS4: Forecast | AT4: Forecast | AU4: Forecast | AV4: Forecast | AW4: Forecast | AX4: Forecast | AY4: Forecast | AZ4: Forecast | BA4: Forecast | BB4: Forecast | BC4: Forecast | BD4: Forecast | BE4: Forecast | BF4: Forecast | BG4: Forecast | BH4: Forecast | BI4: Forecast | BJ4: Forecast | BK4: Forecast | BL4: Forecast | BM4: Forecast | BN4: Forecast | BO4: Forecast | BP4: Forecast | BQ4: Forecast | BR4: Forecast | BS4: Forecast | BT4: Forecast | BU4: Forecast | BV4: Forecast | BW4: Forecast | BX4: Forecast | BY4: Forecast | BZ4: Forecast | CA4: Forecast | CB4: Forecast | CC4: Forecast | CD4: Forecast | CE4: Forecast | CF4: Forecast | CG4: Forecast | CH4: Forecast | CI4: Forecast | CJ4: Forecast
A5: =ROW() -> 5 | B5: Year Type | C5: Calendar | D5: Calendar | E5: Calendar | F5: Calendar | G5: Calendar | H5: Calendar | I5: Calendar | J5: Calendar | K5: Calendar | L5: Calendar | M5: Calendar | N5: Calendar | O5: Calendar | P5: Calendar | Q5: Calendar | R5: Calendar | S5: Calendar | T5: Calendar | U5: Calendar | V5: Calendar | W5: Calendar | X5: Calendar | Y5: Calendar | Z5: Calendar | AA5: Calendar | AB5: Calendar | AC5: Calendar | AD5: Calendar | AE5: Calendar | AF5: Calendar | AG5: Calendar | AH5: Calendar | AI5: Calendar | AJ5: Calendar | AK5: Calendar | AL5: Calendar | AM5: Calendar | AN5: Calendar | AO5: Calendar | AP5: Calendar | AQ5: Calendar | AR5: Calendar | AS5: Calendar | AT5: Calendar | AU5: Calendar | AV5: Calendar | AW5: Calendar | AX5: Calendar | AY5: Calendar | AZ5: Calendar | BA5: Calendar | BB5: Calendar | BC5: Calendar | BD5: Calendar | BE5: Calendar | BF5: Calendar | BG5: Calendar | BH5: Calendar | BI5: Calendar | BJ5: Calendar | BK5: Calendar | BL5: Calendar | BM5: Calendar | BN5: Calendar | BO5: Calendar | BP5: Calendar | BQ5: Calendar | BR5: Calendar | BS5: Calendar | BT5: Calendar | BU5: Calendar | BV5: Calendar | BW5: Calendar | BX5: Calendar | BY5: Calendar | BZ5: Calendar | CA5: Calendar | CB5: Calendar | CC5: Calendar | CD5: Calendar | CE5: Calendar | CF5: Calendar | CG5: Calendar | CH5: Calendar | CI5: Calendar | CJ5: Calendar
A6: =ROW() -> 6 | B6: Regulatory Period | D6: 1 | E6: 1 | F6: 1 | G6: 1 | H6: 1 | I6: 1 | J6: 1 | K6: 1 | L6: 1 | M6: 1 | N6: 1 | O6: 1 | P6: 1 | Q6: 1 | R6: 1 | S6: 1 | T6: 1 | U6: 1 | V6: 1 | W6: 1 | X6: 1 | Y6: 1 | Z6: 1 | AA6: 1 | AB6: 1 | AC6: 1 | AD6: 1 | AE6: 1 | AF6: 1 | AG6: 1 | AH6: 1 | AI6: 1 | AJ6: 1 | AK6: 1 | AL6: 1 | AM6: 1 | AN6: 1 | AO6: 1 | AP6: 1 | AQ6: 1 | AR6: 2 | AS6: 2 | AT6: 2 | AU6: 2 | AV6: 2 | AW6: 2 | AX6: 2 | AY6: 2 | AZ6: 2 | BA6: 2 | BB6: 2 | BC6: 2 | BD6: 2 | BE6: 2 | BF6: 2 | BG6: 2 | BH6: 2 | BI6: 2 | BJ6: 2 | BK6: 2 | BL6: 3 | BM6: 3 | BN6: 3 | BO6: 3 | BP6: 3 | BQ6: 3 | BR6: 3 | BS6: 3 | BT6: 3 | BU6: 3 | BV6: 3 | BW6: 3 | BX6: 3 | BY6: 3 | BZ6: 3 | CA6: 3 | CB6: 3 | CC6: 3 | CD6: 3 | CE6: 3 | CF6: 4 | CG6: 4 | CH6: 4 | CI6: 4 | CJ6: 4
A7: =ROW() -> 7 | B7: Start Date | C7: 1999-10-01 | D7: =C8+1 -> 2000-01-01 | E7: 2000-04-01 | F7: 2000-07-01 | G7: 2000-10-01 | H7: 2001-01-01 | I7: 2001-04-01 | J7: 2001-07-01 | K7: 2001-10-01 | L7: 2002-01-01 | M7: 2002-04-01 | N7: 2002-07-01 | O7: 2002-10-01 | P7: 2003-01-01 | Q7: 2003-04-01 | R7: 2003-07-01 | S7: 2003-10-01 | T7: 2004-01-01 | U7: 2004-04-01 | V7: 2004-07-01 | W7: 2004-10-01 | X7: 2005-01-01 | Y7: 2005-04-01 | Z7: 2005-07-01 | AA7: 2005-10-01 | AB7: 2006-01-01 | AC7: 2006-04-01 | AD7: 2006-07-01 | AE7: 2006-10-01 | AF7: 2007-01-01 | AG7: 2007-04-01 | AH7: 2007-07-01 | AI7: 2007-10-01 | AJ7: 2008-01-01 | AK7: 2008-04-01 | AL7: 2008-07-01 | AM7: 2008-10-01 | AN7: 2009-01-01 | AO7: 2009-04-01 | AP7: 2009-07-01 | AQ7: 2009-10-01 | AR7: 2010-01-01 | AS7: 2010-04-01 | AT7: 2010-07-01 | AU7: 2010-10-01 | AV7: 2011-01-01 | AW7: 2011-04-01 | AX7: 2011-07-01 | AY7: 2011-10-01 | AZ7: 2012-01-01 | BA7: 2012-04-01 | BB7: 2012-07-01 | BC7: 2012-10-01 | BD7: 2013-01-01 | BE7: 2013-04-01 | BF7: 2013-07-01 | BG7: 2013-10-01 | BH7: 2014-01-01 | BI7: 2014-04-01 | BJ7: 2014-07-01 | BK7: 2014-10-01 | BL7: 2015-01-01 | BM7: 2015-04-01 | BN7: 2015-07-01 | BO7: 2015-10-01 | BP7: =BO8+1 -> 2016-01-01 | BQ7: 2016-04-01 | BR7: 2016-07-01 | BS7: 2016-10-01 | BT7: 2017-01-01 | BU7: 2017-04-01 | BV7: 2017-07-01 | BW7: 2017-10-01 | BX7: 2018-01-01 | BY7: 2018-04-01 | BZ7: 2018-07-01 | CA7: 2018-10-01 | CB7: 2019-01-01 | CC7: 2019-04-01 | CD7: 2019-07-01 | CE7: 2019-10-01 | CF7: 2020-01-01 | CG7: 2021-01-01 | CH7: 2022-01-01 | CI7: 2023-01-01 | CJ7: 2024-01-01
A8: =ROW() -> 8 | B8: End Date | C8: =C7+C11-1 -> 1999-12-31 | D8: 2000-03-31 | E8: 2000-06-30 | F8: 2000-09-30 | G8: 2000-12-31 | H8: 2001-03-31 | I8: 2001-06-30 | J8: 2001-09-30 | K8: 2001-12-31 | L8: 2002-03-31 | M8: 2002-06-30 | N8: 2002-09-30 | O8: 2002-12-31 | P8: 2003-03-31 | Q8: 2003-06-30 | R8: 2003-09-30 | S8: 2003-12-31 | T8: 2004-03-31 | U8: 2004-06-30 | V8: 2004-09-30 | W8: 2004-12-31 | X8: 2005-03-31 | Y8: 2005-06-30 | Z8: 2005-09-30 | AA8: 2005-12-31 | AB8: 2006-03-31 | AC8: 2006-06-30 | AD8: 2006-09-30 | AE8: 2006-12-31 | AF8: 2007-03-31 | AG8: 2007-06-30 | AH8: 2007-09-30 | AI8: 2007-12-31 | AJ8: 2008-03-31 | AK8: 2008-06-30 | AL8: 2008-09-30 | AM8: 2008-12-31 | AN8: 2009-03-31 | AO8: 2009-06-30 | AP8: 2009-09-30 | AQ8: 2009-12-31 | AR8: 2010-03-31 | AS8: 2010-06-30 | AT8: 2010-09-30 | AU8: 2010-12-31 | AV8: 2011-03-31 | AW8: 2011-06-30 | AX8: 2011-09-30 | AY8: 2011-12-31 | AZ8: 2012-03-31 | BA8: 2012-06-30 | BB8: 2012-09-30 | BC8: 2012-12-31 | BD8: 2013-03-31 | BE8: 2013-06-30 | BF8: 2013-09-30 | BG8: 2013-12-31 | BH8: 2014-03-31 | BI8: 2014-06-30 | BJ8: 2014-09-30 | BK8: 2014-12-31 | BL8: 2015-03-31 | BM8: 2015-06-30 | BN8: 2015-09-30 | BO8: =BO7+BO11-1 -> 2015-12-31 | BP8: 2016-03-31 | BQ8: 2016-06-30 | BR8: 2016-09-30 | BS8: 2016-12-31 | BT8: 2017-03-31 | BU8: 2017-06-30 | BV8: 2017-09-30 | BW8: 2017-12-31 | BX8: 2018-03-31 | BY8: 2018-06-30 | BZ8: 2018-09-30 | CA8: 2018-12-31 | CB8: 2019-03-31 | CC8: 2019-06-30 | CD8: 2019-09-30 | CE8: 2019-12-31 | CF8: =CF7+CF11-1 -> 2020-12-31 | CG8: 2021-12-31 | CH8: =CH7+CH11-1 -> 2022-12-31 | CI8: 2023-12-31 | CJ8: 2024-12-31
A9: =ROW() -> 9 | B9: Year | C9: =C8 -> 1999-12-31 | D9: =D8 -> 2000-03-31 | E9: 2000-06-30 | F9: 2000-09-30 | G9: 2000-12-31 | H9: 2001-03-31 | I9: 2001-06-30 | J9: 2001-09-30 | K9: 2001-12-31 | L9: 2002-03-31 | M9: 2002-06-30 | N9: 2002-09-30 | O9: 2002-12-31 | P9: 2003-03-31 | Q9: 2003-06-30 | R9: 2003-09-30 | S9: 2003-12-31 | T9: 2004-03-31 | U9: 2004-06-30 | V9: 2004-09-30 | W9: 2004-12-31 | X9: 2005-03-31 | Y9: 2005-06-30 | Z9: 2005-09-30 | AA9: 2005-12-31 | AB9: 2006-03-31 | AC9: 2006-06-30 | AD9: 2006-09-30 | AE9: 2006-12-31 | AF9: 2007-03-31 | AG9: 2007-06-30 | AH9: 2007-09-30 | AI9: 2007-12-31 | AJ9: 2008-03-31 | AK9: 2008-06-30 | AL9: 2008-09-30 | AM9: 2008-12-31 | AN9: 2009-03-31 | AO9: 2009-06-30 | AP9: 2009-09-30 | AQ9: 2009-12-31 | AR9: 2010-03-31 | AS9: 2010-06-30 | AT9: 2010-09-30 | AU9: 2010-12-31 | AV9: 2011-03-31 | AW9: 2011-06-30 | AX9: 2011-09-30 | AY9: 2011-12-31 | AZ9: 2012-03-31 | BA9: 2012-06-30 | BB9: 2012-09-30 | BC9: 2012-12-31 | BD9: 2013-03-31 | BE9: 2013-06-30 | BF9: 2013-09-30 | BG9: 2013-12-31 | BH9: 2014-03-31 | BI9: 2014-06-30 | BJ9: 2014-09-30 | BK9: 2014-12-31 | BL9: 2015-03-31 | BM9: 2015-06-30 | BN9: 2015-09-30 | BO9: 2015-12-31 | BP9: =BP8 -> 2016-03-31 | BQ9: 2016-06-30 | BR9: 2016-09-30 | BS9: 2016-12-31 | BT9: 2017-03-31 | BU9: 2017-06-30 | BV9: 2017-09-30 | BW9: 2017-12-31 | BX9: 2018-03-31 | BY9: 2018-06-30 | BZ9: 2018-09-30 | CA9: 2018-12-31 | CB9: 2019-03-31 | CC9: 2019-06-30 | CD9: 2019-09-30 | CE9: 2019-12-31 | CF9: =CF8 -> 2020-12-31 | CG9: 2021-12-31 | CH9: =CH8 -> 2022-12-31 | CI9: 2023-12-31 | CJ9: 2024-12-31
A10: =ROW() -> 10 | B10: Quarter | D10: Q1 | E10: Q2 | F10: Q3 | G10: Q4 | H10: Q1 | I10: Q2 | J10: Q3 | K10: Q4 | L10: Q1 | M10: Q2 | N10: Q3 | O10: Q4 | P10: Q1 | Q10: Q2 | R10: Q3 | S10: Q4 | T10: Q1 | U10: Q2 | V10: Q3 | W10: Q4 | X10: Q1 | Y10: Q2 | Z10: Q3 | AA10: Q4 | AB10: Q1 | AC10: Q2 | AD10: Q3 | AE10: Q4 | AF10: Q1 | AG10: Q2 | AH10: Q3 | AI10: Q4 | AJ10: Q1 | AK10: Q2 | AL10: Q3 | AM10: Q4 | AN10: Q1 | AO10: Q2 | AP10: Q3 | AQ10: Q4 | AR10: Q1 | AS10: Q2 | AT10: Q3 | AU10: Q4 | AV10: Q1 | AW10: Q2 | AX10: Q3 | AY10: Q4 | AZ10: Q1 | BA10: Q2 | BB10: Q3 | BC10: Q4 | BD10: Q1 | BE10: Q2 | BF10: Q3 | BG10: Q4 | BH10: Q1 | BI10: Q2 | BJ10: Q3 | BK10: Q4 | BL10: Q1 | BM10: Q2 | BN10: Q3 | BO10: Q4 | BP10: Q1 | BQ10: Q2 | BR10: Q3 | BS10: Q4 | BT10: Q1 | BU10: Q2 | BV10: Q3 | BW10: Q4 | BX10: Q1 | BY10: Q2 | BZ10: Q3 | CA10: Q4 | CB10: Q1 | CC10: Q2 | CD10: Q3 | CE10: Q4
A11: =ROW() -> 11 | B11: Days | C11: 92 | D11: 91 | E11: 91 | F11: 92 | G11: 92 | H11: 90 | I11: 91 | J11: 92 | K11: 92 | L11: 90 | M11: 91 | N11: 92 | O11: 92 | P11: 90 | Q11: 91 | R11: 92 | S11: 92 | T11: 91 | U11: 91 | V11: 92 | W11: 92 | X11: 90 | Y11: 91 | Z11: 92 | AA11: 92 | AB11: 90 | AC11: 91 | AD11: 92 | AE11: 92 | AF11: 90 | AG11: 91 | AH11: 92 | AI11: 92 | AJ11: 91 | AK11: 91 | AL11: 92 | AM11: 92 | AN11: 90 | AO11: 91 | AP11: 92 | AQ11: 92 | AR11: 90 | AS11: 91 | AT11: 92 | AU11: 92 | AV11: 90 | AW11: 91 | AX11: 92 | AY11: 92 | AZ11: 91 | BA11: 91 | BB11: 92 | BC11: 92 | BD11: 90 | BE11: 91 | BF11: 92 | BG11: 92 | BH11: 90 | BI11: 91 | BJ11: 92 | BK11: 92 | BL11: 90 | BM11: 91 | BN11: 92 | BO11: 92 | BP11: 91 | BQ11: 91 | BR11: 92 | BS11: 92 | BT11: 90 | BU11: 91 | BV11: 92 | BW11: 92 | BX11: 90 | BY11: 91 | BZ11: 92 | CA11: 92 | CB11: 90 | CC11: 91 | CD11: 92 | CE11: 92 | CF11: 366 | CG11: 365 | CH11: 365 | CI11: 365 | CJ11: 366
A12: =ROW() -> 12 | B12: Years (nearest half) | C12: =ROUND(YEARFRAC(C7,C8),2) -> 0.25 | D12: 0.25 | E12: 0.25 | F12: 0.25 | G12: 0.25 | H12: 0.25 | I12: 0.25 | J12: 0.25 | K12: 0.25 | L12: 0.25 | M12: 0.25 | N12: 0.25 | O12: 0.25 | P12: 0.25 | Q12: 0.25 | R12: 0.25 | S12: 0.25 | T12: 0.25 | U12: 0.25 | V12: 0.25 | W12: 0.25 | X12: 0.25 | Y12: 0.25 | Z12: 0.25 | AA12: 0.25 | AB12: 0.25 | AC12: 0.25 | AD12: 0.25 | AE12: 0.25 | AF12: 0.25 | AG12: 0.25 | AH12: 0.25 | AI12: 0.25 | AJ12: 0.25 | AK12: 0.25 | AL12: 0.25 | AM12: 0.25 | AN12: 0.25 | AO12: 0.25 | AP12: 0.25 | AQ12: 0.25 | AR12: 0.25 | AS12: 0.25 | AT12: 0.25 | AU12: 0.25 | AV12: 0.25 | AW12: 0.25 | AX12: 0.25 | AY12: 0.25 | AZ12: 0.25 | BA12: 0.25 | BB12: 0.25 | BC12: 0.25 | BD12: 0.25 | BE12: 0.25 | BF12: 0.25 | BG12: 0.25 | BH12: 0.25 | BI12: 0.25 | BJ12: 0.25 | BK12: 0.25 | BL12: 0.25 | BM12: 0.25 | BN12: 0.25 | BO12: =ROUND(YEARFRAC(BO7,BO8),2) -> 0.25 | BP12: 0.25 | BQ12: 0.25 | BR12: 0.25 | BS12: 0.25 | BT12: 0.25 | BU12: 0.25 | BV12: 0.25 | BW12: 0.25 | BX12: 0.25 | BY12: 0.25 | BZ12: 0.25 | CA12: 0.25 | CB12: 0.25 | CC12: 0.25 | CD12: 0.25 | CE12: 0.25 | CF12: =ROUND(YEARFRAC(CF7,CF8),2) -> 1 | CG12: 1 | CH12: =ROUND(YEARFRAC(CH7,CH8),2) -> 1 | CI12: 1 | CJ12: 1
A13: =ROW() -> 13
A14: =ROW() -> 14 | B14: Historical Tariffs
A15: =ROW() -> 15 | B15: Toll charge | D15: 0.2118597987 | E15: 0.2130615966 | F15: 0.2149501361 | G15: 0.2166669902 | H15: 0.2187778624 | I15: 0.2194463967 | J15: 0.2217862669 | K15: 0.2236247363 | L15: 0.2242932707 | M15: 0.2262988737 | N15: 0.2283044767 | O15: 0.2299758125 | P15: 0.2314800148 | Q15: 0.2331513506 | R15: 0.2361597552 | S15: 0.2361597552 | T15: 0.2374968238 | U15: 0.2386667589 | V15: 0.2408394955 | W15: 0.2420094306 | X15: 0.2430122321 | Y15: 0.24485 | Z15: 0.246521 | AA15: 0.248025 | AB15: 0.250365 | AC15: 0.251702 | AD15: 0.253875 | AE15: 0.257886 | AF15: 0.260226 | AG15: 0.259892 | AH15: 0.260059 | AI15: 0.263235 | AJ15: 0.265073 | AK15: 0.26758 | AL15: 0.27109 | AM15: 0.275101 | AN15: 0.278277 | AO15: 0.277441 | AP15: 0.277775 | AQ15: 0.279112 | AR15: 0.281786 | AS15: 0.28329 | AT15: 0.285797 | AU15: 0.243755 | AV15: 0.245517 | AW15: 0.244992 | AX15: 0.247262 | AY15: 0.247965 | AZ15: 0.2342570423 | BA15: 0.2342570423 | BB15: 0.2342570423 | BC15: 0.2342570423 | BD15: 0.2342570423 | BE15: 0.2342570423 | BF15: 0.2342570423 | BG15: 0.2342570423 | BH15: 0.2342570423 | BI15: 0.2342570423 | BJ15: 0.2342570423 | BK15: 0.2342570423
A16: =ROW() -> 16 | B16: Reservation charge | D16: 0.00120951226 | E16: 0.001216373351 | F16: 0.001227155064 | G16: 0.001236956622 | H16: 0.001249007638 | I16: 0.001252824315 | J16: 0.001266182686 | K16: 0.001276678548 | L16: 0.001280495225 | M16: 0.001291945257 | N16: 0.001303395289 | O16: 0.001312936982 | P16: 0.001321524506 | Q16: 0.001331066199 | R16: 0.001348241247 | S16: 0.001348241247 | T16: 0.001355874602 | U16: 0.001362553787 | V16: 0.001374957988 | W16: 0.001381637173 | X16: 0.001387362189 | Y16: 0.001399 | Z16: 0.001409 | AA16: 0.001418 | AB16: 0.001431 | AC16: 0.001439 | AD16: 0.001451 | AE16: 0.001474 | AF16: 0.001487 | AG16: 0.001485 | AH16: 0.001486 | AI16: 0.001504 | AJ16: 0.001515 | AK16: 0.001529 | AL16: 0.001549 | AM16: 0.001572 | AN16: 0.00159 | AO16: 0.001585 | AP16: 0.001587 | AQ16: 0.001595 | AR16: 0.00161 | AS16: 0.001619 | AT16: 0.001633 | AU16: 0.001442 | AV16: 0.001461 | AW16: 0.001458 | AX16: 0.001472 | AY16: 0.001476 | AZ16: 0.00139906766 | BA16: 0.00139906766 | BB16: 0.00139906766 | BC16: 0.00139906766 | BD16: 0.00139906766 | BE16: 0.00139906766 | BF16: 0.00139906766 | BG16: 0.00139906766 | BH16: 0.00139906766 | BI16: 0.00139906766 | BJ16: 0.00139906766 | BK16: 0.00139906766
A17: =ROW() -> 17 | B17: Throughput charge | D17: 0.0003152967538 | E17: 0.0003170853092 | F17: 0.0003198958961 | G17: 0.0003224509752 | H17: 0.0003255924449 | I17: 0.0003265873797 | J17: 0.0003300696519 | K17: 0.0003328057229 | L17: 0.0003338006577 | M17: 0.0003367854624 | N17: 0.0003397702671 | O17: 0.0003422576044 | P17: 0.0003444962079 | Q17: 0.0003469835451 | R17: 0.0003514607522 | S17: 0.0003514607522 | T17: 0.000353450622 | U17: 0.000355191758 | V17: 0.0003584252964 | W17: 0.0003601664325 | X17: 0.0003616588348 | Y17: 0.000364 | Z17: 0.000366 | AA17: 0.000368 | AB17: 0.000371 | AC17: 0.000373 | AD17: 0.000376 | AE17: 0.000382 | AF17: 0.000385 | AG17: 0.000385 | AH17: 0.000385 | AI17: 0.00039 | AJ17: 0.000393 | AK17: 0.000397 | AL17: 0.000402 | AM17: 0.000408 | AN17: 0.000413 | AO17: 0.000412 | AP17: 0.000412 | AQ17: 0.000414 | AR17: 0.000418 | AS17: 0.00042 | AT17: 0.000424 | AU17: 0.000402 | AV17: 0.000402 | AW17: 0.000401 | AX17: 0.000405 | AY17: 0.000406 | AZ17: 0.0003967029882 | BA17: 0.0003967029882 | BB17: 0.0003967029882 | BC17: 0.0003967029882 | BD17: 0.0003967029882 | BE17: 0.0003967029882 | BF17: 0.0003967029882 | BG17: 0.0003967029882 | BH17: 0.0003967029882 | BI17: 0.0003967029882 | BJ17: 0.0003967029882 | BK17: 0.0003967029882
A18: =ROW() -> 18 | B18: Reserved Capacity [TJ/day]
A19: =ROW() -> 19
A20: =ROW() -> 20
A21: =ROW() -> 21
A22: =ROW() -> 22
A23: =ROW() -> 23
A24: =ROW() -> 24
A25: =ROW() -> 25
A26: =ROW() -> 26
A27: =ROW() -> 27
A28: =ROW() -> 28
A29: =ROW() -> 29
A30: =ROW() -> 30
A31: =ROW() -> 31
A32: =ROW() -> 32
A33: =ROW() -> 33
A34: =ROW() -> 34
A35: =ROW() -> 35
A36: =ROW() -> 36
A37: =ROW() -> 37
A38: =ROW() -> 38
A39: =ROW() -> 39
A40: =ROW() -> 40
A41: =ROW() -> 41
A42: =ROW() -> 42
A43: =ROW() -> 43
A44: =ROW() -> 44
A45: =ROW() -> 45
A46: =ROW() -> 46
A47: =ROW() -> 47 | B47: Total | D47: 89.88984 | E47: 89.9753019 | F47: 90.9184042 | G47: 91.31861801 | H47: 91.90711233 | I47: 91.49021193 | J47: 90.79213808 | K47: 91.0867021 | L47: 95.26226618 | M47: 94.60165137 | N47: 93.90110129 | O47: 94.51169613 | P47: 93.74189499 | Q47: 93.31920964 | R47: 93.19836359 | S47: 93.85173913 | T47: 95.02082976 | U47: 96.38595701 | V47: 96.64338032 | W47: 99.86671285 | X47: 104.0404444 | Y47: 103.7374396 | Z47: 111.3591304 | AA47: 108.6996413 | AB47: 106.7172222 | AC47: 107.1743736 | AD47: 108.6608261 | AE47: 108.3994891 | AF47: 109.0211222 | AG47: 109.4148901 | AH47: 109.4926087 | AI47: 109.1248913 | AJ47: 109.1411538 | AK47: 110.3697033 | AL47: 110.8769087 | AM47: 107.6695781 | AN47: 105.93 | AO47: 106.4883736 | AP47: 106.8644783 | AQ47: 106.1230543 | AR47: 109.442559 | AS47: 110.1634272 | AT47: 110.4587373 | AU47: 109.6906022 | AV47: 108.1009071 | AW47: 108.8464438 | AX47: 109.1470459 | AY47: 108.3674825 | AZ47: 108.0423119 | BA47: 108.8339042 | BB47: 109.0664692 | BC47: 108.2239902 | BD47: 108.3993587 | BE47: 109.219669 | BF47: 109.4542682 | BG47: 108.5878794 | BH47: 108.4290809 | BI47: 109.2757855 | BJ47: 109.5170172 | BK47: 108.6246495 | BL47: 97.22 | BM47: 97.79 | BN47: 97.89 | BO47: 97.32 | BP47: 102.4 | BQ47: 102.98 | BR47: 103.7 | BS47: 99.6 | BT47: 99.6 | BU47: 99.6 | BV47: 98.98 | BW47: 101 | BX47: 102.5 | BY47: 102.5 | BZ47: 102.5 | CA47: 102.5 | CB47: 102.5 | CC47: 102.5 | CD47: 102.5 | CE47: 102.5 | CF47: 110.28 | CG47: 110.28 | CH47: 110.28 | CI47: 110.28 | CJ47: 110.28
A48: =ROW() -> 48 | B48: Throughput [TJ/day]
A49: =ROW() -> 49
A50: =ROW() -> 50
A51: =ROW() -> 51
A52: =ROW() -> 52
A53: =ROW() -> 53
A54: =ROW() -> 54
A55: =ROW() -> 55
A56: =ROW() -> 56
A57: =ROW() -> 57
A58: =ROW() -> 58
A59: =ROW() -> 59
A60: =ROW() -> 60
A61: =ROW() -> 61
A62: =ROW() -> 62
A63: =ROW() -> 63
A64: =ROW() -> 64
A65: =ROW() -> 65
A66: =ROW() -> 66
A67: =ROW() -> 67
A68: =ROW() -> 68
A69: =ROW() -> 69
A70: =ROW() -> 70
A71: =ROW() -> 71
A72: =ROW() -> 72
A73: =ROW() -> 73
A74: =ROW() -> 74
A75: =ROW() -> 75
A76: =ROW() -> 76
A77: =ROW() -> 77 | B77: Total | D77: 77.34774937 | E77: 80.36623471 | F77: 84.54288989 | G77: 83.31260258 | H77: 81.95889768 | I77: 84.42735954 | J77: 84.61434615 | K77: 80.82400886 | L77: 79.22386486 | M77: 81.34296926 | N77: 84.33126135 | O77: 83.73432833 | P77: 84.04847488 | Q77: 83.25734708 | R77: 82.61949992 | S77: 83.15045715 | T77: 80.56720284 | U77: 86.77963637 | V77: 86.95681288 | W77: 90.03174322 | X77: 94.13710711 | Y77: 95.80772648 | Z77: 96.64180076 | AA77: 96.47611924 | AB77: 100.5015778 | AC77: 98.47697802 | AD77: 102.7897935 | AE77: 103.0447935 | AF77: 97.32293333 | AG77: 96.42796703 | AH77: 97.28876087 | AI77: 93.66522826 | AJ77: 93.22727473 | AK77: 88.00876923 | AL77: 81.66268478 | AM77: 85.50272826 | AN77: 85.26583333 | AO77: 87.78412088 | AP77: 87.27666304 | AQ77: 85.13357674 | AR77: 90.3907117 | AS77: 90.68495522 | AT77: 90.972083 | AU77: 90.63081779 | AV77: 89.24835667 | AW77: 89.55457747 | AX77: 89.72314478 | AY77: 89.37581435 | AZ77: 89.17194297 | BA77: 89.49681549 | BB77: 89.63861174 | BC77: 89.26519435 | BD77: 89.49806333 | BE77: 89.83617352 | BF77: 89.94614304 | BG77: 89.56153435 | BH77: 89.51125133 | BI77: 89.86107286 | BJ77: 89.97398529 | BK77: 89.57784955 | BL77: 75.37 | BM77: 71.27 | BN77: 69.14 | BO77: 68.8 | BP77: 76.42 | BQ77: 76.78 | BR77: 78.11 | BS77: 75.11 | BT77: 75.11 | BU77: 75.11 | BV77: 74.01 | BW77: 75.51 | BX77: 76.91 | BY77: 76.91 | BZ77: 76.91 | CA77: 76.91 | CB77: 76.91 | CC77: 76.91 | CD77: 76.91 | CE77: 76.91 | CF77: 90.46028058 | CG77: 90.46028058 | CH77: 90.46028058 | CI77: 90.46028058 | CJ77: 90.46028058
A78: =ROW() -> 78 | B78: km from Receipt
A79: =ROW() -> 79
A80: =ROW() -> 80
A81: =ROW() -> 81
A82: =ROW() -> 82
A83: =ROW() -> 83
A84: =ROW() -> 84
A85: =ROW() -> 85
A86: =ROW() -> 86
A87: =ROW() -> 87
A88: =ROW() -> 88
A89: =ROW() -> 89
A90: =ROW() -> 90
A91: =ROW() -> 91
A92: =ROW() -> 92
A93: =ROW() -> 93
A94: =ROW() -> 94
A95: =ROW() -> 95
A96: =ROW() -> 96
A97: =ROW() -> 97
A98: =ROW() -> 98
A99: =ROW() -> 99
A100: =ROW() -> 100
A101: =ROW() -> 101
A102: =ROW() -> 102
A103: =ROW() -> 103
A104: =ROW() -> 104
A105: =ROW() -> 105
A106: =ROW() -> 106
A107: =ROW() -> 107 | B107: Calculated Load
A108: =ROW() -> 108 | B108: Reserved Capacity [TJ/day] | D108: =Load!D47 -> 89.88984 | E108: =Load!E47 -> 89.9753019 | F108: =Load!F47 -> 90.9184042 | G108: =Load!G47 -> 91.31861801 | H108: =Load!H47 -> 91.90711233 | I108: =Load!I47 -> 91.49021193 | J108: =Load!J47 -> 90.79213808 | K108: =Load!K47 -> 91.0867021 | L108: =Load!L47 -> 95.26226618 | M108: =Load!M47 -> 94.60165137 | N108: =Load!N47 -> 93.90110129 | O108: =Load!O47 -> 94.51169613 | P108: =Load!P47 -> 93.74189499 | Q108: =Load!Q47 -> 93.31920964 | R108: =Load!R47 -> 93.19836359 | S108: =Load!S47 -> 93.85173913 | T108: =Load!T47 -> 95.02082976 | U108: =Load!U47 -> 96.38595701 | V108: =Load!V47 -> 96.64338032 | W108: =Load!W47 -> 99.86671285 | X108: =Load!X47 -> 104.0404444 | Y108: =Load!Y47 -> 103.7374396 | Z108: =Load!Z47 -> 111.3591304 | AA108: =Load!AA47 -> 108.6996413 | AB108: =Load!AB47 -> 106.7172222 | AC108: =Load!AC47 -> 107.1743736 | AD108: =Load!AD47 -> 108.6608261 | AE108: =Load!AE47 -> 108.3994891 | AF108: =Load!AF47 -> 109.0211222 | AG108: =Load!AG47 -> 109.4148901 | AH108: =Load!AH47 -> 109.4926087 | AI108: =Load!AI47 -> 109.1248913 | AJ108: =Load!AJ47 -> 109.1411538 | AK108: =Load!AK47 -> 110.3697033 | AL108: =Load!AL47 -> 110.8769087 | AM108: =Load!AM47 -> 107.6695781 | AN108: =Load!AN47 -> 105.93 | AO108: =Load!AO47 -> 106.4883736 | AP108: =Load!AP47 -> 106.8644783 | AQ108: =Load!AQ47 -> 106.1230543 | AR108: =Load!AR47 -> 109.442559 | AS108: =Load!AS47 -> 110.1634272 | AT108: =Load!AT47 -> 110.4587373 | AU108: =Load!AU47 -> 109.6906022 | AV108: =Load!AV47 -> 108.1009071 | AW108: =Load!AW47 -> 108.8464438 | AX108: =Load!AX47 -> 109.1470459 | AY108: =Load!AY47 -> 108.3674825 | AZ108: =Load!AZ47 -> 108.0423119 | BA108: =Load!BA47 -> 108.8339042 | BB108: =Load!BB47 -> 109.0664692 | BC108: =Load!BC47 -> 108.2239902 | BD108: =Load!BD47 -> 108.3993587 | BE108: =Load!BE47 -> 109.219669 | BF108: =Load!BF47 -> 109.4542682 | BG108: =Load!BG47 -> 108.5878794 | BH108: =Load!BH47 -> 108.4290809 | BI108: =Load!BI47 -> 109.2757855 | BJ108: =Load!BJ47 -> 109.5170172 | BK108: =Load!BK47 -> 108.6246495 | BL108: =Load!BL47 -> 97.22 | BM108: =Load!BM47 -> 97.79 | BN108: =Load!BN47 -> 97.89 | BO108: =Load!BO47 -> 97.32 | BP108: =Load!BP47 -> 102.4 | BQ108: =Load!BQ47 -> 102.98 | BR108: =Load!BR47 -> 103.7 | BS108: =Load!BS47 -> 99.6 | BT108: =Load!BT47 -> 99.6 | BU108: =Load!BU47 -> 99.6 | BV108: =Load!BV47 -> 98.98 | BW108: =Load!BW47 -> 101 | BX108: =Load!BX47 -> 102.5 | BY108: =Load!BY47 -> 102.5 | BZ108: =Load!BZ47 -> 102.5 | CA108: =Load!CA47 -> 102.5 | CB108: =Load!CB47 -> 102.5 | CC108: =Load!CC47 -> 102.5 | CD108: =Load!CD47 -> 102.5 | CE108: =Load!CE47 -> 102.5 | CF108: =Load!CF47 -> 110.28 | CG108: =Load!CG47 -> 110.28 | CH108: =Load!CH47 -> 110.28 | CI108: =Load!CI47 -> 110.28 | CJ108: =Load!CJ47 -> 110.28
A109: =ROW() -> 109 | B109: Reserved Capacity x Distance (PJkms per day) | D109: 102.1312669 | E109: 102.5380909 | F109: 103.7126842 | G109: 103.820428 | H109: 104.5539883 | I109: 104.4447531 | J109: 103.8547676 | K109: 103.8684487 | L109: 109.4247671 | M109: 108.9938098 | N109: 108.2281389 | O109: 108.3700989 | P109: 107.4908544 | Q109: 107.4850789 | R109: 107.4953423 | S109: 107.6121698 | T109: 108.9933779 | U109: 111.6012361 | V109: 111.9514441 | W109: 113.3623936 | X109: 115.9764329 | Y109: 117.3086819 | Z109: 123.4428727 | AA109: 119.582522 | AB109: 116.2938415 | AC109: 116.9280941 | AD109: 118.4753324 | AE109: 118.0389777 | AF109: 118.6746449 | AG109: 119.2214657 | AH109: 119.323914 | AI109: 118.8254131 | AJ109: 119.5103771 | AK109: 121.0292705 | AL109: 120.4821882 | AM109: 116.1145947 | AN109: 113.4352983 | AO109: 113.841154 | AP109: 114.1169105 | AQ109: 113.3730524 | AR109: 116.8656967 | AS109: 117.8557659 | AT109: 118.2001325 | AU109: 117.1586978 | AV109: 117.0038239 | AW109: 118.0273415 | AX109: 118.3779875 | AY109: 117.3210569 | AZ109: 116.8661019 | BA109: 117.9520181 | BB109: 118.2644868 | BC109: 117.1222481 | BD109: 117.3575597 | BE109: 118.4824639 | BF109: 118.7976903 | BG109: 117.6230321 | BH109: 117.3978605 | BI109: 118.558553 | BJ109: 118.8827726 | BK109: 117.6728892 | BL109: 103.0533314 | BM109: 103.8325703 | BN109: 103.9681613 | BO109: 103.1952926 | BP109: 107.6108372 | BQ109: 108.4015118 | BR109: 109.788067 | BS109: 104.229287 | BT109: 104.229287 | BU109: 104.229287 | BV109: 103.7931294 | BW109: 106.754474 | BX109: 108.469829 | BY109: 108.469829 | BZ109: 108.469829 | CA109: 108.469829 | CB109: 108.469829 | CC109: 108.469829 | CD109: 108.469829 | CE109: 108.469829 | CF109: 116.3396335 | CG109: 116.3396335 | CH109: 116.3396335 | CI109: 116.3396335 | CJ109: 116.3396335
A110: =ROW() -> 110 | B110: Throughput x Distance (PJkms per day) | D110: 87.14612185 | E110: 90.54507206 | F110: 95.87367105 | G110: 94.23439294 | H110: 92.41654081 | I110: 95.55487902 | J110: 95.59225712 | K110: 91.59363636 | L110: 89.36483591 | M110: 92.06415651 | N110: 95.51025142 | O110: 94.39797972 | P110: 94.65288115 | Q110: 93.8855804 | R110: 93.06638553 | S110: 93.21494005 | T110: 90.16882841 | U110: 98.7891466 | V110: 98.91981032 | W110: 100.5214456 | X110: 103.5099352 | Y110: 107.0443684 | Z110: 108.228546 | AA110: 106.0568298 | AB110: 110.6107892 | AC110: 109.807601 | AD110: 114.1067014 | AE110: 113.0461216 | AF110: 105.2920747 | AG110: 105.4630832 | AH110: 106.9973736 | AI110: 102.1750761 | AJ110: 101.4644596 | AK110: 95.14290694 | AL110: 86.35158849 | AM110: 91.74781708 | AN110: 90.73314616 | AO110: 93.68099436 | AP110: 93.23969811 | AQ110: 90.94785792 | AR110: 96.17754833 | AS110: 96.58761589 | AT110: 96.85285314 | AU110: 96.39020626 | AV110: 96.20613225 | AW110: 96.63243999 | AX110: 96.81557735 | AY110: 96.34470655 | AZ110: 96.05604156 | BA110: 96.50759795 | BB110: 96.67588822 | BC110: 96.16964575 | BD110: 96.48302201 | BE110: 96.952569 | BF110: 97.09915714 | BG110: 96.57774022 | BH110: 96.50090381 | BI110: 96.98633037 | BJ110: 97.13690882 | BK110: 96.59986223 | BL110: 79.9672433 | BM110: 74.3081083 | BN110: 71.370964 | BO110: 70.9099546 | BP110: 79.6069708 | BQ110: 80.0950984 | BR110: 81.6011827 | BS110: 77.5337827 | BT110: 77.5337827 | BU110: 77.5337827 | BV110: 76.7599547 | BW110: 78.8933952 | BX110: 80.4943932 | BY110: 80.4943932 | BZ110: 80.4943932 | CA110: 80.4943932 | CB110: 80.4943932 | CC110: 80.4943932 | CD110: 80.4943932 | CE110: 80.4943932 | CF110: 97.22067183 | CG110: 97.22067183 | CH110: 97.22067183 | CI110: 97.22067183 | CJ110: 97.22067183
A111: =ROW() -> 111 | B111: Tariff Allocation
A112: =ROW() -> 112 | B112: Toll Charge Allocation | BL112: 0.113 | CF112: 0.113
A113: =ROW() -> 113 | B113: Reservation Charge Allocation | BL113: 0.722 | CF113: 0.722
A114: =ROW() -> 114 | B114: Throughput Charge Allocation | BL114: 0.165 | CF114: 0.165

Sheet CoS
B1: =Main!B1 -> ERA, GGT Tariff Model, July 2019 [Draft Decision]
B2: Cost of Service
A3: Ref | B3: =COLUMN() -> 2 | C3: =COLUMN() -> 3 | D3: =COLUMN() -> 4 | E3: =COLUMN() -> 5 | F3: =COLUMN() -> 6 | G3: =COLUMN() -> 7 | H3: =COLUMN() -> 8 | I3: =COLUMN() -> 9 | J3: =COLUMN() -> 10 | K3: =COLUMN() -> 11
A4: =ROW() -> 4 | B4: Actual or Forecast | E4: Forecast | F4: Forecast | G4: Forecast | H4: Forecast | I4: Forecast | J4: Forecast | K4: Forecast
A5: =ROW() -> 5 | B5: Year Type | E5: Calendar | F5: Calendar | G5: Calendar | H5: Calendar | I5: Calendar | J5: Calendar | K5: Calendar
A6: =ROW() -> 6 | B6: Regulatory Period | E6: =Inputs!BC6 -> 3 | F6: =Inputs!BD6 -> 3 | G6: =Inputs!BE6 -> 4 | H6: =Inputs!BF6 -> 4 | I6: =Inputs!BG6 -> 4 | J6: =Inputs!BH6 -> 4 | K6: =Inputs!BI6 -> 4
A7: =ROW() -> 7 | B7: Start Date | E7: =Inputs!BC7 -> 2018-01-01 | F7: =Inputs!BD7 -> 2019-01-01 | G7: =Inputs!BE7 -> 2020-01-01 | H7: =Inputs!BF7 -> 2021-01-01 | I7: =Inputs!BG7 -> 2022-01-01 | J7: =Inputs!BH7 -> 2023-01-01 | K7: =Inputs!BI7 -> 2024-01-01
A8: =ROW() -> 8 | B8: End Date | E8: =Inputs!BC8 -> 2018-12-31 | F8: =Inputs!BD8 -> 2019-12-31 | G8: =Inputs!BE8 -> 2020-12-31 | H8: =Inputs!BF8 -> 2021-12-31 | I8: =Inputs!BG8 -> 2022-12-31 | J8: =Inputs!BH8 -> 2023-12-31 | K8: =Inputs!BI8 -> 2024-12-31
A9: =ROW() -> 9 | B9: Year Type | E9: =Inputs!BC9 -> 2018 | F9: =Inputs!BD9 -> 2019 | G9: =Inputs!BE9 -> 2020 | H9: =Inputs!BF9 -> 2021 | I9: =Inputs!BG9 -> 2022 | J9: =Inputs!BH9 -> 2023 | K9: =Inputs!BI9 -> 2024
A10: =ROW() -> 10 | B10: Quarter | E10: =Inputs!BC10 -> - | F10: =Inputs!BD10 -> - | G10: =Inputs!BE10 -> - | H10: =Inputs!BF10 -> - | I10: =Inputs!BG10 -> - | J10: =Inputs!BH10 -> - | K10: =Inputs!BI10 -> -
A11: =ROW() -> 11 | B11: Days | E11: =Inputs!BC11 -> 365 | F11: =Inputs!BD11 -> 365 | G11: =Inputs!BE11 -> 366 | H11: =Inputs!BF11 -> 365 | I11: =Inputs!BG11 -> 365 | J11: =Inputs!BH11 -> 365 | K11: =Inputs!BI11 -> 366
A12: =ROW() -> 12 | B12: Years (nearest half) | E12: =ROUND(YEARFRAC(E7,E8),2) -> 1 | F12: 1 | G12: =ROUND(YEARFRAC(G7,G8),2) -> 1 | H12: 1 | I12: 1 | J12: 1 | K12: 1
A13: =ROW() -> 13 | B13: Financial Parameters
A14: =ROW() -> 14 | B14: Period End CPI | E14: =Inputs!BC16 -> 112.963109 | F14: =Inputs!BD16 -> 114.4090368 | G14: =Inputs!BE16 -> 115.8734725 | H14: =Inputs!BF16 -> 117.3566529 | I14: =Inputs!BG16 -> 118.8588181 | J14: =Inputs!BH16 -> 120.3802109 | K14: =Inputs!BI16 -> 121.9210776
A15: =ROW() -> 15 | B15: Inflation over period | F15: =Inputs!BD17 -> 0.0128 | G15: =Inputs!BE17 -> 0.0128 | H15: =Inputs!BF17 -> 0.0128 | I15: =Inputs!BG17 -> 0.0128 | J15: =Inputs!BH17 -> 0.0128 | K15: =Inputs!BI17 -> 0.0128
A16: =ROW() -> 16 | B16: ="Inflation Factor (convert Real "&Inputs!D19&" $ to nominal $)" -> Inflation Factor (convert Real 31/12/2018 $ to nominal $) | E16: =1/Inputs!BC19 -> 1 | F16: =1/Inputs!BD19 -> 1.0128 | G16: =1/Inputs!BE19 -> 1.02576384 | H16: =1/Inputs!BF19 -> 1.038893617 | I16: =1/Inputs!BG19 -> 1.052191455 | J16: =1/Inputs!BH19 -> 1.065659506 | K16: =1/Inputs!BI19 -> 1.079299948
A17: =ROW() -> 17 | B17: Deflation Factor | E17: =1/E16 -> 1 | F17: =1/F16 -> 0.9873617694 | G17: 0.9748832636 | H17: 0.962562464 | I17: 0.9503973776 | J17: 0.9383860363 | K17: =1/K16 -> 0.9265264972
A18: =ROW() -> 18 | B18: Post-Tax WACC (%, Nominal) | F18: =G18 -> 0.0502 | G18: =WACC!J$34 -> 0.0502 | H18: =WACC!K$34 -> 0.0502 | I18: =WACC!L$34 -> 0.0502 | J18: =WACC!M$34 -> 0.0502 | K18: =WACC!N$34 -> 0.0502
A19: =ROW() -> 19 | B19: Discount Factor (Nominal) | E19: 1 | F19: =E19/(1+F18) -> 0.952199581 | G19: =F19/(1+G18) -> 0.9066840421 | H19: =G19/(1+H18) -> 0.863344165 | I19: 0.8220759522 | J19: =I19/(1+J18) -> 0.7827803773 | K19: =J19/(1+K18) -> 0.7453631473
A20: =ROW() -> 20 | B20: Post-Tax WACC (%, Real) | F20: =G20 -> 0.03692733017 | G20: =WACC!J$35 -> 0.03692733017 | H20: =WACC!K$35 -> 0.03692733017 | I20: =WACC!L$35 -> 0.03692733017 | J20: =WACC!M$35 -> 0.03692733017 | K20: =WACC!N$35 -> 0.03692733017
A21: =ROW() -> 21 | B21: Discount Factor (Nominal) | E21: 1 | F21: =E21/(1+F20) -> 0.9643877357 | G21: =F21/(1+G20) -> 0.9300437047 | H21: =G21/(1+H20) -> 0.8969227425 | I21: 0.8649812927 | J21: 0.8341773502 | K21: =J21/(1+K20) -> 0.8044704059
A22: =ROW() -> 22
A23: =ROW() -> 23 | B23: ="Asset Base Real [$m "&Inputs!D19&"]" -> Asset Base Real [$m 31/12/2018]
A24: =ROW() -> 24 | B24: Opening Capital Base | G24: ='Assets '!BB19 -> 362.9290583 | H24: ='Assets '!BC19 -> 355.7038131 | I24: ='Assets '!BD19 -> 345.3321788 | J24: ='Assets '!BE19 -> 334.5717289 | K24: ='Assets '!BF19 -> 323.5894799
A25: =ROW() -> 25 | B25: Capex | G25: ='Assets '!BB20 -> 3.220850631 | H25: ='Assets '!BC20 -> 0.9913125734 | I25: ='Assets '!BD20 -> 0.6327590743 | J25: ='Assets '!BE20 -> 0.4288556435 | K25: ='Assets '!BF20 -> 0.7866873584
A26: =ROW() -> 26 | B26: Depreciation | G26: ='Assets '!BB21 -> 10.44609589 | H26: ='Assets '!BC21 -> 11.36294685 | I26: ='Assets '!BD21 -> 11.39320903 | J26: ='Assets '!BE21 -> 11.41110463 | K26: ='Assets '!BF21 -> 10.42750547
A27: =ROW() -> 27 | B27: Asset Adjustment | G27: ='Assets '!BB23 -> 0 | H27: ='Assets '!BC23 -> 0 | I27: ='Assets '!BD23 -> 0 | J27: ='Assets '!BE23 -> 0 | K27: ='Assets '!BF23 -> 0
A28: =ROW() -> 28 | B28: Closing Capital Base | F28: ='Assets '!BA24 -> 362.9290583 | G28: ='Assets '!BB24 -> 355.7038131 | H28: ='Assets '!BC24 -> 345.3321788 | I28: ='Assets '!BD24 -> 334.5717289 | J28: ='Assets '!BE24 -> 323.5894799 | K28: ='Assets '!BF24 -> 313.9486617
A29: =ROW() -> 29
A30: =ROW() -> 30 | B30: Asset Base [m$ nominal]
A31: =ROW() -> 31 | B31: Opening Capital Base (start year) | G31: =F37 -> 367.5745503 | H31: 364.8681092 | I31: 358.7633964 | J31: 352.0335143 | K31: =J37 -> 344.8362053
A32: =ROW() -> 32 | B32: Inflationary Gain | G32: =G31*G15 -> 4.704954244 | H32: =H31*H15 -> 4.670311798 | I32: =I31*I15 -> 4.592171473 | J32: =J31*J15 -> 4.506028983 | K32: =K31*K15 -> 4.413903428
A33: =ROW() -> 33 | B33: Opening Capital Base (inflated over one year) | G33: =G31+G32 -> 372.2795045 | H33: =H31+H32 -> 369.538421 | I33: 363.3555678 | J33: 356.5395433 | K33: =K31+K32 -> 349.2501087
A34: =ROW() -> 34 | B34: Capex | G34: =G25*G$16 -> 3.303832111 | H34: =H25*H$16 -> 1.029868305 | I34: 0.6657836913 | J34: 0.4570140933 | K34: 0.8490716248
A35: =ROW() -> 35 | B35: Depreciation | G35: =G26*G$16 -> 10.71522743 | H35: 11.80489295 | I35: 11.9878372 | J35: 12.16035213 | K35: 11.25440611
A36: =ROW() -> 36 | B36: Asset Adjustment | G36: =G27*G$16 -> 0 | H36: 0 | I36: 0 | J36: 0 | K36: 0
A37: =ROW() -> 37 | B37: Closing Capital Base | F37: =F28*F16 -> 367.5745503 | G37: 364.8681092 | H37: 358.7633964 | I37: 352.0335143 | J37: 344.8362053 | K37: 338.8447742
A38: =ROW() -> 38
A39: =ROW() -> 39 | B39: Cost of Service Building Blocks [m$ nominal] | D39: PV
A40: =ROW() -> 40 | B40: Return on Asset | D40: =SUMPRODUCT(E$19:K$19,E40:K40) -> 74.08539189 | G40: =G31*G18 -> 18.45224242 | H40: =H31*H18 -> 18.31637908 | I40: =I31*I18 -> 18.0099225 | J40: =J31*J18 -> 17.67208242 | K40: =K31*K18 -> 17.31077751
A41: =ROW() -> 41 | B41: Depreciation | D41: =SUMPRODUCT(E$19:K$19,E41:K41) -> 47.66942843 | G41: =G35 -> 10.71522743 | H41: =H35 -> 11.80489295 | I41: =I35 -> 11.9878372 | J41: =J35 -> 12.16035213 | K41: =K35 -> 11.25440611
A42: =ROW() -> 42 | B42: Inflationary Gain | D42: -18.89029913 | G42: =-G32 -> -4.704954244 | H42: =-H32 -> -4.670311798 | I42: =-I32 -> -4.592171473 | J42: =-J32 -> -4.506028983 | K42: =-K32 -> -4.413903428
A43: =ROW() -> 43 | B43: Opex | D43: 72.89494023 | G43: =Inputs!BE1357+Adjustments!BB18 -> 17.2428538 | H43: =Inputs!BF1357+Adjustments!BC18 -> 17.43318793 | I43: =Inputs!BG1357+Adjustments!BD18 -> 17.91010109 | J43: =Inputs!BH1357+Adjustments!BE18 -> 17.69080058 | K43: =Inputs!BI1357+Adjustments!BF18 -> 18.29819984
A44: =ROW() -> 44 | B44: Tax (net) | D44: 10.20154268 | G44: =Tax_CoRE!F40 -> 2.323169234 | H44: =Tax_CoRE!G40 -> 2.45947794 | I44: =Tax_CoRE!H40 -> 2.477262934 | J44: =Tax_CoRE!I40 -> 2.552925753 | K44: =Tax_CoRE!J40 -> 2.598609578
A45: =ROW() -> 45 | B45: Total Buidling Block Revenue Requirement | D45: 185.9610041 | G45: =SUM(G40:G44) -> 44.02853864 | H45: =SUM(H40:H44) -> 45.3436261 | I45: =SUM(I40:I44) -> 45.79295224 | J45: =SUM(J40:J44) -> 45.5701319 | K45: =SUM(K40:K44) -> 45.0480896
A46: =ROW() -> 46 | B46: Total Tariff Revenue | D46: =D72 -> 185.9610043 | G46: =G72 -> 45.207445 | H46: 45.08392739 | I46: 45.08392739 | J46: 45.08392739 | K46: =K72 -> 45.207445
A47: =ROW() -> 47 | B47: CHECK | D47: =IF(ROUND(D45-D46,6)=0,"OK","Error") -> OK
A48: =ROW() -> 48
A49: =ROW() -> 49 | B49: Real Cost of Service (FOR RECONCILIATION ONLY)
A50: =ROW() -> 50 | B50: ="Building Blocks [$m "&Inputs!D19&"]" -> Building Blocks [$m 31/12/2018] | D50: PV
A51: =ROW() -> 51 | B51: Return on Asset | D51: =SUMPRODUCT(E$21:K$21,E51:K51) -> 55.19509276 | G51: =G24*G20 -> 13.40200117 | H51: =H24*H20 -> 13.13519215 | I51: =I24*I20 -> 12.75219539 | J51: =J24*J20 -> 12.3548407 | K51: =K24*K20 -> 11.94929556
A52: =ROW() -> 52 | B52: Depreciation | D52: =SUMPRODUCT(E$21:K$21,E52:K52) -> 47.66942843 | G52: =G26 -> 10.44609589 | H52: =H26 -> 11.36294685 | I52: =I26 -> 11.39320903 | J52: =J26 -> 11.41110463 | K52: =K26 -> 10.42750547
A53: =ROW() -> 53 | B53: Opex | D53: 72.89494023 | G53: =G43*G17 -> 16.80976958 | H53: =H43*H17 -> 16.78053233 | I53: =I43*I17 -> 17.02171311 | J53: =J43*J17 -> 16.60080024 | K53: =K43*K17 -> 16.953767
A54: =ROW() -> 54 | B54: Tax | D54: 10.20154268 | G54: =G44*G$17 -> 2.264818805 | H54: =H44*H$17 -> 2.367401146 | I54: 2.354384196 | J54: 2.395629878 | K54: 2.40768063
A55: =ROW() -> 55 | B55: Total Building Block Revenue Requirement (Including Tax) | D55: 185.9610041 | G55: =SUM(G53,G52,G51,G54) -> 42.92268544 | H55: =SUM(H53,H52,H51,H54) -> 43.64607247 | I55: =SUM(I53,I52,I51,I54) -> 43.52150172 | J55: 42.76237545 | K55: 41.73824867
A56: =ROW() -> 56 | B56: CHECK | D56: =IF(ROUND(D45-D55,6)=0,"OK","Error") -> OK
A57: =ROW() -> 57
A58: =ROW() -> 58 | B58: Tariff Calculation
A59: =ROW() -> 59 | B59: X Factor | G59: X Factor 2020 | H59: X Factor 2021 | I59: X Factor 2022 | J59: X Factor 2023 | K59: X Factor 2024
A60: =ROW() -> 60 | B60: 1. Toll charge | G60: =IF(G$9>Recalc_From_Year,"",SolverSheet!I12) -> 0.1043603019 | H60: =IF(H$9>Recalc_From_Year,"",SolverSheet!J12) ->  | I60: =IF(I$9>Recalc_From_Year,"",SolverSheet!K12) ->  | J60: =IF(J$9>Recalc_From_Year,"",SolverSheet!L12) ->  | K60: =IF(K$9>Recalc_From_Year,"",SolverSheet!M12) -> 
A61: =ROW() -> 61 | B61: 2. Reservation charge | G61: =IF(G$9>Recalc_From_Year,"",SolverSheet!I13) -> 0.2586966927 | H61: =IF(H$9>Recalc_From_Year,"",SolverSheet!J13) ->  | I61: =IF(I$9>Recalc_From_Year,"",SolverSheet!K13) ->  | J61: =IF(J$9>Recalc_From_Year,"",SolverSheet!L13) ->  | K61: =IF(K$9>Recalc_From_Year,"",SolverSheet!M13) -> 
A62: =ROW() -> 62 | B62: 3. Throughput charge | G62: =IF(G$9>Recalc_From_Year,"",SolverSheet!I14) -> -0.06415012946 | H62: =IF(H$9>Recalc_From_Year,"",SolverSheet!J14) ->  | I62: =IF(I$9>Recalc_From_Year,"",SolverSheet!K14) ->  | J62: =IF(J$9>Recalc_From_Year,"",SolverSheet!L14) ->  | K62: =IF(K$9>Recalc_From_Year,"",SolverSheet!M14) -> 
A63: =ROW() -> 63
A64: =ROW() -> 64 | B64: Tariff [$ nominal]
A65: =ROW() -> 65 | B65: Toll charge | F65: =Revenue!CE19 -> 0.114604 | G65: =F65*(1+G60) -> 0.126564108 | H65: =IF(H60="",G65,G65*(1+H60)) -> 0.126564108 | I65: =IF(I60="",H65,H65*(1+I60)) -> 0.126564108 | J65: =IF(J60="",I65,I65*(1+J60)) -> 0.126564108 | K65: =IF(K60="",J65,J65*(1+K60)) -> 0.126564108
A66: =ROW() -> 66 | B66: Reservation charge | F66: =Revenue!CE20 -> 0.000609 | G66: =F66*(1+G61) -> 0.0007665462858 | H66: =IF(H61="",G66,G66*(1+H61)) -> 0.0007665462858 | I66: 0.0007665462858 | J66: 0.0007665462858 | K66: 0.0007665462858
A67: =ROW() -> 67 | B67: Throughput charge | F67: =Revenue!CE21 -> 0.000224 | G67: =F67*(1+G62) -> 0.000209630371 | H67: =IF(H62="",G67,G67*(1+H62)) -> 0.000209630371 | I67: 0.000209630371 | J67: 0.000209630371 | K67: 0.000209630371
A68: =ROW() -> 68 | B68: Tariff Revenue [m$ nominal] | C68: Building Block PV | D68: Tariff Revenue PV
A69: =ROW() -> 69 | B69: Toll charge | C69: =D$45*Load!CF112 -> 21.01359346 | D69: =SUMPRODUCT(E$19:K$19,E69:K69) -> 21.01359347 | G69: =Revenue!CF14 -> 5.10844128 | H69: =Revenue!CG14 -> 5.09448379 | I69: =Revenue!CH14 -> 5.09448379 | J69: =Revenue!CI14 -> 5.09448379 | K69: =Revenue!CJ14 -> 5.10844128
A70: =ROW() -> 70 | B70: Reservation charge | C70: =D$45*Load!CF113 -> 134.263845 | D70: =SUMPRODUCT(E$19:K$19,E70:K70) -> 134.2638452 | G70: =Revenue!CF15 -> 32.63977531 | H70: =Revenue!CG15 -> 32.55059559 | I70: =Revenue!CH15 -> 32.55059559 | J70: =Revenue!CI15 -> 32.55059559 | K70: =Revenue!CJ15 -> 32.63977531
A71: =ROW() -> 71 | B71: Throughput charge | C71: =D$45*Load!CF114 -> 30.68356568 | D71: =SUMPRODUCT(E$19:K$19,E71:K71) -> 30.68356567 | G71: =Revenue!CF16 -> 7.459228415 | H71: =Revenue!CG16 -> 7.43884801 | I71: =Revenue!CH16 -> 7.43884801 | J71: =Revenue!CI16 -> 7.43884801 | K71: =Revenue!CJ16 -> 7.459228415
A72: =ROW() -> 72 | B72: Total Revenue | C72: =SUM(C69:C71) -> 185.9610041 | D72: =SUM(D69:D71) -> 185.9610043 | G72: =SUM(G69:G71) -> 45.207445 | H72: 45.08392739 | I72: 45.08392739 | J72: 45.08392739 | K72: =SUM(K69:K71) -> 45.207445
A73: =ROW() -> 73 | B73: CHECK: Net Present Values | D73: NPV
A74: =ROW() -> 74 | B74: Toll charge | D74: =D69-C69 -> 3.052640807e-09
A75: =ROW() -> 75 | B75: Reservation charge | D75: =D70-C70 -> 2.344581844e-07
A76: =ROW() -> 76 | B76: Throughput charge | D76: =D71-C71 -> -3.953154248e-09
A77: =ROW() -> 77 | B77: Total Revenue | D77: =SUM(D74:D76) -> 2.33557671e-07
A78: =ROW() -> 78
A79: =ROW() -> 79 | B79: Credit Foncier Check | D79: PV
A80: =ROW() -> 80
A81: =ROW() -> 81 | B81: Total Tariff Revenue | D81: =SUMPRODUCT($E$19:$K$19,E81:K81) -> 185.9610043 | G81: =G72 -> 45.207445 | H81: 45.08392739 | I81: 45.08392739 | J81: 45.08392739 | K81: =K72 -> 45.207445
A82: =ROW() -> 82 | B82: Opex | D82: =SUMPRODUCT($E$19:$K$19,E82:K82) -> -72.89494023 | G82: =-G43 -> -17.2428538 | H82: =-H43 -> -17.43318793 | I82: =-I43 -> -17.91010109 | J82: =-J43 -> -17.69080058 | K82: =-K43 -> -18.29819984
A83: =ROW() -> 83 | B83: Tax | D83: =SUMPRODUCT($E$19:$K$19,E83:K83) -> -20.40308537 | G83: =-Tax_CoRE!F38 -> -4.646338468 | H83: =-Tax_CoRE!G38 -> -4.918955879 | I83: =-Tax_CoRE!H38 -> -4.954525868 | J83: =-Tax_CoRE!I38 -> -5.105851505 | K83: =-Tax_CoRE!J38 -> -5.197219157
A84: =ROW() -> 84 | B84: Imputation Credits | D84: =SUMPRODUCT($E$19:$K$19,E84:K84) -> 10.20154268 | G84: =-Tax_CoRE!F39 -> 2.323169234 | H84: =-Tax_CoRE!G39 -> 2.45947794 | I84: =-Tax_CoRE!H39 -> 2.477262934 | J84: =-Tax_CoRE!I39 -> 2.552925753 | K84: =-Tax_CoRE!J39 -> 2.598609578
A85: =ROW() -> 85 | B85: Over Depreciation
A86: =ROW() -> 86 | B86: Asset Opening Value | D86: =SUMPRODUCT($E$19:$K$19,E86:K86) -> -350.0043328 | F86: =-F37 -> -367.5745503
A87: =ROW() -> 87 | B87: Capex | D87: =SUMPRODUCT($E$19:$K$19,E87:K87) -> -5.42259577 | G87: =-G34 -> -3.303832111 | H87: =-H34 -> -1.029868305 | I87: =-I34 -> -0.6657836913 | J87: =-J34 -> -0.4570140933 | K87: =-K34 -> -0.8490716248
A88: =ROW() -> 88 | B88: Asset Residual Value | D88: =SUMPRODUCT($E$19:$K$19,E88:K88) -> 252.5624074 | K88: =K37 -> 338.8447742
A89: =ROW() -> 89 | B89: Net Cash Flow (should be 0) | D89: =SUMPRODUCT($E$19:$K$19,E89:K89) -> 2.335574436e-07 | F89: =SUM(F81:F88) -> -367.5745503 | G89: 22.33758986 | H89: 24.16139322 | I89: 24.03077968 | J89: 24.38318696 | K89: 362.3063382
A90: =ROW() -> 90
A91: =ROW() -> 91 | B91: IRR
A92: =ROW() -> 92 | B92: Net Cash Flow [m$ OD] | C92: =IRR(D92:K92,0.05) -> 0.06191741478 | D92: =D86 -> -350.0043328 | G92: =G89 -> 22.33758986 | H92: 24.16139322 | I92: 24.03077968 | J92: 24.38318696 | K92: =K89 -> 362.3063382
A93: =ROW() -> 93 | B93: ="Net Cash Flow [$m "&Inputs!D19&"]" -> Net Cash Flow [$m 31/12/2018] | C93: =IRR(D93:K93,0.05) -> 0.04547609724 | D93: =D86 -> -350.0043328 | G93: =G92/G16 -> 21.7765425 | H93: =H92/H16 -> 23.25685019 | I93: =I92/I16 -> 22.83878999 | J93: =J92/J16 -> 22.88084217 | K93: =K92/K16 -> 335.6864224
A94: =ROW() -> 94 | B94: ="Real Tariff Revenue [$m "&Inputs!D19&"]" -> Real Tariff Revenue [$m 31/12/2018] | D94: PV
A95: =ROW() -> 95 | B95: Total Revenue | D95: =SUMPRODUCT($E$21:$K$21,E95:K95) -> 185.9610043 | G95: =G72/G16 -> 44.07198152 | H95: =H72/H16 -> 43.39609624 | I95: =I72/I16 -> 42.84764637 | J95: =J72/J16 -> 42.30612793 | K95: =K72/K16 -> 41.88589566
A96: =ROW() -> 96 | B96: Undiscounted Total Real Tariff Revenue | D96: =SUM(E95:K95) -> 214.5077477
A97: =ROW() -> 97 | B97: Real Return on Asset | D97: PV
A98: =ROW() -> 98 | D98: =SUMPRODUCT($E$21:$K$21,E98:K98) -> 55.19509276 | G98: =G24*G20 -> 13.40200117 | H98: =H24*H20 -> 13.13519215 | I98: =I24*I20 -> 12.75219539 | J98: =J24*J20 -> 12.3548407 | K98: =K24*K20 -> 11.94929556

Sheet Revenue
B1: =Main!B1 -> ERA, GGT Tariff Model, July 2019 [Draft Decision]
B2: Revenue
A3: Ref | B3: =COLUMN() -> 2 | C3: =COLUMN() -> 3 | D3: =COLUMN() -> 4 | E3: =COLUMN() -> 5 | F3: =COLUMN() -> 6 | G3: =COLUMN() -> 7 | H3: =COLUMN() -> 8 | I3: =COLUMN() -> 9 | J3: =COLUMN() -> 10 | K3: =COLUMN() -> 11 | L3: =COLUMN() -> 12 | M3: =COLUMN() -> 13 | N3: =COLUMN() -> 14 | O3: =COLUMN() -> 15 | P3: =COLUMN() -> 16 | Q3: =COLUMN() -> 17 | R3: =COLUMN() -> 18 | S3: =COLUMN() -> 19 | T3: =COLUMN() -> 20 | U3: =COLUMN() -> 21 | V3: =COLUMN() -> 22 | W3: =COLUMN() -> 23 | X3: =COLUMN() -> 24 | Y3: =COLUMN() -> 25 | Z3: =COLUMN() -> 26 | AA3: =COLUMN() -> 27 | AB3: =COLUMN() -> 28 | AC3: =COLUMN() -> 29 | AD3: =COLUMN() -> 30 | AE3: =COLUMN() -> 31 | AF3: =COLUMN() -> 32 | AG3: =COLUMN() -> 33 | AH3: =COLUMN() -> 34 | AI3: =COLUMN() -> 35 | AJ3: =COLUMN() -> 36 | AK3: =COLUMN() -> 37 | AL3: =COLUMN() -> 38 | AM3: =COLUMN() -> 39 | AN3: =COLUMN() -> 40 | AO3: =COLUMN() -> 41 | AP3: =COLUMN() -> 42 | AQ3: =COLUMN() -> 43 | AR3: =COLUMN() -> 44 | AS3: =COLUMN() -> 45 | AT3: =COLUMN() -> 46 | AU3: =COLUMN() -> 47 | AV3: =COLUMN() -> 48 | AW3: =COLUMN() -> 49 | AX3: =COLUMN() -> 50 | AY3: =COLUMN() -> 51 | AZ3: =COLUMN() -> 52 | BA3: =COLUMN() -> 53 | BB3: =COLUMN() -> 54 | BC3: =COLUMN() -> 55 | BD3: =COLUMN() -> 56 | BE3: =COLUMN() -> 57 | BF3: =COLUMN() -> 58 | BG3: =COLUMN() -> 59 | BH3: =COLUMN() -> 60 | BI3: =COLUMN() -> 61 | BJ3: =COLUMN() -> 62 | BK3: =COLUMN() -> 63 | BL3: =COLUMN() -> 64 | BM3: =COLUMN() -> 65 | BN3: =COLUMN() -> 66 | BO3: =COLUMN() -> 67 | BP3: =COLUMN() -> 68 | BQ3: =COLUMN() -> 69 | BR3: =COLUMN() -> 70 | BS3: =COLUMN() -> 71 | BT3: =COLUMN() -> 72 | BU3: =COLUMN() -> 73 | BV3: =COLUMN() -> 74 | BW3: =COLUMN() -> 75 | BX3: =COLUMN() -> 76 | BY3: =COLUMN() -> 77 | BZ3: =COLUMN() -> 78 | CA3: =COLUMN() -> 79 | CB3: =COLUMN() -> 80 | CC3: =COLUMN() -> 81 | CD3: =COLUMN() -> 82 | CE3: =COLUMN() -> 83 | CF3: =COLUMN() -> 84 | CG3: =COLUMN() -> 85 | CH3: =COLUMN() -> 86 | CI3: =COLUMN() -> 87 | CJ3: =COLUMN() -> 88
A4: =ROW() -> 4 | B4: Actual or Forecast | C4: Actual | D4: Actual | E4: Actual | F4: Actual | G4: Actual | H4: Actual | I4: Actual | J4: Actual | K4: Actual | L4: Actual | M4: Actual | N4: Actual | O4: Actual | P4: Actual | Q4: Actual | R4: Actual | S4: Actual | T4: Actual | U4: Actual | V4: Actual | W4: Actual | X4: Actual | Y4: Actual | Z4: Actual | AA4: Actual | AB4: Actual | AC4: Actual | AD4: Actual | AE4: Actual | AF4: Actual | AG4: Actual | AH4: Actual | AI4: Actual | AJ4: Actual | AK4: Actual | AL4: Actual | AM4: Actual | AN4: Actual | AO4: Actual | AP4: Actual | AQ4: Actual | AR4: Forecast | AS4: Forecast | AT4: Forecast | AU4: Forecast | AV4: Forecast | AW4: Forecast | AX4: Forecast | AY4: Forecast | AZ4: Forecast | BA4: Forecast | BB4: Forecast | BC4: Forecast | BD4: Forecast | BE4: Forecast | BF4: Forecast | BG4: Forecast | BH4: Forecast | BI4: Forecast | BJ4: Forecast | BK4: Forecast | BL4: Forecast | BM4: Forecast | BN4: Forecast | BO4: Forecast | BP4: Forecast | BQ4: Forecast | BR4: Forecast | BS4: Forecast | BT4: Forecast | BU4: Forecast | BV4: Forecast | BW4: Forecast | BX4: Forecast | BY4: Forecast | BZ4: Forecast | CA4: Forecast | CB4: Forecast | CC4: Forecast | CD4: Forecast | CE4: Forecast | CF4: Forecast | CG4: Forecast | CH4: Forecast | CI4: Forecast | CJ4: Forecast
A5: =ROW() -> 5 | B5: Year Type | C5: Calendar | D5: Calendar | E5: Calendar | F5: Calendar | G5: Calendar | H5: Calendar | I5: Calendar | J5: Calendar | K5: Calendar | L5: Calendar | M5: Calendar | N5: Calendar | O5: Calendar | P5: Calendar | Q5: Calendar | R5: Calendar | S5: Calendar | T5: Calendar | U5: Calendar | V5: Calendar | W5: Calendar | X5: Calendar | Y5: Calendar | Z5: Calendar | AA5: Calendar | AB5: Calendar | AC5: Calendar | AD5: Calendar | AE5: Calendar | AF5: Calendar | AG5: Calendar | AH5: Calendar | AI5: Calendar | AJ5: Calendar | AK5: Calendar | AL5: Calendar | AM5: Calendar | AN5: Calendar | AO5: Calendar | AP5: Calendar | AQ5: Calendar | AR5: Calendar | AS5: Calendar | AT5: Calendar | AU5: Calendar | AV5: Calendar | AW5: Calendar | AX5: Calendar | AY5: Calendar | AZ5: Calendar | BA5: Calendar | BB5: Calendar | BC5: Calendar | BD5: Calendar | BE5: Calendar | BF5: Calendar | BG5: Calendar | BH5: Calendar | BI5: Calendar | BJ5: Calendar | BK5: Calendar | BL5: Calendar | BM5: Calendar | BN5: Calendar | BO5: Calendar | BP5: Calendar | BQ5: Calendar | BR5: Calendar | BS5: Calendar | BT5: Calendar | BU5: Calendar | BV5: Calendar | BW5: Calendar | BX5: Calendar | BY5: Calendar | BZ5: Calendar | CA5: Calendar | CB5: Calendar | CC5: Calendar | CD5: Calendar | CE5: Calendar | CF5: Calendar | CG5: Calendar | CH5: Calendar | CI5: Calendar | CJ5: Calendar
A6: =ROW() -> 6 | B6: Regulatory Period | D6: 1 | E6: 1 | F6: 1 | G6: 1 | H6: 1 | I6: 1 | J6: 1 | K6: 1 | L6: 1 | M6: 1 | N6: 1 | O6: 1 | P6: 1 | Q6: 1 | R6: 1 | S6: 1 | T6: 1 | U6: 1 | V6: 1 | W6: 1 | X6: 1 | Y6: 1 | Z6: 1 | AA6: 1 | AB6: 1 | AC6: 1 | AD6: 1 | AE6: 1 | AF6: 1 | AG6: 1 | AH6: 1 | AI6: 1 | AJ6: 1 | AK6: 1 | AL6: 1 | AM6: 1 | AN6: 1 | AO6: 1 | AP6: 1 | AQ6: 1 | AR6: 2 | AS6: 2 | AT6: 2 | AU6: 2 | AV6: 2 | AW6: 2 | AX6: 2 | AY6: 2 | AZ6: 2 | BA6: 2 | BB6: 2 | BC6: 2 | BD6: 2 | BE6: 2 | BF6: 2 | BG6: 2 | BH6: 2 | BI6: 2 | BJ6: 2 | BK6: 2 | BL6: 3 | BM6: 3 | BN6: 3 | BO6: 3 | BP6: 3 | BQ6: 3 | BR6: 3 | BS6: 3 | BT6: 3 | BU6: 3 | BV6: 3 | BW6: 3 | BX6: 3 | BY6: 3 | BZ6: 3 | CA6: 3 | CB6: 3 | CC6: 3 | CD6: 3 | CE6: 3 | CF6: 4 | CG6: 4 | CH6: 4 | CI6: 4 | CJ6: 4
A7: =ROW() -> 7 | B7: Start Date | C7: 1999-10-01 | D7: =C8+1 -> 2000-01-01 | E7: 2000-04-01 | F7: 2000-07-01 | G7: 2000-10-01 | H7: 2001-01-01 | I7: 2001-04-01 | J7: 2001-07-01 | K7: 2001-10-01 | L7: 2002-01-01 | M7: 2002-04-01 | N7: 2002-07-01 | O7: 2002-10-01 | P7: 2003-01-01 | Q7: 2003-04-01 | R7: 2003-07-01 | S7: 2003-10-01 | T7: 2004-01-01 | U7: 2004-04-01 | V7: 2004-07-01 | W7: 2004-10-01 | X7: 2005-01-01 | Y7: 2005-04-01 | Z7: 2005-07-01 | AA7: 2005-10-01 | AB7: 2006-01-01 | AC7: 2006-04-01 | AD7: 2006-07-01 | AE7: 2006-10-01 | AF7: 2007-01-01 | AG7: 2007-04-01 | AH7: 2007-07-01 | AI7: 2007-10-01 | AJ7: 2008-01-01 | AK7: 2008-04-01 | AL7: 2008-07-01 | AM7: 2008-10-01 | AN7: 2009-01-01 | AO7: 2009-04-01 | AP7: 2009-07-01 | AQ7: 2009-10-01 | AR7: 2010-01-01 | AS7: 2010-04-01 | AT7: 2010-07-01 | AU7: 2010-10-01 | AV7: 2011-01-01 | AW7: 2011-04-01 | AX7: 2011-07-01 | AY7: 2011-10-01 | AZ7: 2012-01-01 | BA7: 2012-04-01 | BB7: 2012-07-01 | BC7: 2012-10-01 | BD7: 2013-01-01 | BE7: 2013-04-01 | BF7: 2013-07-01 | BG7: 2013-10-01 | BH7: 2014-01-01 | BI7: 2014-04-01 | BJ7: 2014-07-01 | BK7: 2014-10-01 | BL7: 2015-01-01 | BM7: 2015-04-01 | BN7: 2015-07-01 | BO7: 2015-10-01 | BP7: =BO8+1 -> 2016-01-01 | BQ7: 2016-04-01 | BR7: 2016-07-01 | BS7: 2016-10-01 | BT7: 2017-01-01 | BU7: 2017-04-01 | BV7: 2017-07-01 | BW7: 2017-10-01 | BX7: 2018-01-01 | BY7: 2018-04-01 | BZ7: 2018-07-01 | CA7: 2018-10-01 | CB7: 2019-01-01 | CC7: 2019-04-01 | CD7: 2019-07-01 | CE7: 2019-10-01 | CF7: 2020-01-01 | CG7: 2021-01-01 | CH7: 2022-01-01 | CI7: 2023-01-01 | CJ7: 2024-01-01
A8: =ROW() -> 8 | B8: End Date | C8: =C7+C11-1 -> 1999-12-31 | D8: 2000-03-31 | E8: 2000-06-30 | F8: 2000-09-30 | G8: 2000-12-31 | H8: 2001-03-31 | I8: 2001-06-30 | J8: 2001-09-30 | K8: 2001-12-31 | L8: 2002-03-31 | M8: 2002-06-30 | N8: 2002-09-30 | O8: 2002-12-31 | P8: 2003-03-31 | Q8: 2003-06-30 | R8: 2003-09-30 | S8: 2003-12-31 | T8: 2004-03-31 | U8: 2004-06-30 | V8: 2004-09-30 | W8: 2004-12-31 | X8: 2005-03-31 | Y8: 2005-06-30 | Z8: 2005-09-30 | AA8: 2005-12-31 | AB8: 2006-03-31 | AC8: 2006-06-30 | AD8: 2006-09-30 | AE8: 2006-12-31 | AF8: 2007-03-31 | AG8: 2007-06-30 | AH8: 2007-09-30 | AI8: 2007-12-31 | AJ8: 2008-03-31 | AK8: 2008-06-30 | AL8: 2008-09-30 | AM8: 2008-12-31 | AN8: 2009-03-31 | AO8: 2009-06-30 | AP8: 2009-09-30 | AQ8: 2009-12-31 | AR8: 2010-03-31 | AS8: 2010-06-30 | AT8: 2010-09-30 | AU8: 2010-12-31 | AV8: 2011-03-31 | AW8: 2011-06-30 | AX8: 2011-09-30 | AY8: 2011-12-31 | AZ8: 2012-03-31 | BA8: 2012-06-30 | BB8: 2012-09-30 | BC8: 2012-12-31 | BD8: 2013-03-31 | BE8: 2013-06-30 | BF8: 2013-09-30 | BG8: 2013-12-31 | BH8: 2014-03-31 | BI8: 2014-06-30 | BJ8: 2014-09-30 | BK8: 2014-12-31 | BL8: 2015-03-31 | BM8: 2015-06-30 | BN8: 2015-09-30 | BO8: =BO7+BO11-1 -> 2015-12-31 | BP8: 2016-03-31 | BQ8: 2016-06-30 | BR8: 2016-09-30 | BS8: 2016-12-31 | BT8: 2017-03-31 | BU8: 2017-06-30 | BV8: 2017-09-30 | BW8: 2017-12-31 | BX8: 2018-03-31 | BY8: 2018-06-30 | BZ8: 2018-09-30 | CA8: 2018-12-31 | CB8: 2019-03-31 | CC8: 2019-06-30 | CD8: 2019-09-30 | CE8: 2019-12-31 | CF8: =CF7+CF11-1 -> 2020-12-31 | CG8: 2021-12-31 | CH8: =CH7+CH11-1 -> 2022-12-31 | CI8: 2023-12-31 | CJ8: =CJ7+CJ11-1 -> 2024-12-31
A9: =ROW() -> 9 | B9: Year | C9: =C8 -> 1999-12-31 | D9: =D8 -> 2000-03-31 | E9: 2000-06-30 | F9: 2000-09-30 | G9: 2000-12-31 | H9: 2001-03-31 | I9: 2001-06-30 | J9: 2001-09-30 | K9: 2001-12-31 | L9: 2002-03-31 | M9: 2002-06-30 | N9: 2002-09-30 | O9: 2002-12-31 | P9: 2003-03-31 | Q9: 2003-06-30 | R9: 2003-09-30 | S9: 2003-12-31 | T9: 2004-03-31 | U9: 2004-06-30 | V9: 2004-09-30 | W9: 2004-12-31 | X9: 2005-03-31 | Y9: 2005-06-30 | Z9: 2005-09-30 | AA9: 2005-12-31 | AB9: 2006-03-31 | AC9: 2006-06-30 | AD9: 2006-09-30 | AE9: 2006-12-31 | AF9: 2007-03-31 | AG9: 2007-06-30 | AH9: 2007-09-30 | AI9: 2007-12-31 | AJ9: 2008-03-31 | AK9: 2008-06-30 | AL9: 2008-09-30 | AM9: 2008-12-31 | AN9: 2009-03-31 | AO9: 2009-06-30 | AP9: 2009-09-30 | AQ9: 2009-12-31 | AR9: 2010-03-31 | AS9: 2010-06-30 | AT9: 2010-09-30 | AU9: 2010-12-31 | AV9: 2011-03-31 | AW9: 2011-06-30 | AX9: 2011-09-30 | AY9: 2011-12-31 | AZ9: 2012-03-31 | BA9: 2012-06-30 | BB9: 2012-09-30 | BC9: 2012-12-31 | BD9: 2013-03-31 | BE9: 2013-06-30 | BF9: 2013-09-30 | BG9: 2013-12-31 | BH9: 2014-03-31 | BI9: 2014-06-30 | BJ9: 2014-09-30 | BK9: 2014-12-31 | BL9: 2015-03-31 | BM9: 2015-06-30 | BN9: 2015-09-30 | BO9: 2015-12-31 | BP9: =BP8 -> 2016-03-31 | BQ9: 2016-06-30 | BR9: 2016-09-30 | BS9: 2016-12-31 | BT9: 2017-03-31 | BU9: 2017-06-30 | BV9: 2017-09-30 | BW9: 2017-12-31 | BX9: 2018-03-31 | BY9: 2018-06-30 | BZ9: 2018-09-30 | CA9: 2018-12-31 | CB9: 2019-03-31 | CC9: 2019-06-30 | CD9: 2019-09-30 | CE9: 2019-12-31 | CF9: =CF8 -> 2020-12-31 | CG9: 2021-12-31 | CH9: =CH8 -> 2022-12-31 | CI9: 2023-12-31 | CJ9: =CJ8 -> 2024-12-31
A10: =ROW() -> 10 | B10: Quarter | D10: Q1 | E10: Q2 | F10: Q3 | G10: Q4 | H10: Q1 | I10: Q2 | J10: Q3 | K10: Q4 | L10: Q1 | M10: Q2 | N10: Q3 | O10: Q4 | P10: Q1 | Q10: Q2 | R10: Q3 | S10: Q4 | T10: Q1 | U10: Q2 | V10: Q3 | W10: Q4 | X10: Q1 | Y10: Q2 | Z10: Q3 | AA10: Q4 | AB10: Q1 | AC10: Q2 | AD10: Q3 | AE10: Q4 | AF10: Q1 | AG10: Q2 | AH10: Q3 | AI10: Q4 | AJ10: Q1 | AK10: Q2 | AL10: Q3 | AM10: Q4 | AN10: Q1 | AO10: Q2 | AP10: Q3 | AQ10: Q4 | AR10: Q1 | AS10: Q2 | AT10: Q3 | AU10: Q4 | AV10: Q1 | AW10: Q2 | AX10: Q3 | AY10: Q4 | AZ10: Q1 | BA10: Q2 | BB10: Q3 | BC10: Q4 | BD10: Q1 | BE10: Q2 | BF10: Q3 | BG10: Q4 | BH10: Q1 | BI10: Q2 | BJ10: Q3 | BK10: Q4 | BL10: Q1 | BM10: Q2 | BN10: Q3 | BO10: Q4 | BP10: Q1 | BQ10: Q2 | BR10: Q3 | BS10: Q4 | BT10: Q1 | BU10: Q2 | BV10: Q3 | BW10: Q4 | BX10: Q1 | BY10: Q2 | BZ10: Q3 | CA10: Q4 | CB10: Q1 | CC10: Q2 | CD10: Q3 | CE10: Q4
A11: =ROW() -> 11 | B11: Days | C11: 92 | D11: 91 | E11: 91 | F11: 92 | G11: 92 | H11: 90 | I11: 91 | J11: 92 | K11: 92 | L11: 90 | M11: 91 | N11: 92 | O11: 92 | P11: 90 | Q11: 91 | R11: 92 | S11: 92 | T11: 91 | U11: 91 | V11: 92 | W11: 92 | X11: 90 | Y11: 91 | Z11: 92 | AA11: 92 | AB11: 90 | AC11: 91 | AD11: 92 | AE11: 92 | AF11: 90 | AG11: 91 | AH11: 92 | AI11: 92 | AJ11: 91 | AK11: 91 | AL11: 92 | AM11: 92 | AN11: 90 | AO11: 91 | AP11: 92 | AQ11: 92 | AR11: 90 | AS11: 91 | AT11: 92 | AU11: 92 | AV11: 90 | AW11: 91 | AX11: 92 | AY11: 92 | AZ11: 91 | BA11: 91 | BB11: 92 | BC11: 92 | BD11: 90 | BE11: 91 | BF11: 92 | BG11: 92 | BH11: 90 | BI11: 91 | BJ11: 92 | BK11: 92 | BL11: 90 | BM11: 91 | BN11: 92 | BO11: 92 | BP11: 91 | BQ11: 91 | BR11: 92 | BS11: 92 | BT11: 90 | BU11: 91 | BV11: 92 | BW11: 92 | BX11: 90 | BY11: 91 | BZ11: 92 | CA11: 92 | CB11: 90 | CC11: 91 | CD11: 92 | CE11: 92 | CF11: 366 | CG11: 365 | CH11: 365 | CI11: 365 | CJ11: 366
A12: =ROW() -> 12 | B12: Years (nearest half) | C12: =ROUND(YEARFRAC(C7,C8),2) -> 0.25 | D12: 0.25 | E12: 0.25 | F12: 0.25 | G12: 0.25 | H12: 0.25 | I12: 0.25 | J12: 0.25 | K12: 0.25 | L12: 0.25 | M12: 0.25 | N12: 0.25 | O12: 0.25 | P12: 0.25 | Q12: 0.25 | R12: 0.25 | S12: 0.25 | T12: 0.25 | U12: 0.25 | V12: 0.25 | W12: 0.25 | X12: 0.25 | Y12: 0.25 | Z12: 0.25 | AA12: 0.25 | AB12: 0.25 | AC12: 0.25 | AD12: 0.25 | AE12: 0.25 | AF12: 0.25 | AG12: 0.25 | AH12: 0.25 | AI12: 0.25 | AJ12: 0.25 | AK12: 0.25 | AL12: 0.25 | AM12: 0.25 | AN12: 0.25 | AO12: 0.25 | AP12: 0.25 | AQ12: 0.25 | AR12: 0.25 | AS12: 0.25 | AT12: 0.25 | AU12: 0.25 | AV12: 0.25 | AW12: 0.25 | AX12: 0.25 | AY12: 0.25 | AZ12: 0.25 | BA12: 0.25 | BB12: 0.25 | BC12: 0.25 | BD12: 0.25 | BE12: 0.25 | BF12: 0.25 | BG12: 0.25 | BH12: 0.25 | BI12: 0.25 | BJ12: 0.25 | BK12: 0.25 | BL12: 0.25 | BM12: 0.25 | BN12: 0.25 | BO12: =ROUND(YEARFRAC(BO7,BO8),2) -> 0.25 | BP12: 0.25 | BQ12: 0.25 | BR12: 0.25 | BS12: 0.25 | BT12: 0.25 | BU12: 0.25 | BV12: 0.25 | BW12: 0.25 | BX12: 0.25 | BY12: 0.25 | BZ12: 0.25 | CA12: 0.25 | CB12: 0.25 | CC12: 0.25 | CD12: 0.25 | CE12: 0.25 | CF12: =ROUND(YEARFRAC(CF7,CF8),2) -> 1 | CG12: 1 | CH12: =ROUND(YEARFRAC(CH7,CH8),2) -> 1 | CI12: 1 | CJ12: =ROUND(YEARFRAC(CJ7,CJ8),2) -> 1
A13: =ROW() -> 13 | B13: Tariff Revenue [m$ nominal]
A14: =ROW() -> 14 | B14: Toll charge | BL14: =BL19*BL23*BL11/1000 -> 1.873375929 | BM14: 1.905296843 | BN14: 1.928203937 | BO14: 1.916976271 | BP14: 1.995116032 | BQ14: 2.006416494 | BR14: 1.108445093 | BS14: 1.064620359 | BT14: 1.050041119 | BU14: 1.061708242 | BV14: 1.066693712 | BW14: 1.088462971 | BX14: 1.068919752 | BY14: 1.080796638 | BZ14: 1.092673524 | CA14: 1.092673524 | CB14: 1.059315975 | CC14: 1.07284905 | CD14: 1.08071572 | CE14: 1.08071572 | CF14: =CF19*CF23*CF11/1000 -> 5.10844128 | CG14: 5.09448379 | CH14: =CH19*CH23*CH11/1000 -> 5.09448379 | CI14: 5.09448379 | CJ14: =CJ19*CJ23*CJ11/1000 -> 5.10844128
A15: =ROW() -> 15 | B15: Reservation charge | BL15: =BL20*BL24*BL11 -> 13.62468094 | BM15: 13.88023417 | BN15: 14.05108906 | BO15: 13.9466374 | BP15: 14.38530911 | BQ15: 14.4910057 | BR15: 6.256783706 | BS15: 5.93999077 | BT15: 5.863886572 | BU15: 5.929040867 | BV15: 5.969111869 | BW15: 6.139417912 | BX15: 6.029012445 | BY15: 6.096001472 | BZ15: 6.162990499 | CA15: 6.162990499 | CB15: 5.954993612 | CC15: 6.031030962 | CD15: 6.077347579 | CE15: 6.077347579 | CF15: =CF20*CF24*CF11 -> 32.63977531 | CG15: 32.55059559 | CH15: =CH20*CH24*CH11 -> 32.55059559 | CI15: 32.55059559 | CJ15: =CJ20*CJ24*CJ11 -> 32.63977531
A16: =ROW() -> 16 | B16: Throughput charge | BL16: =BL21*BL25*BL11 -> 2.77086498 | BM16: 2.603384574 | BN16: 2.527959545 | BO16: 2.511630592 | BP16: 2.789030222 | BQ16: 2.806131772 | BR16: 1.708677113 | BS16: 1.623508332 | BT16: 1.600774251 | BU16: 1.618560631 | BV16: 1.620015407 | BW16: 1.665041573 | BX16: 1.644689035 | BY16: 1.662963358 | BZ16: 1.68123768 | CA16: 1.68123768 | CB16: 1.630011462 | CC16: 1.648122701 | CD16: 1.658828455 | CE16: 1.658828455 | CF16: =CF21*CF25*CF11 -> 7.459228415 | CG16: 7.43884801 | CH16: =CH21*CH25*CH11 -> 7.43884801 | CI16: 7.43884801 | CJ16: =CJ21*CJ25*CJ11 -> 7.459228415
A17: =ROW() -> 17 | B17: Total Revenue | BL17: =SUM(BL14:BL16) -> 18.26892185 | BM17: 18.38891558 | BN17: 18.50725255 | BO17: 18.37524427 | BP17: =SUM(BP14:BP16) -> 19.16945536 | BQ17: 19.30355396 | BR17: 9.073905911 | BS17: 8.62811946 | BT17: 8.514701941 | BU17: 8.609309741 | BV17: 8.655820988 | BW17: 8.892922457 | BX17: 8.742621232 | BY17: 8.839761468 | BZ17: 8.936901704 | CA17: 8.936901704 | CB17: 8.644321049 | CC17: 8.752002713 | CD17: 8.816891754 | CE17: =SUM(CE14:CE16) -> 8.816891754 | CF17: 45.207445 | CG17: 45.08392739 | CH17: 45.08392739 | CI17: 45.08392739 | CJ17: 45.207445
A18: =ROW() -> 18 | B18: Calculated Tariffs [$ nominal]
A19: =ROW() -> 19 | B19: Toll charge | BL19: 0.214105 | BM19: =BL19 -> 0.214105 | BN19: =BM19 -> 0.214105 | BO19: 0.214105 | BP19: 0.214105 | BQ19: =BP19 -> 0.214105 | BR19: 0.1161843416 | BS19: 0.1161843416 | BT19: 0.1171397946 | BU19: =BT19 -> 0.1171397946 | BV19: 0.1171397946 | BW19: 0.1171397946 | BX19: 0.1158720598 | BY19: =BX19 -> 0.1158720598 | BZ19: 0.1158720598 | CA19: 0.1158720598 | CB19: 0.114831 | CC19: 0.11502 | CD19: 0.114604 | CE19: =CD19 -> 0.114604 | CF19: =CoS!G$65 -> 0.126564108 | CG19: =CoS!H$65 -> 0.126564108 | CH19: =CoS!I$65 -> 0.126564108 | CI19: =CoS!J$65 -> 0.126564108 | CJ19: =CoS!K$65 -> 0.126564108
A20: =ROW() -> 20 | B20: Reservation charge | BL20: 0.001469 | BM20: =BL20 -> 0.001469 | BN20: 0.001469 | BO20: 0.001469 | BP20: 0.001469 | BQ20: =BP20 -> 0.001469 | BR20: 0.0006194527365 | BS20: 0.0006194527365 | BT20: 0.0006251054489 | BU20: =BT20 -> 0.0006251054489 | BV20: 0.0006251054489 | BW20: 0.0006251054489 | BX20: 0.000617582122 | BY20: =BX20 -> 0.000617582122 | BZ20: 0.000617582122 | CA20: 0.000617582122 | CB20: 0.00061 | CC20: 0.000611 | CD20: 0.000609 | CE20: =CD20 -> 0.000609 | CF20: =CoS!G$66 -> 0.0007665462858 | CG20: =CoS!H$66 -> 0.0007665462858 | CH20: =CoS!I$66 -> 0.0007665462858 | CI20: =CoS!J$66 -> 0.0007665462858 | CJ20: =CoS!K$66 -> 0.0007665462858
A21: =ROW() -> 21 | B21: Throughput charge | BL21: 0.000385 | BM21: =BL21 -> 0.000385 | BN21: 0.000385 | BO21: 0.000385 | BP21: 0.000385 | BQ21: =BP21 -> 0.000385 | BR21: 0.0002276018153 | BS21: 0.0002276018153 | BT21: 0.0002294016872 | BU21: =BT21 -> 0.0002294016872 | BV21: 0.0002294016872 | BW21: 0.0002294016872 | BX21: 0.0002270260311 | BY21: =BX21 -> 0.0002270260311 | BZ21: 0.0002270260311 | CA21: 0.0002270260311 | CB21: 0.000225 | CC21: 0.000225 | CD21: 0.000224 | CE21: =CD21 -> 0.000224 | CF21: =CoS!G$67 -> 0.000209630371 | CG21: =CoS!H$67 -> 0.000209630371 | CH21: =CoS!I$67 -> 0.000209630371 | CI21: =CoS!J$67 -> 0.000209630371 | CJ21: =CoS!K$67 -> 0.000209630371
A22: =ROW() -> 22 | B22: ="Calculated Load" -> Calculated Load
A23: =ROW() -> 23 | B23: Reserved Capacity [TJ/day] | BL23: =Load!BL108 -> 97.22 | BM23: =Load!BM108 -> 97.79 | BN23: =Load!BN108 -> 97.89 | BO23: =Load!BO108 -> 97.32 | BP23: =Load!BP108 -> 102.4 | BQ23: =Load!BQ108 -> 102.98 | BR23: =Load!BR108 -> 103.7 | BS23: =Load!BS108 -> 99.6 | BT23: =Load!BT108 -> 99.6 | BU23: =Load!BU108 -> 99.6 | BV23: =Load!BV108 -> 98.98 | BW23: =Load!BW108 -> 101 | BX23: =Load!BX108 -> 102.5 | BY23: =Load!BY108 -> 102.5 | BZ23: =Load!BZ108 -> 102.5 | CA23: =Load!CA108 -> 102.5 | CB23: =Load!CB108 -> 102.5 | CC23: =Load!CC108 -> 102.5 | CD23: =Load!CD108 -> 102.5 | CE23: =Load!CE108 -> 102.5 | CF23: =Load!CF108 -> 110.28 | CG23: =Load!CG108 -> 110.28 | CH23: =Load!CH108 -> 110.28 | CI23: =Load!CI108 -> 110.28 | CJ23: =Load!CJ108 -> 110.28
A24: =ROW() -> 24 | B24: Reserved Capacity x Distance (PJkms per day) | BL24: =Load!BL109 -> 103.0533314 | BM24: =Load!BM109 -> 103.8325703 | BN24: =Load!BN109 -> 103.9681613 | BO24: =Load!BO109 -> 103.1952926 | BP24: =Load!BP109 -> 107.6108372 | BQ24: =Load!BQ109 -> 108.4015118 | BR24: =Load!BR109 -> 109.788067 | BS24: =Load!BS109 -> 104.229287 | BT24: =Load!BT109 -> 104.229287 | BU24: =Load!BU109 -> 104.229287 | BV24: =Load!BV109 -> 103.7931294 | BW24: =Load!BW109 -> 106.754474 | BX24: =Load!BX109 -> 108.469829 | BY24: =Load!BY109 -> 108.469829 | BZ24: =Load!BZ109 -> 108.469829 | CA24: =Load!CA109 -> 108.469829 | CB24: =Load!CB109 -> 108.469829 | CC24: =Load!CC109 -> 108.469829 | CD24: =Load!CD109 -> 108.469829 | CE24: =Load!CE109 -> 108.469829 | CF24: =Load!CF109 -> 116.3396335 | CG24: =Load!CG109 -> 116.3396335 | CH24: =Load!CH109 -> 116.3396335 | CI24: =Load!CI109 -> 116.3396335 | CJ24: =Load!CJ109 -> 116.3396335
A25: =ROW() -> 25 | B25: Throughput x Distance (PJkms per day) | BL25: =Load!BL110 -> 79.9672433 | BM25: =Load!BM110 -> 74.3081083 | BN25: =Load!BN110 -> 71.370964 | BO25: =Load!BO110 -> 70.9099546 | BP25: =Load!BP110 -> 79.6069708 | BQ25: =Load!BQ110 -> 80.0950984 | BR25: =Load!BR110 -> 81.6011827 | BS25: =Load!BS110 -> 77.5337827 | BT25: =Load!BT110 -> 77.5337827 | BU25: =Load!BU110 -> 77.5337827 | BV25: =Load!BV110 -> 76.7599547 | BW25: =Load!BW110 -> 78.8933952 | BX25: =Load!BX110 -> 80.4943932 | BY25: =Load!BY110 -> 80.4943932 | BZ25: =Load!BZ110 -> 80.4943932 | CA25: =Load!CA110 -> 80.4943932 | CB25: =Load!CB110 -> 80.4943932 | CC25: =Load!CC110 -> 80.4943932 | CD25: =Load!CD110 -> 80.4943932 | CE25: =Load!CE110 -> 80.4943932 | CF25: =Load!CF110 -> 97.22067183 | CG25: =Load!CG110 -> 97.22067183 | CH25: =Load!CH110 -> 97.22067183 | CI25: =Load!CI110 -> 97.22067183 | CJ25: =Load!CJ110 -> 97.22067183

Sheet Tax_CoRE
B1: =Main!B1 -> ERA, GGT Tariff Model, July 2019 [Draft Decision]
B2: Tax
A3: Ref | B3: =COLUMN() -> 2 | C3: =COLUMN() -> 3 | D3: =COLUMN() -> 4 | E3: =COLUMN() -> 5 | F3: =COLUMN() -> 6 | G3: =COLUMN() -> 7 | H3: =COLUMN() -> 8 | I3: =COLUMN() -> 9 | J3: =COLUMN() -> 10 | K3: =COLUMN() -> 11
A4: =ROW() -> 4 | B4: Actual or Forecast | D4: Forecast | E4: Forecast | F4: Forecast | G4: Forecast | H4: Forecast | I4: Forecast | J4: Forecast | K4: Forecast
A5: =ROW() -> 5 | B5: Year Type | D5: Calendar | E5: Calendar | F5: Calendar | G5: Calendar | H5: Calendar | I5: Calendar | J5: Calendar | K5: Calendar
A6: =ROW() -> 6 | B6: Regulatory Period | D6: 3 | E6: 3 | F6: 4 | G6: 4 | H6: 4 | I6: 4 | J6: 4 | K6: 5
A7: =ROW() -> 7 | B7: Start Date | D7: =Inputs!BC7 -> 2018-01-01 | E7: =Inputs!BD7 -> 2019-01-01 | F7: =Inputs!BE7 -> 2020-01-01 | G7: =Inputs!BF7 -> 2021-01-01 | H7: =Inputs!BG7 -> 2022-01-01 | I7: =Inputs!BH7 -> 2023-01-01 | J7: =Inputs!BI7 -> 2024-01-01 | K7: =J7+K$11 -> 2024-12-31
A8: =ROW() -> 8 | B8: End Date | D8: =Inputs!BC8 -> 2018-12-31 | E8: =Inputs!BD8 -> 2019-12-31 | F8: =Inputs!BE8 -> 2020-12-31 | G8: =Inputs!BF8 -> 2021-12-31 | H8: =Inputs!BG8 -> 2022-12-31 | I8: =Inputs!BH8 -> 2023-12-31 | J8: =Inputs!BI8 -> 2024-12-31 | K8: =J8+K$11 -> 2025-12-31
A9: =ROW() -> 9 | B9: Year Type | D9: =Inputs!BC9 -> 2018 | E9: =Inputs!BD9 -> 2019 | F9: =Inputs!BE9 -> 2020 | G9: =Inputs!BF9 -> 2021 | H9: =Inputs!BG9 -> 2022 | I9: =Inputs!BH9 -> 2023 | J9: =Inputs!BI9 -> 2024 | K9: =J9+1 -> 2025
A10: =ROW() -> 10 | B10: Quarter
A11: =ROW() -> 11 | B11: Days | D11: =Inputs!BC11 -> 365 | E11: =Inputs!BD11 -> 365 | F11: =Inputs!BE11 -> 366 | G11: =Inputs!BF11 -> 365 | H11: =Inputs!BG11 -> 365 | I11: =Inputs!BH11 -> 365 | J11: =Inputs!BI11 -> 366 | K11: 365
A12: =ROW() -> 12 | B12: Years (nearest half) | D12: =Inputs!BC12 -> 1 | E12: =Inputs!BD12 -> 1 | F12: =Inputs!BE12 -> 1 | G12: =Inputs!BF12 -> 1 | H12: =Inputs!BG12 -> 1 | I12: =Inputs!BH12 -> 1 | J12: =Inputs!BI12 -> 1 | K12: 1
A13: =ROW() -> 13 | B13: Financial Parameters
A14: =ROW() -> 14 | B14: ="Inflation Factor (convert Real $ "&Inputs!D19&" to nominal $)" -> Inflation Factor (convert Real $ 31/12/2018 to nominal $) | D14: =CoS!E16 -> 1 | E14: =CoS!F16 -> 1.0128 | F14: =CoS!G16 -> 1.02576384 | G14: =CoS!H16 -> 1.038893617 | H14: =CoS!I16 -> 1.052191455 | I14: =CoS!J16 -> 1.065659506 | J14: =CoS!K16 -> 1.079299948
A15: =ROW() -> 15 | B15: Leverage | F15: =WACC!$J$23 -> 0.55 | G15: =WACC!$J$23 -> 0.55 | H15: =WACC!$J$23 -> 0.55 | I15: =WACC!$J$23 -> 0.55 | J15: =WACC!$J$23 -> 0.55 | K15: =J15 -> 0.55
A16: =ROW() -> 16 | B16: Post-Tax WACC (%, Nominal) | E16: =CoS!F18 -> 0.0502 | F16: =CoS!G18 -> 0.0502 | G16: =CoS!H18 -> 0.0502 | H16: =CoS!I18 -> 0.0502 | I16: =CoS!J18 -> 0.0502 | J16: =CoS!K18 -> 0.0502
A17: =ROW() -> 17 | B17: Discount Factor (Nominal) | D17: 1 | E17: =D17/(1+E16) -> 0.952199581 | F17: =E17/(1+F16) -> 0.9066840421 | G17: =F17/(1+G16) -> 0.863344165 | H17: =G17/(1+H16) -> 0.8220759522 | I17: =H17/(1+I16) -> 0.7827803773 | J17: =I17/(1+J16) -> 0.7453631473
A18: =ROW() -> 18 | B18: Discount Factor (Real) | E18: =CoS!F21 -> 0.9643877357 | F18: =CoS!G21 -> 0.9300437047 | G18: =CoS!H21 -> 0.8969227425 | H18: =CoS!I21 -> 0.8649812927 | I18: =CoS!J21 -> 0.8341773502 | J18: =CoS!K21 -> 0.8044704059
A19: =ROW() -> 19 | B19: Cost of Debt (%) | F19: =WACC!J13 -> 0.0439 | G19: =WACC!K13 -> 0.0439 | H19: =WACC!L13 -> 0.0439 | I19: =WACC!M13 -> 0.0439 | J19: =WACC!N13 -> 0.0439 | K19: =J19 -> 0.0439
A20: =ROW() -> 20 | B20: Franking Credit | F20: =WACC!J$27 -> 0.5 | G20: =WACC!K$27 -> 0.5 | H20: =WACC!L$27 -> 0.5 | I20: =WACC!M$27 -> 0.5 | J20: =WACC!N$27 -> 0.5
A21: =ROW() -> 21
A22: =ROW() -> 22 | B22: Interest on Debt
A23: =ROW() -> 23 | B23: RAB (CCA) | F23: ='Assets '!BA24 -> 362.9290583 | G23: ='Assets '!BB24 -> 355.7038131 | H23: ='Assets '!BC24 -> 345.3321788 | I23: ='Assets '!BD24 -> 334.5717289 | J23: ='Assets '!BE24 -> 323.5894799 | K23: ='Assets '!BF24 -> 313.9486617
A24: =ROW() -> 24 | B24: Debt | F24: =F23*F15 -> 199.6109821 | G24: 195.6370972 | H24: 189.9326983 | I24: 184.0144509 | J24: 177.9742139 | K24: =K23*K15 -> 172.671764
A25: =ROW() -> 25 | B25: Cost of Debt | F25: =F24*F19 -> 8.762922114 | G25: 8.588468567 | H25: =H24*H19 -> 8.338045457 | I25: 8.078234393 | J25: 7.813067991 | K25: =K24*K19 -> 7.580290438
A26: =ROW() -> 26
A27: =ROW() -> 27 | B27: Calculation of Tax Expense (Nominal) | C27: PV
A28: =ROW() -> 28 | B28: Revenue | C28: =SUMPRODUCT($D$17:$J$17,D28:J28) -> 185.9610043 | F28: =CoS!G72 -> 45.207445 | G28: =CoS!H72 -> 45.08392739 | H28: =CoS!I72 -> 45.08392739 | I28: =CoS!J72 -> 45.08392739 | J28: =CoS!K72 -> 45.207445
A29: =ROW() -> 29 | B29: Expenses
A30: =ROW() -> 30 | B30: Opex | C30: =SUMPRODUCT($D$17:$J$17,D30:J30) -> 72.89494023 | F30: =Inputs!BE1357 -> 17.2428538 | G30: =Inputs!BF1357 -> 17.43318793 | H30: =Inputs!BG1357 -> 17.91010109 | I30: =Inputs!BH1357 -> 17.69080058 | J30: =Inputs!BI1357 -> 18.29819984
A31: =ROW() -> 31 | B31: Interest on Debt | C31: 34.36156884 | F31: =F25 -> 8.762922114 | G31: 8.588468567 | H31: =H25 -> 8.338045457 | I31: 8.078234393 | J31: 7.813067991
A32: =ROW() -> 32 | B32: Tax Depreciation | C32: 9.668249293 | F32: ='Tax Assets'!BY21 -> 2.58232078 | G32: ='Tax Assets'!BZ21 -> 2.665751303 | H32: ='Tax Assets'!CA21 -> 2.320694621 | I32: ='Tax Assets'!CB21 -> 2.2953874 | J32: ='Tax Assets'!CC21 -> 1.77211332
A33: =ROW() -> 33 | B33: Total Expenses | C33: 116.9247584 | F33: =SUM(F30:F32) -> 28.58809669 | G33: 28.6874078 | H33: 28.56884117 | I33: 28.06442238 | J33: 27.88338115
A34: =ROW() -> 34 | B34: Tax | C34: 0
A35: =ROW() -> 35 | B35: Net Income | C35: 69.03624598 | F35: =F28-F33 -> 16.61934831 | G35: 16.3965196 | H35: 16.51508623 | I35: 17.01950502 | J35: 17.32406386
A36: =ROW() -> 36 | B36: Taxable Income | C36: =SUMPRODUCT($D$17:$J$17,D36:J36) -> 68.01028455 | F36: =F35+E37 -> 15.48779489 | G36: =G35+F37 -> 16.3965196 | H36: =H35+G37 -> 16.51508623 | I36: =I35+H37 -> 17.01950502 | J36: =J35+I37 -> 17.32406386
A37: =ROW() -> 37 | B37: Tax Loss Carried Forward | C37: -1.077464691 | E37: -1.131553418 | F37: =IF(F36<0,F36,0) -> 0 | G37: =IF(G36<0,G36,0) -> 0 | H37: =IF(H36<0,H36,0) -> 0 | I37: =IF(I36<0,I36,0) -> 0 | J37: =IF(J36<0,J36,0) -> 0
A38: =ROW() -> 38 | B38: Income Tax Expense | C38: 20.40308537 | F38: =IF(F36>0,F36*WACC!J26,0) -> 4.646338468 | G38: =IF(G36>0,G36*WACC!K26,0) -> 4.918955879 | H38: =IF(H36>0,H36*WACC!L26,0) -> 4.954525868 | I38: =IF(I36>0,I36*WACC!M26,0) -> 5.105851505 | J38: =IF(J36>0,J36*WACC!N26,0) -> 5.197219157
A39: =ROW() -> 39 | B39: Imputation Credits | C39: -10.20154268 | F39: =-F38*WACC!J$27 -> -2.323169234 | G39: =-G38*WACC!K$27 -> -2.45947794 | H39: =-H38*WACC!L$27 -> -2.477262934 | I39: =-I38*WACC!M$27 -> -2.552925753 | J39: =-J38*WACC!N$27 -> -2.598609578
A40: =ROW() -> 40 | B40: Net Tax Expense | C40: 10.20154268 | F40: =SUM(F38:F39) -> 2.323169234 | G40: 2.45947794 | H40: 2.477262934 | I40: 2.552925753 | J40: 2.598609578
A41: =ROW() -> 41
A42: =ROW() -> 42 | B42: Real Net Tax Expense | C42: PV
A43: =ROW() -> 43 | B43: Income Tax Expense | C43: =SUMPRODUCT($D$18:$J$18,D43:J43) -> 20.40308537 | F43: =F38/F$14 -> 4.529637609 | G43: 4.734802291 | H43: =H38/H$14 -> 4.708768392 | I43: 4.791259756 | J43: 4.81536126
A44: =ROW() -> 44 | B44: Imputation Credits | C44: =SUMPRODUCT($D$18:$J$18,D44:J44) -> -10.20154268 | F44: =F39/F$14 -> -2.264818805 | G44: -2.367401146 | H44: =H39/H$14 -> -2.354384196 | I44: -2.395629878 | J44: -2.40768063
A45: =ROW() -> 45 | B45: Net Tax Expense | C45: =SUMPRODUCT($D$18:$J$18,D45:J45) -> 10.20154268 | F45: =F40/F$14 -> 2.264818805 | G45: 2.367401146 | H45: =H40/H$14 -> 2.354384196 | I45: 2.395629878 | J45: 2.40768063
A46: =ROW() -> 46
A47: =ROW() -> 47 | B47: Equity Raising Costs, Nominal Calculations [m$ nominal]
A48: =ROW() -> 48 | B48: Yield / cost inputs (from AER 2010 Victorian DNSP decision)
A49: =ROW() -> 49 | B49: Dividend imputation/payout ratio | D49: 0.7
A50: =ROW() -> 50 | B50: Benchmark seasoned equity offering (SEO) raising cost | D50: 0.03
A51: =ROW() -> 51 | B51: Benchmark Divident Re-investment Plan (DRP) cost | D51: 0.01
A52: =ROW() -> 52 | B52: Benchmark DRP take-up | D52: 0.25
A53: =ROW() -> 53
A54: =ROW() -> 54 | B54: Dividend assessment
A55: =ROW() -> 55 | B55: Tax payable | F55: =F38 -> 4.646338468 | G55: =G38 -> 4.918955879 | H55: =H38 -> 4.954525868 | I55: =I38 -> 5.105851505 | J55: =J38 -> 5.197219157
A56: =ROW() -> 56 | B56: Dividends | F56: =(F55/WACC!J$26*(1-WACC!J$26)*$D$49) -> 7.589019498 | G56: =(G55/WACC!K$26*(1-WACC!K$26)*$D$49) -> 8.034294602 | H56: =(H55/WACC!L$26*(1-WACC!L$26)*$D$49) -> 8.09239225 | I56: =(I55/WACC!M$26*(1-WACC!M$26)*$D$49) -> 8.339557459 | J56: =(J55/WACC!N$26*(1-WACC!N$26)*$D$49) -> 8.488791289
A57: =ROW() -> 57 | B57: Dividend Re-investment | F57: =F56*$D$52 -> 1.897254874 | G57: =G56*$D$52 -> 2.008573651 | H57: 2.023098063 | I57: 2.084889365 | J57: 2.122197822
A58: =ROW() -> 58
A59: =ROW() -> 59 | B59: Benchmark Cash Flows
A60: =ROW() -> 60 | B60: Revenue | F60: =F28 -> 45.207445 | G60: =G28 -> 45.08392739 | H60: =H28 -> 45.08392739 | I60: =I28 -> 45.08392739 | J60: =J28 -> 45.207445
A61: =ROW() -> 61 | B61: Opex | F61: =-F30 -> -17.2428538 | G61: -17.43318793 | H61: -17.91010109 | I61: -17.69080058 | J61: -18.29819984
A62: =ROW() -> 62 | B62: Interest | F62: -8.762922114 | G62: -8.588468567 | H62: -8.338045457 | I62: -8.078234393 | J62: -7.813067991
A63: =ROW() -> 63 | B63: Tax | F63: =-F38 -> -4.646338468 | G63: =-G38 -> -4.918955879 | H63: =-H38 -> -4.954525868 | I63: =-I38 -> -5.105851505 | J63: =-J38 -> -5.197219157
A64: =ROW() -> 64 | B64: Internal cash flow | F64: =SUM(F60:F63) -> 14.55533062 | G64: =SUM(G60:G63) -> 14.14331502 | H64: 13.88125498 | I64: 14.20904091 | J64: 13.89895802
A65: =ROW() -> 65 | B65: Dividend | F65: =-F56 -> -7.589019498 | G65: =-G56 -> -8.034294602 | H65: -8.09239225 | I65: -8.339557459 | J65: -8.488791289
A66: =ROW() -> 66 | B66: Dividend reinvestment | F66: =F57 -> 1.897254874 | G66: =G57 -> 2.008573651 | H66: 2.023098063 | I66: 2.084889365 | J66: 2.122197822
A67: =ROW() -> 67 | B67: Retained cash flow | F67: =SUM(F64:F66) -> 8.863566001 | G67: =SUM(G64:G66) -> 8.117594069 | H67: 7.81196079 | I67: 7.954372818 | J67: 7.532364552
A68: =ROW() -> 68
A69: =ROW() -> 69 | B69: Benchmark capex funding
A70: =ROW() -> 70 | B70: Capex | F70: =Inputs!BE120 -> 3.303832111 | G70: =Inputs!BF120 -> 1.029868305 | H70: =Inputs!BG120 -> 0.6657836913 | I70: =Inputs!BH120 -> 0.4570140933 | J70: =Inputs!BI120 -> 0.8490716248
A71: =ROW() -> 71 | B71: less Debt Component | F71: =(G23-F23)*F15 -> -3.97388489 | G71: =(H23-G23)*G15 -> -5.704398852 | H71: =(I23-H23)*H15 -> -5.918247478 | I71: =(J23-I23)*I15 -> -6.040236945 | J71: =(K23-J23)*J15 -> -5.302449963
A72: =ROW() -> 72 | B72: Equity Component | F72: =F70-F71 -> 7.277717002 | G72: 6.734267157 | H72: 6.584031169 | I72: 6.497251038 | J72: 6.151521588
A73: =ROW() -> 73 | B73: Retained cash flows | F73: =F67 -> 8.863566001 | G73: =G67 -> 8.117594069 | H73: 7.81196079 | I73: 7.954372818 | J73: 7.532364552
A74: =ROW() -> 74 | B74: Equity Required (SEO) | F74: =F72-F73 -> -1.585848999 | G74: -1.383326912 | H74: -1.227929621 | I74: -1.45712178 | J74: -1.380842964
A75: =ROW() -> 75
A76: =ROW() -> 76 | B76: Equity raising costs
A77: =ROW() -> 77 | B77: External Equity Raising Costs | F77: =F74*$D$50 -> -0.04757546998 | G77: =G74*$D$50 -> -0.04149980736 | H77: -0.03683788864 | I77: -0.0437136534 | J77: -0.04142528892
A78: =ROW() -> 78 | B78: DRP Cost | F78: =F57*$D$51 -> 0.01897254874 | G78: =G57*$D$51 -> 0.02008573651 | H78: 0.02023098063 | I78: 0.02084889365 | J78: 0.02122197822
A79: =ROW() -> 79 | B79: Total Equity Raising Costs | F79: =SUM(F77:F78) -> -0.02860292123 | G79: =SUM(G77:G78) -> -0.02141407085 | H79: -0.01660690801 | I79: -0.02286475976 | J79: -0.02020331069
A80: =ROW() -> 80 | B80: Equity Raising Costs | F80: =MAX(0,SUM(F77:F78)) -> 0 | G80: =MAX(0,SUM(G77:G78)) -> 0 | H80: 0 | I80: 0 | J80: 0
A81: =ROW() -> 81 | B81: Equity Raising Costs (manual entry, nominal $) | F81: =SolverSheet!I22 -> 0 | G81: =SolverSheet!J22 -> 0 | H81: =SolverSheet!K22 -> 0 | I81: =SolverSheet!L22 -> 0 | J81: =SolverSheet!M22 -> 0
A82: =ROW() -> 82 | B82: ="Total Equity Raising Costs [Real " & Inputs!D19 &" $M], (capitalised and included in RAB)" -> Total Equity Raising Costs [Real 31/12/2018 $M], (capitalised and included in RAB) | F82: =F81/F14 -> 0 | G82: =G81/G14 -> 0 | H82: =H81/H14 -> 0 | I82: =I81/I14 -> 0 | J82: =J81/J14 -> 0

Sheet Assets
B1: =Main!B1 -> ERA, GGT Tariff Model, July 2019 [Draft Decision]
B2: Assets
A3: Ref | B3: =COLUMN() -> 2 | C3: =COLUMN() -> 3 | D3: =COLUMN() -> 4 | E3: =COLUMN() -> 5 | F3: =COLUMN() -> 6 | G3: =COLUMN() -> 7 | H3: =COLUMN() -> 8 | I3: =COLUMN() -> 9 | J3: =COLUMN() -> 10 | K3: =COLUMN() -> 11 | L3: =COLUMN() -> 12 | M3: =COLUMN() -> 13 | N3: =COLUMN() -> 14 | O3: =COLUMN() -> 15 | P3: =COLUMN() -> 16 | Q3: =COLUMN() -> 17 | R3: =COLUMN() -> 18 | S3: =COLUMN() -> 19 | T3: =COLUMN() -> 20 | U3: =COLUMN() -> 21 | V3: =COLUMN() -> 22 | W3: =COLUMN() -> 23 | X3: =COLUMN() -> 24 | Y3: =COLUMN() -> 25 | Z3: =COLUMN() -> 26 | AA3: =COLUMN() -> 27 | AB3: =COLUMN() -> 28 | AC3: =COLUMN() -> 29 | AD3: =COLUMN() -> 30 | AE3: =COLUMN() -> 31 | AF3: =COLUMN() -> 32 | AG3: =COLUMN() -> 33 | AH3: =COLUMN() -> 34 | AI3: =COLUMN() -> 35 | AJ3: =COLUMN() -> 36 | AK3: =COLUMN() -> 37 | AL3: =COLUMN() -> 38 | AM3: =COLUMN() -> 39 | AN3: =COLUMN() -> 40 | AO3: =COLUMN() -> 41 | AP3: =COLUMN() -> 42 | AQ3: =COLUMN() -> 43 | AR3: =COLUMN() -> 44 | AS3: =COLUMN() -> 45 | AT3: =COLUMN() -> 46 | AU3: =COLUMN() -> 47 | AV3: =COLUMN() -> 48 | AW3: =COLUMN() -> 49 | AX3: =COLUMN() -> 50 | AY3: =COLUMN() -> 51 | AZ3: =COLUMN() -> 52 | BA3: =COLUMN() -> 53 | BB3: =COLUMN() -> 54 | BC3: =COLUMN() -> 55 | BD3: =COLUMN() -> 56 | BE3: =COLUMN() -> 57 | BF3: =COLUMN() -> 58
A4: =ROW() -> 4 | B4: Actual or Forecast | C4: Actual | D4: Actual | E4: Actual | F4: Actual | G4: Actual | H4: Actual | I4: Actual | J4: Actual | K4: Actual | L4: Actual | M4: Actual | N4: Actual | O4: Actual | P4: Actual | Q4: Actual | R4: Actual | S4: Actual | T4: Actual | U4: Actual | V4: Actual | W4: Actual | X4: Actual | Y4: Actual | Z4: Actual | AA4: Actual | AB4: Actual | AC4: Actual | AD4: Actual | AE4: Actual | AF4: Actual | AG4: Actual | AH4: Actual | AI4: Actual | AJ4: Actual | AK4: Actual | AL4: Actual | AM4: Actual | AN4: Actual | AO4: Actual | AP4: Actual | AQ4: Actual | AR4: Actual | AS4: Actual | AT4: Actual | AU4: Actual | AV4: Forecast | AW4: Forecast | AX4: Forecast | AY4: Forecast | AZ4: Forecast | BA4: Forecast | BB4: Forecast | BC4: Forecast | BD4: Forecast | BE4: Forecast | BF4: Forecast
A5: =ROW() -> 5 | B5: Year Type | C5: Calendar | D5: Calendar | E5: Calendar | F5: Calendar | G5: Calendar | H5: Calendar | I5: Calendar | J5: Calendar | K5: Calendar | L5: Calendar | M5: Calendar | N5: Calendar | O5: Calendar | P5: Calendar | Q5: Calendar | R5: Calendar | S5: Calendar | T5: Calendar | U5: Calendar | V5: Calendar | W5: Calendar | X5: Calendar | Y5: Calendar | Z5: Calendar | AA5: Calendar | AB5: Calendar | AC5: Calendar | AD5: Calendar | AE5: Calendar | AF5: Calendar | AG5: Calendar | AH5: Calendar | AI5: Calendar | AJ5: Calendar | AK5: Calendar | AL5: Calendar | AM5: Calendar | AN5: Calendar | AO5: Calendar | AP5: Calendar | AQ5: Calendar | AR5: Calendar | AS5: Calendar | AT5: Calendar | AU5: Calendar | AV5: Calendar | AW5: Calendar | AX5: Calendar | AY5: Calendar | AZ5: Calendar | BA5: Calendar | BB5: Calendar | BC5: Calendar | BD5: Calendar | BE5: Calendar | BF5: Calendar
A6: =ROW() -> 6 | B6: Regulatory Period | D6: 1 | E6: 1 | F6: 1 | G6: 1 | H6: 1 | I6: 1 | J6: 1 | K6: 1 | L6: 1 | M6: 1 | N6: 1 | O6: 1 | P6: 1 | Q6: 1 | R6: 1 | S6: 1 | T6: 1 | U6: 1 | V6: 1 | W6: 1 | X6: 1 | Y6: 1 | Z6: 1 | AA6: 1 | AB6: 1 | AC6: 1 | AD6: 1 | AE6: 1 | AF6: 1 | AG6: 1 | AH6: 1 | AI6: 1 | AJ6: 1 | AK6: 1 | AL6: 1 | AM6: 1 | AN6: 1 | AO6: 1 | AP6: 1 | AQ6: 1 | AR6: 2 | AS6: 2 | AT6: 2 | AU6: 2 | AV6: 2 | AW6: 3 | AX6: 3 | AY6: 3 | AZ6: 3 | BA6: 3 | BB6: 4 | BC6: 4 | BD6: 4 | BE6: 4 | BF6: 4
A7: =ROW() -> 7 | B7: Start Date | C7: 1999-10-01 | D7: =C8+1 -> 2000-01-01 | E7: =D8+1 -> 2000-04-01 | F7: 2000-07-01 | G7: 2000-10-01 | H7: 2001-01-01 | I7: 2001-04-01 | J7: 2001-07-01 | K7: 2001-10-01 | L7: 2002-01-01 | M7: 2002-04-01 | N7: 2002-07-01 | O7: 2002-10-01 | P7: 2003-01-01 | Q7: 2003-04-01 | R7: 2003-07-01 | S7: 2003-10-01 | T7: 2004-01-01 | U7: 2004-04-01 | V7: 2004-07-01 | W7: 2004-10-01 | X7: 2005-01-01 | Y7: 2005-04-01 | Z7: 2005-07-01 | AA7: 2005-10-01 | AB7: 2006-01-01 | AC7: 2006-04-01 | AD7: 2006-07-01 | AE7: 2006-10-01 | AF7: 2007-01-01 | AG7: 2007-04-01 | AH7: 2007-07-01 | AI7: 2007-10-01 | AJ7: 2008-01-01 | AK7: 2008-04-01 | AL7: 2008-07-01 | AM7: 2008-10-01 | AN7: 2009-01-01 | AO7: 2009-04-01 | AP7: 2009-07-01 | AQ7: 2009-10-01 | AR7: 2010-01-01 | AS7: 2011-01-01 | AT7: 2012-01-01 | AU7: 2013-01-01 | AV7: 2014-01-01 | AW7: 2015-01-01 | AX7: 2016-01-01 | AY7: 2017-01-01 | AZ7: 2018-01-01 | BA7: 2019-01-01 | BB7: 2020-01-01 | BC7: 2021-01-01 | BD7: 2022-01-01 | BE7: 2023-01-01 | BF7: 2024-01-01
A8: =ROW() -> 8 | B8: End Date | C8: =C7+C11-1 -> 1999-12-31 | D8: 2000-03-31 | E8: 2000-06-30 | F8: 2000-09-30 | G8: 2000-12-31 | H8: 2001-03-31 | I8: 2001-06-30 | J8: 2001-09-30 | K8: 2001-12-31 | L8: 2002-03-31 | M8: 2002-06-30 | N8: 2002-09-30 | O8: 2002-12-31 | P8: 2003-03-31 | Q8: 2003-06-30 | R8: 2003-09-30 | S8: 2003-12-31 | T8: 2004-03-31 | U8: 2004-06-30 | V8: 2004-09-30 | W8: 2004-12-31 | X8: 2005-03-31 | Y8: 2005-06-30 | Z8: 2005-09-30 | AA8: 2005-12-31 | AB8: 2006-03-31 | AC8: 2006-06-30 | AD8: 2006-09-30 | AE8: 2006-12-31 | AF8: 2007-03-31 | AG8: 2007-06-30 | AH8: 2007-09-30 | AI8: 2007-12-31 | AJ8: 2008-03-31 | AK8: 2008-06-30 | AL8: 2008-09-30 | AM8: 2008-12-31 | AN8: 2009-03-31 | AO8: 2009-06-30 | AP8: 2009-09-30 | AQ8: 2009-12-31 | AR8: 2010-12-31 | AS8: 2011-12-31 | AT8: 2012-12-31 | AU8: 2013-12-31 | AV8: 2014-12-31 | AW8: 2015-12-31 | AX8: 2016-12-31 | AY8: 2017-12-31 | AZ8: 2018-12-31 | BA8: 2019-12-31 | BB8: =BB7+BB11-1 -> 2020-12-31 | BC8: 2021-12-31 | BD8: =BD7+BD11-1 -> 2022-12-31 | BE8: 2023-12-31 | BF8: =BF7+BF11-1 -> 2024-12-31
A9: =ROW() -> 9 | B9: Year | C9: =C8 -> 1999-12-31 | D9: =D8 -> 2000-03-31 | E9: 2000-06-30 | F9: 2000-09-30 | G9: 2000-12-31 | H9: 2001-03-31 | I9: 2001-06-30 | J9: 2001-09-30 | K9: 2001-12-31 | L9: 2002-03-31 | M9: 2002-06-30 | N9: 2002-09-30 | O9: 2002-12-31 | P9: 2003-03-31 | Q9: 2003-06-30 | R9: 2003-09-30 | S9: 2003-12-31 | T9: 2004-03-31 | U9: 2004-06-30 | V9: 2004-09-30 | W9: 2004-12-31 | X9: 2005-03-31 | Y9: 2005-06-30 | Z9: 2005-09-30 | AA9: 2005-12-31 | AB9: 2006-03-31 | AC9: 2006-06-30 | AD9: 2006-09-30 | AE9: 2006-12-31 | AF9: 2007-03-31 | AG9: 2007-06-30 | AH9: 2007-09-30 | AI9: 2007-12-31 | AJ9: 2008-03-31 | AK9: 2008-06-30 | AL9: 2008-09-30 | AM9: =AM8 -> 2008-12-31 | AN9: 2009-03-31 | AO9: 2009-06-30 | AP9: 2009-09-30 | AQ9: 2009-12-31 | AR9: 2010-12-31 | AS9: 2011-12-31 | AT9: 2012-12-31 | AU9: 2013-12-31 | AV9: 2014-12-31 | AW9: 2015-12-31 | AX9: 2016-12-31 | AY9: 2017-12-31 | AZ9: 2018-12-31 | BA9: 2019-12-31 | BB9: =BB8 -> 2020-12-31 | BC9: 2021-12-31 | BD9: =BD8 -> 2022-12-31 | BE9: 2023-12-31 | BF9: =BF8 -> 2024-12-31
A10: =ROW() -> 10 | B10: Quarter | D10: Q1 | E10: Q2 | F10: Q3 | G10: Q4 | H10: Q1 | I10: Q2 | J10: Q3 | K10: Q4 | L10: Q1 | M10: Q2 | N10: Q3 | O10: Q4 | P10: Q1 | Q10: Q2 | R10: Q3 | S10: Q4 | T10: Q1 | U10: Q2 | V10: Q3 | W10: Q4 | X10: Q1 | Y10: Q2 | Z10: Q3 | AA10: Q4 | AB10: Q1 | AC10: Q2 | AD10: Q3 | AE10: Q4 | AF10: Q1 | AG10: Q2 | AH10: Q3 | AI10: Q4 | AJ10: Q1 | AK10: Q2 | AL10: Q3 | AM10: Q4 | AN10: - | AO10: - | AP10: - | AQ10: - | AR10: - | AS10: - | AT10: - | AU10: - | AV10: - | AW10: - | AX10: - | AY10: - | AZ10: - | BA10: - | BB10: - | BC10: - | BD10: - | BE10: - | BF10: -
A11: =ROW() -> 11 | B11: Days | C11: 92 | D11: 91 | E11: 91 | F11: 92 | G11: 92 | H11: 90 | I11: 91 | J11: 92 | K11: 92 | L11: 90 | M11: 91 | N11: 92 | O11: 92 | P11: 90 | Q11: 91 | R11: 92 | S11: 92 | T11: 91 | U11: 91 | V11: 92 | W11: 92 | X11: 90 | Y11: 91 | Z11: 92 | AA11: 92 | AB11: 90 | AC11: 91 | AD11: 92 | AE11: 92 | AF11: 90 | AG11: 91 | AH11: 92 | AI11: 92 | AJ11: 91 | AK11: 91 | AL11: 92 | AM11: 92 | AN11: 90 | AO11: 91 | AP11: 92 | AQ11: 92 | AR11: 365 | AS11: 365 | AT11: 366 | AU11: 365 | AV11: 365 | AW11: 365 | AX11: 366 | AY11: 365 | AZ11: 365 | BA11: 365 | BB11: 366 | BC11: 365 | BD11: 365 | BE11: 365 | BF11: 366
A12: =ROW() -> 12 | B12: Years (nearest half) | C12: =ROUND(YEARFRAC(C7,C8),2) -> 0.25 | D12: 0.25 | E12: 0.25 | F12: 0.25 | G12: 0.25 | H12: 0.25 | I12: 0.25 | J12: 0.25 | K12: 0.25 | L12: 0.25 | M12: 0.25 | N12: 0.25 | O12: 0.25 | P12: 0.25 | Q12: 0.25 | R12: 0.25 | S12: 0.25 | T12: 0.25 | U12: 0.25 | V12: 0.25 | W12: 0.25 | X12: 0.25 | Y12: 0.25 | Z12: 0.25 | AA12: 0.25 | AB12: 0.25 | AC12: 0.25 | AD12: 0.25 | AE12: 0.25 | AF12: 0.25 | AG12: 0.25 | AH12: 0.25 | AI12: 0.25 | AJ12: 0.25 | AK12: 0.25 | AL12: 0.25 | AM12: 0.25 | AN12: 0.25 | AO12: 0.25 | AP12: 0.25 | AQ12: 0.25 | AR12: 1 | AS12: 1 | AT12: 1 | AU12: 1 | AV12: 1 | AW12: 1 | AX12: 1 | AY12: 1 | AZ12: 1 | BA12: 1 | BB12: =ROUND(YEARFRAC(BB7,BB8),2) -> 1 | BC12: 1 | BD12: =ROUND(YEARFRAC(BD7,BD8),2) -> 1 | BE12: 1 | BF12: =ROUND(YEARFRAC(BF7,BF8),2) -> 1
A13: =ROW() -> 13 | B13: Period End CPI | D13: =Inputs!G16 -> 69.7 | E13: =Inputs!H16 -> 70.2 | F13: =Inputs!I16 -> 72.9 | G13: =Inputs!J16 -> 73.1 | H13: =Inputs!K16 -> 73.9 | I13: =Inputs!L16 -> 74.5 | J13: =Inputs!M16 -> 74.7 | K13: =Inputs!N16 -> 75.4 | L13: =Inputs!O16 -> 76.1 | M13: =Inputs!P16 -> 76.6 | N13: =Inputs!Q16 -> 77.1 | O13: =Inputs!R16 -> 77.6 | P13: =Inputs!S16 -> 78.6 | Q13: =Inputs!T16 -> 78.6 | R13: =Inputs!U16 -> 79.1 | S13: =Inputs!V16 -> 79.5 | T13: =Inputs!W16 -> 80.2 | U13: =Inputs!X16 -> 80.6 | V13: =Inputs!Y16 -> 80.9 | W13: =Inputs!Z16 -> 81.5 | X13: =Inputs!AA16 -> 82.1 | Y13: =Inputs!AB16 -> 82.6 | Z13: =Inputs!AC16 -> 83.4 | AA13: =Inputs!AD16 -> 83.8 | AB13: =Inputs!AE16 -> 84.5 | AC13: =Inputs!AF16 -> 85.9 | AD13: =Inputs!AG16 -> 86.7 | AE13: =Inputs!AH16 -> 86.6 | AF13: =Inputs!AI16 -> 86.6 | AG13: =Inputs!AJ16 -> 87.7 | AH13: =Inputs!AK16 -> 88.3 | AI13: =Inputs!AL16 -> 89.1 | AJ13: =Inputs!AM16 -> 90.3 | AK13: =Inputs!AN16 -> 91.6 | AL13: =Inputs!AO16 -> 92.7 | AM13: =Inputs!AP16 -> 92.4 | AN13: =Inputs!AQ16 -> 92.5 | AO13: =Inputs!AR16 -> 92.9 | AP13: =Inputs!AS16 -> 93.8 | AQ13: =Inputs!AT16 -> 94.3 | AR13: =Inputs!AU16 -> 96.9 | AS13: =Inputs!AV16 -> 99.8 | AT13: =Inputs!AW16 -> 102 | AU13: =Inputs!AX16 -> 104.8 | AV13: =Inputs!AY16 -> 106.6 | AW13: =Inputs!AZ16 -> 108.15636 | AX13: =Inputs!BA16 -> 109.7354429 | AY13: =Inputs!BB16 -> 111.3375803 | AZ13: =Inputs!BC16 -> 112.963109 | BA13: =Inputs!BD16 -> 114.4090368 | BB13: =Inputs!BE16 -> 115.8734725 | BC13: =Inputs!BF16 -> 117.3566529 | BD13: =Inputs!BG16 -> 118.8588181 | BE13: =Inputs!BH16 -> 120.3802109 | BF13: =Inputs!BI16 -> 121.9210776
A14: =ROW() -> 14 | B14: Period End December Inflation | E14: =E13/D13-1 -> 0.007173601148 | F14: =F13/E13-1 -> 0.03846153846 | G14: 0.002743484225 | H14: 0.01094391245 | I14: 0.008119079838 | J14: 0.002684563758 | K14: 0.0093708166 | L14: 0.009283819629 | M14: 0.006570302234 | N14: 0.006527415144 | O14: 0.006485084306 | P14: 0.01288659794 | Q14: 0 | R14: 0.006361323155 | S14: 0.005056890013 | T14: 0.008805031447 | U14: 0.004987531172 | V14: 0.003722084367 | W14: 0.007416563659 | X14: 0.00736196319 | Y14: 0.006090133983 | Z14: 0.009685230024 | AA14: 0.00479616307 | AB14: 0.008353221957 | AC14: 0.01656804734 | AD14: 0.009313154831 | AE14: -0.001153402537 | AF14: 0 | AG14: 0.01270207852 | AH14: 0.006841505131 | AI14: 0.00906002265 | AJ14: 0.01346801347 | AK14: 0.01439645626 | AL14: 0.01200873362 | AM14: -0.003236245955 | AN14: 0.001082251082 | AO14: 0.004324324324 | AP14: 0.009687836383 | AQ14: 0.005330490405 | AR14: 0.02757158006 | AS14: 0.02992776058 | AT14: 0.02204408818 | AU14: 0.02745098039 | AV14: 0.01717557252 | AW14: 0.0146 | AX14: 0.0146 | AY14: 0.0146 | AZ14: 0.0146 | BA14: 0.0128 | BB14: 0.0128 | BC14: 0.0128 | BD14: 0.0128 | BE14: 0.0128 | BF14: 0.0128
A15: =ROW() -> 15 | B15: ="Inflation Factor (convert nominal to real $ "&C15&")" -> Inflation Factor (convert nominal to real $ 31/12/2018) | C15: =Inputs!$D$19 -> 31/12/2018 | AV15: =Inputs!AY19 -> 1.059691454 | AW15: =Inputs!AZ19 -> 1.044442592 | AX15: =Inputs!BA19 -> 1.02941316 | AY15: =Inputs!BB19 -> 1.0146 | AZ15: =Inputs!BC19 -> 1 | BA15: =Inputs!BD19 -> 0.9873617694 | BB15: =Inputs!BE19 -> 0.9748832636 | BC15: =Inputs!BF19 -> 0.962562464 | BD15: =Inputs!BG19 -> 0.9503973776 | BE15: =Inputs!BH19 -> 0.9383860363 | BF15: =Inputs!BI19 -> 0.9265264972
A16: =ROW() -> 16
A17: =ROW() -> 17 | B17: Regulated Asset Base
A18: =ROW() -> 18 | B18: Total Assets ($m) | D18: $OD | E18: $OD | F18: $OD | G18: $OD | H18: $OD | I18: $OD | J18: $OD | K18: $OD | L18: $OD | M18: $OD | N18: $OD | O18: $OD | P18: $OD | Q18: $OD | R18: $OD | S18: $OD | T18: $OD | U18: $OD | V18: $OD | W18: $OD | X18: $OD | Y18: $OD | Z18: $OD | AA18: $OD | AB18: $OD | AC18: $OD | AD18: $OD | AE18: $OD | AF18: $OD | AG18: $OD | AH18: $OD | AI18: $OD | AJ18: $OD | AK18: $OD | AL18: $OD | AM18: $OD | AN18: $OD | AO18: $OD | AP18: $OD | AQ18: $OD | AR18: $OD | AS18: $OD | AT18: $OD | AU18: $OD | AV18: $OD | AW18: ="$ "&TEXT(Inputs!AZ$96,"dd/mm/yyyy") -> $ 31/12/2018 | AX18: ="$ "&TEXT(Inputs!BA$96,"dd/mm/yyyy") -> $ 31/12/2018 | AY18: ="$ "&TEXT(Inputs!BB$96,"dd/mm/yyyy") -> $ 31/12/2018 | AZ18: ="$ "&TEXT(Inputs!BC$96,"dd/mm/yyyy") -> $ 31/12/2018 | BA18: ="$ "&TEXT(Inputs!BD$96,"dd/mm/yyyy") -> $ 31/12/2018 | BB18: ="$ "&TEXT(Inputs!BE$96,"dd/mm/yyyy") -> $ 31/12/2018 | BC18: ="$ "&TEXT(Inputs!BF$96,"dd/mm/yyyy") -> $ 31/12/2018 | BD18: ="$ "&TEXT(Inputs!BG$96,"dd/mm/yyyy") -> $ 31/12/2018 | BE18: ="$ "&TEXT(Inputs!BH$96,"dd/mm/yyyy") -> $ 31/12/2018 | BF18: ="$ "&TEXT(Inputs!BI$96,"dd/mm/yyyy") -> $ 31/12/2018
A19: =ROW() -> 19 | B19: Opening Capital Base | D19: =C24 -> 513.6507412 | E19: 512.3542726 | F19: 510.6812074 | G19: 508.9784195 | H19: 507.2855475 | I19: 507.5448639 | J19: 506.9821673 | K19: 506.4016887 | L19: 505.8305348 | M19: 502.7955854 | N19: 500.3632851 | O19: 497.9275213 | P19: 495.5082167 | Q19: 496.7991657 | R19: 496.5723124 | S19: 496.3241892 | T19: 496.089625 | U19: 494.1251487 | V19: 492.8483494 | W19: 491.5480768 | X19: 490.254997 | Y19: 487.9811024 | Z19: 485.6649543 | AA19: 482.9186846 | AB19: 480.1918203 | AC19: 477.9519931 | AD19: 475.8060582 | AE19: 473.5586518 | AF19: 471.0359144 | AG19: 468.7805148 | AH19: 466.5894859 | AI19: 463.8700789 | AJ19: 460.9624448 | AK19: 457.8169372 | AL19: 455.3539411 | AM19: 452.7213459 | AN19: 450.3456326 | AO19: 448.4789919 | AP19: 446.7259949 | AQ19: 444.2113322 | AR19: 442.5623507 | AS19: 432.2627235 | AT19: 421.2829256 | AU19: 410.0546066 | AV19: 400.4881677 | AW19: =AW122+AW171 -> 407.6735363 | AX19: 403.6297843 | AY19: 393.5406835 | AZ19: 383.4257053 | BA19: 372.7071836 | BB19: 362.9290583 | BC19: 355.7038131 | BD19: 345.3321788 | BE19: 334.5717289 | BF19: 323.5894799
A20: =ROW() -> 20 | B20: Capex | D20: =D183 -> 1.277726184 | E20: =E183 -> 0.911032965 | F20: 0.8912137351 | G20: 0.911032965 | H20: 2.873124682 | I20: 2.069509701 | J20: 2.070125761 | K20: 2.09784845 | L20: -0.3475490295 | M20: 0.2590162554 | N20: 0.2594690435 | O20: 0.27984451 | P20: 3.994014386 | Q20: 2.498273571 | R20: 2.499065137 | S20: 2.534685618 | T20: 0.8268350308 | U20: 1.53485659 | V20: 1.507319175 | W20: 1.53485659 | X20: 0.5743863703 | Y20: 0.5401060492 | Z20: 0.117957629 | AA20: 0.14533614 | AB20: 0.6403464717 | AC20: 0.7500695849 | AD20: 0.6644289855 | AE20: 0.40492871 | AF20: 0.6880974596 | AG20: 0.769020198 | AH20: 0.2571943737 | AI20: 0.08551934 | AJ20: -0.1358019645 | AK20: 0.55677197 | AL20: 0.3972354206 | AM20: 0.66417979 | AN20: 1.183314972 | AO20: 1.30770854 | AP20: 0.242097693 | AQ20: 0.73151163 | AR20: 0.45728972 | AS20: 0.3146466 | AT20: 0.6636569338 | AU20: 2.593294029 | AV20: 2.100141013 | AW20: 3.399766112 | AX20: 1.39285798 | AY20: 1.396350099 | AZ20: 0.7752807723 | BA20: 1.587930641 | BB20: 3.220850631 | BC20: 0.9913125734 | BD20: 0.6327590743 | BE20: 0.4288556435 | BF20: 0.7866873584
A21: =ROW() -> 21 | B21: Depreciation | D21: =D134+D195 -> 2.574194826 | E21: 2.5840982 | F21: 2.594001575 | G21: 2.60390495 | H21: 2.613808325 | I21: 2.632206328 | J21: 2.650604331 | K21: 2.669002334 | L21: 2.687400337 | M21: 2.691316595 | N21: 2.695232853 | O21: 2.699149111 | P21: 2.703065369 | Q21: 2.725126856 | R21: 2.747188344 | S21: 2.769249831 | T21: 2.791311319 | U21: 2.811655885 | V21: 2.807591828 | W21: 2.827936394 | X21: 2.848280961 | Y21: 2.856254136 | Z21: 2.864227311 | AA21: 2.872200486 | AB21: 2.880173661 | AC21: 2.896004495 | AD21: 2.911835329 | AE21: 2.927666163 | AF21: 2.943496996 | AG21: 2.960049151 | AH21: 2.976601306 | AI21: 2.993153461 | AJ21: =AJ134+AJ195 -> 3.009705616 | AK21: 3.019768116 | AL21: 3.029830616 | AM21: 3.039893116 | AN21: 3.049955616 | AO21: 3.060705616 | AP21: 2.756760323 | AQ21: 2.767510323 | AR21: 10.75691687 | AS21: 11.29444454 | AT21: 11.89197592 | AU21: 12.15973289 | AV21: 12.26189027 | AW21: 7.443518059 | AX21: 11.48195882 | AY21: 11.51132829 | AZ21: 11.49380245 | BA21: 11.36605592 | BB21: 10.44609589 | BC21: 11.36294685 | BD21: 11.39320903 | BE21: 11.41110463 | BF21: 10.42750547
A22: =ROW() -> 22 | B22: Over-Depreciation | AQ22: =AQ207 -> 0.3870171279 | AV22: =0 -> 0
A23: =ROW() -> 23 | B23: Asset Adjustment | D23: =D146+D219 -> 0 | E23: 0 | F23: 0 | G23: 0 | H23: 0 | I23: 0 | J23: 0 | K23: 0 | L23: 0 | M23: 0 | N23: 0 | O23: 0 | P23: 0 | Q23: 0 | R23: 0 | S23: 0 | T23: 0 | U23: 0 | V23: 0 | W23: 0 | X23: 0 | Y23: 0 | Z23: 0 | AA23: 0 | AB23: 0 | AC23: 0 | AD23: 0 | AE23: 0 | AF23: 0 | AG23: 0 | AH23: 0 | AI23: 0 | AJ23: =AJ146+AJ219 -> 0 | AK23: 0 | AL23: 0 | AM23: 0 | AN23: 0 | AO23: 0 | AP23: 0 | AQ23: 0 | AR23: 0 | AS23: 0 | AT23: 0 | AU23: 0 | AV23: 0 | AW23: 0 | AX23: 0 | AY23: 0 | AZ23: 0 | BA23: 0 | BB23: 0 | BC23: 0 | BD23: 0 | BE23: 0 | BF23: 0
A24: =ROW() -> 24 | B24: Closing Capital Base | C24: =C$158 -> 513.6507412 | D24: =D19+D20-D21+D22+D23 -> 512.3542726 | E24: =E19+E20-E21+E22+E23 -> 510.6812074 | F24: 508.9784195 | G24: 507.2855475 | H24: 507.5448639 | I24: 506.9821673 | J24: 506.4016887 | K24: 505.8305348 | L24: 502.7955854 | M24: 500.3632851 | N24: 497.9275213 | O24: 495.5082167 | P24: 496.7991657 | Q24: 496.5723124 | R24: 496.3241892 | S24: 496.089625 | T24: 494.1251487 | U24: 492.8483494 | V24: 491.5480768 | W24: 490.254997 | X24: 487.9811024 | Y24: 485.6649543 | Z24: 482.9186846 | AA24: 480.1918203 | AB24: 477.9519931 | AC24: 475.8060582 | AD24: 473.5586518 | AE24: 471.0359144 | AF24: 468.7805148 | AG24: 466.5894859 | AH24: 463.8700789 | AI24: 460.9624448 | AJ24: 457.8169372 | AK24: 455.3539411 | AL24: 452.7213459 | AM24: 450.3456326 | AN24: 448.4789919 | AO24: 446.7259949 | AP24: 444.2113322 | AQ24: 442.5623507 | AR24: 432.2627235 | AS24: 421.2829256 | AT24: 410.0546066 | AU24: 400.4881677 | AV24: 390.3264185 | AW24: 403.6297843 | AX24: 393.5406835 | AY24: 383.4257053 | AZ24: 372.7071836 | BA24: 362.9290583 | BB24: 355.7038131 | BC24: 345.3321788 | BD24: 334.5717289 | BE24: 323.5894799 | BF24: 313.9486617
A25: =ROW() -> 25 | B25: Asset Account
A26: =ROW() -> 26 | B26: Openining Capital Base ($m) | D26: $OD | E26: $OD | F26: $OD | G26: $OD | H26: $OD | I26: $OD | J26: $OD | K26: $OD | L26: $OD | M26: $OD | N26: $OD | O26: $OD | P26: $OD | Q26: $OD | R26: $OD | S26: $OD | T26: $OD | U26: $OD | V26: $OD | W26: $OD | X26: $OD | Y26: $OD | Z26: $OD | AA26: $OD | AB26: $OD | AC26: $OD | AD26: $OD | AE26: $OD | AF26: $OD | AG26: $OD | AH26: $OD | AI26: $OD | AJ26: $OD | AK26: $OD | AL26: $OD | AM26: $OD | AN26: $OD | AO26: $OD | AP26: $OD | AQ26: $OD | AR26: $OD | AS26: $OD | AT26: $OD | AU26: $OD | AV26: $OD | AW26: =AW$160 -> $ 31/12/2018 | AX26: =AX$160 -> $ 31/12/2018 | AY26: $ 31/12/2018 | AZ26: $ 31/12/2018 | BA26: $ 31/12/2018 | BB26: $ 31/12/2018 | BC26: $ 31/12/2018 | BD26: $ 31/12/2018 | BE26: $ 31/12/2018 | BF26: $ 31/12/2018
A27: =ROW() -> 27 | B27: Pipeline and laterals | D27: =D112 -> 438.6555358 | E27: =D87 -> 436.9553205 | F27: =E87 -> 435.2551053 | G27: 433.55489 | H27: 431.8546748 | I27: 430.1544595 | J27: 428.4542443 | K27: 426.754029 | L27: 425.0538137 | M27: 423.3535985 | N27: 421.6533832 | O27: 419.953168 | P27: 418.2529527 | Q27: 416.5527375 | R27: 414.8525222 | S27: 413.152307 | T27: 411.4520917 | U27: 409.7518765 | V27: =U87 -> 408.0516612 | W27: 406.3514459 | X27: 404.6512307 | Y27: 403.2521403 | Z27: 401.5521799 | AA27: 399.8524209 | AB27: 398.1518757 | AC27: 396.4516604 | AD27: 394.7514452 | AE27: 393.0512299 | AF27: 391.3510147 | AG27: 389.6507994 | AH27: 388.2367979 | AI27: 386.5365827 | AJ27: 384.8363674 | AK27: 383.1361522 | AL27: =AK87 -> 381.439488 | AM27: 379.7492947 | AN27: 378.1098482 | AO27: 376.4110778 | AP27: 374.7122857 | AQ27: 373.0206333 | AR27: =AQ87 -> 371.3214634 | AS27: 364.4275467 | AT27: 357.6165671 | AU27: 350.8055875 | AV27: 344.0202408 | AW27: =AW112+AW161 -> 352.1957148 | AX27: 346.9102442 | AY27: =AX87 -> 340.159395 | AZ27: =AY87 -> 333.1628193 | BA27: =AZ87 -> 325.9490282 | BB27: 318.6700802 | BC27: 311.7432546 | BD27: 304.6005443 | BE27: 297.457834 | BF27: 290.3151236
A28: =ROW() -> 28 | B28: Main line valve and scraper stations | D28: =D113 -> 9.177771758 | E28: =D88 -> 9.126211242 | F28: 9.074650727 | G28: 9.023090211 | H28: 8.971529696 | I28: 8.91996918 | J28: 8.868408665 | K28: 8.816848149 | L28: 8.765287634 | M28: 8.713727118 | N28: 8.662166603 | O28: 8.610606087 | P28: 8.559045572 | Q28: 8.507485056 | R28: 8.455924541 | S28: 8.404364025 | T28: 8.35280351 | U28: 8.301242994 | V28: 8.249682479 | W28: 8.198121963 | X28: 8.146561448 | Y28: 8.095000932 | Z28: 8.043440417 | AA28: 7.991879901 | AB28: 7.940319386 | AC28: 7.88875887 | AD28: 7.837198355 | AE28: 7.785637839 | AF28: 7.734077324 | AG28: 7.682516808 | AH28: 7.630956293 | AI28: 7.579395777 | AJ28: 7.527835262 | AK28: 7.476274746 | AL28: 7.424714231 | AM28: 7.373153715 | AN28: 7.3215932 | AO28: 7.297147174 | AP28: 7.246731579 | AQ28: 7.195171063 | AR28: 7.143610548 | AS28: 6.936794808 | AT28: 6.728659069 | AU28: 6.520523329 | AV28: 6.312387589 | AW28: 6.375540625 | AX28: 6.276410654 | AY28: 6.058793804 | AZ28: 5.82858192 | BA28: 5.598370037 | BB28: 5.368158153 | BC28: 5.181913245 | BD28: 4.964059322 | BE28: 4.7462054 | BF28: 4.528351478
A29: =ROW() -> 29 | B29: Compressor stations | D29: 41.57599489 | E29: 41.87835785 | F29: 42.17466574 | G29: 42.46491858 | H29: 42.74911634 | I29: 44.31732938 | J29: 45.86873676 | K29: 47.4033385 | L29: 48.92113458 | M29: 48.56781014 | N29: 48.21313267 | O29: 47.85710217 | P29: 47.49971864 | Q29: 49.42893362 | R29: 51.3377293 | S29: 53.22610569 | T29: 55.0940628 | U29: 55.50950475 | V29: 55.91646155 | W29: 56.31493319 | X29: 56.70491967 | Y29: 56.30488785 | Z29: 56.0337194 | AA29: 55.4617427 | AB29: 54.85979697 | AC29: 54.25855922 | AD29: 53.94851838 | AE29: 53.62908184 | AF29: 53.17123274 | AG29: 52.59447759 | AH29: 52.09955494 | AI29: 51.47240359 | AJ29: 50.79947086 | AK29: 50.09864497 | AL29: 49.62984866 | AM29: 48.96999054 | AN29: 48.39793576 | AO29: 47.98111214 | AP29: 47.28813644 | AQ29: 46.58925799 | AR29: 46.01302828 | AS29: 43.7578377 | AT29: 41.07046215 | AU29: 38.37061915 | AV29: 35.97156751 | AW29: 35.25733014 | AX29: 32.77592792 | AY29: 29.87670923 | AZ29: 27.93118733 | BA29: 25.33322257 | BB29: 23.30931117 | BC29: 21.26695216 | BD29: 18.60776175 | BE29: 16.21206318 | BF29: 13.41923563
A30: =ROW() -> 30 | B30: Receipt and delivery point facilities | D30: 1.534343975 | E30: 1.558746464 | F30: 1.582815127 | G30: 1.606549965 | H30: 1.629950977 | I30: 1.637245197 | J30: 1.644337032 | K30: 1.651226483 | L30: 1.65791355 | M30: 1.654892868 | N30: 1.651749013 | O30: 1.648481986 | P30: 1.645091785 | Q30: 1.644175027 | R30: 1.643113458 | S30: 1.641907078 | T30: 1.640555886 | U30: 1.630127291 | V30: 1.619628323 | W30: 1.609058982 | X30: 1.598419268 | Y30: 1.579264431 | Z30: 1.560109594 | AA30: 1.540954757 | AB30: 1.53935359 | AC30: 1.533880183 | AD30: 1.637270806 | AE30: 1.736517649 | AF30: 1.843124272 | AG30: 2.220042635 | AH30: 2.285418628 | AI30: 2.266392462 | AJ30: 2.247237625 | AK30: 2.228082788 | AL30: 2.208927951 | AM30: 2.189773114 | AN30: 2.173837417 | AO30: 2.15468258 | AP30: 2.135527743 | AQ30: 2.116372906 | AR30: 2.097218069 | AS30: 1.987969677 | AT30: 1.875797697 | AU30: 1.761714116 | AV30: 1.781217888 | AW30: 1.929681183 | AX30: 2.255647976 | AY30: 1.712618685 | AZ30: 1.577819146 | BA30: 1.614453397 | BB30: 1.576840246 | BC30: 2.011225844 | BD30: 2.46529478 | BE30: 2.372128224 | BF30: 2.194585297
A31: =ROW() -> 31 | B31: SCADA and communications | D31: 10.12958811 | E31: 9.870005114 | F31: 9.610305702 | G31: 9.350489872 | H31: 9.090557623 | I31: 8.824819428 | J31: 8.55905964 | K31: 8.293278259 | L31: 8.027475285 | M31: 7.774329737 | N31: 7.52095128 | O31: 7.267339912 | P31: 7.013495634 | Q31: 6.762790657 | R31: 6.511796565 | S31: 6.26051336 | T31: 6.008941041 | U31: 5.849627246 | V31: 5.688481877 | W31: 5.525504934 | X31: 5.360696416 | Y31: 5.109163539 | Z31: 4.837937048 | AA31: 4.561854152 | AB31: 4.284581441 | AC31: 4.058352287 | AD31: 3.977491745 | AE31: 3.867204387 | AF31: 3.599320512 | AG31: 3.354419151 | AH31: 3.126595433 | AI31: 2.842054028 | AJ31: 2.592987387 | AK31: 2.289403539 | AL31: 2.03584629 | AM31: 2.028371282 | AN31: 2.054632394 | AO31: 1.991348866 | AP31: 2.144309418 | AQ31: 2.104300578 | AR31: 2.125790765 | AS31: 1.883720177 | AT31: 1.793999726 | AU31: 1.764290185 | AV31: 1.427360321 | AW31: 1.938724706 | AX31: 2.93772485 | AY31: 3.560855913 | AZ31: 3.243719941 | BA31: 2.979727722 | BB31: 2.721802576 | BC31: 2.473058291 | BD31: 2.079523807 | BE31: 1.753116917 | BF31: 1.682610605
A32: =ROW() -> 32 | B32: Cathodic protection | D32: 1.828833019 | E32: 1.780705834 | F32: 1.732578649 | G32: 1.684451464 | H32: 1.63632428 | I32: 1.588197095 | J32: 1.54006991 | K32: 1.491942726 | L32: 1.443815541 | M32: 1.395688356 | N32: 1.347561172 | O32: 1.299433987 | P32: 1.251306802 | Q32: 1.207126867 | R32: 1.162881145 | S32: 1.118569636 | T32: 1.074192338 | U32: 1.025802004 | V32: 0.977411669 | W32: 0.9290213343 | X32: 0.8806309996 | Y32: 0.8325376649 | Z32: 0.7841473302 | AA32: 0.7357569955 | AB32: 0.6873666608 | AC32: 0.6389763261 | AD32: 0.5905859914 | AE32: 0.5504456567 | AF32: 0.502055322 | AG32: 0.4536649873 | AH32: 0.4052746526 | AI32: 0.3568843179 | AJ32: 0.3084939832 | AK32: 0.2601036485 | AL32: 0.2773992838 | AM32: 0.2308844491 | AN32: 0.2286573044 | AO32: 0.2887613997 | AP32: 0.980253675 | AQ32: 1.141389705 | AR32: 1.729809375 | AS32: 1.610898404 | AT32: 1.403892059 | AU32: 1.106399082 | AV32: 0.8064909284 | AW32: 0.5264438853 | AX32: 1.069324492 | AY32: 0.9359964122 | AZ32: 0.8000763687 | BA32: 0.6621205289 | BB32: 0.5970009882 | BC32: 0.5134970483 | BD32: 0.3861359134 | BE32: 0.2593018347 | BF32: 0.1349906158
A33: =ROW() -> 33 | B33: Maintenance bases and depots | D33: 7.727642558 | E33: 7.686051785 | F33: 7.644451898 | G33: 7.602842897 | H33: 7.56122478 | I33: 7.518841644 | J33: 7.476453173 | K33: 7.434059366 | L33: 7.391660224 | M33: 7.348738702 | N33: 7.30581443 | O33: 7.262887408 | P33: 7.219957635 | Q33: 7.176475113 | R33: 7.132992591 | S33: 7.089510069 | T33: 7.046027547 | U33: 7.002545025 | V33: 6.959062503 | W33: 6.915579981 | X33: 6.872097458 | Y33: 6.828614936 | Z33: 6.785132414 | AA33: 6.741649892 | AB33: 6.70078637 | AC33: 6.657303848 | AD33: 6.648658626 | AE33: 6.605176103 | AF33: 6.561693581 | AG33: 6.518211059 | AH33: 6.474728537 | AI33: 6.441711875 | AJ33: 6.399890353 | AK33: 6.356407831 | AL33: 6.374204248 | AM33: 6.342964796 | AN33: 6.370703614 | AO33: 6.327221092 | AP33: 6.28373857 | AQ33: 6.240256048 | AR33: 6.215583526 | AS33: 6.105522449 | AT33: 5.926752671 | AU33: 5.747524108 | AV33: 6.623812511 | AW33: 6.748253509 | AX33: 6.563146846 | AY33: 6.345959081 | AZ33: 6.128771316 | BA33: 5.930583551 | BB33: 6.02244002 | BC33: 7.947717097 | BD33: 7.862961144 | BE33: 7.599739063 | BF33: 7.336516982
A34: =ROW() -> 34 | B34: Other assets | D34: 0.4393552199 | E34: 0.5505046291 | F34: 0.6582650875 | G34: 0.762636595 | H34: 0.8636191517 | I34: 0.8801763077 | J34: 0.895370424 | K34: 0.9092015008 | L34: 0.921669538 | M34: 0.9664288607 | N34: 1.008983786 | O34: 1.049334313 | P34: 1.087480443 | Q34: 1.080945682 | R34: 1.073268436 | S34: 1.064448705 | T34: 1.054486488 | U34: 1.395980821 | V34: 1.727517693 | W34: 2.073505726 | X34: 2.409536299 | Y34: 2.41849275 | Z34: 2.534057439 | AA34: 2.524381787 | AB34: 2.519696682 | AC34: 2.570376905 | AD34: 2.551194028 | AE34: 2.49943179 | AF34: 2.439469321 | AG34: 2.407883182 | AH34: 2.4621375 | AI34: 2.536447706 | AJ34: 2.41195542 | AK34: 2.315864821 | AL34: 2.307509692 | AM34: 2.208421413 | AN34: 2.059932874 | AO34: 2.144390855 | AP34: 2.082072196 | AQ34: 1.980662617 | AR34: 2.092558672 | AS34: 1.729145519 | AT34: 1.043507059 | AU34: 0.1546611136 | AV34: -0.2781978787 | AW34: -1.291357466 | AX34: 0.8481524862 | AY34: 0.9546123023 | AZ34: 0.8736219299 | BA34: 0.8163896056 | BB34: 0.8884565299 | BC34: 0.8389352586 | BD34: 0.6857442449 | BE34: 0.5376973418 | BF34: 0.3903455098
A35: =ROW() -> 35 | B35: Equity Raising Cost | D35: 0 | E35: =D95 -> 0 | F35: =E95 -> 0 | G35: =F95 -> 0 | H35: =G95 -> 0 | I35: =H95 -> 0 | J35: =I95 -> 0 | K35: =J95 -> 0 | L35: =K95 -> 0 | M35: =L95 -> 0 | N35: =M95 -> 0 | O35: =N95 -> 0 | P35: =O95 -> 0 | Q35: =P95 -> 0 | R35: =Q95 -> 0 | S35: =R95 -> 0 | T35: =S95 -> 0 | U35: =T95 -> 0 | V35: =U95 -> 0 | W35: =V95 -> 0 | X35: =W95 -> 0 | Y35: =X95 -> 0 | Z35: =Y95 -> 0 | AA35: =Z95 -> 0 | AB35: =AA95 -> 0 | AC35: =AB95 -> 0 | AD35: =AC95 -> 0 | AE35: =AD95 -> 0 | AF35: =AE95 -> 0 | AG35: =AF95 -> 0 | AH35: =AG95 -> 0 | AI35: =AH95 -> 0 | AJ35: =AI95 -> 0 | AK35: =AJ95 -> 0 | AL35: =AK95 -> 0 | AM35: =AL95 -> 0 | AN35: =AM95 -> 0 | AO35: =AN95 -> 0 | AP35: =AO95 -> 0 | AQ35: =AP95 -> 0 | AR35: =AQ95 -> 0 | AS35: =AR95 -> 0 | AT35: =AS95 -> 0 | AU35: =AT95 -> 0 | AV35: =AU95 -> 0 | AW35: 0 | AX35: =AW95 -> 0 | AY35: =AX95 -> 0 | AZ35: =AY95 -> 0 | BA35: =AZ95 -> 0 | BB35: =BA95 -> 0 | BC35: =BB95 -> 0 | BD35: =BC95 -> 0 | BE35: =BD95 -> 0 | BF35: =BE95 -> 0
A36: =ROW() -> 36 | B36: Non-depreciable assets | D36: =D121 -> 2.581675929 | E36: =D96 -> 2.948369148 | F36: =E96 -> 2.948369148 | G36: =F96 -> 2.928549918 | H36: =G96 -> 2.928549918 | I36: =H96 -> 3.70382615 | J36: =I96 -> 3.675487401 | K36: =J96 -> 3.647764712 | L36: =K96 -> 3.647764712 | M36: =L96 -> 3.020371172 | N36: =M96 -> 2.999542918 | O36: =N96 -> 2.979167451 | P36: =O96 -> 2.979167451 | Q36: =P96 -> 4.43849622 | R36: =Q96 -> 4.402084174 | S36: =R96 -> 4.366463693 | T36: =S96 -> 4.366463693 | U36: =T96 -> 3.658442134 | V36: =U96 -> 3.658442134 | W36: =V96 -> 3.63090472 | X36: =W96 -> 3.63090472 | Y36: =X96 -> 3.561 | Z36: =Y96 -> 3.534230769 | AA36: =Z96 -> 3.508043478 | AB36: =AA96 -> 3.508043478 | AC36: =AB96 -> 3.894125 | AD36: =AC96 -> 3.863695055 | AE36: =AD96 -> 3.83392663 | AF36: =AE96 -> 3.83392663 | AG36: =AF96 -> 3.8985 | AH36: =AG96 -> 3.868021978 | AI36: =AH96 -> 3.838206522 | AJ36: =AI96 -> 3.838206522 | AK36: =AJ96 -> 3.656002747 | AL36: =AK96 -> 3.656002747 | AM36: =AL96 -> 3.628491848 | AN36: =AM96 -> 3.628491848 | AO36: =AN96 -> 3.88325 | AP36: =AO96 -> 3.85293956 | AQ36: =AP96 -> 3.823288043 | AR36: =AQ96 -> 3.823288043 | AS36: =AR96 -> 3.823288043 | AT36: =AS96 -> 3.823288043 | AU36: =AT96 -> 3.823288043 | AV36: =AU96 -> 3.823288043 | AW36: 3.993204875 | AX36: =AW96 -> 3.993204875 | AY36: =AX96 -> 3.935743026 | AZ36: =AY96 -> 3.879108049 | BA36: =AZ96 -> 3.823288043 | BB36: =BA96 -> 3.774968447 | BC36: =BB96 -> 3.727259525 | BD36: =BC96 -> 3.68015356 | BE36: =BD96 -> 3.63364293 | BF36: =BE96 -> 3.587720113
A37: =ROW() -> 37 | B37: Total | D37: =SUM(D27:D36) -> 513.6507412 | E37: =SUM(E27:E36) -> 512.3542726 | F37: 510.6812074 | G37: 508.9784195 | H37: 507.2855475 | I37: 507.5448639 | J37: 506.9821673 | K37: 506.4016887 | L37: 505.8305348 | M37: 502.7955854 | N37: 500.3632851 | O37: 497.9275213 | P37: 495.5082167 | Q37: 496.7991657 | R37: 496.5723124 | S37: 496.3241892 | T37: 496.089625 | U37: 494.1251487 | V37: 492.8483494 | W37: 491.5480768 | X37: 490.254997 | Y37: 487.9811024 | Z37: 485.6649543 | AA37: 482.9186846 | AB37: 480.1918203 | AC37: 477.9519931 | AD37: 475.8060582 | AE37: 473.5586518 | AF37: 471.0359144 | AG37: 468.7805148 | AH37: 466.5894859 | AI37: 463.8700789 | AJ37: 460.9624448 | AK37: 457.8169372 | AL37: 455.3539411 | AM37: 452.7213459 | AN37: 450.3456326 | AO37: 448.4789919 | AP37: 446.7259949 | AQ37: 444.2113322 | AR37: 442.5623507 | AS37: 432.2627235 | AT37: 421.2829256 | AU37: 410.0546066 | AV37: 400.4881677 | AW37: 407.6735363 | AX37: 403.6297843 | AY37: 393.5406835 | AZ37: 383.4257053 | BA37: 372.7071836 | BB37: 362.9290583 | BC37: 355.7038131 | BD37: 345.3321788 | BE37: 334.5717289 | BF37: 323.5894799
A38: =ROW() -> 38 | B38: Capex ($m)
A39: =ROW() -> 39 | B39: Pipeline and laterals | D39: =D173 -> 0 | E39: 0 | F39: 0 | G39: 0 | H39: 0 | I39: 0 | J39: 0 | K39: 0 | L39: 0 | M39: 0 | N39: 0 | O39: 0 | P39: 0 | Q39: 0 | R39: 0 | S39: 0 | T39: 0 | U39: 0 | V39: 0 | W39: 0 | X39: 0.30112484 | Y39: 0.00025486 | Z39: 0.00045632 | AA39: -0.00033 | AB39: 0 | AC39: 0 | AD39: 0 | AE39: 0 | AF39: 0 | AG39: 0.28621376 | AH39: 0 | AI39: 0 | AJ39: =AJ173 -> 0 | AK39: 0.00355109 | AL39: 0.01002201 | AM39: 0.06076867 | AN39: 0.00144492 | AO39: 0.0014231 | AP39: 0.00856286 | AQ39: 0.00071536 | AR39: -0.082937 | AS39: 0 | AT39: 0 | AU39: 0.025633 | AV39: 0 | AW39: 1.844572365 | AX39: 0.5064045725 | AY39: 0.280069926 | AZ39: 0.06515683739 | BA39: 0 | BB39: =BB173 -> 0.2128441109 | BC39: 0 | BD39: =BD173 -> 0 | BE39: 0 | BF39: =BF173 -> 0
A40: =ROW() -> 40 | B40: Main line valve and scraper stations | D40: =D174 -> 0 | E40: 0 | F40: 0 | G40: 0 | H40: 0 | I40: 0 | J40: 0 | K40: 0 | L40: 0 | M40: 0 | N40: 0 | O40: 0 | P40: 0 | Q40: 0 | R40: 0 | S40: 0 | T40: 0 | U40: 0 | V40: 0 | W40: 0 | X40: 0 | Y40: 0 | Z40: 0 | AA40: 0 | AB40: 0 | AC40: 0 | AD40: 0 | AE40: 0 | AF40: 0 | AG40: 0 | AH40: 0 | AI40: 0 | AJ40: =AJ174 -> 0 | AK40: 0 | AL40: 0 | AM40: 0 | AN40: 0.02711449 | AO40: 0.00114492 | AP40: 0 | AQ40: 0 | AR40: 0 | AS40: 0 | AT40: 0 | AU40: 0 | AV40: 0 | AW40: 0.1144357307 | AX40: 0.001544021653 | AY40: 0 | AZ40: 0 | BA40: 0 | BB40: =BB174 -> 0 | BC40: 0 | BD40: =BD174 -> 0 | BE40: 0 | BF40: =BF174 -> 0
A41: =ROW() -> 41 | B41: Compressor stations | D41: =D175 -> 0.7266078075 | E41: 0.7266078075 | F41: 0.7266078075 | G41: 0.7266078075 | H41: 2.016678142 | I41: 2.016678142 | J41: 2.016678142 | K41: 2.016678142 | L41: 0.1623632675 | M41: 0.1623632675 | N41: 0.1623632675 | O41: 0.1623632675 | P41: 2.450314792 | Q41: 2.450314792 | R41: 2.450314792 | S41: 2.450314792 | T41: 1.018218935 | U41: 1.018218935 | V41: 1.018218935 | W41: 1.018218935 | X41: 0.23668579 | Y41: 0.36644481 | Z41: 0.06653221 | AA41: 0.03745882 | AB41: 0.03906246 | AC41: 0.33773978 | AD41: 0.3358245 | AE41: 0.20489235 | AF41: 0.09346673 | AG41: 0.18295022 | AH41: 0.05837254 | AI41: 0.02024216 | AJ41: =AJ175 -> 0 | AK41: 0.23202959 | AL41: 0.04096777 | AM41: 0.12877112 | AN41: 0.28400227 | AO41: 0.0078502 | AP41: 0.00194744 | AQ41: 0 | AR41: 0.36723542 | AS41: 0.0473 | AT41: 0.1505567938 | AU41: 0.4783121846 | AV41: 0.6912304957 | AW41: -0.01635179322 | AX41: 0 | AY41: 0.9796105044 | AZ41: 0.3271676387 | BA41: 0.9077192336 | BB41: =BB175 -> 0.5488056295 | BC41: 0.1633703271 | BD41: =BD175 -> 0.4323078454 | BE41: 0.04958912557 | BF41: =BF175 -> 0.5154382622
A42: =ROW() -> 42 | B42: Receipt and delivery point facilities | D42: =D176 -> 0.04005906 | E42: 0.04005906 | F42: 0.04005906 | G42: 0.04005906 | H42: 0.0242860925 | I42: 0.0242860925 | J42: 0.0242860925 | K42: 0.0242860925 | L42: 0.0147807275 | M42: 0.0147807275 | N42: 0.0147807275 | O42: 0.0147807275 | P42: 0.0173773425 | Q42: 0.0173773425 | R42: 0.0173773425 | S42: 0.0173773425 | T42: 0.00844475 | U42: 0.00844475 | V42: 0.00844475 | W42: 0.00844475 | X42: 0 | Y42: 0 | Z42: 0 | AA42: 0.01755367 | AB42: 0.01368143 | AC42: 0.12254546 | AD42: 0.11840168 | AE42: 0.12576146 | AF42: 0.3960732 | AG42: 0.08453083 | AH42: 0.00012867 | AI42: 0 | AJ42: =AJ176 -> 0 | AK42: 0 | AL42: 0 | AM42: 0.00321914 | AN42: 0 | AO42: 0 | AP42: 0 | AQ42: 0 | AR42: 0 | AS42: 0 | AT42: 0 | AU42: 0.1356 | AV42: 0.1845652601 | AW42: 0.4299531486 | AX42: -0.4069259927 | AY42: 0.001303761 | AZ42: 0.1877024615 | BA42: 0.1241990997 | BB42: =BB176 -> 0.1484205253 | BC42: 0.6086032698 | BD42: =BD176 -> 0.08165455389 | BE42: 0 | BF42: =BF176 -> 0
